Workbook

Sheet Cover
B2: 2019 WECC Capital Cost Model
B4: Prepared by:
B8: 44 Montgomery Street, Suite 1500
B9: San Francisco, CA 94104
B10: (415) 391-5100
B12: 2019-07-02
B15: Table of Contents
B16: Sheet name | C16: Description
B17: Model Overview | C17: Map of data flows and depedencies in model
B18: Resource_Characteristics | C18: Input/output worksheet for all technology cost and financing assumptions
B19: IPP pro forma | C19: Cash-flow model that calculates levelized PPA cost assuming project financing by IPP
B20: IOU pro forma | C20: Utility revenue requirement model for new generation (investor-owned)
B21: POU pro forma | C21: Utility revenue requirement model for new generation (publicly owned)
B22: Simple pro forma | C22: Simplified, non-cash-flow levelized cost calculator
B23: Tx pro forma | C23: Utility revenue requirement model for new transmission
B24: LCOE | C24: Detailed table of levelized cost of energy (LCOE) by technology, state and installation year
B25: LFC | C25: Detailed table of levelized fixed costs (LFC) by technology, state and installation year
B26: Cost Components | C26: Detailed tables of levelized fixed costs and cost of energy by component for given state for each technology and year
B27: Fixed Assumptions | C27: State- and resource-specific assumptions, including tax rates and capacity factors by location
B28: Capex Trajectories | C28: Annual forecasts for resource capital costs that inform cost declines from 2018 to 2040
B29: FO&M Trajectories | C29: Annual forecasts for resource FO&M costs that inform cost declines from 2018 to 2040
B30: Financing Trajectories | C30: Annual forecasts for resource financing costs that inform cost declines from 2018 to 2040
B33: Cell Color Scheme Legend
B34: yellow: | C34: User Input
B35: blue: | C35: Calculated Input
B36: orange: | C36: Dropdown Menu Input
B37: gray: | C37: Intermediate Calculations
B38: green: | C38: Final Outputs
B39: blue text: | C39: Values hard-coded by macros
B41: All costs expressed in 2018 dollars

Sheet Model Overview
B2: Model Map and Data Flows
B4: Input Data Tables
B10: Data Compilation and
B11: Active Resource Selection
B16: Pro Forma Financial Models
B17: Cost Levelization
B22: Levelized Cost Outputs
B23: Levelized Cost of Energy and Levelized Fixed Costs
B24: Levelized Cost Breakdown for Selected State/Province

Sheet Resource_Characteristics
A1: Generic Resource Cost & Performance Inputs
A2: All costs expressed in 2018 dollars
A4: Instructions | D4: Controls | F4: Cell Color Coding | I4: Tax Rates | J4: Units | K4: Value
A5: Select a technology and installation vintage from the dropdown menus below to populate the 'Active' column with the corresponding inputs. To refresh the hard-coded values, click the buttons to the right. | F5: User Input | I5: Federal | J5: % | K5: =INDEX('Fixed Assumptions'!$D$7:$D$22,MATCH(state,'Fixed Assumptions'!$C$7:$C$22,0)) -> 0.21
F6: Calculated Input | I6: State | J6: % | K6: =INDEX('Fixed Assumptions'!$E$7:$E$22,MATCH(state,'Fixed Assumptions'!$C$7:$C$22,0)) -> 0
F7: Dropdown Menu Input | I7: Combined | J7: % | K7: =(K5*(1-K6)+K6) -> 0.21
F8: Lookup Value
F9: Yearly Lookup Value
A10: Resource Selection | F10: Final Outputs
A11: Technology: | B11: Coal - IGCC with CCS | C11: =iTech -> 35 | F11: Values hard-coded by macros
A12: Location | B12: Wyoming
A13: Vintage: | B13: 2040 | C13: =yr -> 23
B15: Resource | I15: Solar - Tracking | J15: Onshore Wind | K15: Offshore Wind - Bottom Fixed | L15: Offshore Wind - Floating | M15: Utility-scale Battery - Li [Capacity] - No ITC | N15: Utility-scale Battery - Li [Energy] - No ITC | O15: Utility-scale Battery - Li [Capacity] - ITC | P15: Utility-scale Battery - Li [Energy] - ITC | Q15: Flow Battery | R15: Pumped Hydro Storage | S15: Compressed Air Energy Storage (CAES) | T15: Solar - Residential | U15: Solar - Commercial | V15: BTM Battery - Li [Capacity] | W15: BTM Battery - Li [Energy] | X15: Gas - CCGT - Conventional (Wet) | Y15: Gas - CCGT - Conventional (Dry) | Z15: Gas - CCGT - Advanced (Wet) | AA15: Gas - CCGT - Advanced (Dry) | AB15: Gas - CCGT - Advanced Dry-Cooled with CCS | AC15: Gas - CT - Frame | AD15: Gas - CT - Aero | AE15: Gas - Reciprocating Engine | AF15: Geothermal - Binary | AG15: Geothermal - Binary, Enhanced | AH15: Geothermal - Flash | AI15: Geothermal - Flash, Enhanced | AJ15: Small Hydro | AK15: Biomass/Biogas | AL15: Solar Thermal | AM15: CHP | AN15: Nuclear - Large | AO15: Nuclear - Small Modular | AP15: Coal - PC | AQ15: Coal - IGCC with CCS | AY15: For Dropdown Menus (Do not erase) | AZ15: =MATCH(resource,rngTechs,0) -> 35 | BC15: Year | BD15: =MATCH(installYear,rngYears,0) -> 23
B16: Category for Cost Reductions | D16: Resource Category | F16: =IF(ISBLANK(G16),INDEX($I16:$AQ16,$C$11),G16) -> Coal | I16: Solar | J16: Wind | K16: Wind | L16: Wind | M16: Battery Storage-Standalone | N16: Battery Storage-Standalone | O16: Battery Storage-Hybrid | P16: Battery Storage-Hybrid | Q16: Flow Battery | R16: Pumped Hydro | S16: Compressed Air | T16: Solar | U16: Solar | V16: Battery Storage | W16: Battery Storage | X16: Gas | Y16: Gas | Z16: Gas | AA16: Gas | AB16: Gas | AC16: Gas | AD16: Gas | AE16: Gas | AF16: Geothermal | AG16: Geothermal | AH16: Geothermal | AI16: Geothermal | AJ16: Hydro | AK16: Biopower | AL16: Solar | AM16: Gas | AN16: Nuclear | AO16: Nuclear | AP16: Coal | AQ16: Coal | AY16: Technologies: | AZ16: Macrs: | BC16: 2018
D17: Technology Type | F17: =IF(ISBLANK(G17),INDEX($I17:$AQ17,$C$11),G17) -> CCS 90% | I17: Utility-scale PV | J17: Onshore | K17: Offshore Fixed | L17: Offshore Floating | M17: Lithium ion (Grid) - Capacity | N17: Lithium ion (Grid) - Energy | O17: Lithium ion (Grid) - Capacity | P17: Lithium ion (Grid) - Energy | Q17: Vanadium | T17: Distributed (residential) | U17: Commercial | V17: Lithium ion (BTM) - Capacity | W17: Lithium ion (BTM) - Energy | X17: CC | Y17: CC | Z17: CC | AA17: CC | AB17: CC-CCS | AC17: CT | AD17: CT | AE17: Recip | AF17: Hydro / Binary | AG17: Hydro / Flash | AH17: NF EGS / Binary | AI17: NF EGS / Flash | AJ17: Non-powered dams | AL17: Thermal | AM17: CHP | AP17: New | AQ17: CCS 90% | AX17: =INDEX(resources,MATCH(AY17,rngTechs,0))=AY17 -> TRUE | AY17: =TRANSPOSE(resources) -> Solar - Tracking | AZ17: 3 | BC17: =BC16+1 -> 2019
D18: Techno-Resource Group | F18: =IF(ISBLANK(G18),INDEX($I18:$AQ18,$C$11),G18) -> 0 | J18: =IFERROR(INDEX('Fixed Assumptions'!$C$28:$C$37,MATCH(Resource_Characteristics!J23,'Fixed Assumptions'!$D$28:$D$37,-1)),1) -> 2 | AJ18: 2 | AL18: 1 | AX18: TRUE | AY18: Onshore Wind | AZ18: 5 | BC18: =BC17+1 -> 2020
D19: Active Cost Trajectory Scenario | F19: =IF(ISBLANK(G19),INDEX($I19:$AQ19,$C$11),G19) -> 0 | I19: Mid | J19: Mid | K19: Mid | L19: Mid | M19: Mid | N19: Mid | O19: Mid | P19: Mid | Q19: Mid | R19: Mid | S19: Mid | T19: Mid | U19: Mid | V19: Mid | W19: Mid | X19: Mid | Y19: Mid | Z19: Mid | AA19: Mid | AB19: Mid | AC19: Mid | AD19: Mid | AE19: Mid | AF19: Mid | AG19: Mid | AH19: Mid | AI19: Mid | AJ19: Mid | AL19: Mid | AM19: Mid | AX19: TRUE | AY19: Offshore Wind - Bottom Fixed | AZ19: 7 | BC19: 2021
B20: Performance Inputs | E20: Units | F20: Active | G20: User Override | AX20: TRUE | AY20: Offshore Wind - Floating | AZ20: 10 | BC20: 2022
B21: Plant Output | D21: Installed Capacity | E21: MW-ac | F21: =IF(ISBLANK(G21),INDEX($I21:$AQ21,$C$11),G21) -> 200 | I21: 50 | J21: 30 | K21: 400 | L21: 400 | M21: 1 | N21: 1 | O21: 1 | P21: 1 | Q21: 1 | R21: 400 | S21: 50 | T21: 0.004 | U21: 1 | V21: 1 | W21: 1 | X21: 500 | Y21: 500 | Z21: 500 | AA21: 500 | AB21: 500 | AC21: 50 | AD21: 50 | AE21: 50 | AF21: 10 | AG21: 10 | AH21: 10 | AI21: 10 | AJ21: 1 | AK21: 1 | AL21: 50 | AM21: 50 | AN21: 1000 | AO21: 100 | AP21: 200 | AQ21: 200 | AX21: TRUE | AY21: Utility-scale Battery - Li [Capacity] - No ITC | AZ21: 15 | BC21: 2023
D22: DC - AC derate | F22: =IF(ISBLANK(G22),IF(ISBLANK(INDEX($I22:$AQ22,$C$11)),"n/a",INDEX($I22:$AQ22,$C$11)),G22) -> n/a | I22: 1.35 | T22: 1.35 | U22: 1.35 | AX22: TRUE | AY22: Utility-scale Battery - Li [Energy] - No ITC | AZ22: 20 | BC22: 2024
D23: Capacity Factor | E23: % | F23: =IF(ISBLANK(G23),INDEX($I23:$AQ23,$C$11),G23) -> 0.6 | I23: =INDEX('Fixed Assumptions'!$H$7:$H$22,MATCH(state,'Fixed Assumptions'!C7:C22,0)) -> 0.27 | J23: =INDEX('Fixed Assumptions'!$I$7:$I$22,MATCH(state,'Fixed Assumptions'!C7:C22,0)) -> 0.45 | K23: 0.45 | L23: 0.47 | M23: 0.15 | N23: 0.15 | O23: 0.15 | P23: 0.15 | Q23: 0.15 | R23: 0.15 | S23: 0.15 | T23: =INDEX('Fixed Assumptions'!$G$7:$G$22,MATCH(state,'Fixed Assumptions'!C7:C22,0)) -> 0.19 | U23: =INDEX('Fixed Assumptions'!$G$7:$G$22,MATCH(state,'Fixed Assumptions'!C7:C22,0)) -> 0.19 | V23: 0.15 | W23: 0.15 | X23: 0.5 | Y23: 0.5 | Z23: 0.5 | AA23: 0.5 | AB23: 0.5 | AC23: 0.1 | AD23: 0.1 | AE23: 0.1 | AF23: 0.9 | AG23: 0.9 | AH23: 0.9 | AI23: 0.9 | AJ23: 0.6 | AK23: 0.9 | AL23: 0.33 | AM23: 0.5 | AN23: 0.9 | AO23: 0.9 | AP23: 0.6 | AQ23: 0.6 | AX23: TRUE | AY23: Utility-scale Battery - Li [Capacity] - ITC | AZ23: 5 + Bonus | BC23: 2025
D24: Degradation | E24: %/yr | F24: =IF(ISBLANK(G24),INDEX($I24:$AQ24,$C$11),G24) -> 0 | I24: 0.005 | J24: 0 | K24: 0 | L24: 0 | M24: 0 | N24: 0 | O24: 0 | P24: 0 | Q24: 0 | R24: 0 | S24: 0 | T24: 0.005 | U24: 0.005 | V24: 0 | W24: 0 | X24: 0 | Y24: 0 | Z24: 0 | AA24: 0 | AB24: 0 | AC24: 0 | AD24: 0 | AE24: 0 | AF24: 0 | AG24: 0 | AH24: 0 | AI24: 0 | AJ24: 0 | AK24: 0 | AL24: 0.005 | AM24: 0 | AN24: 0 | AO24: 0 | AP24: 0 | AQ24: 0 | AX24: TRUE | AY24: Utility-scale Battery - Li [Energy] - ITC | BC24: 2026
B25: Plant Cost Inputs | AX25: TRUE | AY25: Flow Battery | BC25: 2027
B26: Capital Costs | D26: Installed Cost, US 2018 | E26: $/kW-ac | F26: =IF(ISBLANK(G26),INDEX($I26:$AQ26,$C$11),G26) -> 6700 | I26: 1450 | J26: 1650 | K26: 3500 | L26: 6500 | M26: 200 | N26: 325 | O26: 75 | P26: 325 | Q26: 2000 | R26: 2350 | S26: 2100 | T26: 3250 | U26: 2200 | V26: 300 | W26: 670 | X26: 1200 | Y26: 1250 | Z26: 1250 | AA26: 1300 | AB26: 2500 | AC26: 800 | AD26: 1300 | AE26: 1350 | AF26: 6100 | AG26: 13600 | AH26: 5100 | AI26: 9000 | AJ26: 4200 | AK26: 4400 | AL26: 7000 | AM26: 2200 | AN26: 11000 | AO26: 6200 | AP26: 3900 | AQ26: 6700 | AX26: TRUE | AY26: Pumped Hydro Storage | BC26: 2028
D27: Progress Multiplier | E27: % | F27: =IF(ISBLANK(G27),INDEX($I27:$AQ27,$C$11),G27) -> 0.9071616532 | I27: =INDEX(I$156:I$178,$C$13) -> 0.7046062437 | J27: 0.8292603887 | K27: 0.6341305804 | L27: 0.676279238 | M27: 0.4159850675 | N27: 0.4159850675 | O27: 0.4159850675 | P27: 0.4159850675 | Q27: 0.6314788365 | R27: 1 | S27: 1 | T27: 0.4549490529 | U27: 0.5520909529 | V27: 0.4335543354 | W27: 0.4335543354 | X27: 0.9191232802 | Y27: 0.9191232802 | Z27: 0.9191232802 | AA27: 0.9191232802 | AB27: 0.8456180247 | AC27: 0.9168434922 | AD27: 0.9168434922 | AE27: 1 | AF27: 0.9447236435 | AG27: 0.9447235877 | AH27: 0.9447236067 | AI27: 0.9447236181 | AJ27: 1 | AK27: 0.9061227018 | AL27: 0.72 | AM27: 1 | AN27: 0.9055308934 | AO27: 0.9055308934 | AP27: 0.9432142112 | AQ27: 0.9071616532 | AX27: TRUE | AY27: Compressed Air Energy Storage (CAES) | BC27: 2029
D28: State Multiplier | E28: % | F28: =IF(ISBLANK(G28),INDEX($I28:$AQ28,$C$11),G28) -> 0.9834073426 | I28: =1-(1-INDEX('Fixed Assumptions'!$F$7:$F$22,MATCH(state,'Fixed Assumptions'!$C$7:$C$22,0)))*INDEX('Fixed Assumptions'!$M$7:$M$24,MATCH(INDEX('Fixed Assumptions'!$P$7:$P$41,MATCH(Resource_Characteristics!I15,'Fixed Assumptions'!$O$7:$O$41,0)),'Fixed Assumptions'!$L$7:$L$24,0)) -> 0.9911110764 | J28: =1-(1-INDEX('Fixed Assumptions'!$F$7:$F$22,MATCH(state,'Fixed Assumptions'!$C$7:$C$22,0)))*INDEX('Fixed Assumptions'!$M$7:$M$24,MATCH(INDEX('Fixed Assumptions'!$P$7:$P$41,MATCH(Resource_Characteristics!J15,'Fixed Assumptions'!$O$7:$O$41,0)),'Fixed Assumptions'!$L$7:$L$24,0)) -> 0.9940740509 | K28: =1-(1-INDEX('Fixed Assumptions'!$F$7:$F$22,MATCH(state,'Fixed Assumptions'!$C$7:$C$22,0)))*INDEX('Fixed Assumptions'!$M$7:$M$24,MATCH(INDEX('Fixed Assumptions'!$P$7:$P$41,MATCH(Resource_Characteristics!K15,'Fixed Assumptions'!$O$7:$O$41,0)),'Fixed Assumptions'!$L$7:$L$24,0)) -> 0.9881481019 | L28: =1-(1-INDEX('Fixed Assumptions'!$F$7:$F$22,MATCH(state,'Fixed Assumptions'!$C$7:$C$22,0)))*INDEX('Fixed Assumptions'!$M$7:$M$24,MATCH(INDEX('Fixed Assumptions'!$P$7:$P$41,MATCH(Resource_Characteristics!L15,'Fixed Assumptions'!$O$7:$O$41,0)),'Fixed Assumptions'!$L$7:$L$24,0)) -> 0.9881481019 | M28: =1-(1-INDEX('Fixed Assumptions'!$F$7:$F$22,MATCH(state,'Fixed Assumptions'!$C$7:$C$22,0)))*INDEX('Fixed Assumptions'!$M$7:$M$24,MATCH(INDEX('Fixed Assumptions'!$P$7:$P$41,MATCH(Resource_Characteristics!M15,'Fixed Assumptions'!$O$7:$O$41,0)),'Fixed Assumptions'!$L$7:$L$24,0)) -> 0.9940740509 | N28: =1-(1-INDEX('Fixed Assumptions'!$F$7:$F$22,MATCH(state,'Fixed Assumptions'!$C$7:$C$22,0)))*INDEX('Fixed Assumptions'!$M$7:$M$24,MATCH(INDEX('Fixed Assumptions'!$P$7:$P$41,MATCH(Resource_Characteristics!N15,'Fixed Assumptions'!$O$7:$O$41,0)),'Fixed Assumptions'!$L$7:$L$24,0)) -> 0.9940740509 | O28: =1-(1-INDEX('Fixed Assumptions'!$F$7:$F$22,MATCH(state,'Fixed Assumptions'!$C$7:$C$22,0)))*INDEX('Fixed Assumptions'!$M$7:$M$24,MATCH(INDEX('Fixed Assumptions'!$P$7:$P$41,MATCH(Resource_Characteristics!O15,'Fixed Assumptions'!$O$7:$O$41,0)),'Fixed Assumptions'!$L$7:$L$24,0)) -> 0.9940740509 | P28: =1-(1-INDEX('Fixed Assumptions'!$F$7:$F$22,MATCH(state,'Fixed Assumptions'!$C$7:$C$22,0)))*INDEX('Fixed Assumptions'!$M$7:$M$24,MATCH(INDEX('Fixed Assumptions'!$P$7:$P$41,MATCH(Resource_Characteristics!P15,'Fixed Assumptions'!$O$7:$O$41,0)),'Fixed Assumptions'!$L$7:$L$24,0)) -> 0.9940740509 | Q28: =1-(1-INDEX('Fixed Assumptions'!$F$7:$F$22,MATCH(state,'Fixed Assumptions'!$C$7:$C$22,0)))*INDEX('Fixed Assumptions'!$M$7:$M$24,MATCH(INDEX('Fixed Assumptions'!$P$7:$P$41,MATCH(Resource_Characteristics!Q15,'Fixed Assumptions'!$O$7:$O$41,0)),'Fixed Assumptions'!$L$7:$L$24,0)) -> 0.9940740509 | R28: =1-(1-INDEX('Fixed Assumptions'!$F$7:$F$22,MATCH(state,'Fixed Assumptions'!$C$7:$C$22,0)))*INDEX('Fixed Assumptions'!$M$7:$M$24,MATCH(INDEX('Fixed Assumptions'!$P$7:$P$41,MATCH(Resource_Characteristics!R15,'Fixed Assumptions'!$O$7:$O$41,0)),'Fixed Assumptions'!$L$7:$L$24,0)) -> 0.9762962038 | S28: =1-(1-INDEX('Fixed Assumptions'!$F$7:$F$22,MATCH(state,'Fixed Assumptions'!$C$7:$C$22,0)))*INDEX('Fixed Assumptions'!$M$7:$M$24,MATCH(INDEX('Fixed Assumptions'!$P$7:$P$41,MATCH(Resource_Characteristics!S15,'Fixed Assumptions'!$O$7:$O$41,0)),'Fixed Assumptions'!$L$7:$L$24,0)) -> 0.9851851274 | T28: =1-(1-INDEX('Fixed Assumptions'!$F$7:$F$22,MATCH(state,'Fixed Assumptions'!$C$7:$C$22,0)))*INDEX('Fixed Assumptions'!$M$7:$M$24,MATCH(INDEX('Fixed Assumptions'!$P$7:$P$41,MATCH(Resource_Characteristics!T15,'Fixed Assumptions'!$O$7:$O$41,0)),'Fixed Assumptions'!$L$7:$L$24,0)) -> 0.9911110764 | U28: =1-(1-INDEX('Fixed Assumptions'!$F$7:$F$22,MATCH(state,'Fixed Assumptions'!$C$7:$C$22,0)))*INDEX('Fixed Assumptions'!$M$7:$M$24,MATCH(INDEX('Fixed Assumptions'!$P$7:$P$41,MATCH(Resource_Characteristics!U15,'Fixed Assumptions'!$O$7:$O$41,0)),'Fixed Assumptions'!$L$7:$L$24,0)) -> 0.9911110764 | V28: =1-(1-INDEX('Fixed Assumptions'!$F$7:$F$22,MATCH(state,'Fixed Assumptions'!$C$7:$C$22,0)))*INDEX('Fixed Assumptions'!$M$7:$M$24,MATCH(INDEX('Fixed Assumptions'!$P$7:$P$41,MATCH(Resource_Characteristics!V15,'Fixed Assumptions'!$O$7:$O$41,0)),'Fixed Assumptions'!$L$7:$L$24,0)) -> 0.9940740509 | W28: =1-(1-INDEX('Fixed Assumptions'!$F$7:$F$22,MATCH(state,'Fixed Assumptions'!$C$7:$C$22,0)))*INDEX('Fixed Assumptions'!$M$7:$M$24,MATCH(INDEX('Fixed Assumptions'!$P$7:$P$41,MATCH(Resource_Characteristics!W15,'Fixed Assumptions'!$O$7:$O$41,0)),'Fixed Assumptions'!$L$7:$L$24,0)) -> 0.9940740509 | X28: =1-(1-INDEX('Fixed Assumptions'!$F$7:$F$22,MATCH(state,'Fixed Assumptions'!$C$7:$C$22,0)))*INDEX('Fixed Assumptions'!$M$7:$M$24,MATCH(INDEX('Fixed Assumptions'!$P$7:$P$41,MATCH(Resource_Characteristics!X15,'Fixed Assumptions'!$O$7:$O$41,0)),'Fixed Assumptions'!$L$7:$L$24,0)) -> 0.9881481019 | Y28: =1-(1-INDEX('Fixed Assumptions'!$F$7:$F$22,MATCH(state,'Fixed Assumptions'!$C$7:$C$22,0)))*INDEX('Fixed Assumptions'!$M$7:$M$24,MATCH(INDEX('Fixed Assumptions'!$P$7:$P$41,MATCH(Resource_Characteristics!Y15,'Fixed Assumptions'!$O$7:$O$41,0)),'Fixed Assumptions'!$L$7:$L$24,0)) -> 0.9881481019 | Z28: =1-(1-INDEX('Fixed Assumptions'!$F$7:$F$22,MATCH(state,'Fixed Assumptions'!$C$7:$C$22,0)))*INDEX('Fixed Assumptions'!$M$7:$M$24,MATCH(INDEX('Fixed Assumptions'!$P$7:$P$41,MATCH(Resource_Characteristics!Z15,'Fixed Assumptions'!$O$7:$O$41,0)),'Fixed Assumptions'!$L$7:$L$24,0)) -> 0.9881481019 | AA28: =1-(1-INDEX('Fixed Assumptions'!$F$7:$F$22,MATCH(state,'Fixed Assumptions'!$C$7:$C$22,0)))*INDEX('Fixed Assumptions'!$M$7:$M$24,MATCH(INDEX('Fixed Assumptions'!$P$7:$P$41,MATCH(Resource_Characteristics!AA15,'Fixed Assumptions'!$O$7:$O$41,0)),'Fixed Assumptions'!$L$7:$L$24,0)) -> 0.9881481019 | AB28: =1-(1-INDEX('Fixed Assumptions'!$F$7:$F$22,MATCH(state,'Fixed Assumptions'!$C$7:$C$22,0)))*INDEX('Fixed Assumptions'!$M$7:$M$24,MATCH(INDEX('Fixed Assumptions'!$P$7:$P$41,MATCH(Resource_Characteristics!AB15,'Fixed Assumptions'!$O$7:$O$41,0)),'Fixed Assumptions'!$L$7:$L$24,0)) -> 0.9881481019 | AC28: =1-(1-INDEX('Fixed Assumptions'!$F$7:$F$22,MATCH(state,'Fixed Assumptions'!$C$7:$C$22,0)))*INDEX('Fixed Assumptions'!$M$7:$M$24,MATCH(INDEX('Fixed Assumptions'!$P$7:$P$41,MATCH(Resource_Characteristics!AC15,'Fixed Assumptions'!$O$7:$O$41,0)),'Fixed Assumptions'!$L$7:$L$24,0)) -> 0.9703702547 | AD28: =1-(1-INDEX('Fixed Assumptions'!$F$7:$F$22,MATCH(state,'Fixed Assumptions'!$C$7:$C$22,0)))*INDEX('Fixed Assumptions'!$M$7:$M$24,MATCH(INDEX('Fixed Assumptions'!$P$7:$P$41,MATCH(Resource_Characteristics!AD15,'Fixed Assumptions'!$O$7:$O$41,0)),'Fixed Assumptions'!$L$7:$L$24,0)) -> 0.9703702547 | AE28: =1-(1-INDEX('Fixed Assumptions'!$F$7:$F$22,MATCH(state,'Fixed Assumptions'!$C$7:$C$22,0)))*INDEX('Fixed Assumptions'!$M$7:$M$24,MATCH(INDEX('Fixed Assumptions'!$P$7:$P$41,MATCH(Resource_Characteristics!AE15,'Fixed Assumptions'!$O$7:$O$41,0)),'Fixed Assumptions'!$L$7:$L$24,0)) -> 0.9703702547 | AF28: =1-(1-INDEX('Fixed Assumptions'!$F$7:$F$22,MATCH(state,'Fixed Assumptions'!$C$7:$C$22,0)))*INDEX('Fixed Assumptions'!$M$7:$M$24,MATCH(INDEX('Fixed Assumptions'!$P$7:$P$41,MATCH(Resource_Characteristics!AF15,'Fixed Assumptions'!$O$7:$O$41,0)),'Fixed Assumptions'!$L$7:$L$24,0)) -> 0.9911110764 | AG28: =1-(1-INDEX('Fixed Assumptions'!$F$7:$F$22,MATCH(state,'Fixed Assumptions'!$C$7:$C$22,0)))*INDEX('Fixed Assumptions'!$M$7:$M$24,MATCH(INDEX('Fixed Assumptions'!$P$7:$P$41,MATCH(Resource_Characteristics!AG15,'Fixed Assumptions'!$O$7:$O$41,0)),'Fixed Assumptions'!$L$7:$L$24,0)) -> 0.9911110764 | AH28: =1-(1-INDEX('Fixed Assumptions'!$F$7:$F$22,MATCH(state,'Fixed Assumptions'!$C$7:$C$22,0)))*INDEX('Fixed Assumptions'!$M$7:$M$24,MATCH(INDEX('Fixed Assumptions'!$P$7:$P$41,MATCH(Resource_Characteristics!AH15,'Fixed Assumptions'!$O$7:$O$41,0)),'Fixed Assumptions'!$L$7:$L$24,0)) -> 0.9911110764 | AI28: =1-(1-INDEX('Fixed Assumptions'!$F$7:$F$22,MATCH(state,'Fixed Assumptions'!$C$7:$C$22,0)))*INDEX('Fixed Assumptions'!$M$7:$M$24,MATCH(INDEX('Fixed Assumptions'!$P$7:$P$41,MATCH(Resource_Characteristics!AI15,'Fixed Assumptions'!$O$7:$O$41,0)),'Fixed Assumptions'!$L$7:$L$24,0)) -> 0.9911110764 | AJ28: =1-(1-INDEX('Fixed Assumptions'!$F$7:$F$22,MATCH(state,'Fixed Assumptions'!$C$7:$C$22,0)))*INDEX('Fixed Assumptions'!$M$7:$M$24,MATCH(INDEX('Fixed Assumptions'!$P$7:$P$41,MATCH(Resource_Characteristics!AJ15,'Fixed Assumptions'!$O$7:$O$41,0)),'Fixed Assumptions'!$L$7:$L$24,0)) -> 0.9703702547 | AK28: =1-(1-INDEX('Fixed Assumptions'!$F$7:$F$22,MATCH(state,'Fixed Assumptions'!$C$7:$C$22,0)))*INDEX('Fixed Assumptions'!$M$7:$M$24,MATCH(INDEX('Fixed Assumptions'!$P$7:$P$41,MATCH(Resource_Characteristics!AK15,'Fixed Assumptions'!$O$7:$O$41,0)),'Fixed Assumptions'!$L$7:$L$24,0)) -> 0.9822221528 | AL28: =1-(1-INDEX('Fixed Assumptions'!$F$7:$F$22,MATCH(state,'Fixed Assumptions'!$C$7:$C$22,0)))*INDEX('Fixed Assumptions'!$M$7:$M$24,MATCH(INDEX('Fixed Assumptions'!$P$7:$P$41,MATCH(Resource_Characteristics!AL15,'Fixed Assumptions'!$O$7:$O$41,0)),'Fixed Assumptions'!$L$7:$L$24,0)) -> 0.9881481019 | AM28: =1-(1-INDEX('Fixed Assumptions'!$F$7:$F$22,MATCH(state,'Fixed Assumptions'!$C$7:$C$22,0)))*INDEX('Fixed Assumptions'!$M$7:$M$24,MATCH(INDEX('Fixed Assumptions'!$P$7:$P$41,MATCH(Resource_Characteristics!AM15,'Fixed Assumptions'!$O$7:$O$41,0)),'Fixed Assumptions'!$L$7:$L$24,0)) -> 0.9881481019 | AN28: =1-(1-INDEX('Fixed Assumptions'!$F$7:$F$22,MATCH(state,'Fixed Assumptions'!$C$7:$C$22,0)))*INDEX('Fixed Assumptions'!$M$7:$M$24,MATCH(INDEX('Fixed Assumptions'!$P$7:$P$41,MATCH(Resource_Characteristics!AN15,'Fixed Assumptions'!$O$7:$O$41,0)),'Fixed Assumptions'!$L$7:$L$24,0)) -> 0.9762962038 | AO28: =1-(1-INDEX('Fixed Assumptions'!$F$7:$F$22,MATCH(state,'Fixed Assumptions'!$C$7:$C$22,0)))*INDEX('Fixed Assumptions'!$M$7:$M$24,MATCH(INDEX('Fixed Assumptions'!$P$7:$P$41,MATCH(Resource_Characteristics!AO15,'Fixed Assumptions'!$O$7:$O$41,0)),'Fixed Assumptions'!$L$7:$L$24,0)) -> 0.9762962038 | AP28: =1-(1-INDEX('Fixed Assumptions'!$F$7:$F$22,MATCH(state,'Fixed Assumptions'!$C$7:$C$22,0)))*INDEX('Fixed Assumptions'!$M$7:$M$24,MATCH(INDEX('Fixed Assumptions'!$P$7:$P$41,MATCH(Resource_Characteristics!AP15,'Fixed Assumptions'!$O$7:$O$41,0)),'Fixed Assumptions'!$L$7:$L$24,0)) -> 0.9822221528 | AQ28: =1-(1-INDEX('Fixed Assumptions'!$F$7:$F$22,MATCH(state,'Fixed Assumptions'!$C$7:$C$22,0)))*INDEX('Fixed Assumptions'!$M$7:$M$24,MATCH(INDEX('Fixed Assumptions'!$P$7:$P$41,MATCH(Resource_Characteristics!AQ15,'Fixed Assumptions'!$O$7:$O$41,0)),'Fixed Assumptions'!$L$7:$L$24,0)) -> 0.9834073426 | AX28: TRUE | AY28: Solar - Residential | BC28: 2030
D29: Techno-Resource Group Multipler | E29: % | F29: =IF(ISBLANK(G29),INDEX($I29:$AQ29,$C$11),G29) -> 0 | J29: =INDEX('Fixed Assumptions'!$E$28:$E$37,MATCH(Resource_Characteristics!$J$18,'Fixed Assumptions'!$C$28:$C$37,0)) -> 0.9144479439 | AX29: TRUE | AY29: Solar - Commercial | BC29: 2031
D30: ="Installed Cost, "&state&" "&$B$13 -> Installed Cost, Wyoming 2040 | E30: $/kW-ac | F30: =IF(ISBLANK(G30),F26*F27*F28,G30) -> 5977.133186 | I30: =I26*I27*I28 -> 1012.597426 | J30: =J26*J27*J28*J29 -> 1243.805836 | K30: =K26*K27*K28 -> 2193.152253 | L30: 4343.716295 | M30: 82.70399225 | N30: 134.3939874 | O30: 31.01399709 | P30: 134.3939874 | Q30: 1255.47345 | R30: 2294.296079 | S30: 2068.888767 | T30: 1465.441398 | U30: 1203.803609 | V30: 129.2955344 | W30: 288.7600267 | X30: 1089.87591 | Y30: 1135.287406 | Z30: 1135.287406 | AA30: 1180.698902 | AB30: 2088.989615 | AC30: 711.7421225 | AD30: 1156.580949 | AE30: 1309.999844 | AF30: 5711.58901 | AG30: 12734.03376 | AH30: 4775.262757 | AI30: 8426.934378 | AJ30: 4075.55507 | AK30: 3916.06068 | AL30: 4980.266434 | AM30: 2173.925824 | AN30: 9724.73011 | AO30: 5481.211516 | AP30: 3613.138983 | AQ30: 5977.133186 | AX30: TRUE | AY30: BTM Battery - Li [Capacity] | BC30: 2032
B31: Interconnection Costs | D31: Interconnection Fraction of CapEX | E31: % | I31: 0 | J31: 0 | K31: 0 | L31: 0 | M31: 0 | N31: 0 | O31: 0 | P31: 0 | Q31: 0 | R31: 0 | S31: 0 | T31: 0 | U31: 0 | V31: 0 | W31: 0 | X31: 0 | Y31: 0 | Z31: 0 | AA31: 0 | AB31: 0 | AC31: 0 | AD31: 0 | AE31: 0 | AF31: 0 | AG31: 0 | AH31: 0 | AI31: 0 | AJ31: 0 | AK31: 0 | AL31: 0 | AM31: 0 | AN31: 0 | AO31: 0 | AP31: 0 | AQ31: 0 | AX31: TRUE | AY31: BTM Battery - Li [Energy] | BC31: 2033
D32: Interconnection Cost | E32: $/kW | F32: =IF(ISBLANK(G32),INDEX($I32:$AQ32,$C$11),G32) -> 0 | I32: 0 | J32: 0 | K32: 0 | L32: 0 | M32: 0 | N32: 0 | O32: 0 | P32: 0 | Q32: 0 | R32: 0 | S32: 0 | T32: 0 | U32: 0 | V32: 0 | W32: 0 | X32: 0 | Y32: 0 | Z32: 0 | AA32: 0 | AB32: 0 | AC32: 0 | AD32: 0 | AE32: 0 | AF32: 0 | AG32: 0 | AH32: 0 | AI32: 0 | AJ32: 0 | AK32: 0 | AL32: 0 | AM32: 0 | AN32: 0 | AO32: 0 | AP32: 0 | AQ32: 0 | AX32: TRUE | AY32: Gas - CCGT - Conventional (Wet) | BC32: 2034
B33: Fixed O&M | D33: Annual Fixed O&M, 2018 COD | E33: $/kW-yr | F33: 70 | I33: 15 | J33: 40 | K33: 80 | L33: 80 | M33: 0.8924117647 | N33: 4.693742647 | O33: 0.8924117647 | P33: 4.693742647 | Q33: 18.864 | R33: 23.52 | S33: 20 | T33: 23 | U33: 19 | V33: 9.258666667 | W33: 20.63215686 | X33: 10 | Y33: 10 | Z33: 10 | AA33: 10 | AB33: 33.05582761 | AC33: 9 | AD33: 12.41183341 | AE33: 20 | AF33: 130 | AG33: 260 | AH33: 170 | AI33: 260 | AJ33: 20 | AK33: 120 | AL33: 66.84221187 | AM33: 11 | AN33: 110 | AO33: 150 | AP33: 40 | AQ33: 70 | AX33: TRUE | AY33: Gas - CCGT - Conventional (Dry) | BC33: 2035
D34: Progress Multiplier | E34: % | F34: 1 | I34: =INDEX(I$180:I$202,$C$13) -> 0.6781240859 | J34: 0.8394160584 | K34: 0.9525521208 | L34: 0.9525521208 | M34: 0.4159850675 | N34: 0.4159850675 | O34: 0.4159850675 | P34: 0.4159850675 | Q34: 0.6314788365 | R34: 1 | S34: 1 | T34: 0.4696248288 | U34: 0.5440788899 | V34: 0.4335543354 | W34: 0.4335543354 | X34: 1 | Y34: 1 | Z34: 1 | AA34: 1 | AB34: 1 | AC34: 1 | AD34: 1 | AE34: 1 | AF34: 1 | AG34: 1 | AH34: 1 | AI34: 1 | AJ34: 1 | AK34: 1 | AL34: 0.75 | AM34: 1 | AN34: 1 | AO34: 1 | AP34: 1 | AQ34: 1 | AX34: TRUE | AY34: Gas - CCGT - Advanced (Wet) | BC34: 2036
D35: ="Annual Fixed O&M, "&yearID&" COD" -> Annual Fixed O&M, 2040 COD | E35: $/kW-yr | F35: 70 | I35: =I33*I34 -> 10.17186129 | J35: 33.57664234 | K35: 76.20416966 | L35: 76.20416966 | M35: 0.3712299682 | N35: 1.952526852 | O35: 0.3712299682 | P35: 1.952526852 | Q35: 11.91221677 | R35: 23.52 | S35: 20 | T35: 10.80137106 | U35: 10.33749891 | V35: 4.014135074 | W35: 8.945161057 | X35: 10 | Y35: 10 | Z35: 10 | AA35: 10 | AB35: 33.05582761 | AC35: 9 | AD35: 12.41183341 | AE35: 20 | AF35: 130 | AG35: 260 | AH35: 170 | AI35: 260 | AJ35: 20 | AK35: 120 | AL35: 50.1316589 | AM35: 11 | AN35: 110 | AO35: 150 | AP35: 40 | AQ35: 70 | AX35: TRUE | AY35: Gas - CCGT - Advanced (Dry) | BC35: 2037
D36: Annual Escalation | E36: %/yr | F36: 0.02 | I36: 0.02 | J36: 0.02 | K36: 0 | L36: 0 | M36: 0.02 | N36: 0.02 | O36: 0.02 | P36: 0.02 | Q36: 0.02 | R36: 0.02 | S36: 0.02 | T36: 0.02 | U36: 0.02 | V36: 0.02 | W36: 0.02 | X36: 0.02 | Y36: 0.02 | Z36: 0.02 | AA36: 0.02 | AB36: 0.02 | AC36: 0.02 | AD36: 0.02 | AE36: 0.02 | AF36: 0.02 | AG36: 0.02 | AH36: 0.02 | AI36: 0.02 | AJ36: 0.02 | AK36: 0.02 | AL36: 0.02 | AM36: 0.02 | AN36: 0.02 | AO36: 0.02 | AP36: 0.02 | AQ36: 0.02 | AX36: TRUE | AY36: Gas - CCGT - Advanced Dry-Cooled with CCS | BC36: 2038
B37: Variable O&M | D37: Variable O&M | E37: $/MWh | F37: 10 | I37: 0 | J37: 0 | K37: 0 | L37: 0 | M37: 0 | N37: 0 | O37: 0 | P37: 0 | Q37: 0 | R37: 0 | S37: 0 | T37: 0 | U37: 0 | V37: 0 | W37: 0 | X37: 2.5 | Y37: 2.5 | Z37: 2.5 | AA37: 2.5 | AB37: 2.5 | AC37: 5 | AD37: 5 | AE37: 7 | AF37: 0 | AG37: 0 | AH37: 0 | AI37: 0 | AJ37: 0 | AK37: 5 | AL37: 0 | AM37: =AC37 -> 5 | AN37: 0 | AO37: 0 | AP37: 5 | AQ37: 10 | AX37: TRUE | AY37: Gas - CT - Frame | BC37: 2039
D38: Annual Escalation | E38: %/yr | F38: 0.02 | I38: 0.02 | J38: 0.02 | K38: 0.02 | L38: 0.02 | M38: 0.02 | N38: 0.02 | O38: 0.02 | P38: 0.02 | Q38: 0.02 | R38: 0.02 | S38: 0.02 | T38: 0.02 | U38: 0.02 | V38: 0.02 | W38: 0.02 | X38: 0.02 | Y38: 0.02 | Z38: 0.02 | AA38: 0.02 | AB38: 0.02 | AC38: 0.02 | AD38: 0.02 | AE38: 0.02 | AF38: 0.02 | AG38: 0.02 | AH38: 0.02 | AI38: 0.02 | AJ38: 0.02 | AK38: 0.02 | AL38: 0.02 | AM38: 0.02 | AN38: 0.02 | AO38: 0.02 | AP38: 0.02 | AQ38: 0.02 | AX38: TRUE | AY38: Gas - CT - Aero | BC38: 2040
B39: Fuel Costs | D39: Fuel Type | F39: Coal with CCS | S39: Gas | X39: Gas | Y39: Gas | Z39: Gas | AA39: Gas | AB39: Gas with CCS | AC39: Gas | AD39: Gas | AE39: Gas | AK39: Bio | AM39: Gas | AN39: Uranium | AO39: Uranium | AP39: Coal | AQ39: Coal with CCS | AX39: TRUE | AY39: Gas - Reciprocating Engine
D40: Unit Fuel Cost | E40: $/MMBtu | F40: =IF(ISBLANK(G40),IF(ISNUMBER(VLOOKUP(F39,'Fixed Assumptions'!$C$42:$E$47,3,0)),VLOOKUP(F39,'Fixed Assumptions'!$C$42:$E$47,3,0),0),G40) -> 2.34 | I40: =IF(ISBLANK(I39),0,INDEX('Fixed Assumptions'!$E$42:$E$47,MATCH(I39,'Fixed Assumptions'!$C$42:$C$47,0))) -> 0 | J40: =IF(ISBLANK(J39),0,INDEX('Fixed Assumptions'!$E$42:$E$47,MATCH(J39,'Fixed Assumptions'!$C$42:$C$47,0))) -> 0 | K40: =IF(ISBLANK(K39),0,INDEX('Fixed Assumptions'!$E$42:$E$47,MATCH(K39,'Fixed Assumptions'!$C$42:$C$47,0))) -> 0 | L40: =IF(ISBLANK(L39),0,INDEX('Fixed Assumptions'!$E$42:$E$47,MATCH(L39,'Fixed Assumptions'!$C$42:$C$47,0))) -> 0 | M40: =IF(ISBLANK(M39),0,INDEX('Fixed Assumptions'!$E$42:$E$47,MATCH(M39,'Fixed Assumptions'!$C$42:$C$47,0))) -> 0 | N40: =IF(ISBLANK(N39),0,INDEX('Fixed Assumptions'!$E$42:$E$47,MATCH(N39,'Fixed Assumptions'!$C$42:$C$47,0))) -> 0 | O40: =IF(ISBLANK(O39),0,INDEX('Fixed Assumptions'!$E$42:$E$47,MATCH(O39,'Fixed Assumptions'!$C$42:$C$47,0))) -> 0 | P40: =IF(ISBLANK(P39),0,INDEX('Fixed Assumptions'!$E$42:$E$47,MATCH(P39,'Fixed Assumptions'!$C$42:$C$47,0))) -> 0 | Q40: =IF(ISBLANK(Q39),0,INDEX('Fixed Assumptions'!$E$42:$E$47,MATCH(Q39,'Fixed Assumptions'!$C$42:$C$47,0))) -> 0 | R40: =IF(ISBLANK(R39),0,INDEX('Fixed Assumptions'!$E$42:$E$47,MATCH(R39,'Fixed Assumptions'!$C$42:$C$47,0))) -> 0 | S40: =IF(ISBLANK(S39),0,INDEX('Fixed Assumptions'!$E$42:$E$47,MATCH(S39,'Fixed Assumptions'!$C$42:$C$47,0))) -> 3 | T40: =IF(ISBLANK(T39),0,INDEX('Fixed Assumptions'!$E$42:$E$47,MATCH(T39,'Fixed Assumptions'!$C$42:$C$47,0))) -> 0 | U40: =IF(ISBLANK(U39),0,INDEX('Fixed Assumptions'!$E$42:$E$47,MATCH(U39,'Fixed Assumptions'!$C$42:$C$47,0))) -> 0 | V40: =IF(ISBLANK(V39),0,INDEX('Fixed Assumptions'!$E$42:$E$47,MATCH(V39,'Fixed Assumptions'!$C$42:$C$47,0))) -> 0 | W40: =IF(ISBLANK(W39),0,INDEX('Fixed Assumptions'!$E$42:$E$47,MATCH(W39,'Fixed Assumptions'!$C$42:$C$47,0))) -> 0 | X40: =IF(ISBLANK(X39),0,INDEX('Fixed Assumptions'!$E$42:$E$47,MATCH(X39,'Fixed Assumptions'!$C$42:$C$47,0))) -> 3 | Y40: =IF(ISBLANK(Y39),0,INDEX('Fixed Assumptions'!$E$42:$E$47,MATCH(Y39,'Fixed Assumptions'!$C$42:$C$47,0))) -> 3 | Z40: =IF(ISBLANK(Z39),0,INDEX('Fixed Assumptions'!$E$42:$E$47,MATCH(Z39,'Fixed Assumptions'!$C$42:$C$47,0))) -> 3 | AA40: =IF(ISBLANK(AA39),0,INDEX('Fixed Assumptions'!$E$42:$E$47,MATCH(AA39,'Fixed Assumptions'!$C$42:$C$47,0))) -> 3 | AB40: =IF(ISBLANK(AB39),0,INDEX('Fixed Assumptions'!$E$42:$E$47,MATCH(AB39,'Fixed Assumptions'!$C$42:$C$47,0))) -> 3 | AC40: =IF(ISBLANK(AC39),0,INDEX('Fixed Assumptions'!$E$42:$E$47,MATCH(AC39,'Fixed Assumptions'!$C$42:$C$47,0))) -> 3 | AD40: =IF(ISBLANK(AD39),0,INDEX('Fixed Assumptions'!$E$42:$E$47,MATCH(AD39,'Fixed Assumptions'!$C$42:$C$47,0))) -> 3 | AE40: =IF(ISBLANK(AE39),0,INDEX('Fixed Assumptions'!$E$42:$E$47,MATCH(AE39,'Fixed Assumptions'!$C$42:$C$47,0))) -> 3 | AF40: =IF(ISBLANK(AF39),0,INDEX('Fixed Assumptions'!$E$42:$E$47,MATCH(AF39,'Fixed Assumptions'!$C$42:$C$47,0))) -> 0 | AG40: =IF(ISBLANK(AG39),0,INDEX('Fixed Assumptions'!$E$42:$E$47,MATCH(AG39,'Fixed Assumptions'!$C$42:$C$47,0))) -> 0 | AH40: =IF(ISBLANK(AH39),0,INDEX('Fixed Assumptions'!$E$42:$E$47,MATCH(AH39,'Fixed Assumptions'!$C$42:$C$47,0))) -> 0 | AI40: =IF(ISBLANK(AI39),0,INDEX('Fixed Assumptions'!$E$42:$E$47,MATCH(AI39,'Fixed Assumptions'!$C$42:$C$47,0))) -> 0 | AJ40: =IF(ISBLANK(AJ39),0,INDEX('Fixed Assumptions'!$E$42:$E$47,MATCH(AJ39,'Fixed Assumptions'!$C$42:$C$47,0))) -> 0 | AK40: =IF(ISBLANK(AK39),0,INDEX('Fixed Assumptions'!$E$42:$E$47,MATCH(AK39,'Fixed Assumptions'!$C$42:$C$47,0))) -> 10 | AL40: =IF(ISBLANK(AL39),0,INDEX('Fixed Assumptions'!$E$42:$E$47,MATCH(AL39,'Fixed Assumptions'!$C$42:$C$47,0))) -> 0 | AM40: =IF(ISBLANK(AM39),0,INDEX('Fixed Assumptions'!$E$42:$E$47,MATCH(AM39,'Fixed Assumptions'!$C$42:$C$47,0))) -> 3 | AN40: =IF(ISBLANK(AN39),0,INDEX('Fixed Assumptions'!$E$42:$E$47,MATCH(AN39,'Fixed Assumptions'!$C$42:$C$47,0))) -> 0.65 | AO40: =IF(ISBLANK(AO39),0,INDEX('Fixed Assumptions'!$E$42:$E$47,MATCH(AO39,'Fixed Assumptions'!$C$42:$C$47,0))) -> 0.65 | AP40: =IF(ISBLANK(AP39),0,INDEX('Fixed Assumptions'!$E$42:$E$47,MATCH(AP39,'Fixed Assumptions'!$C$42:$C$47,0))) -> 2.34 | AQ40: =IF(ISBLANK(AQ39),0,INDEX('Fixed Assumptions'!$E$42:$E$47,MATCH(AQ39,'Fixed Assumptions'!$C$42:$C$47,0))) -> 2.34 | AX40: TRUE | AY40: Geothermal - Binary
D41: Annual Escalation | E41: %/yr | F41: =IF(ISBLANK(G41),IF(ISNUMBER(VLOOKUP(F39,'Fixed Assumptions'!$C$48:$E$53,3,0)),VLOOKUP(F39,'Fixed Assumptions'!$C$48:$E$53,3,0),0),G41) -> 0.02 | I41: =IF(ISBLANK(I39),0,INDEX('Fixed Assumptions'!$E$48:$E$53,MATCH(I39,'Fixed Assumptions'!$C$48:$C$53,0))) -> 0 | J41: =IF(ISBLANK(J39),0,INDEX('Fixed Assumptions'!$E$48:$E$53,MATCH(J39,'Fixed Assumptions'!$C$48:$C$53,0))) -> 0 | K41: =IF(ISBLANK(K39),0,INDEX('Fixed Assumptions'!$E$48:$E$53,MATCH(K39,'Fixed Assumptions'!$C$48:$C$53,0))) -> 0 | L41: =IF(ISBLANK(L39),0,INDEX('Fixed Assumptions'!$E$48:$E$53,MATCH(L39,'Fixed Assumptions'!$C$48:$C$53,0))) -> 0 | M41: =IF(ISBLANK(M39),0,INDEX('Fixed Assumptions'!$E$48:$E$53,MATCH(M39,'Fixed Assumptions'!$C$48:$C$53,0))) -> 0 | N41: =IF(ISBLANK(N39),0,INDEX('Fixed Assumptions'!$E$48:$E$53,MATCH(N39,'Fixed Assumptions'!$C$48:$C$53,0))) -> 0 | O41: =IF(ISBLANK(O39),0,INDEX('Fixed Assumptions'!$E$48:$E$53,MATCH(O39,'Fixed Assumptions'!$C$48:$C$53,0))) -> 0 | P41: =IF(ISBLANK(P39),0,INDEX('Fixed Assumptions'!$E$48:$E$53,MATCH(P39,'Fixed Assumptions'!$C$48:$C$53,0))) -> 0 | Q41: =IF(ISBLANK(Q39),0,INDEX('Fixed Assumptions'!$E$48:$E$53,MATCH(Q39,'Fixed Assumptions'!$C$48:$C$53,0))) -> 0 | R41: =IF(ISBLANK(R39),0,INDEX('Fixed Assumptions'!$E$48:$E$53,MATCH(R39,'Fixed Assumptions'!$C$48:$C$53,0))) -> 0 | S41: =IF(ISBLANK(S39),0,INDEX('Fixed Assumptions'!$E$48:$E$53,MATCH(S39,'Fixed Assumptions'!$C$48:$C$53,0))) -> 0.02 | T41: =IF(ISBLANK(T39),0,INDEX('Fixed Assumptions'!$E$48:$E$53,MATCH(T39,'Fixed Assumptions'!$C$48:$C$53,0))) -> 0 | U41: =IF(ISBLANK(U39),0,INDEX('Fixed Assumptions'!$E$48:$E$53,MATCH(U39,'Fixed Assumptions'!$C$48:$C$53,0))) -> 0 | V41: =IF(ISBLANK(V39),0,INDEX('Fixed Assumptions'!$E$48:$E$53,MATCH(V39,'Fixed Assumptions'!$C$48:$C$53,0))) -> 0 | W41: =IF(ISBLANK(W39),0,INDEX('Fixed Assumptions'!$E$48:$E$53,MATCH(W39,'Fixed Assumptions'!$C$48:$C$53,0))) -> 0 | X41: =IF(ISBLANK(X39),0,INDEX('Fixed Assumptions'!$E$48:$E$53,MATCH(X39,'Fixed Assumptions'!$C$48:$C$53,0))) -> 0.02 | Y41: =IF(ISBLANK(Y39),0,INDEX('Fixed Assumptions'!$E$48:$E$53,MATCH(Y39,'Fixed Assumptions'!$C$48:$C$53,0))) -> 0.02 | Z41: =IF(ISBLANK(Z39),0,INDEX('Fixed Assumptions'!$E$48:$E$53,MATCH(Z39,'Fixed Assumptions'!$C$48:$C$53,0))) -> 0.02 | AA41: =IF(ISBLANK(AA39),0,INDEX('Fixed Assumptions'!$E$48:$E$53,MATCH(AA39,'Fixed Assumptions'!$C$48:$C$53,0))) -> 0.02 | AB41: =IF(ISBLANK(AB39),0,INDEX('Fixed Assumptions'!$E$48:$E$53,MATCH(AB39,'Fixed Assumptions'!$C$48:$C$53,0))) -> 0.02 | AC41: =IF(ISBLANK(AC39),0,INDEX('Fixed Assumptions'!$E$48:$E$53,MATCH(AC39,'Fixed Assumptions'!$C$48:$C$53,0))) -> 0.02 | AD41: =IF(ISBLANK(AD39),0,INDEX('Fixed Assumptions'!$E$48:$E$53,MATCH(AD39,'Fixed Assumptions'!$C$48:$C$53,0))) -> 0.02 | AE41: =IF(ISBLANK(AE39),0,INDEX('Fixed Assumptions'!$E$48:$E$53,MATCH(AE39,'Fixed Assumptions'!$C$48:$C$53,0))) -> 0.02 | AF41: =IF(ISBLANK(AF39),0,INDEX('Fixed Assumptions'!$E$48:$E$53,MATCH(AF39,'Fixed Assumptions'!$C$48:$C$53,0))) -> 0 | AG41: =IF(ISBLANK(AG39),0,INDEX('Fixed Assumptions'!$E$48:$E$53,MATCH(AG39,'Fixed Assumptions'!$C$48:$C$53,0))) -> 0 | AH41: =IF(ISBLANK(AH39),0,INDEX('Fixed Assumptions'!$E$48:$E$53,MATCH(AH39,'Fixed Assumptions'!$C$48:$C$53,0))) -> 0 | AI41: =IF(ISBLANK(AI39),0,INDEX('Fixed Assumptions'!$E$48:$E$53,MATCH(AI39,'Fixed Assumptions'!$C$48:$C$53,0))) -> 0 | AJ41: =IF(ISBLANK(AJ39),0,INDEX('Fixed Assumptions'!$E$48:$E$53,MATCH(AJ39,'Fixed Assumptions'!$C$48:$C$53,0))) -> 0 | AK41: =IF(ISBLANK(AK39),0,INDEX('Fixed Assumptions'!$E$48:$E$53,MATCH(AK39,'Fixed Assumptions'!$C$48:$C$53,0))) -> 0.02 | AL41: =IF(ISBLANK(AL39),0,INDEX('Fixed Assumptions'!$E$48:$E$53,MATCH(AL39,'Fixed Assumptions'!$C$48:$C$53,0))) -> 0 | AM41: =IF(ISBLANK(AM39),0,INDEX('Fixed Assumptions'!$E$48:$E$53,MATCH(AM39,'Fixed Assumptions'!$C$48:$C$53,0))) -> 0.02 | AN41: =IF(ISBLANK(AN39),0,INDEX('Fixed Assumptions'!$E$48:$E$53,MATCH(AN39,'Fixed Assumptions'!$C$48:$C$53,0))) -> 0.02 | AO41: =IF(ISBLANK(AO39),0,INDEX('Fixed Assumptions'!$E$48:$E$53,MATCH(AO39,'Fixed Assumptions'!$C$48:$C$53,0))) -> 0.02 | AP41: =IF(ISBLANK(AP39),0,INDEX('Fixed Assumptions'!$E$48:$E$53,MATCH(AP39,'Fixed Assumptions'!$C$48:$C$53,0))) -> 0.02 | AQ41: =IF(ISBLANK(AQ39),0,INDEX('Fixed Assumptions'!$E$48:$E$53,MATCH(AQ39,'Fixed Assumptions'!$C$48:$C$53,0))) -> 0.02 | AX41: TRUE | AY41: Geothermal - Binary, Enhanced
D42: Heat Rate | E42: Btu/kWh | F42: =IF(ISBLANK(G42),INDEX($I42:$AQ42,$C$11),G42) -> 11000 | S42: 4400 | X42: 6600 | Y42: 6600 | Z42: 6300 | AA42: 6300 | AB42: 7500 | AC42: 10000 | AD42: 9300 | AE42: 8700 | AK42: 13500 | AM42: 7000 | AN42: 10500 | AO42: 10500 | AP42: 9000 | AQ42: 11000 | AX42: TRUE | AY42: Geothermal - Flash
B43: Carbon Costs | D43: Carbon Cost | E43: $/ton | F43: =IF(ISBLANK(G43),IF(ISNUMBER(VLOOKUP(F42,'Fixed Assumptions'!$C$42:$E$47,3,0)),VLOOKUP(F42,'Fixed Assumptions'!$C$42:$E$47,3,0),0),G43) -> 0 | I43: ='Fixed Assumptions'!$E$62 -> 0 | J43: ='Fixed Assumptions'!$E$62 -> 0 | K43: ='Fixed Assumptions'!$E$62 -> 0 | L43: ='Fixed Assumptions'!$E$62 -> 0 | M43: ='Fixed Assumptions'!$E$62 -> 0 | N43: ='Fixed Assumptions'!$E$62 -> 0 | O43: ='Fixed Assumptions'!$E$62 -> 0 | P43: ='Fixed Assumptions'!$E$62 -> 0 | Q43: ='Fixed Assumptions'!$E$62 -> 0 | R43: ='Fixed Assumptions'!$E$62 -> 0 | S43: ='Fixed Assumptions'!$E$62 -> 0 | T43: ='Fixed Assumptions'!$E$62 -> 0 | U43: ='Fixed Assumptions'!$E$62 -> 0 | V43: ='Fixed Assumptions'!$E$62 -> 0 | W43: ='Fixed Assumptions'!$E$62 -> 0 | X43: ='Fixed Assumptions'!$E$62 -> 0 | Y43: ='Fixed Assumptions'!$E$62 -> 0 | Z43: ='Fixed Assumptions'!$E$62 -> 0 | AA43: ='Fixed Assumptions'!$E$62 -> 0 | AB43: ='Fixed Assumptions'!$E$62 -> 0 | AC43: ='Fixed Assumptions'!$E$62 -> 0 | AD43: ='Fixed Assumptions'!$E$62 -> 0 | AE43: ='Fixed Assumptions'!$E$62 -> 0 | AF43: ='Fixed Assumptions'!$E$62 -> 0 | AG43: ='Fixed Assumptions'!$E$62 -> 0 | AH43: ='Fixed Assumptions'!$E$62 -> 0 | AI43: ='Fixed Assumptions'!$E$62 -> 0 | AJ43: ='Fixed Assumptions'!$E$62 -> 0 | AK43: ='Fixed Assumptions'!$E$62 -> 0 | AL43: ='Fixed Assumptions'!$E$62 -> 0 | AM43: ='Fixed Assumptions'!$E$62 -> 0 | AN43: ='Fixed Assumptions'!$E$62 -> 0 | AO43: ='Fixed Assumptions'!$E$62 -> 0 | AP43: ='Fixed Assumptions'!$E$62 -> 0 | AQ43: ='Fixed Assumptions'!$E$62 -> 0 | AX43: TRUE | AY43: Geothermal - Flash, Enhanced
D44: Annual Escalation | E44: %/yr | F44: =IF(ISBLANK(G44),IF(ISNUMBER(VLOOKUP(F42,'Fixed Assumptions'!$C$48:$E$53,3,0)),VLOOKUP(F42,'Fixed Assumptions'!$C$48:$E$53,3,0),0),G44) -> 0 | I44: ='Fixed Assumptions'!$E$63 -> 0.02 | J44: ='Fixed Assumptions'!$E$63 -> 0.02 | K44: ='Fixed Assumptions'!$E$63 -> 0.02 | L44: ='Fixed Assumptions'!$E$63 -> 0.02 | M44: ='Fixed Assumptions'!$E$63 -> 0.02 | N44: ='Fixed Assumptions'!$E$63 -> 0.02 | O44: ='Fixed Assumptions'!$E$63 -> 0.02 | P44: ='Fixed Assumptions'!$E$63 -> 0.02 | Q44: ='Fixed Assumptions'!$E$63 -> 0.02 | R44: ='Fixed Assumptions'!$E$63 -> 0.02 | S44: ='Fixed Assumptions'!$E$63 -> 0.02 | T44: ='Fixed Assumptions'!$E$63 -> 0.02 | U44: ='Fixed Assumptions'!$E$63 -> 0.02 | V44: ='Fixed Assumptions'!$E$63 -> 0.02 | W44: ='Fixed Assumptions'!$E$63 -> 0.02 | X44: ='Fixed Assumptions'!$E$63 -> 0.02 | Y44: ='Fixed Assumptions'!$E$63 -> 0.02 | Z44: ='Fixed Assumptions'!$E$63 -> 0.02 | AA44: ='Fixed Assumptions'!$E$63 -> 0.02 | AB44: ='Fixed Assumptions'!$E$63 -> 0.02 | AC44: ='Fixed Assumptions'!$E$63 -> 0.02 | AD44: ='Fixed Assumptions'!$E$63 -> 0.02 | AE44: ='Fixed Assumptions'!$E$63 -> 0.02 | AF44: ='Fixed Assumptions'!$E$63 -> 0.02 | AG44: ='Fixed Assumptions'!$E$63 -> 0.02 | AH44: ='Fixed Assumptions'!$E$63 -> 0.02 | AI44: ='Fixed Assumptions'!$E$63 -> 0.02 | AJ44: ='Fixed Assumptions'!$E$63 -> 0.02 | AK44: ='Fixed Assumptions'!$E$63 -> 0.02 | AL44: ='Fixed Assumptions'!$E$63 -> 0.02 | AM44: ='Fixed Assumptions'!$E$63 -> 0.02 | AN44: ='Fixed Assumptions'!$E$63 -> 0.02 | AO44: ='Fixed Assumptions'!$E$63 -> 0.02 | AP44: ='Fixed Assumptions'!$E$63 -> 0.02 | AQ44: ='Fixed Assumptions'!$E$63 -> 0.02 | AX44: TRUE | AY44: Small Hydro
D45: Fuel Carbon Content | E45: lb/MMBtu | F45: =IF(ISBLANK(G45),IF(ISNUMBER(VLOOKUP(F43,'Fixed Assumptions'!$C$48:$E$53,3,0)),VLOOKUP(F43,'Fixed Assumptions'!$C$48:$E$53,3,0),0),G45) -> 0 | I45: =IFERROR(INDEX('Fixed Assumptions'!$E$56:$E$59,MATCH(Resource_Characteristics!I39,'Fixed Assumptions'!$B$56:$B$59,0)),0) -> 0 | J45: =IFERROR(INDEX('Fixed Assumptions'!$E$56:$E$59,MATCH(Resource_Characteristics!J39,'Fixed Assumptions'!$B$56:$B$59,0)),0) -> 0 | K45: =IFERROR(INDEX('Fixed Assumptions'!$E$56:$E$59,MATCH(Resource_Characteristics!K39,'Fixed Assumptions'!$B$56:$B$59,0)),0) -> 0 | L45: =IFERROR(INDEX('Fixed Assumptions'!$E$56:$E$59,MATCH(Resource_Characteristics!L39,'Fixed Assumptions'!$B$56:$B$59,0)),0) -> 0 | M45: =IFERROR(INDEX('Fixed Assumptions'!$E$56:$E$59,MATCH(Resource_Characteristics!M39,'Fixed Assumptions'!$B$56:$B$59,0)),0) -> 0 | N45: =IFERROR(INDEX('Fixed Assumptions'!$E$56:$E$59,MATCH(Resource_Characteristics!N39,'Fixed Assumptions'!$B$56:$B$59,0)),0) -> 0 | O45: =IFERROR(INDEX('Fixed Assumptions'!$E$56:$E$59,MATCH(Resource_Characteristics!O39,'Fixed Assumptions'!$B$56:$B$59,0)),0) -> 0 | P45: =IFERROR(INDEX('Fixed Assumptions'!$E$56:$E$59,MATCH(Resource_Characteristics!P39,'Fixed Assumptions'!$B$56:$B$59,0)),0) -> 0 | Q45: =IFERROR(INDEX('Fixed Assumptions'!$E$56:$E$59,MATCH(Resource_Characteristics!Q39,'Fixed Assumptions'!$B$56:$B$59,0)),0) -> 0 | R45: =IFERROR(INDEX('Fixed Assumptions'!$E$56:$E$59,MATCH(Resource_Characteristics!R39,'Fixed Assumptions'!$B$56:$B$59,0)),0) -> 0 | S45: =IFERROR(INDEX('Fixed Assumptions'!$E$56:$E$59,MATCH(Resource_Characteristics!S39,'Fixed Assumptions'!$B$56:$B$59,0)),0) -> 0 | T45: =IFERROR(INDEX('Fixed Assumptions'!$E$56:$E$59,MATCH(Resource_Characteristics!T39,'Fixed Assumptions'!$B$56:$B$59,0)),0) -> 0 | U45: =IFERROR(INDEX('Fixed Assumptions'!$E$56:$E$59,MATCH(Resource_Characteristics!U39,'Fixed Assumptions'!$B$56:$B$59,0)),0) -> 0 | V45: =IFERROR(INDEX('Fixed Assumptions'!$E$56:$E$59,MATCH(Resource_Characteristics!V39,'Fixed Assumptions'!$B$56:$B$59,0)),0) -> 0 | W45: =IFERROR(INDEX('Fixed Assumptions'!$E$56:$E$59,MATCH(Resource_Characteristics!W39,'Fixed Assumptions'!$B$56:$B$59,0)),0) -> 0 | X45: =IFERROR(INDEX('Fixed Assumptions'!$E$56:$E$59,MATCH(Resource_Characteristics!X39,'Fixed Assumptions'!$B$56:$B$59,0)),0) -> 0 | Y45: =IFERROR(INDEX('Fixed Assumptions'!$E$56:$E$59,MATCH(Resource_Characteristics!Y39,'Fixed Assumptions'!$B$56:$B$59,0)),0) -> 0 | Z45: =IFERROR(INDEX('Fixed Assumptions'!$E$56:$E$59,MATCH(Resource_Characteristics!Z39,'Fixed Assumptions'!$B$56:$B$59,0)),0) -> 0 | AA45: =IFERROR(INDEX('Fixed Assumptions'!$E$56:$E$59,MATCH(Resource_Characteristics!AA39,'Fixed Assumptions'!$B$56:$B$59,0)),0) -> 0 | AB45: =IFERROR(INDEX('Fixed Assumptions'!$E$56:$E$59,MATCH(Resource_Characteristics!AB39,'Fixed Assumptions'!$B$56:$B$59,0)),0) -> 0 | AC45: =IFERROR(INDEX('Fixed Assumptions'!$E$56:$E$59,MATCH(Resource_Characteristics!AC39,'Fixed Assumptions'!$B$56:$B$59,0)),0) -> 0 | AD45: =IFERROR(INDEX('Fixed Assumptions'!$E$56:$E$59,MATCH(Resource_Characteristics!AD39,'Fixed Assumptions'!$B$56:$B$59,0)),0) -> 0 | AE45: =IFERROR(INDEX('Fixed Assumptions'!$E$56:$E$59,MATCH(Resource_Characteristics!AE39,'Fixed Assumptions'!$B$56:$B$59,0)),0) -> 0 | AF45: =IFERROR(INDEX('Fixed Assumptions'!$E$56:$E$59,MATCH(Resource_Characteristics!AF39,'Fixed Assumptions'!$B$56:$B$59,0)),0) -> 0 | AG45: =IFERROR(INDEX('Fixed Assumptions'!$E$56:$E$59,MATCH(Resource_Characteristics!AG39,'Fixed Assumptions'!$B$56:$B$59,0)),0) -> 0 | AH45: =IFERROR(INDEX('Fixed Assumptions'!$E$56:$E$59,MATCH(Resource_Characteristics!AH39,'Fixed Assumptions'!$B$56:$B$59,0)),0) -> 0 | AI45: =IFERROR(INDEX('Fixed Assumptions'!$E$56:$E$59,MATCH(Resource_Characteristics!AI39,'Fixed Assumptions'!$B$56:$B$59,0)),0) -> 0 | AJ45: =IFERROR(INDEX('Fixed Assumptions'!$E$56:$E$59,MATCH(Resource_Characteristics!AJ39,'Fixed Assumptions'!$B$56:$B$59,0)),0) -> 0 | AK45: =IFERROR(INDEX('Fixed Assumptions'!$E$56:$E$59,MATCH(Resource_Characteristics!AK39,'Fixed Assumptions'!$B$56:$B$59,0)),0) -> 0 | AL45: =IFERROR(INDEX('Fixed Assumptions'!$E$56:$E$59,MATCH(Resource_Characteristics!AL39,'Fixed Assumptions'!$B$56:$B$59,0)),0) -> 0 | AM45: =IFERROR(INDEX('Fixed Assumptions'!$E$56:$E$59,MATCH(Resource_Characteristics!AM39,'Fixed Assumptions'!$B$56:$B$59,0)),0) -> 0 | AN45: =IFERROR(INDEX('Fixed Assumptions'!$E$56:$E$59,MATCH(Resource_Characteristics!AN39,'Fixed Assumptions'!$B$56:$B$59,0)),0) -> 0 | AO45: =IFERROR(INDEX('Fixed Assumptions'!$E$56:$E$59,MATCH(Resource_Characteristics!AO39,'Fixed Assumptions'!$B$56:$B$59,0)),0) -> 0 | AP45: =IFERROR(INDEX('Fixed Assumptions'!$E$56:$E$59,MATCH(Resource_Characteristics!AP39,'Fixed Assumptions'!$B$56:$B$59,0)),0) -> 0 | AQ45: =IFERROR(INDEX('Fixed Assumptions'!$E$56:$E$59,MATCH(Resource_Characteristics!AQ39,'Fixed Assumptions'!$B$56:$B$59,0)),0) -> 0 | AX45: TRUE | AY45: Biomass/Biogas
B46: Warranty & Augmentation Costs | D46: Annual Warranty Extension Cost | E46: % | F46: =IF(ISBLANK(G46),INDEX($I46:$AQ46,$C$11),G46) -> 0 | I46: 0 | J46: 0 | K46: 0 | L46: 0 | M46: 0.015 | N46: 0.015 | O46: 0.015 | P46: 0.015 | Q46: 0 | R46: 0 | S46: 0 | T46: 0 | U46: 0 | V46: 0.016 | W46: 0.016 | X46: 0 | Y46: 0 | Z46: 0 | AA46: 0 | AB46: 0 | AC46: 0 | AD46: 0 | AE46: 0 | AF46: 0 | AG46: 0 | AH46: 0 | AI46: 0 | AJ46: 0 | AK46: 0 | AL46: 0 | AM46: 0 | AN46: 0 | AO46: 0 | AP46: 0 | AQ46: 0 | AX46: TRUE | AY46: Solar Thermal
D47: Initial Warranty Length | E47: yrs | F47: 0 | I47: 0 | J47: 0 | K47: 0 | L47: 0 | M47: 2 | N47: 2 | O47: 2 | P47: 2 | Q47: 0 | R47: 0 | S47: 0 | T47: 0 | U47: 0 | V47: 2 | W47: 2 | X47: 0 | Y47: 0 | Z47: 0 | AA47: 0 | AB47: 0 | AC47: 0 | AD47: 0 | AE47: 0 | AF47: 0 | AG47: 0 | AH47: 0 | AI47: 0 | AJ47: 2 | AK47: 1 | AL47: 0 | AM47: 0 | AN47: 0 | AO47: 0 | AP47: 0 | AQ47: 0 | AX47: TRUE | AY47: CHP
D48: Annual Augmentation Cost | E48: % | F48: 0 | I48: 0 | J48: 0 | K48: 0 | L48: 0 | M48: 0 | N48: 0.042 | O48: 0 | P48: 0.042 | Q48: 0 | R48: 0 | S48: 0 | T48: 0 | U48: 0 | V48: 0 | W48: 0.05 | X48: 0 | Y48: 0 | Z48: 0 | AA48: 0 | AB48: 0 | AC48: 0 | AD48: 0 | AE48: 0 | AF48: 0 | AG48: 0 | AH48: 0 | AI48: 0 | AJ48: 0 | AK48: 0 | AL48: 0 | AM48: 0 | AN48: 0 | AO48: 0 | AP48: 0 | AQ48: 0 | AX48: TRUE | AY48: Nuclear - Large
B49: Property Tax | D49: Property Tax | E49: % | F49: 0 | I49: 0 | J49: 0 | K49: 0 | L49: 0 | M49: 0 | N49: 0 | O49: 0 | P49: 0 | Q49: 0 | R49: 0 | S49: 0 | T49: 0 | U49: 0 | V49: 0 | W49: 0 | X49: 0 | Y49: 0 | Z49: 0 | AA49: 0 | AB49: 0 | AC49: 0 | AD49: 0 | AE49: 0 | AF49: 0 | AG49: 0 | AH49: 0 | AI49: 0 | AJ49: 0 | AK49: 0 | AL49: 0 | AM49: 0 | AN49: 0 | AO49: 0 | AP49: 0 | AQ49: 0 | AX49: TRUE | AY49: Nuclear - Small Modular
B50: Insurance | D50: Insurance | E50: % | F50: 0 | I50: 0 | J50: 0 | K50: 0 | L50: 0 | M50: 0 | N50: 0 | O50: 0 | P50: 0 | Q50: 0 | R50: 0 | S50: 0 | T50: 0 | U50: 0 | V50: 0 | W50: 0 | X50: 0 | Y50: 0 | Z50: 0 | AA50: 0 | AB50: 0 | AC50: 0 | AD50: 0 | AE50: 0 | AF50: 0 | AG50: 0 | AH50: 0 | AI50: 0 | AJ50: 0 | AK50: 0 | AL50: 0 | AM50: 0 | AN50: 0 | AO50: 0 | AP50: 0 | AQ50: 0 | AX50: TRUE | AY50: Coal - PC
B51: Periodic Replacement | D51: Term | E51: yrs | F51: 0 | AX51: TRUE | AY51: Coal - IGCC with CCS
D52: Cost | E52: % | F52: =IF(ISBLANK(G52),IF(ISBLANK(INDEX($I52:$AQ52,$C$11)),100%,INDEX($I52:$AQ52,$C$11)),G52) -> 1
B53: Financing Selection
B54: Financing Choice | F54: =IF(ISBLANK(G54),IF(ISBLANK(INDEX($I54:$AQ54,$C$11)),"IPP",INDEX($I54:$AQ54,$C$11)),G54) -> IOU | I54: IPP | J54: IPP | K54: IPP | L54: IPP | M54: IPP | N54: IPP | O54: IPP | P54: IPP | Q54: IPP | R54: IOU | S54: IOU | T54: IPP | U54: IPP | V54: IPP | W54: IPP | X54: IPP | Y54: IPP | Z54: IPP | AA54: IPP | AB54: IPP | AC54: IPP | AD54: IPP | AE54: IPP | AF54: IPP | AG54: IPP | AH54: IPP | AI54: IPP | AJ54: IPP | AK54: IPP | AL54: IPP | AM54: IPP | AN54: IOU | AO54: IOU | AP54: IOU | AQ54: IOU
B55: IPP Inputs | D55: Financing Lifetime | E55: yrs | F55: =IF(ISBLANK(G55),INDEX($I55:$AQ55,$C$11),G55) -> 35 | I55: 35 | J55: 25 | K55: 25 | L55: 25 | M55: 20 | N55: 20 | O55: 20 | P55: 20 | Q55: 20 | R55: 35 | S55: 35 | T55: 25 | U55: 35 | V55: 10 | W55: 10 | X55: 20 | Y55: 20 | Z55: 20 | AA55: 20 | AB55: 20 | AC55: 20 | AD55: 20 | AE55: 20 | AF55: 25 | AG55: 25 | AH55: 25 | AI55: 25 | AJ55: 35 | AK55: 20 | AL55: 25 | AM55: 25 | AN55: 35 | AO55: 35 | AP55: 35 | AQ55: 35
B56: (Power purchase agreement) | D56: Debt Period | E56: yrs | F56: 20 | I56: =INDEX($BA$108:$BG$108,MATCH(I$55,$BA$107:$BG$107,0)) -> 20 | J56: 20 | K56: 20 | L56: 20 | M56: 18 | N56: 18 | O56: 18 | P56: 18 | Q56: 18 | R56: 20 | S56: 20 | T56: 20 | U56: 20 | V56: 8 | W56: 8 | X56: 18 | Y56: 18 | Z56: 18 | AA56: 18 | AB56: 18 | AC56: 18 | AD56: 18 | AE56: 18 | AF56: 20 | AG56: 20 | AH56: 20 | AI56: 20 | AJ56: 20 | AK56: 18 | AL56: 20 | AM56: 20 | AN56: 20 | AO56: 20 | AP56: 20 | AQ56: 20
D57: WACC | E57: % | F57: 0.0965964461 | I57: =INDEX(I$205:I$227,$C$13) -> 0.06318552949 | J57: 0.06318552949 | K57: 0.06318552949 | L57: 0.06318552949 | M57: 0.06743228568 | N57: 0.06743228568 | O57: 0.06743228568 | P57: 0.06743228568 | Q57: 0.05956344312 | R57: 0.07530112824 | S57: 0.07530112824 | T57: 0.06318552949 | U57: 0.06318552949 | V57: 0.06743228568 | W57: 0.06743228568 | X57: 0.0665964461 | Y57: 0.0665964461 | Z57: 0.0665964461 | AA57: 0.0665964461 | AB57: 0.0665964461 | AC57: 0.0665964461 | AD57: 0.0665964461 | AE57: 0.0665964461 | AF57: 0.1234182793 | AG57: 0.1234182793 | AH57: 0.1234182793 | AI57: 0.1234182793 | AJ57: 0.03930911322 | AK57: 0.0665964461 | AL57: 0.06318552949 | AM57: 0.0665964461 | AN57: 0.0665964461 | AO57: 0.0665964461 | AP57: 0.0965964461 | AQ57: 0.0965964461
D58: Debt Cost | E58: % | F58: 0.05467266542 | I58: =INDEX(I$229:I$251,$C$13) -> 0.05467266542 | J58: 0.05467266542 | K58: 0.05467266542 | L58: 0.05467266542 | M58: 0.05467266542 | N58: 0.05467266542 | O58: 0.05467266542 | P58: 0.05467266542 | Q58: 0.05467266542 | R58: 0.05467266542 | S58: 0.05467266542 | T58: 0.05467266542 | U58: 0.05467266542 | V58: 0.05467266542 | W58: 0.05467266542 | X58: 0.05467266542 | Y58: 0.05467266542 | Z58: 0.05467266542 | AA58: 0.05467266542 | AB58: 0.05467266542 | AC58: 0.05467266542 | AD58: 0.05467266542 | AE58: 0.05467266542 | AF58: 0.05467266542 | AG58: 0.05467266542 | AH58: 0.05467266542 | AI58: 0.05467266542 | AJ58: 0.05467266542 | AK58: 0.05467266542 | AL58: 0.05467266542 | AM58: 0.05467266542 | AN58: 0.05467266542 | AO58: 0.05467266542 | AP58: 0.05467266542 | AQ58: 0.05467266542
D59: Debt Fraction | E59: % | F59: 0.6 | I59: =INDEX(I$253:I$275,$C$13) -> 0.65 | J59: 0.65 | K59: 0.65 | L59: 0.65 | M59: 0.65 | N59: 0.65 | O59: 0.65 | P59: 0.65 | Q59: 0.7 | R59: 0.6 | S59: 0.6 | T59: 0.65 | U59: 0.65 | V59: 0.65 | W59: 0.65 | X59: 0.6 | Y59: 0.6 | Z59: 0.6 | AA59: 0.6 | AB59: 0.6 | AC59: 0.6 | AD59: 0.6 | AE59: 0.6 | AF59: 0.5 | AG59: 0.5 | AH59: 0.5 | AI59: 0.5 | AJ59: 0.8 | AK59: 0.6 | AL59: 0.65 | AM59: 0.6 | AN59: 0.6 | AO59: 0.6 | AP59: 0.6 | AQ59: 0.6
D60: PPA Escalation Rate | E60: %/yr | F60: 0.02 | I60: 0.02 | J60: 0.02 | K60: 0.02 | L60: 0.02 | M60: 0.02 | N60: 0.02 | O60: 0.02 | P60: 0.02 | Q60: 0.02 | R60: 0.02 | S60: 0.02 | T60: 0.02 | U60: 0.02 | V60: 0.02 | W60: 0.02 | X60: 0.02 | Y60: 0.02 | Z60: 0.02 | AA60: 0.02 | AB60: 0.02 | AC60: 0.02 | AD60: 0.02 | AE60: 0.02 | AF60: 0.02 | AG60: 0.02 | AH60: 0.02 | AI60: 0.02 | AJ60: 0.02 | AK60: 0.02 | AL60: 0.02 | AM60: 0.02 | AN60: 0.02 | AO60: 0.02 | AP60: 0.02 | AQ60: 0.02
D61: Variable Cost Pass-Through | F61: =IF(ISBLANK(G61),INDEX($I61:$AQ61,$C$11),G61) -> TRUE | I61: TRUE | J61: TRUE | K61: TRUE | L61: TRUE | M61: TRUE | N61: TRUE | O61: TRUE | P61: TRUE | Q61: TRUE | R61: TRUE | S61: TRUE | T61: TRUE | U61: TRUE | V61: TRUE | W61: TRUE | X61: TRUE | Y61: TRUE | Z61: TRUE | AA61: TRUE | AB61: TRUE | AC61: TRUE | AD61: TRUE | AE61: TRUE | AF61: TRUE | AG61: TRUE | AH61: TRUE | AI61: TRUE | AJ61: TRUE | AK61: TRUE | AL61: TRUE | AM61: TRUE | AN61: TRUE | AO61: TRUE | AP61: TRUE | AQ61: TRUE
D62: Equity Return | E62: % | F62: 0.1767040067 | I62: =IF(ISNUMBER(I59),(I57-I58*I59*(1-$K$7))/(1-I59),"n/a") -> 0.1003174737 | J62: 0.1003174737 | K62: 0.1003174737 | L62: 0.1003174737 | M62: 0.1124510628 | N62: 0.1124510628 | O62: 0.1124510628 | P62: 0.1124510628 | Q62: 0.0977648638 | R62: 0.1234657121 | S62: 0.1234657121 | T62: 0.1003174737 | U62: 0.1003174737 | V62: 0.1124510628 | W62: 0.1124510628 | X62: 0.1017040067 | Y62: 0.1017040067 | Z62: 0.1017040067 | AA62: 0.1017040067 | AB62: 0.1017040067 | AC62: 0.1017040067 | AD62: 0.1017040067 | AE62: 0.1017040067 | AF62: 0.203645153 | AG62: 0.203645153 | AH62: 0.203645153 | AI62: 0.203645153 | AJ62: 0.02377994335 | AK62: 0.1017040067 | AL62: 0.1003174737 | AM62: 0.1017040067 | AN62: 0.1017040067 | AO62: 0.1017040067 | AP62: 0.1767040067 | AQ62: 0.1767040067
B63: IOU Inputs | D63: Financing Lifetime | E63: yrs | F63: 40 | I63: 35 | J63: 25 | K63: 25 | L63: 25 | M63: 20 | N63: 20 | O63: 20 | P63: 20 | Q63: 20 | R63: 40 | S63: 40 | T63: 25 | U63: 35 | V63: 10 | W63: 10 | X63: 20 | Y63: 20 | Z63: 20 | AA63: 20 | AB63: 20 | AC63: 20 | AD63: 20 | AE63: 20 | AF63: 25 | AG63: 25 | AH63: 25 | AI63: 25 | AJ63: 35 | AK63: 20 | AL63: 25 | AM63: 25 | AN63: 40 | AO63: 40 | AP63: 40 | AQ63: 40
B64: (Utility rate base) | D64: Equity Share | E64: % | F64: 0.5 | I64: 0.5 | J64: 0.5 | K64: 0.5 | L64: 0.5 | M64: 0.5 | N64: 0.5 | O64: 0.5 | P64: 0.5 | Q64: 0.5 | R64: 0.5 | S64: 0.5 | T64: 0.5 | U64: 0.5 | V64: 0.5 | W64: 0.5 | X64: 0.5 | Y64: 0.5 | Z64: 0.5 | AA64: 0.5 | AB64: 0.5 | AC64: 0.5 | AD64: 0.5 | AE64: 0.5 | AF64: 0.5 | AG64: 0.5 | AH64: 0.5 | AI64: 0.5 | AJ64: 0.5 | AK64: 0.5 | AL64: 0.5 | AM64: 0.5 | AN64: 0.5 | AO64: 0.5 | AP64: 0.5 | AQ64: 0.5
D65: Debt Share | E65: % | F65: 0.5 | I65: 0.5 | J65: 0.5 | K65: 0.5 | L65: 0.5 | M65: 0.5 | N65: 0.5 | O65: 0.5 | P65: 0.5 | Q65: 0.5 | R65: 0.5 | S65: 0.5 | T65: 0.5 | U65: 0.5 | V65: 0.5 | W65: 0.5 | X65: 0.5 | Y65: 0.5 | Z65: 0.5 | AA65: 0.5 | AB65: 0.5 | AC65: 0.5 | AD65: 0.5 | AE65: 0.5 | AF65: 0.5 | AG65: 0.5 | AH65: 0.5 | AI65: 0.5 | AJ65: 0.5 | AK65: 0.5 | AL65: 0.5 | AM65: 0.5 | AN65: 0.5 | AO65: 0.5 | AP65: 0.5 | AQ65: 0.5
D66: Debt Cost | E66: % | F66: 0.05 | I66: 0.05 | J66: 0.05 | K66: 0.05 | L66: 0.05 | M66: 0.05 | N66: 0.05 | O66: 0.05 | P66: 0.05 | Q66: 0.05 | R66: 0.05 | S66: 0.05 | T66: 0.05 | U66: 0.05 | V66: 0.05 | W66: 0.05 | X66: 0.05 | Y66: 0.05 | Z66: 0.05 | AA66: 0.05 | AB66: 0.05 | AC66: 0.05 | AD66: 0.05 | AE66: 0.05 | AF66: 0.05 | AG66: 0.05 | AH66: 0.05 | AI66: 0.05 | AJ66: 0.05 | AK66: 0.05 | AL66: 0.05 | AM66: 0.05 | AN66: 0.05 | AO66: 0.05 | AP66: 0.05 | AQ66: 0.05
D67: Equity Return | E67: % | F67: 0.1 | I67: 0.1 | J67: 0.1 | K67: 0.1 | L67: 0.1 | M67: 0.1 | N67: 0.1 | O67: 0.1 | P67: 0.1 | Q67: 0.1 | R67: 0.1 | S67: 0.1 | T67: 0.1 | U67: 0.1 | V67: 0.1 | W67: 0.1 | X67: 0.1 | Y67: 0.1 | Z67: 0.1 | AA67: 0.1 | AB67: 0.1 | AC67: 0.1 | AD67: 0.1 | AE67: 0.1 | AF67: 0.1 | AG67: 0.1 | AH67: 0.1 | AI67: 0.1 | AJ67: 0.1 | AK67: 0.1 | AL67: 0.1 | AM67: 0.1 | AN67: 0.1 | AO67: 0.1 | AP67: 0.1 | AQ67: 0.1
B68: POU Inputs | D68: Financing Lifetime | F68: 40 | I68: 35 | J68: 25 | K68: 25 | L68: 25 | M68: 20 | N68: 20 | O68: 20 | P68: 20 | Q68: 20 | R68: 40 | S68: 40 | T68: 25 | U68: 35 | V68: 10 | W68: 10 | X68: 20 | Y68: 20 | Z68: 20 | AA68: 20 | AB68: 20 | AC68: 20 | AD68: 20 | AE68: 20 | AF68: 25 | AG68: 25 | AH68: 25 | AI68: 25 | AJ68: 35 | AK68: 20 | AL68: 25 | AM68: 25 | AN68: 40 | AO68: 40 | AP68: 40 | AQ68: 40
B69: (Utility rate base) | D69: Debt Cost | F69: 0.05 | I69: 0.05 | J69: 0.05 | K69: 0.05 | L69: 0.05 | M69: 0.05 | N69: 0.05 | O69: 0.05 | P69: 0.05 | Q69: 0.05 | R69: 0.05 | S69: 0.05 | T69: 0.05 | U69: 0.05 | V69: 0.05 | W69: 0.05 | X69: 0.05 | Y69: 0.05 | Z69: 0.05 | AA69: 0.05 | AB69: 0.05 | AC69: 0.05 | AD69: 0.05 | AE69: 0.05 | AF69: 0.05 | AG69: 0.05 | AH69: 0.05 | AI69: 0.05 | AJ69: 0.05 | AK69: 0.05 | AL69: 0.05 | AM69: 0.05 | AN69: 0.05 | AO69: 0.05 | AP69: 0.05 | AQ69: 0.05
B71: Tax Assumptions | AY71: Codes | AZ71: =MATCH(state,states,0) -> 16 | BB71: US Average
B72: Toggle | D72: Enable Tax Credits | E72: - | F72: =IF(ISBLANK(G72),INDEX($I72:$AQ72,$C$11),G72) -> 0 | I72: 1 | J72: 1 | K72: 1 | L72: 1 | M72: 1 | N72: 1 | O72: 1 | P72: 1 | T72: 1 | U72: 1 | AF72: 1 | AG72: 1 | AH72: 1 | AI72: 1 | AY72: US | BB72: Alberta
B73: ITC | D73: Credit | E73: % | F73: 0 | I73: =IF(I72=1,INDEX(I$109:I$131,$C$13),0) -> 0.1 | J73: 0 | K73: 0 | L73: 0 | M73: 0 | N73: 0 | O73: 0.1 | P73: 0.1 | Q73: 0 | R73: 0 | S73: 0 | T73: 0.1 | U73: 0.1 | V73: 0 | W73: 0 | X73: 0 | Y73: 0 | Z73: 0 | AA73: 0 | AB73: 0 | AC73: 0 | AD73: 0 | AE73: 0 | AF73: 0.1 | AG73: 0.1 | AH73: 0.1 | AI73: 0.1 | AJ73: 0 | AK73: 0 | AL73: 0 | AM73: 0 | AN73: 0 | AO73: 0 | AP73: 0 | AQ73: 0 | AY73: AB | BB73: Arizona
D74: Capital Costs Eligible | E74: % | F74: 0 | I74: 0.95 | J74: 0.95 | K74: 0.95 | L74: 0.95 | M74: 0.95 | N74: 0.95 | O74: 0.95 | P74: 0.95 | T74: 0.95 | U74: 0.95 | AF74: 0.95 | AG74: 0.95 | AH74: 0.95 | AI74: 0.95 | AL74: 0.95 | AY74: AZ | BB74: British Columbia
B75: PTC | D75: Unit Credit | E75: $/MWh | F75: 0 | I75: =IF(I72=1,INDEX(I$132:I$154,$C$13),0) -> 0 | J75: 0 | K75: 0 | L75: 0 | M75: 0 | N75: 0 | O75: 0 | P75: 0 | Q75: 0 | R75: 0 | S75: 0 | T75: 0 | U75: 0 | V75: 0 | W75: 0 | X75: 0 | Y75: 0 | Z75: 0 | AA75: 0 | AB75: 0 | AC75: 0 | AD75: 0 | AE75: 0 | AF75: 0 | AG75: 0 | AH75: 0 | AI75: 0 | AJ75: 0 | AK75: 0 | AL75: 0 | AM75: 0 | AN75: 0 | AO75: 0 | AP75: 0 | AQ75: 0 | AY75: BC | BB75: California
D76: Duration | E76: yrs | F76: 0 | J76: 10 | AY76: CA | BB76: CFE
B77: MACRS | D77: Term | E77: yrs | F77: 20 | I77: 5 | J77: 5 | K77: 5 | L77: 5 | M77: 7 | N77: 7 | O77: 5 | P77: 5 | Q77: 7 | R77: 7 | S77: 20 | T77: 5 | U77: 5 | V77: 7 | W77: 7 | X77: 20 | Y77: 20 | Z77: 20 | AA77: 20 | AB77: 20 | AC77: 20 | AD77: 20 | AE77: 20 | AF77: 5 | AG77: 5 | AH77: 5 | AI77: 5 | AJ77: 5 | AK77: 5 | AL77: 5 | AM77: 20 | AN77: 20 | AO77: 20 | AP77: 20 | AQ77: 20 | AY77: CFE | BB77: Colorado
D78: Include Bonus Depreciation? | F78: FALSE | I78: TRUE | J78: TRUE | K78: TRUE | L78: TRUE | M78: FALSE | N78: FALSE | O78: FALSE | P78: FALSE | Q78: FALSE | R78: FALSE | S78: FALSE | T78: TRUE | U78: TRUE | V78: FALSE | W78: FALSE | X78: FALSE | Y78: FALSE | Z78: FALSE | AA78: FALSE | AB78: FALSE | AC78: FALSE | AD78: FALSE | AE78: FALSE | AF78: TRUE | AG78: TRUE | AH78: TRUE | AI78: TRUE | AJ78: FALSE | AK78: TRUE | AL78: TRUE | AM78: FALSE | AN78: FALSE | AO78: FALSE | AP78: FALSE | AQ78: FALSE | AY78: CO | BB78: Idaho
B79: ="Calculated Levelized Costs, "&installYear -> Calculated Levelized Costs, 2040 | AY79: ID | BB79: Montana
B80: Levelized Cost of Energy | D80: Capital | E80: $/MWh | F80: =IF(F54="IPP",'IPP pro forma'!P7,IF(F54="IOU",'IOU pro forma'!$Q$7,IF(F54="POU",'POU pro forma'!$Q$7,"n/a"))) -> 73.04611297 | I80: 25.79314824 | J80: 37.21994776 | K80: 41.64444106 | L80: 78.9704046 | M80: 4.205107344 | N80: 6.1513207 | O80: 1.532006494 | P80: 5.976138055 | Q80: 76.33172227 | R80: 119.0863761 | S80: 111.6964574 | T80: 61.09638172 | U80: 46.72548948 | V80: 14.4406603 | W80: 32.250808 | X80: 25.18632291 | Y80: 26.23575303 | Z80: 26.23575303 | AA80: 27.28518315 | AB80: 48.27519035 | AC80: 89.8592473 | AD80: 146.0212769 | AE80: 165.3908013 | AF80: 97.29016207 | AG80: 216.909201 | AH80: 81.340952 | AI80: 143.5428582 | AJ80: 36.80145353 | AK80: 44.21841132 | AL80: 134.1594396 | AM80: 45.47361572 | AN80: 91.48487181 | AO80: 51.56420048 | AP80: 49.50214329 | AQ80: 81.40299834 | AY80: MT | BB80: New Mexico
B81: (by component) | D81: Interconnection | E81: $/MWh | F81: =IF(F54="IPP",'IPP pro forma'!P8,0) -> 0 | I81: 0 | J81: 0 | K81: 0 | L81: 0 | M81: 0 | N81: 0 | O81: 0 | P81: 0 | Q81: 0 | R81: 0 | S81: 0 | T81: 0 | U81: 0 | V81: 0 | W81: 0 | X81: 0 | Y81: 0 | Z81: 0 | AA81: 0 | AB81: 0 | AC81: 0 | AD81: 0 | AE81: 0 | AF81: 0 | AG81: 0 | AH81: 0 | AI81: 0 | AJ81: 0 | AK81: 0 | AL81: 0 | AM81: 0 | AN81: 0 | AO81: 0 | AP81: 0 | AQ81: 0 | AY81: NM | BB81: Nevada
D82: Property Tax | E82: $/MWh | F82: =IF(F54="IPP",'IPP pro forma'!P9,IF(F54="IOU",'IOU pro forma'!$Q$8,IF(F54="POU",'POU pro forma'!$Q$8,"n/a"))) -> 0 | I82: 0 | J82: 0 | K82: 0 | L82: 0 | M82: 0 | N82: 0 | O82: 0 | P82: 0 | Q82: 0 | R82: 0 | S82: 0 | T82: 0 | U82: 0 | V82: 0 | W82: 0 | X82: 0 | Y82: 0 | Z82: 0 | AA82: 0 | AB82: 0 | AC82: 0 | AD82: 0 | AE82: 0 | AF82: 0 | AG82: 0 | AH82: 0 | AI82: 0 | AJ82: 0 | AK82: 0 | AL82: 0 | AM82: 0 | AN82: 0 | AO82: 0 | AP82: 0 | AQ82: 0 | AY82: NV | BB82: Oregon
D83: ITC | E83: $/MWh | F83: =IF(F54="IPP",'IPP pro forma'!P10,IF(F54="IOU",'IOU pro forma'!$Q$10,IF(F54="POU",'POU pro forma'!$Q$10,"n/a"))) -> 0 | I83: -3.912020923 | J83: 0 | K83: 0 | L83: 0 | M83: 0 | N83: 0 | O83: -0.2337708181 | P83: -0.9119065015 | Q83: 0 | R83: 0 | S83: 0 | T83: -9.266426936 | U83: -7.086808124 | V83: 0 | W83: 0 | X83: 0 | Y83: 0 | Z83: 0 | AA83: 0 | AB83: 0 | AC83: 0 | AD83: 0 | AE83: 0 | AF83: -14.26752351 | AG83: -31.80955873 | AH83: -11.92858476 | AI83: -21.05044395 | AJ83: 0 | AK83: 0 | AL83: 0 | AM83: 0 | AN83: 0 | AO83: 0 | AP83: 0 | AQ83: 0 | AY83: OR | BB83: Texas
D84: Fixed O&M | E84: $/MWh | F84: =IF(F54="IPP",'IPP pro forma'!P11,IF(F54="IOU",'IOU pro forma'!$Q$11,IF(F54="POU",'POU pro forma'!$Q$11,"n/a"))) -> 13.31811263 | I84: 3.803889506 | J84: 10.95128582 | K84: 16.3075237 | L84: 15.61358652 | M84: 0.2362657379 | N84: 1.118645943 | O84: 0.2362657379 | P84: 1.118645943 | Q84: 9.065613981 | R84: 17.89954338 | S84: 15.22070015 | T84: 6.108538482 | U84: 5.890791132 | V84: 3.054897316 | W84: 6.807580713 | X84: 2.283105023 | Y84: 2.283105023 | Z84: 2.283105023 | AA84: 2.283105023 | AB84: 7.546992605 | AC84: 10.2739726 | AD84: 14.1687596 | AE84: 22.83105023 | AF84: 16.48909183 | AG84: 32.97818366 | AH84: 21.56265855 | AI84: 32.97818366 | AJ84: 3.805175038 | AK84: 15.22070015 | AL84: 18.04163363 | AM84: 2.511415525 | AN84: 13.95230847 | AO84: 19.02587519 | AP84: 7.610350076 | AQ84: 13.31811263 | AY84: TX | BB84: Utah
D85: Warranty, Augmentation, Periodic Replacement | E85: $/MWh | F85: =IF(F54="IPP",SUM('IPP pro forma'!P12:P14),IF(F54="IOU",'IOU pro forma'!$Q$9,IF(F54="POU",'POU pro forma'!$Q$9,"n/a"))) -> 0 | I85: 0 | J85: 0 | K85: 0 | L85: 0 | M85: 0.6621364126 | N85: 2.023964203 | O85: 0.2483011547 | P85: 2.023964203 | Q85: 0 | R85: 0 | S85: 0 | T85: 0 | U85: 0 | V85: 1.168757901 | W85: 7.574655349 | X85: 0 | Y85: 0 | Z85: 0 | AA85: 0 | AB85: 0 | AC85: 0 | AD85: 0 | AE85: 0 | AF85: 0 | AG85: 0 | AH85: 0 | AI85: 0 | AJ85: 0 | AK85: 0 | AL85: 0 | AM85: 0 | AN85: 0 | AO85: 0 | AP85: 0 | AQ85: 0 | AY85: UT | BB85: Washington
D86: Variable O&M | E86: $/MWh | F86: =IF(F54="IPP",'IPP pro forma'!P15,IF(F54="IOU",'IOU pro forma'!$Q$12,IF(F54="POU",'POU pro forma'!$Q$12,"n/a"))) -> 10 | I86: 0 | J86: 0 | K86: 0 | L86: 0 | M86: 0 | N86: 0 | O86: 0 | P86: 0 | Q86: 0 | R86: 0 | S86: 0 | T86: 0 | U86: 0 | V86: 0 | W86: 0 | X86: 2.5 | Y86: 2.5 | Z86: 2.5 | AA86: 2.5 | AB86: 2.5 | AC86: 5 | AD86: 5 | AE86: 7 | AF86: 0 | AG86: 0 | AH86: 0 | AI86: 0 | AJ86: 0 | AK86: 5 | AL86: 0 | AM86: 5 | AN86: 0 | AO86: 0 | AP86: 5 | AQ86: 10 | AY86: WA | BB86: Wyoming
D87: Fuel | E87: $/MWh | F87: =IF(F54="IPP",'IPP pro forma'!P16,IF(F54="IOU",'IOU pro forma'!$Q$13,IF(F54="POU",'POU pro forma'!$Q$13,"n/a"))) -> 25.74 | I87: 0 | J87: 0 | K87: 0 | L87: 0 | M87: 0 | N87: 0 | O87: 0 | P87: 0 | Q87: 0 | R87: 0 | S87: 13.2 | T87: 0 | U87: 0 | V87: 0 | W87: 0 | X87: 19.8 | Y87: 19.8 | Z87: 18.9 | AA87: 18.9 | AB87: 22.5 | AC87: 30 | AD87: 27.9 | AE87: 26.1 | AF87: 0 | AG87: 0 | AH87: 0 | AI87: 0 | AJ87: 0 | AK87: 135 | AL87: 0 | AM87: 21 | AN87: 6.825 | AO87: 6.825 | AP87: 21.06 | AQ87: 25.74 | AY87: WY
D88: Carbon | E88: $/MWh | F88: =IF(F54="IPP",'IPP pro forma'!P17,IF(F54="IOU",'IOU pro forma'!$Q$14,IF(F54="POU",'POU pro forma'!$Q$14,"n/a"))) -> 0 | I88: 0 | J88: 0 | K88: 0 | L88: 0 | M88: 0 | N88: 0 | O88: 0 | P88: 0 | Q88: 0 | R88: 0 | S88: 0 | T88: 0 | U88: 0 | V88: 0 | W88: 0 | X88: 0 | Y88: 0 | Z88: 0 | AA88: 0 | AB88: 0 | AC88: 0 | AD88: 0 | AE88: 0 | AF88: 0 | AG88: 0 | AH88: 0 | AI88: 0 | AJ88: 0 | AK88: 0 | AL88: 0 | AM88: 0 | AN88: 0 | AO88: 0 | AP88: 0 | AQ88: 0
D89: PTC | E89: $/MWh | F89: =IF(F54="IPP",'IPP pro forma'!P18,IF(F54="IOU",'IOU pro forma'!$Q$15,IF(F54="POU",'POU pro forma'!$Q$15,"n/a"))) -> 0 | I89: 0 | J89: 0 | K89: 0 | L89: 0 | M89: 0 | N89: 0 | O89: 0 | P89: 0 | Q89: 0 | R89: 0 | S89: 0 | T89: 0 | U89: 0 | V89: 0 | W89: 0 | X89: 0 | Y89: 0 | Z89: 0 | AA89: 0 | AB89: 0 | AC89: 0 | AD89: 0 | AE89: 0 | AF89: 0 | AG89: 0 | AH89: 0 | AI89: 0 | AJ89: 0 | AK89: 0 | AL89: 0 | AM89: 0 | AN89: 0 | AO89: 0 | AP89: 0 | AQ89: 0
D90: Total | E90: $/MWh | F90: =IF(F54="IPP",'IPP pro forma'!P19,IF(F54="IOU",'IOU pro forma'!$Q$16,IF(F54="POU",'POU pro forma'!$Q$16,"n/a"))) -> 122.1042256 | I90: 25.68501683 | J90: 48.17123358 | K90: 57.95196476 | L90: 94.58399112 | M90: 5.103509494 | N90: 9.293930846 | O90: 1.782802568 | P90: 8.206841699 | Q90: 85.39733625 | R90: 136.9859195 | S90: 140.1171575 | T90: 57.93849327 | U90: 45.52947249 | V90: 18.66431552 | W90: 46.63304406 | X90: 49.76942793 | Y90: 50.81885805 | Z90: 49.91885805 | AA90: 50.96828817 | AB90: 80.82218295 | AC90: 135.1332199 | AD90: 193.0900365 | AE90: 221.3218515 | AF90: 99.51173039 | AG90: 218.0778259 | AH90: 90.97502579 | AI90: 155.4705979 | AJ90: 40.60662857 | AK90: 199.4391115 | AL90: 152.2010733 | AM90: 73.98503125 | AN90: 112.2621803 | AO90: 77.41507567 | AP90: 83.17249336 | AQ90: 130.461111
B91: Levelized Fixed Cost | D91: Capital | E91: $/kW-yr | F91: =IF(F54="IPP",'IPP pro forma'!Q7,IF(F54="IOU",'IOU pro forma'!$R$7,IF(F54="POU",'POU pro forma'!$R$7,"n/a"))) -> 383.9303698 | I91: 68.97264648 | J91: 114.1163598 | K91: 164.1623867 | L91: 325.1369498 | M91: 5.52551105 | N91: 8.0828354 | O91: 2.013056533 | P91: 7.852645404 | Q91: 100.2998831 | R91: 156.4794982 | S91: 146.769145 | T91: 108.0331558 | U91: 81.99657494 | V91: 18.97502763 | W91: 42.37756171 | X91: 110.3160943 | Y91: 114.9125983 | Z91: 114.9125983 | AA91: 119.5091022 | AB91: 211.4453337 | AC91: 78.71670063 | AD91: 127.9146385 | AE91: 144.8823419 | AF91: 767.0356378 | AG91: 1710.112141 | AH91: 641.2920656 | AI91: 1131.691894 | AJ91: 193.4284398 | AK91: 348.6179548 | AL91: 372.7841616 | AM91: 199.1744369 | AN91: 721.2667294 | AO91: 406.5321565 | AP91: 260.1832651 | AQ91: 427.8541593
B92: (by component) | D92: Interconnection | E92: $/kW-yr | F92: =IF(F54="IPP",'IPP pro forma'!Q8,0) -> 0 | I92: 0 | J92: 0 | K92: 0 | L92: 0 | M92: 0 | N92: 0 | O92: 0 | P92: 0 | Q92: 0 | R92: 0 | S92: 0 | T92: 0 | U92: 0 | V92: 0 | W92: 0 | X92: 0 | Y92: 0 | Z92: 0 | AA92: 0 | AB92: 0 | AC92: 0 | AD92: 0 | AE92: 0 | AF92: 0 | AG92: 0 | AH92: 0 | AI92: 0 | AJ92: 0 | AK92: 0 | AL92: 0 | AM92: 0 | AN92: 0 | AO92: 0 | AP92: 0 | AQ92: 0
D93: Property Tax & Insurance | E93: $/kW-yr | F93: =IF(F54="IPP",'IPP pro forma'!Q9,IF(F54="IOU",'IOU pro forma'!$R$8,IF(F54="POU",'POU pro forma'!$R$8,"n/a"))) -> 0 | I93: 0 | J93: 0 | K93: 0 | L93: 0 | M93: 0 | N93: 0 | O93: 0 | P93: 0 | Q93: 0 | R93: 0 | S93: 0 | T93: 0 | U93: 0 | V93: 0 | W93: 0 | X93: 0 | Y93: 0 | Z93: 0 | AA93: 0 | AB93: 0 | AC93: 0 | AD93: 0 | AE93: 0 | AF93: 0 | AG93: 0 | AH93: 0 | AI93: 0 | AJ93: 0 | AK93: 0 | AL93: 0 | AM93: 0 | AN93: 0 | AO93: 0 | AP93: 0 | AQ93: 0
D94: ITC | E94: $/kW-yr | F94: =IF(F54="IPP",'IPP pro forma'!Q10,IF(F54="IOU",'IOU pro forma'!$R$10,IF(F54="POU",'POU pro forma'!$R$10,"n/a"))) -> 0 | I94: -10.46101211 | J94: 0 | K94: 0 | L94: 0 | M94: 0 | N94: 0 | O94: -0.307174855 | P94: -1.198245143 | Q94: 0 | R94: 0 | S94: 0 | T94: -16.38528038 | U94: -12.43633828 | V94: 0 | W94: 0 | X94: 0 | Y94: 0 | Z94: 0 | AA94: 0 | AB94: 0 | AC94: 0 | AD94: 0 | AE94: 0 | AF94: -112.4851553 | AG94: -250.786561 | AH94: -94.04496227 | AI94: -165.9617001 | AJ94: 0 | AK94: 0 | AL94: 0 | AM94: 0 | AN94: 0 | AO94: 0 | AP94: 0 | AQ94: 0
D95: Fixed O&M | E95: $/kW-yr | F95: =IF(F54="IPP",'IPP pro forma'!Q11,IF(F54="IOU",'IOU pro forma'!$R$11,IF(F54="POU",'POU pro forma'!$R$11,"n/a"))) -> 70 | I95: 10.17186129 | J95: 33.57664234 | K95: 64.28425842 | L95: 64.28425842 | M95: 0.3104531796 | N95: 1.469900769 | O95: 0.3104531796 | P95: 1.469900769 | Q95: 11.91221677 | R95: 23.52 | S95: 20 | T95: 10.80137106 | U95: 10.33749891 | V95: 4.014135074 | W95: 8.945161057 | X95: 10 | Y95: 10 | Z95: 10 | AA95: 10 | AB95: 33.05582761 | AC95: 9 | AD95: 12.41183341 | AE95: 20 | AF95: 130 | AG95: 260 | AH95: 170 | AI95: 260 | AJ95: 20 | AK95: 120 | AL95: 50.1316589 | AM95: 11 | AN95: 110 | AO95: 150 | AP95: 40 | AQ95: 70
D96: Warranty, Augmentation, Periodic Replacement | E96: $/kW-yr | F96: =IF(F54="IPP",SUM('IPP pro forma'!Q12:Q14),IF(F54="IOU",'IOU pro forma'!$R$9,IF(F54="POU",'POU pro forma'!$R$9,"n/a"))) -> 0 | I96: 0 | J96: 0 | K96: 0 | L96: 0 | M96: 0.8700472462 | N96: 2.659488963 | O96: 0.3262677173 | P96: 2.659488963 | Q96: 0 | R96: 0 | S96: 0 | T96: 0 | U96: 0 | V96: 1.535747882 | W96: 9.953097129 | X96: 0 | Y96: 0 | Z96: 0 | AA96: 0 | AB96: 0 | AC96: 0 | AD96: 0 | AE96: 0 | AF96: 0 | AG96: 0 | AH96: 0 | AI96: 0 | AJ96: 0 | AK96: 0 | AL96: 0 | AM96: 0 | AN96: 0 | AO96: 0 | AP96: 0 | AQ96: 0
D97: PTC | E97: $/kW-yr | F97: =IF(F54="IPP",'IPP pro forma'!Q18,IF(F54="IOU",'IOU pro forma'!$R$15,IF(F54="POU",'POU pro forma'!$R$15,"n/a"))) -> 0 | I97: 0 | J97: 0 | K97: 0 | L97: 0 | M97: 0 | N97: 0 | O97: 0 | P97: 0 | Q97: 0 | R97: 0 | S97: 0 | T97: 0 | U97: 0 | V97: 0 | W97: 0 | X97: 0 | Y97: 0 | Z97: 0 | AA97: 0 | AB97: 0 | AC97: 0 | AD97: 0 | AE97: 0 | AF97: 0 | AG97: 0 | AH97: 0 | AI97: 0 | AJ97: 0 | AK97: 0 | AL97: 0 | AM97: 0 | AN97: 0 | AO97: 0 | AP97: 0 | AQ97: 0
D98: Total | E98: $/kW-yr | F98: =IF(F54="IPP",'IPP pro forma'!Q19,IF(F54="IOU",'IOU pro forma'!$R$16,IF(F54="POU",'POU pro forma'!$R$16,"n/a"))) -> 453.9303698 | I98: 68.68349565 | J98: 147.6930022 | K98: 228.4466451 | L98: 389.4212082 | M98: 6.706011475 | N98: 12.21222513 | O98: 2.342602575 | P98: 10.78378999 | Q98: 112.2120998 | R98: 179.9994982 | S98: 166.769145 | T98: 102.4492465 | U98: 79.89773557 | V98: 24.52491059 | W98: 61.2758199 | X98: 120.3160943 | Y98: 124.9125983 | Z98: 124.9125983 | AA98: 129.5091022 | AB98: 244.5011613 | AC98: 87.71670063 | AD98: 140.3264719 | AE98: 164.8823419 | AF98: 784.5504824 | AG98: 1719.32558 | AH98: 717.2471033 | AI98: 1225.730194 | AJ98: 213.4284398 | AK98: 468.6179548 | AL98: 422.9158205 | AM98: 210.1744369 | AN98: 831.2667294 | AO98: 556.5321565 | AP98: 300.1832651 | AQ98: 497.8541593
B99: Project Finance Details | D99: Equity Share | E99: % | F99: =IF(F54="IPP",'IPP pro forma'!H21,"n/a") -> n/a | I99: 0.35 | J99: 0.35 | K99: 0.35 | L99: 0.35 | M99: 0.3 | N99: 0.3 | O99: 0.3 | P99: 0.3 | Q99: 0.3 | R99: n/a | S99: n/a | T99: 0.35 | U99: 0.35 | V99: 0.35 | W99: 0.35 | X99: 0.4 | Y99: 0.4 | Z99: 0.4 | AA99: 0.4 | AB99: 0.4 | AC99: 0.4 | AD99: 0.4 | AE99: 0.4 | AF99: 0.5 | AG99: 0.5 | AH99: 0.5 | AI99: 0.5 | AJ99: 0.2 | AK99: 0.4 | AL99: 0.35 | AM99: 0.4 | AN99: n/a | AO99: n/a | AP99: n/a | AQ99: n/a
D100: Debt Share | E100: % | F100: =IF(F54="IPP",'IPP pro forma'!H22,"n/a") -> n/a | I100: 0.65 | J100: 0.65 | K100: 0.65 | L100: 0.65 | M100: 0.7 | N100: 0.7 | O100: 0.7 | P100: 0.7 | Q100: 0.7 | R100: n/a | S100: n/a | T100: 0.65 | U100: 0.65 | V100: 0.65 | W100: 0.65 | X100: 0.6 | Y100: 0.6 | Z100: 0.6 | AA100: 0.6 | AB100: 0.6 | AC100: 0.6 | AD100: 0.6 | AE100: 0.6 | AF100: 0.5 | AG100: 0.5 | AH100: 0.5 | AI100: 0.5 | AJ100: 0.8 | AK100: 0.6 | AL100: 0.65 | AM100: 0.6 | AN100: n/a | AO100: n/a | AP100: n/a | AQ100: n/a
D101: Equity Return | E101: % | F101: =IF(F54="IPP",'IPP pro forma'!H24,"n/a") -> n/a | I101: 0.1074082685 | J101: 0.1074082685 | K101: 0.1074082685 | L101: 0.1074082685 | M101: 0.1066738111 | N101: 0.1066738111 | O101: 0.1066738111 | P101: 0.1066738111 | Q101: 0.1066738111 | R101: n/a | S101: n/a | T101: 0.1074082685 | U101: 0.1074082685 | V101: 0.1195418576 | W101: 0.1195418576 | X101: 0.1074311871 | Y101: 0.1074311871 | Z101: 0.1074311871 | AA101: 0.1074311871 | AB101: 0.1074311871 | AC101: 0.1074311871 | AD101: 0.1074311871 | AE101: 0.1074311871 | AF101: 0.2074632732 | AG101: 0.2074632732 | AH101: 0.2074632732 | AI101: 0.2074632732 | AJ101: 0.0390524244 | AK101: 0.1074311871 | AL101: 0.1074082685 | AM101: 0.1074311871 | AN101: n/a | AO101: n/a | AP101: n/a | AQ101: n/a
D102: Debt Return | E102: % | F102: =IF(F54="IPP",'IPP pro forma'!H23,"n/a") -> n/a | I102: 0.05467266542 | J102: 0.05467266542 | K102: 0.05467266542 | L102: 0.05467266542 | M102: 0.05467266542 | N102: 0.05467266542 | O102: 0.05467266542 | P102: 0.05467266542 | Q102: 0.05467266542 | R102: n/a | S102: n/a | T102: 0.05467266542 | U102: 0.05467266542 | V102: 0.05467266542 | W102: 0.05467266542 | X102: 0.05467266542 | Y102: 0.05467266542 | Z102: 0.05467266542 | AA102: 0.05467266542 | AB102: 0.05467266542 | AC102: 0.05467266542 | AD102: 0.05467266542 | AE102: 0.05467266542 | AF102: 0.05467266542 | AG102: 0.05467266542 | AH102: 0.05467266542 | AI102: 0.05467266542 | AJ102: 0.05467266542 | AK102: 0.05467266542 | AL102: 0.05467266542 | AM102: 0.05467266542 | AN102: n/a | AO102: n/a | AP102: n/a | AQ102: n/a
D103: After-Tax WACC | E103: % | F103: =IF(F54="IPP",'IPP pro forma'!H26,"n/a") -> n/a | I103: 0.06318552949 | J103: 0.06318552949 | K103: 0.06318552949 | L103: 0.06318552949 | M103: 0.05956344312 | N103: 0.05956344312 | O103: 0.05956344312 | P103: 0.05956344312 | Q103: 0.05956344312 | R103: n/a | S103: n/a | T103: 0.06318552949 | U103: 0.06318552949 | V103: 0.06743228568 | W103: 0.06743228568 | X103: 0.0665964461 | Y103: 0.0665964461 | Z103: 0.0665964461 | AA103: 0.0665964461 | AB103: 0.0665964461 | AC103: 0.0665964461 | AD103: 0.0665964461 | AE103: 0.0665964461 | AF103: 0.1234182793 | AG103: 0.1234182793 | AH103: 0.1234182793 | AI103: 0.1234182793 | AJ103: 0.03930911322 | AK103: 0.0665964461 | AL103: 0.06318552949 | AM103: 0.0665964461 | AN103: n/a | AO103: n/a | AP103: n/a | AQ103: n/a
D104: Levelized Cost Escalation | E104: %/yr | F104: =IF(F54="IPP",'IPP pro forma'!H28,"n/a") -> n/a | I104: 0.02 | J104: 0.02 | K104: 0.02 | L104: 0.02 | M104: 0.02 | N104: 0.02 | O104: 0.02 | P104: 0.02 | Q104: 0.02 | R104: n/a | S104: n/a | T104: 0.02 | U104: 0.02 | V104: 0.02 | W104: 0.02 | X104: 0.02 | Y104: 0.02 | Z104: 0.02 | AA104: 0.02 | AB104: 0.02 | AC104: 0.02 | AD104: 0.02 | AE104: 0.02 | AF104: 0.02 | AG104: 0.02 | AH104: 0.02 | AI104: 0.02 | AJ104: 0.02 | AK104: 0.02 | AL104: 0.02 | AM104: 0.02 | AN104: n/a | AO104: n/a | AP104: n/a | AQ104: n/a
D105: NPV Equity Return | E105: $ | F105: =IF(F54="IPP",'IPP pro forma'!$Q$27,"n/a") -> n/a | I105: 0 | J105: 0 | K105: 0 | L105: 0 | M105: 0 | N105: 0 | O105: 0 | P105: 0 | Q105: 0 | R105: n/a | S105: n/a | T105: 0 | U105: 0 | V105: 0 | W105: 0 | X105: 0 | Y105: 0 | Z105: 0 | AA105: 0 | AB105: 0 | AC105: 0 | AD105: 0 | AE105: 0 | AF105: 0 | AG105: 0 | AH105: 0 | AI105: 0 | AJ105: 0 | AK105: 0 | AL105: 0 | AM105: 0 | AN105: n/a | AO105: n/a | AP105: n/a | AQ105: n/a
D106: DSCR (>1.4 desired for IPP) | F106: =IF(F54="IPP",'IPP pro forma'!C143,"n/a") -> n/a | I106: 1.255032944 | J106: 1.607456523 | K106: 1.634755417 | L106: 1.621239796 | M106: 1.48610796 | N106: 1.48610796 | O106: 1.218669338 | P106: 1.218669338 | Q106: 1.51330803 | R106: n/a | S106: n/a | T106: 1.347079434 | U106: 1.255138804 | V106: 1.511337472 | W106: 1.511337472 | X106: 2.169444398 | Y106: 2.169444398 | Z106: 2.169444398 | AA106: 2.169444398 | AB106: 2.169444398 | AC106: 2.169444398 | AD106: 2.169444398 | AE106: 2.169444398 | AF106: 3.248479863 | AG106: 3.248479863 | AH106: 3.248479863 | AI106: 3.248479863 | AJ106: 0.7578947585 | AK106: 1.851544179 | AL106: 1.587626716 | AM106: 2.131500028 | AN106: n/a | AO106: n/a | AP106: n/a | AQ106: n/a
AY107: Financing Lifetime | BA107: 10 | BB107: 16 | BC107: 20 | BD107: 25 | BE107: 35 | BF107: 50
B108: Yearly Lookup Tables | AY108: Debt Tenor | BA108: 8 | BB108: 10 | BC108: 18 | BD108: 20 | BE108: 20 | BF108: 30
B109: Investment Tax Credit | E109: 2018 | I109: 0.3 | K109: 0.3 | L109: 0.3 | O109: 0.3 | P109: 0.3 | T109: 0.3 | U109: 0.3 | AF109: 0.1 | AG109: 0.1 | AH109: 0.1 | AI109: 0.1 | AL109: 0.3 | AY109: WACC | AZ109: 2016 | BA109: 0.07 | BB109: 0.07 | BC109: 0.07 | BD109: 0.07 | BE109: 0.07 | BF109: 0.07
B110: (%) | E110: =E109+1 -> 2019 | I110: 0.3 | K110: 0.3 | L110: 0.3 | O110: 0.3 | P110: 0.3 | T110: 0.3 | U110: 0.3 | AF110: 0.1 | AG110: 0.1 | AH110: 0.1 | AI110: 0.1 | AL110: 0.3 | AZ110: =AZ109+1 -> 2017 | BA110: 0.07 | BB110: 0.07 | BC110: 0.07 | BD110: 0.07 | BE110: 0.07 | BF110: 0.07
E111: 2020 | I111: 0.3 | K111: 0.3 | L111: 0.3 | O111: 0.3 | P111: 0.3 | T111: 0.3 | U111: 0.3 | AF111: 0.1 | AG111: 0.1 | AH111: 0.1 | AI111: 0.1 | AL111: 0.3 | AZ111: 2018 | BA111: 0.07 | BB111: 0.07 | BC111: 0.07 | BD111: 0.07 | BE111: 0.07 | BF111: 0.07
E112: 2021 | I112: 0.3 | K112: 0.24 | L112: 0.24 | O112: 0.3 | P112: 0.3 | T112: 0.3 | U112: 0.3 | AF112: 0.1 | AG112: 0.1 | AH112: 0.1 | AI112: 0.1 | AL112: 0.3 | AZ112: 2019 | BA112: 0.07 | BB112: 0.07 | BC112: 0.07 | BD112: 0.07 | BE112: 0.07 | BF112: 0.07
E113: 2022 | I113: 0.3 | K113: 0.18 | L113: 0.18 | O113: 0.3 | P113: 0.3 | T113: 0.3 | U113: 0.3 | AF113: 0.1 | AG113: 0.1 | AH113: 0.1 | AI113: 0.1 | AL113: 0.3 | AZ113: 2020 | BA113: 0.07 | BB113: 0.07 | BC113: 0.07 | BD113: 0.07 | BE113: 0.07 | BF113: 0.07
E114: 2023 | I114: 0.3 | K114: 0.12 | L114: 0.12 | O114: 0.3 | P114: 0.3 | T114: 0.3 | U114: 0.3 | AF114: 0.1 | AG114: 0.1 | AH114: 0.1 | AI114: 0.1 | AL114: 0.3 | AZ114: 2021 | BA114: 0.07 | BB114: 0.07 | BC114: 0.07 | BD114: 0.07 | BE114: 0.07 | BF114: 0.07
E115: 2024 | I115: 0.1 | O115: 0.1 | P115: 0.1 | T115: 0.1 | U115: 0.1 | AF115: 0.1 | AG115: 0.1 | AH115: 0.1 | AI115: 0.1 | AL115: 0.1 | AZ115: 2022 | BA115: 0.07 | BB115: 0.07 | BC115: 0.07 | BD115: 0.07 | BE115: 0.07 | BF115: 0.07
E116: 2025 | I116: 0.1 | O116: 0.1 | P116: 0.1 | T116: 0.1 | U116: 0.1 | AF116: 0.1 | AG116: 0.1 | AH116: 0.1 | AI116: 0.1 | AL116: 0.1 | AZ116: 2023 | BA116: 0.07 | BB116: 0.07 | BC116: 0.07 | BD116: 0.07 | BE116: 0.07 | BF116: 0.07
E117: 2026 | I117: 0.1 | O117: 0.1 | P117: 0.1 | T117: 0.1 | U117: 0.1 | AF117: 0.1 | AG117: 0.1 | AH117: 0.1 | AI117: 0.1 | AL117: 0.1 | AZ117: 2024 | BA117: 0.07 | BB117: 0.07 | BC117: 0.07 | BD117: 0.07 | BE117: 0.07 | BF117: 0.07
E118: 2027 | I118: 0.1 | O118: 0.1 | P118: 0.1 | T118: 0.1 | U118: 0.1 | AF118: 0.1 | AG118: 0.1 | AH118: 0.1 | AI118: 0.1 | AL118: 0.1 | AZ118: 2025 | BA118: 0.07 | BB118: 0.07 | BC118: 0.07 | BD118: 0.07 | BE118: 0.07 | BF118: 0.07
E119: 2028 | I119: 0.1 | O119: 0.1 | P119: 0.1 | T119: 0.1 | U119: 0.1 | AF119: 0.1 | AG119: 0.1 | AH119: 0.1 | AI119: 0.1 | AL119: 0.1 | AZ119: 2026 | BA119: 0.07 | BB119: 0.07 | BC119: 0.07 | BD119: 0.07 | BE119: 0.07 | BF119: 0.07
E120: 2029 | I120: 0.1 | O120: 0.1 | P120: 0.1 | T120: 0.1 | U120: 0.1 | AF120: 0.1 | AG120: 0.1 | AH120: 0.1 | AI120: 0.1 | AL120: 0.1 | AZ120: 2027 | BA120: 0.07 | BB120: 0.07 | BC120: 0.07 | BD120: 0.07 | BE120: 0.07 | BF120: 0.07
E121: 2030 | I121: 0.1 | O121: 0.1 | P121: 0.1 | T121: 0.1 | U121: 0.1 | AF121: 0.1 | AG121: 0.1 | AH121: 0.1 | AI121: 0.1 | AL121: 0.1 | AZ121: 2028 | BA121: 0.07 | BB121: 0.07 | BC121: 0.07 | BD121: 0.07 | BE121: 0.07 | BF121: 0.07
E122: 2031 | I122: 0.1 | O122: 0.1 | P122: 0.1 | T122: 0.1 | U122: 0.1 | AF122: 0.1 | AG122: 0.1 | AH122: 0.1 | AI122: 0.1 | AL122: 0.1 | AZ122: 2029 | BA122: 0.07 | BB122: 0.07 | BC122: 0.07 | BD122: 0.07 | BE122: 0.07 | BF122: 0.07
E123: 2032 | I123: 0.1 | O123: 0.1 | P123: 0.1 | T123: 0.1 | U123: 0.1 | AF123: 0.1 | AG123: 0.1 | AH123: 0.1 | AI123: 0.1 | AL123: 0.1 | AZ123: 2030 | BA123: 0.07 | BB123: 0.07 | BC123: 0.07 | BD123: 0.07 | BE123: 0.07 | BF123: 0.07
E124: 2033 | I124: 0.1 | O124: 0.1 | P124: 0.1 | T124: 0.1 | U124: 0.1 | AF124: 0.1 | AG124: 0.1 | AH124: 0.1 | AI124: 0.1 | AL124: 0.1 | AZ124: 2031 | BA124: 0.07 | BB124: 0.07 | BC124: 0.07 | BD124: 0.07 | BE124: 0.07 | BF124: 0.07
E125: 2034 | I125: 0.1 | O125: 0.1 | P125: 0.1 | T125: 0.1 | U125: 0.1 | AF125: 0.1 | AG125: 0.1 | AH125: 0.1 | AI125: 0.1 | AL125: 0.1 | AZ125: 2032 | BA125: 0.07 | BB125: 0.07 | BC125: 0.07 | BD125: 0.07 | BE125: 0.07 | BF125: 0.07
E126: 2035 | I126: 0.1 | O126: 0.1 | P126: 0.1 | T126: 0.1 | U126: 0.1 | AF126: 0.1 | AG126: 0.1 | AH126: 0.1 | AI126: 0.1 | AL126: 0.1 | AZ126: 2033 | BA126: 0.07 | BB126: 0.07 | BC126: 0.07 | BD126: 0.07 | BE126: 0.07 | BF126: 0.07
E127: 2036 | I127: 0.1 | O127: 0.1 | P127: 0.1 | T127: 0.1 | U127: 0.1 | AF127: 0.1 | AG127: 0.1 | AH127: 0.1 | AI127: 0.1 | AL127: 0.1 | AZ127: 2034 | BA127: 0.07 | BB127: 0.07 | BC127: 0.07 | BD127: 0.07 | BE127: 0.07 | BF127: 0.07
E128: 2037 | I128: 0.1 | O128: 0.1 | P128: 0.1 | T128: 0.1 | U128: 0.1 | AF128: 0.1 | AG128: 0.1 | AH128: 0.1 | AI128: 0.1 | AL128: 0.1 | AZ128: 2035 | BA128: 0.07 | BB128: 0.07 | BC128: 0.07 | BD128: 0.07 | BE128: 0.07 | BF128: 0.07
E129: 2038 | I129: 0.1 | O129: 0.1 | P129: 0.1 | T129: 0.1 | U129: 0.1 | AF129: 0.1 | AG129: 0.1 | AH129: 0.1 | AI129: 0.1 | AL129: 0.1 | AZ129: 2036 | BA129: 0.07 | BB129: 0.07 | BC129: 0.07 | BD129: 0.07 | BE129: 0.07 | BF129: 0.07
E130: 2039 | I130: 0.1 | O130: 0.1 | P130: 0.1 | T130: 0.1 | U130: 0.1 | AF130: 0.1 | AG130: 0.1 | AH130: 0.1 | AI130: 0.1 | AL130: 0.1 | AZ130: 2037 | BA130: 0.07 | BB130: 0.07 | BC130: 0.07 | BD130: 0.07 | BE130: 0.07 | BF130: 0.07
E131: 2040 | I131: 0.1 | O131: 0.1 | P131: 0.1 | T131: 0.1 | U131: 0.1 | AF131: 0.1 | AG131: 0.1 | AH131: 0.1 | AI131: 0.1 | AL131: 0.1 | AZ131: 2038 | BA131: 0.07 | BB131: 0.07 | BC131: 0.07 | BD131: 0.07 | BE131: 0.07 | BF131: 0.07
B132: Production Tax Credit | E132: 2018 | J132: 23 | AZ132: 2039 | BA132: 0.07 | BB132: 0.07 | BC132: 0.07 | BD132: 0.07 | BE132: 0.07 | BF132: 0.07
B133: ($/MWh) | E133: =E132+1 -> 2019 | J133: 23 | AZ133: 2040 | BA133: 0.07 | BB133: 0.07 | BC133: 0.07 | BD133: 0.07 | BE133: 0.07 | BF133: 0.07
E134: =E133+1 -> 2020 | J134: 23 | AZ134: 2041 | BA134: 0.07 | BB134: 0.07 | BC134: 0.07 | BD134: 0.07 | BE134: 0.07 | BF134: 0.07
E135: 2021 | J135: 18.4 | AZ135: 2042 | BA135: 0.07 | BB135: 0.07 | BC135: 0.07 | BD135: 0.07 | BE135: 0.07 | BF135: 0.07
E136: 2022 | J136: 13.8 | AZ136: 2043 | BA136: 0.07 | BB136: 0.07 | BC136: 0.07 | BD136: 0.07 | BE136: 0.07 | BF136: 0.07
E137: 2023 | J137: 9.2 | AZ137: 2044 | BA137: 0.07 | BB137: 0.07 | BC137: 0.07 | BD137: 0.07 | BE137: 0.07 | BF137: 0.07
E138: 2024 | AZ138: 2045 | BA138: 0.07 | BB138: 0.07 | BC138: 0.07 | BD138: 0.07 | BE138: 0.07 | BF138: 0.07
E139: 2025 | AZ139: 2046 | BA139: 0.07 | BB139: 0.07 | BC139: 0.07 | BD139: 0.07 | BE139: 0.07 | BF139: 0.07
E140: 2026 | AZ140: 2047 | BA140: 0.07 | BB140: 0.07 | BC140: 0.07 | BD140: 0.07 | BE140: 0.07 | BF140: 0.07
E141: 2027 | AZ141: 2048 | BA141: 0.07 | BB141: 0.07 | BC141: 0.07 | BD141: 0.07 | BE141: 0.07 | BF141: 0.07
E142: 2028 | AZ142: 2049 | BA142: 0.07 | BB142: 0.07 | BC142: 0.07 | BD142: 0.07 | BE142: 0.07 | BF142: 0.07
E143: 2029 | AZ143: 2050 | BA143: 0.07 | BB143: 0.07 | BC143: 0.07 | BD143: 0.07 | BE143: 0.07 | BF143: 0.07
E144: 2030 | AY144: Debt Cost | AZ144: 2016 | BA144: 0.045 | BB144: 0.045 | BC144: 0.045 | BD144: 0.045 | BE144: 0.045 | BF144: 0.045
E145: 2031 | AZ145: =AZ144+1 -> 2017 | BA145: 0.045 | BB145: 0.045 | BC145: 0.045 | BD145: 0.045 | BE145: 0.045 | BF145: 0.045
E146: 2032 | AZ146: 2018 | BA146: 0.045 | BB146: 0.045 | BC146: 0.045 | BD146: 0.045 | BE146: 0.045 | BF146: 0.045
E147: 2033 | AZ147: 2019 | BA147: 0.045 | BB147: 0.045 | BC147: 0.045 | BD147: 0.045 | BE147: 0.045 | BF147: 0.045
E148: 2034 | AZ148: 2020 | BA148: 0.045 | BB148: 0.045 | BC148: 0.045 | BD148: 0.045 | BE148: 0.045 | BF148: 0.045
E149: 2035 | AZ149: 2021 | BA149: 0.045 | BB149: 0.045 | BC149: 0.045 | BD149: 0.045 | BE149: 0.045 | BF149: 0.045
E150: 2036 | AZ150: 2022 | BA150: 0.045 | BB150: 0.045 | BC150: 0.045 | BD150: 0.045 | BE150: 0.045 | BF150: 0.045
E151: 2037 | AZ151: 2023 | BA151: 0.045 | BB151: 0.045 | BC151: 0.045 | BD151: 0.045 | BE151: 0.045 | BF151: 0.045
E152: 2038 | AZ152: 2024 | BA152: 0.045 | BB152: 0.045 | BC152: 0.045 | BD152: 0.045 | BE152: 0.045 | BF152: 0.045
E153: 2039 | AZ153: 2025 | BA153: 0.045 | BB153: 0.045 | BC153: 0.045 | BD153: 0.045 | BE153: 0.045 | BF153: 0.045
E154: 2040 | AZ154: 2026 | BA154: 0.045 | BB154: 0.045 | BC154: 0.045 | BD154: 0.045 | BE154: 0.045 | BF154: 0.045
B155: Cost Reduction Trajectories | AZ155: 2027 | BA155: 0.045 | BB155: 0.045 | BC155: 0.045 | BD155: 0.045 | BE155: 0.045 | BF155: 0.045
B156: Active Capital Cost Multipliers | E156: 2018 | F156: =IF(ISBLANK(G156),INDEX($I156:$AQ156,$C$11),G156) -> 1 | I156: =OFFSET('Capex Trajectories'!$B$9,MATCH(Resource_Characteristics!$E156,'Capex Trajectories'!$B$10:$B$42,0),MATCH(_xlfn.CONCAT(I$16:I$19),'Capex Trajectories'!$C$9:$YX$9,0)) -> 1 | J156: =OFFSET('Capex Trajectories'!$B$9,MATCH(Resource_Characteristics!$E156,'Capex Trajectories'!$B$10:$B$42,0),MATCH(_xlfn.CONCAT(J$16:J$19),'Capex Trajectories'!$C$9:$YX$9,0)) -> 1 | K156: =OFFSET('Capex Trajectories'!$B$9,MATCH(Resource_Characteristics!$E156,'Capex Trajectories'!$B$10:$B$42,0),MATCH(_xlfn.CONCAT(K$16:K$19),'Capex Trajectories'!$C$9:$YX$9,0)) -> 1 | L156: =OFFSET('Capex Trajectories'!$B$9,MATCH(Resource_Characteristics!$E156,'Capex Trajectories'!$B$10:$B$42,0),MATCH(_xlfn.CONCAT(L$16:L$19),'Capex Trajectories'!$C$9:$YX$9,0)) -> 1 | M156: =OFFSET('Capex Trajectories'!$B$9,MATCH(Resource_Characteristics!$E156,'Capex Trajectories'!$B$10:$B$42,0),MATCH(_xlfn.CONCAT(M$16:M$19),'Capex Trajectories'!$C$9:$YX$9,0)) -> 1 | N156: =OFFSET('Capex Trajectories'!$B$9,MATCH(Resource_Characteristics!$E156,'Capex Trajectories'!$B$10:$B$42,0),MATCH(_xlfn.CONCAT(N$16:N$19),'Capex Trajectories'!$C$9:$YX$9,0)) -> 1 | O156: =OFFSET('Capex Trajectories'!$B$9,MATCH(Resource_Characteristics!$E156,'Capex Trajectories'!$B$10:$B$42,0),MATCH(_xlfn.CONCAT(O$16:O$19),'Capex Trajectories'!$C$9:$YX$9,0)) -> 1 | P156: =OFFSET('Capex Trajectories'!$B$9,MATCH(Resource_Characteristics!$E156,'Capex Trajectories'!$B$10:$B$42,0),MATCH(_xlfn.CONCAT(P$16:P$19),'Capex Trajectories'!$C$9:$YX$9,0)) -> 1 | Q156: =OFFSET('Capex Trajectories'!$B$9,MATCH(Resource_Characteristics!$E156,'Capex Trajectories'!$B$10:$B$42,0),MATCH(_xlfn.CONCAT(Q$16:Q$19),'Capex Trajectories'!$C$9:$YX$9,0)) -> 1 | R156: =OFFSET('Capex Trajectories'!$B$9,MATCH(Resource_Characteristics!$E156,'Capex Trajectories'!$B$10:$B$42,0),MATCH(_xlfn.CONCAT(R$16:R$19),'Capex Trajectories'!$C$9:$YX$9,0)) -> 1 | S156: =OFFSET('Capex Trajectories'!$B$9,MATCH(Resource_Characteristics!$E156,'Capex Trajectories'!$B$10:$B$42,0),MATCH(_xlfn.CONCAT(S$16:S$19),'Capex Trajectories'!$C$9:$YX$9,0)) -> 1 | T156: =OFFSET('Capex Trajectories'!$B$9,MATCH(Resource_Characteristics!$E156,'Capex Trajectories'!$B$10:$B$42,0),MATCH(_xlfn.CONCAT(T$16:T$19),'Capex Trajectories'!$C$9:$YX$9,0)) -> 1 | U156: =OFFSET('Capex Trajectories'!$B$9,MATCH(Resource_Characteristics!$E156,'Capex Trajectories'!$B$10:$B$42,0),MATCH(_xlfn.CONCAT(U$16:U$19),'Capex Trajectories'!$C$9:$YX$9,0)) -> 1 | V156: =OFFSET('Capex Trajectories'!$B$9,MATCH(Resource_Characteristics!$E156,'Capex Trajectories'!$B$10:$B$42,0),MATCH(_xlfn.CONCAT(V$16:V$19),'Capex Trajectories'!$C$9:$YX$9,0)) -> 1 | W156: =OFFSET('Capex Trajectories'!$B$9,MATCH(Resource_Characteristics!$E156,'Capex Trajectories'!$B$10:$B$42,0),MATCH(_xlfn.CONCAT(W$16:W$19),'Capex Trajectories'!$C$9:$YX$9,0)) -> 1 | X156: =OFFSET('Capex Trajectories'!$B$9,MATCH(Resource_Characteristics!$E156,'Capex Trajectories'!$B$10:$B$42,0),MATCH(_xlfn.CONCAT(X$16:X$19),'Capex Trajectories'!$C$9:$YX$9,0)) -> 1 | Y156: =OFFSET('Capex Trajectories'!$B$9,MATCH(Resource_Characteristics!$E156,'Capex Trajectories'!$B$10:$B$42,0),MATCH(_xlfn.CONCAT(Y$16:Y$19),'Capex Trajectories'!$C$9:$YX$9,0)) -> 1 | Z156: =OFFSET('Capex Trajectories'!$B$9,MATCH(Resource_Characteristics!$E156,'Capex Trajectories'!$B$10:$B$42,0),MATCH(_xlfn.CONCAT(Z$16:Z$19),'Capex Trajectories'!$C$9:$YX$9,0)) -> 1 | AA156: =OFFSET('Capex Trajectories'!$B$9,MATCH(Resource_Characteristics!$E156,'Capex Trajectories'!$B$10:$B$42,0),MATCH(_xlfn.CONCAT(AA$16:AA$19),'Capex Trajectories'!$C$9:$YX$9,0)) -> 1 | AB156: =OFFSET('Capex Trajectories'!$B$9,MATCH(Resource_Characteristics!$E156,'Capex Trajectories'!$B$10:$B$42,0),MATCH(_xlfn.CONCAT(AB$16:AB$19),'Capex Trajectories'!$C$9:$YX$9,0)) -> 1 | AC156: =OFFSET('Capex Trajectories'!$B$9,MATCH(Resource_Characteristics!$E156,'Capex Trajectories'!$B$10:$B$42,0),MATCH(_xlfn.CONCAT(AC$16:AC$19),'Capex Trajectories'!$C$9:$YX$9,0)) -> 1 | AD156: =OFFSET('Capex Trajectories'!$B$9,MATCH(Resource_Characteristics!$E156,'Capex Trajectories'!$B$10:$B$42,0),MATCH(_xlfn.CONCAT(AD$16:AD$19),'Capex Trajectories'!$C$9:$YX$9,0)) -> 1 | AE156: =OFFSET('Capex Trajectories'!$B$9,MATCH(Resource_Characteristics!$E156,'Capex Trajectories'!$B$10:$B$42,0),MATCH(_xlfn.CONCAT(AE$16:AE$19),'Capex Trajectories'!$C$9:$YX$9,0)) -> 1 | AF156: =OFFSET('Capex Trajectories'!$B$9,MATCH(Resource_Characteristics!$E156,'Capex Trajectories'!$B$10:$B$42,0),MATCH(_xlfn.CONCAT(AF$16:AF$19),'Capex Trajectories'!$C$9:$YX$9,0)) -> 1 | AG156: =OFFSET('Capex Trajectories'!$B$9,MATCH(Resource_Characteristics!$E156,'Capex Trajectories'!$B$10:$B$42,0),MATCH(_xlfn.CONCAT(AG$16:AG$19),'Capex Trajectories'!$C$9:$YX$9,0)) -> 1 | AH156: =OFFSET('Capex Trajectories'!$B$9,MATCH(Resource_Characteristics!$E156,'Capex Trajectories'!$B$10:$B$42,0),MATCH(_xlfn.CONCAT(AH$16:AH$19),'Capex Trajectories'!$C$9:$YX$9,0)) -> 1 | AI156: =OFFSET('Capex Trajectories'!$B$9,MATCH(Resource_Characteristics!$E156,'Capex Trajectories'!$B$10:$B$42,0),MATCH(_xlfn.CONCAT(AI$16:AI$19),'Capex Trajectories'!$C$9:$YX$9,0)) -> 1 | AJ156: =OFFSET('Capex Trajectories'!$B$9,MATCH(Resource_Characteristics!$E156,'Capex Trajectories'!$B$10:$B$42,0),MATCH(_xlfn.CONCAT(AJ$16:AJ$19),'Capex Trajectories'!$C$9:$YX$9,0)) -> 1 | AK156: =OFFSET('Capex Trajectories'!$B$9,MATCH(Resource_Characteristics!$E156,'Capex Trajectories'!$B$10:$B$42,0),MATCH(_xlfn.CONCAT(AK$16:AK$19),'Capex Trajectories'!$C$9:$YX$9,0)) -> 1 | AL156: =OFFSET('Capex Trajectories'!$B$9,MATCH(Resource_Characteristics!$E156,'Capex Trajectories'!$B$10:$B$42,0),MATCH(_xlfn.CONCAT(AL$16:AL$19),'Capex Trajectories'!$C$9:$YX$9,0)) -> 1 | AM156: =OFFSET('Capex Trajectories'!$B$9,MATCH(Resource_Characteristics!$E156,'Capex Trajectories'!$B$10:$B$42,0),MATCH(_xlfn.CONCAT(AM$16:AM$19),'Capex Trajectories'!$C$9:$YX$9,0)) -> 1 | AN156: =OFFSET('Capex Trajectories'!$B$9,MATCH(Resource_Characteristics!$E156,'Capex Trajectories'!$B$10:$B$42,0),MATCH(_xlfn.CONCAT(AN$16:AN$19),'Capex Trajectories'!$C$9:$YX$9,0)) -> 1 | AO156: =OFFSET('Capex Trajectories'!$B$9,MATCH(Resource_Characteristics!$E156,'Capex Trajectories'!$B$10:$B$42,0),MATCH(_xlfn.CONCAT(AO$16:AO$19),'Capex Trajectories'!$C$9:$YX$9,0)) -> 1 | AP156: =OFFSET('Capex Trajectories'!$B$9,MATCH(Resource_Characteristics!$E156,'Capex Trajectories'!$B$10:$B$42,0),MATCH(_xlfn.CONCAT(AP$16:AP$19),'Capex Trajectories'!$C$9:$YX$9,0)) -> 1 | AQ156: =OFFSET('Capex Trajectories'!$B$9,MATCH(Resource_Characteristics!$E156,'Capex Trajectories'!$B$10:$B$42,0),MATCH(_xlfn.CONCAT(AQ$16:AQ$19),'Capex Trajectories'!$C$9:$YX$9,0)) -> 1 | AZ156: 2028 | BA156: 0.045 | BB156: 0.045 | BC156: 0.045 | BD156: 0.045 | BE156: 0.045 | BF156: 0.045
B157: (%) | E157: =E156+1 -> 2019 | F157: 0.9970264459 | I157: =OFFSET('Capex Trajectories'!$B$9,MATCH(Resource_Characteristics!$E157,'Capex Trajectories'!$B$10:$B$42,0),MATCH(_xlfn.CONCAT(I$16:I$19),'Capex Trajectories'!$C$9:$YX$9,0)) -> 0.9622641509 | J157: =OFFSET('Capex Trajectories'!$B$9,MATCH(Resource_Characteristics!$E157,'Capex Trajectories'!$B$10:$B$42,0),MATCH(_xlfn.CONCAT(J$16:J$19),'Capex Trajectories'!$C$9:$YX$9,0)) -> 0.9874399255 | K157: =OFFSET('Capex Trajectories'!$B$9,MATCH(Resource_Characteristics!$E157,'Capex Trajectories'!$B$10:$B$42,0),MATCH(_xlfn.CONCAT(K$16:K$19),'Capex Trajectories'!$C$9:$YX$9,0)) -> 0.9796247054 | L157: =OFFSET('Capex Trajectories'!$B$9,MATCH(Resource_Characteristics!$E157,'Capex Trajectories'!$B$10:$B$42,0),MATCH(_xlfn.CONCAT(L$16:L$19),'Capex Trajectories'!$C$9:$YX$9,0)) -> 0.9820050995 | M157: =OFFSET('Capex Trajectories'!$B$9,MATCH(Resource_Characteristics!$E157,'Capex Trajectories'!$B$10:$B$42,0),MATCH(_xlfn.CONCAT(M$16:M$19),'Capex Trajectories'!$C$9:$YX$9,0)) -> 0.92 | N157: =OFFSET('Capex Trajectories'!$B$9,MATCH(Resource_Characteristics!$E157,'Capex Trajectories'!$B$10:$B$42,0),MATCH(_xlfn.CONCAT(N$16:N$19),'Capex Trajectories'!$C$9:$YX$9,0)) -> 0.92 | O157: =OFFSET('Capex Trajectories'!$B$9,MATCH(Resource_Characteristics!$E157,'Capex Trajectories'!$B$10:$B$42,0),MATCH(_xlfn.CONCAT(O$16:O$19),'Capex Trajectories'!$C$9:$YX$9,0)) -> 0.92 | P157: =OFFSET('Capex Trajectories'!$B$9,MATCH(Resource_Characteristics!$E157,'Capex Trajectories'!$B$10:$B$42,0),MATCH(_xlfn.CONCAT(P$16:P$19),'Capex Trajectories'!$C$9:$YX$9,0)) -> 0.92 | Q157: =OFFSET('Capex Trajectories'!$B$9,MATCH(Resource_Characteristics!$E157,'Capex Trajectories'!$B$10:$B$42,0),MATCH(_xlfn.CONCAT(Q$16:Q$19),'Capex Trajectories'!$C$9:$YX$9,0)) -> 0.95 | R157: =OFFSET('Capex Trajectories'!$B$9,MATCH(Resource_Characteristics!$E157,'Capex Trajectories'!$B$10:$B$42,0),MATCH(_xlfn.CONCAT(R$16:R$19),'Capex Trajectories'!$C$9:$YX$9,0)) -> 1 | S157: =OFFSET('Capex Trajectories'!$B$9,MATCH(Resource_Characteristics!$E157,'Capex Trajectories'!$B$10:$B$42,0),MATCH(_xlfn.CONCAT(S$16:S$19),'Capex Trajectories'!$C$9:$YX$9,0)) -> 1 | T157: =OFFSET('Capex Trajectories'!$B$9,MATCH(Resource_Characteristics!$E157,'Capex Trajectories'!$B$10:$B$42,0),MATCH(_xlfn.CONCAT(T$16:T$19),'Capex Trajectories'!$C$9:$YX$9,0)) -> 0.9490743116 | U157: =OFFSET('Capex Trajectories'!$B$9,MATCH(Resource_Characteristics!$E157,'Capex Trajectories'!$B$10:$B$42,0),MATCH(_xlfn.CONCAT(U$16:U$19),'Capex Trajectories'!$C$9:$YX$9,0)) -> 0.9449035813 | V157: =OFFSET('Capex Trajectories'!$B$9,MATCH(Resource_Characteristics!$E157,'Capex Trajectories'!$B$10:$B$42,0),MATCH(_xlfn.CONCAT(V$16:V$19),'Capex Trajectories'!$C$9:$YX$9,0)) -> 0.92 | W157: =OFFSET('Capex Trajectories'!$B$9,MATCH(Resource_Characteristics!$E157,'Capex Trajectories'!$B$10:$B$42,0),MATCH(_xlfn.CONCAT(W$16:W$19),'Capex Trajectories'!$C$9:$YX$9,0)) -> 0.92 | X157: =OFFSET('Capex Trajectories'!$B$9,MATCH(Resource_Characteristics!$E157,'Capex Trajectories'!$B$10:$B$42,0),MATCH(_xlfn.CONCAT(X$16:X$19),'Capex Trajectories'!$C$9:$YX$9,0)) -> 0.9985604387 | Y157: =OFFSET('Capex Trajectories'!$B$9,MATCH(Resource_Characteristics!$E157,'Capex Trajectories'!$B$10:$B$42,0),MATCH(_xlfn.CONCAT(Y$16:Y$19),'Capex Trajectories'!$C$9:$YX$9,0)) -> 0.9985604387 | Z157: =OFFSET('Capex Trajectories'!$B$9,MATCH(Resource_Characteristics!$E157,'Capex Trajectories'!$B$10:$B$42,0),MATCH(_xlfn.CONCAT(Z$16:Z$19),'Capex Trajectories'!$C$9:$YX$9,0)) -> 0.9985604387 | AA157: =OFFSET('Capex Trajectories'!$B$9,MATCH(Resource_Characteristics!$E157,'Capex Trajectories'!$B$10:$B$42,0),MATCH(_xlfn.CONCAT(AA$16:AA$19),'Capex Trajectories'!$C$9:$YX$9,0)) -> 0.9985604387 | AB157: =OFFSET('Capex Trajectories'!$B$9,MATCH(Resource_Characteristics!$E157,'Capex Trajectories'!$B$10:$B$42,0),MATCH(_xlfn.CONCAT(AB$16:AB$19),'Capex Trajectories'!$C$9:$YX$9,0)) -> 0.9961797255 | AC157: =OFFSET('Capex Trajectories'!$B$9,MATCH(Resource_Characteristics!$E157,'Capex Trajectories'!$B$10:$B$42,0),MATCH(_xlfn.CONCAT(AC$16:AC$19),'Capex Trajectories'!$C$9:$YX$9,0)) -> 0.9965534061 | AD157: =OFFSET('Capex Trajectories'!$B$9,MATCH(Resource_Characteristics!$E157,'Capex Trajectories'!$B$10:$B$42,0),MATCH(_xlfn.CONCAT(AD$16:AD$19),'Capex Trajectories'!$C$9:$YX$9,0)) -> 0.9965534061 | AE157: =OFFSET('Capex Trajectories'!$B$9,MATCH(Resource_Characteristics!$E157,'Capex Trajectories'!$B$10:$B$42,0),MATCH(_xlfn.CONCAT(AE$16:AE$19),'Capex Trajectories'!$C$9:$YX$9,0)) -> 1 | AF157: =OFFSET('Capex Trajectories'!$B$9,MATCH(Resource_Characteristics!$E157,'Capex Trajectories'!$B$10:$B$42,0),MATCH(_xlfn.CONCAT(AF$16:AF$19),'Capex Trajectories'!$C$9:$YX$9,0)) -> 0.9974874383 | AG157: =OFFSET('Capex Trajectories'!$B$9,MATCH(Resource_Characteristics!$E157,'Capex Trajectories'!$B$10:$B$42,0),MATCH(_xlfn.CONCAT(AG$16:AG$19),'Capex Trajectories'!$C$9:$YX$9,0)) -> 0.9974874358 | AH157: =OFFSET('Capex Trajectories'!$B$9,MATCH(Resource_Characteristics!$E157,'Capex Trajectories'!$B$10:$B$42,0),MATCH(_xlfn.CONCAT(AH$16:AH$19),'Capex Trajectories'!$C$9:$YX$9,0)) -> 0.9974874367 | AI157: =OFFSET('Capex Trajectories'!$B$9,MATCH(Resource_Characteristics!$E157,'Capex Trajectories'!$B$10:$B$42,0),MATCH(_xlfn.CONCAT(AI$16:AI$19),'Capex Trajectories'!$C$9:$YX$9,0)) -> 0.9974874372 | AJ157: =OFFSET('Capex Trajectories'!$B$9,MATCH(Resource_Characteristics!$E157,'Capex Trajectories'!$B$10:$B$42,0),MATCH(_xlfn.CONCAT(AJ$16:AJ$19),'Capex Trajectories'!$C$9:$YX$9,0)) -> 1 | AK157: =OFFSET('Capex Trajectories'!$B$9,MATCH(Resource_Characteristics!$E157,'Capex Trajectories'!$B$10:$B$42,0),MATCH(_xlfn.CONCAT(AK$16:AK$19),'Capex Trajectories'!$C$9:$YX$9,0)) -> 0.9982133086 | AL157: =OFFSET('Capex Trajectories'!$B$9,MATCH(Resource_Characteristics!$E157,'Capex Trajectories'!$B$10:$B$42,0),MATCH(_xlfn.CONCAT(AL$16:AL$19),'Capex Trajectories'!$C$9:$YX$9,0)) -> 0.957650617 | AM157: =OFFSET('Capex Trajectories'!$B$9,MATCH(Resource_Characteristics!$E157,'Capex Trajectories'!$B$10:$B$42,0),MATCH(_xlfn.CONCAT(AM$16:AM$19),'Capex Trajectories'!$C$9:$YX$9,0)) -> 1 | AN157: =OFFSET('Capex Trajectories'!$B$9,MATCH(Resource_Characteristics!$E157,'Capex Trajectories'!$B$10:$B$42,0),MATCH(_xlfn.CONCAT(AN$16:AN$19),'Capex Trajectories'!$C$9:$YX$9,0)) -> 0.9994102713 | AO157: =OFFSET('Capex Trajectories'!$B$9,MATCH(Resource_Characteristics!$E157,'Capex Trajectories'!$B$10:$B$42,0),MATCH(_xlfn.CONCAT(AO$16:AO$19),'Capex Trajectories'!$C$9:$YX$9,0)) -> 0.9994102713 | AP157: =OFFSET('Capex Trajectories'!$B$9,MATCH(Resource_Characteristics!$E157,'Capex Trajectories'!$B$10:$B$42,0),MATCH(_xlfn.CONCAT(AP$16:AP$19),'Capex Trajectories'!$C$9:$YX$9,0)) -> 0.9968466969 | AQ157: =OFFSET('Capex Trajectories'!$B$9,MATCH(Resource_Characteristics!$E157,'Capex Trajectories'!$B$10:$B$42,0),MATCH(_xlfn.CONCAT(AQ$16:AQ$19),'Capex Trajectories'!$C$9:$YX$9,0)) -> 0.9970264459 | AZ157: 2029 | BA157: 0.045 | BB157: 0.045 | BC157: 0.045 | BD157: 0.045 | BE157: 0.045 | BF157: 0.045
E158: 2020 | F158: 0.9940528918 | I158: =OFFSET('Capex Trajectories'!$B$9,MATCH(Resource_Characteristics!$E158,'Capex Trajectories'!$B$10:$B$42,0),MATCH(_xlfn.CONCAT(I$16:I$19),'Capex Trajectories'!$C$9:$YX$9,0)) -> 0.9056603774 | J158: =OFFSET('Capex Trajectories'!$B$9,MATCH(Resource_Characteristics!$E158,'Capex Trajectories'!$B$10:$B$42,0),MATCH(_xlfn.CONCAT(J$16:J$19),'Capex Trajectories'!$C$9:$YX$9,0)) -> 0.9753369161 | K158: =OFFSET('Capex Trajectories'!$B$9,MATCH(Resource_Characteristics!$E158,'Capex Trajectories'!$B$10:$B$42,0),MATCH(_xlfn.CONCAT(K$16:K$19),'Capex Trajectories'!$C$9:$YX$9,0)) -> 0.9592494109 | L158: =OFFSET('Capex Trajectories'!$B$9,MATCH(Resource_Characteristics!$E158,'Capex Trajectories'!$B$10:$B$42,0),MATCH(_xlfn.CONCAT(L$16:L$19),'Capex Trajectories'!$C$9:$YX$9,0)) -> 0.964010199 | M158: =OFFSET('Capex Trajectories'!$B$9,MATCH(Resource_Characteristics!$E158,'Capex Trajectories'!$B$10:$B$42,0),MATCH(_xlfn.CONCAT(M$16:M$19),'Capex Trajectories'!$C$9:$YX$9,0)) -> 0.8464 | N158: =OFFSET('Capex Trajectories'!$B$9,MATCH(Resource_Characteristics!$E158,'Capex Trajectories'!$B$10:$B$42,0),MATCH(_xlfn.CONCAT(N$16:N$19),'Capex Trajectories'!$C$9:$YX$9,0)) -> 0.8464 | O158: =OFFSET('Capex Trajectories'!$B$9,MATCH(Resource_Characteristics!$E158,'Capex Trajectories'!$B$10:$B$42,0),MATCH(_xlfn.CONCAT(O$16:O$19),'Capex Trajectories'!$C$9:$YX$9,0)) -> 0.8464 | P158: =OFFSET('Capex Trajectories'!$B$9,MATCH(Resource_Characteristics!$E158,'Capex Trajectories'!$B$10:$B$42,0),MATCH(_xlfn.CONCAT(P$16:P$19),'Capex Trajectories'!$C$9:$YX$9,0)) -> 0.8464 | Q158: =OFFSET('Capex Trajectories'!$B$9,MATCH(Resource_Characteristics!$E158,'Capex Trajectories'!$B$10:$B$42,0),MATCH(_xlfn.CONCAT(Q$16:Q$19),'Capex Trajectories'!$C$9:$YX$9,0)) -> 0.9025 | R158: =OFFSET('Capex Trajectories'!$B$9,MATCH(Resource_Characteristics!$E158,'Capex Trajectories'!$B$10:$B$42,0),MATCH(_xlfn.CONCAT(R$16:R$19),'Capex Trajectories'!$C$9:$YX$9,0)) -> 1 | S158: =OFFSET('Capex Trajectories'!$B$9,MATCH(Resource_Characteristics!$E158,'Capex Trajectories'!$B$10:$B$42,0),MATCH(_xlfn.CONCAT(S$16:S$19),'Capex Trajectories'!$C$9:$YX$9,0)) -> 1 | T158: =OFFSET('Capex Trajectories'!$B$9,MATCH(Resource_Characteristics!$E158,'Capex Trajectories'!$B$10:$B$42,0),MATCH(_xlfn.CONCAT(T$16:T$19),'Capex Trajectories'!$C$9:$YX$9,0)) -> 0.8459899529 | U158: =OFFSET('Capex Trajectories'!$B$9,MATCH(Resource_Characteristics!$E158,'Capex Trajectories'!$B$10:$B$42,0),MATCH(_xlfn.CONCAT(U$16:U$19),'Capex Trajectories'!$C$9:$YX$9,0)) -> 0.8842975207 | V158: =OFFSET('Capex Trajectories'!$B$9,MATCH(Resource_Characteristics!$E158,'Capex Trajectories'!$B$10:$B$42,0),MATCH(_xlfn.CONCAT(V$16:V$19),'Capex Trajectories'!$C$9:$YX$9,0)) -> 0.8464 | W158: =OFFSET('Capex Trajectories'!$B$9,MATCH(Resource_Characteristics!$E158,'Capex Trajectories'!$B$10:$B$42,0),MATCH(_xlfn.CONCAT(W$16:W$19),'Capex Trajectories'!$C$9:$YX$9,0)) -> 0.8464 | X158: =OFFSET('Capex Trajectories'!$B$9,MATCH(Resource_Characteristics!$E158,'Capex Trajectories'!$B$10:$B$42,0),MATCH(_xlfn.CONCAT(X$16:X$19),'Capex Trajectories'!$C$9:$YX$9,0)) -> 0.9971208775 | Y158: =OFFSET('Capex Trajectories'!$B$9,MATCH(Resource_Characteristics!$E158,'Capex Trajectories'!$B$10:$B$42,0),MATCH(_xlfn.CONCAT(Y$16:Y$19),'Capex Trajectories'!$C$9:$YX$9,0)) -> 0.9971208775 | Z158: =OFFSET('Capex Trajectories'!$B$9,MATCH(Resource_Characteristics!$E158,'Capex Trajectories'!$B$10:$B$42,0),MATCH(_xlfn.CONCAT(Z$16:Z$19),'Capex Trajectories'!$C$9:$YX$9,0)) -> 0.9971208775 | AA158: =OFFSET('Capex Trajectories'!$B$9,MATCH(Resource_Characteristics!$E158,'Capex Trajectories'!$B$10:$B$42,0),MATCH(_xlfn.CONCAT(AA$16:AA$19),'Capex Trajectories'!$C$9:$YX$9,0)) -> 0.9971208775 | AB158: =OFFSET('Capex Trajectories'!$B$9,MATCH(Resource_Characteristics!$E158,'Capex Trajectories'!$B$10:$B$42,0),MATCH(_xlfn.CONCAT(AB$16:AB$19),'Capex Trajectories'!$C$9:$YX$9,0)) -> 0.992359451 | AC158: =OFFSET('Capex Trajectories'!$B$9,MATCH(Resource_Characteristics!$E158,'Capex Trajectories'!$B$10:$B$42,0),MATCH(_xlfn.CONCAT(AC$16:AC$19),'Capex Trajectories'!$C$9:$YX$9,0)) -> 1.000602678 | AD158: =OFFSET('Capex Trajectories'!$B$9,MATCH(Resource_Characteristics!$E158,'Capex Trajectories'!$B$10:$B$42,0),MATCH(_xlfn.CONCAT(AD$16:AD$19),'Capex Trajectories'!$C$9:$YX$9,0)) -> 1.000602678 | AE158: =OFFSET('Capex Trajectories'!$B$9,MATCH(Resource_Characteristics!$E158,'Capex Trajectories'!$B$10:$B$42,0),MATCH(_xlfn.CONCAT(AE$16:AE$19),'Capex Trajectories'!$C$9:$YX$9,0)) -> 1 | AF158: =OFFSET('Capex Trajectories'!$B$9,MATCH(Resource_Characteristics!$E158,'Capex Trajectories'!$B$10:$B$42,0),MATCH(_xlfn.CONCAT(AF$16:AF$19),'Capex Trajectories'!$C$9:$YX$9,0)) -> 0.9949748767 | AG158: =OFFSET('Capex Trajectories'!$B$9,MATCH(Resource_Characteristics!$E158,'Capex Trajectories'!$B$10:$B$42,0),MATCH(_xlfn.CONCAT(AG$16:AG$19),'Capex Trajectories'!$C$9:$YX$9,0)) -> 0.9949748716 | AH158: =OFFSET('Capex Trajectories'!$B$9,MATCH(Resource_Characteristics!$E158,'Capex Trajectories'!$B$10:$B$42,0),MATCH(_xlfn.CONCAT(AH$16:AH$19),'Capex Trajectories'!$C$9:$YX$9,0)) -> 0.9949748733 | AI158: =OFFSET('Capex Trajectories'!$B$9,MATCH(Resource_Characteristics!$E158,'Capex Trajectories'!$B$10:$B$42,0),MATCH(_xlfn.CONCAT(AI$16:AI$19),'Capex Trajectories'!$C$9:$YX$9,0)) -> 0.9949748744 | AJ158: =OFFSET('Capex Trajectories'!$B$9,MATCH(Resource_Characteristics!$E158,'Capex Trajectories'!$B$10:$B$42,0),MATCH(_xlfn.CONCAT(AJ$16:AJ$19),'Capex Trajectories'!$C$9:$YX$9,0)) -> 1 | AK158: =OFFSET('Capex Trajectories'!$B$9,MATCH(Resource_Characteristics!$E158,'Capex Trajectories'!$B$10:$B$42,0),MATCH(_xlfn.CONCAT(AK$16:AK$19),'Capex Trajectories'!$C$9:$YX$9,0)) -> 0.9907213228 | AL158: =OFFSET('Capex Trajectories'!$B$9,MATCH(Resource_Characteristics!$E158,'Capex Trajectories'!$B$10:$B$42,0),MATCH(_xlfn.CONCAT(AL$16:AL$19),'Capex Trajectories'!$C$9:$YX$9,0)) -> 0.9153012339 | AM158: =OFFSET('Capex Trajectories'!$B$9,MATCH(Resource_Characteristics!$E158,'Capex Trajectories'!$B$10:$B$42,0),MATCH(_xlfn.CONCAT(AM$16:AM$19),'Capex Trajectories'!$C$9:$YX$9,0)) -> 1 | AN158: =OFFSET('Capex Trajectories'!$B$9,MATCH(Resource_Characteristics!$E158,'Capex Trajectories'!$B$10:$B$42,0),MATCH(_xlfn.CONCAT(AN$16:AN$19),'Capex Trajectories'!$C$9:$YX$9,0)) -> 0.9988205426 | AO158: =OFFSET('Capex Trajectories'!$B$9,MATCH(Resource_Characteristics!$E158,'Capex Trajectories'!$B$10:$B$42,0),MATCH(_xlfn.CONCAT(AO$16:AO$19),'Capex Trajectories'!$C$9:$YX$9,0)) -> 0.9988205426 | AP158: =OFFSET('Capex Trajectories'!$B$9,MATCH(Resource_Characteristics!$E158,'Capex Trajectories'!$B$10:$B$42,0),MATCH(_xlfn.CONCAT(AP$16:AP$19),'Capex Trajectories'!$C$9:$YX$9,0)) -> 0.9936933939 | AQ158: =OFFSET('Capex Trajectories'!$B$9,MATCH(Resource_Characteristics!$E158,'Capex Trajectories'!$B$10:$B$42,0),MATCH(_xlfn.CONCAT(AQ$16:AQ$19),'Capex Trajectories'!$C$9:$YX$9,0)) -> 0.9940528918 | AZ158: 2030 | BA158: 0.045 | BB158: 0.045 | BC158: 0.045 | BD158: 0.045 | BE158: 0.045 | BF158: 0.045
E159: 2021 | F159: 0.9910793378 | I159: =OFFSET('Capex Trajectories'!$B$9,MATCH(Resource_Characteristics!$E159,'Capex Trajectories'!$B$10:$B$42,0),MATCH(_xlfn.CONCAT(I$16:I$19),'Capex Trajectories'!$C$9:$YX$9,0)) -> 0.858490566 | J159: =OFFSET('Capex Trajectories'!$B$9,MATCH(Resource_Characteristics!$E159,'Capex Trajectories'!$B$10:$B$42,0),MATCH(_xlfn.CONCAT(J$16:J$19),'Capex Trajectories'!$C$9:$YX$9,0)) -> 0.9636909717 | K159: =OFFSET('Capex Trajectories'!$B$9,MATCH(Resource_Characteristics!$E159,'Capex Trajectories'!$B$10:$B$42,0),MATCH(_xlfn.CONCAT(K$16:K$19),'Capex Trajectories'!$C$9:$YX$9,0)) -> 0.9335588221 | L159: =OFFSET('Capex Trajectories'!$B$9,MATCH(Resource_Characteristics!$E159,'Capex Trajectories'!$B$10:$B$42,0),MATCH(_xlfn.CONCAT(L$16:L$19),'Capex Trajectories'!$C$9:$YX$9,0)) -> 0.9413291265 | M159: =OFFSET('Capex Trajectories'!$B$9,MATCH(Resource_Characteristics!$E159,'Capex Trajectories'!$B$10:$B$42,0),MATCH(_xlfn.CONCAT(M$16:M$19),'Capex Trajectories'!$C$9:$YX$9,0)) -> 0.778688 | N159: =OFFSET('Capex Trajectories'!$B$9,MATCH(Resource_Characteristics!$E159,'Capex Trajectories'!$B$10:$B$42,0),MATCH(_xlfn.CONCAT(N$16:N$19),'Capex Trajectories'!$C$9:$YX$9,0)) -> 0.778688 | O159: =OFFSET('Capex Trajectories'!$B$9,MATCH(Resource_Characteristics!$E159,'Capex Trajectories'!$B$10:$B$42,0),MATCH(_xlfn.CONCAT(O$16:O$19),'Capex Trajectories'!$C$9:$YX$9,0)) -> 0.778688 | P159: =OFFSET('Capex Trajectories'!$B$9,MATCH(Resource_Characteristics!$E159,'Capex Trajectories'!$B$10:$B$42,0),MATCH(_xlfn.CONCAT(P$16:P$19),'Capex Trajectories'!$C$9:$YX$9,0)) -> 0.778688 | Q159: =OFFSET('Capex Trajectories'!$B$9,MATCH(Resource_Characteristics!$E159,'Capex Trajectories'!$B$10:$B$42,0),MATCH(_xlfn.CONCAT(Q$16:Q$19),'Capex Trajectories'!$C$9:$YX$9,0)) -> 0.857375 | R159: =OFFSET('Capex Trajectories'!$B$9,MATCH(Resource_Characteristics!$E159,'Capex Trajectories'!$B$10:$B$42,0),MATCH(_xlfn.CONCAT(R$16:R$19),'Capex Trajectories'!$C$9:$YX$9,0)) -> 1 | S159: =OFFSET('Capex Trajectories'!$B$9,MATCH(Resource_Characteristics!$E159,'Capex Trajectories'!$B$10:$B$42,0),MATCH(_xlfn.CONCAT(S$16:S$19),'Capex Trajectories'!$C$9:$YX$9,0)) -> 1 | T159: =OFFSET('Capex Trajectories'!$B$9,MATCH(Resource_Characteristics!$E159,'Capex Trajectories'!$B$10:$B$42,0),MATCH(_xlfn.CONCAT(T$16:T$19),'Capex Trajectories'!$C$9:$YX$9,0)) -> 0.7762711294 | U159: =OFFSET('Capex Trajectories'!$B$9,MATCH(Resource_Characteristics!$E159,'Capex Trajectories'!$B$10:$B$42,0),MATCH(_xlfn.CONCAT(U$16:U$19),'Capex Trajectories'!$C$9:$YX$9,0)) -> 0.8457300275 | V159: =OFFSET('Capex Trajectories'!$B$9,MATCH(Resource_Characteristics!$E159,'Capex Trajectories'!$B$10:$B$42,0),MATCH(_xlfn.CONCAT(V$16:V$19),'Capex Trajectories'!$C$9:$YX$9,0)) -> 0.778688 | W159: =OFFSET('Capex Trajectories'!$B$9,MATCH(Resource_Characteristics!$E159,'Capex Trajectories'!$B$10:$B$42,0),MATCH(_xlfn.CONCAT(W$16:W$19),'Capex Trajectories'!$C$9:$YX$9,0)) -> 0.778688 | X159: =OFFSET('Capex Trajectories'!$B$9,MATCH(Resource_Characteristics!$E159,'Capex Trajectories'!$B$10:$B$42,0),MATCH(_xlfn.CONCAT(X$16:X$19),'Capex Trajectories'!$C$9:$YX$9,0)) -> 0.9938465496 | Y159: =OFFSET('Capex Trajectories'!$B$9,MATCH(Resource_Characteristics!$E159,'Capex Trajectories'!$B$10:$B$42,0),MATCH(_xlfn.CONCAT(Y$16:Y$19),'Capex Trajectories'!$C$9:$YX$9,0)) -> 0.9938465496 | Z159: =OFFSET('Capex Trajectories'!$B$9,MATCH(Resource_Characteristics!$E159,'Capex Trajectories'!$B$10:$B$42,0),MATCH(_xlfn.CONCAT(Z$16:Z$19),'Capex Trajectories'!$C$9:$YX$9,0)) -> 0.9938465496 | AA159: =OFFSET('Capex Trajectories'!$B$9,MATCH(Resource_Characteristics!$E159,'Capex Trajectories'!$B$10:$B$42,0),MATCH(_xlfn.CONCAT(AA$16:AA$19),'Capex Trajectories'!$C$9:$YX$9,0)) -> 0.9938465496 | AB159: =OFFSET('Capex Trajectories'!$B$9,MATCH(Resource_Characteristics!$E159,'Capex Trajectories'!$B$10:$B$42,0),MATCH(_xlfn.CONCAT(AB$16:AB$19),'Capex Trajectories'!$C$9:$YX$9,0)) -> 0.9859108232 | AC159: =OFFSET('Capex Trajectories'!$B$9,MATCH(Resource_Characteristics!$E159,'Capex Trajectories'!$B$10:$B$42,0),MATCH(_xlfn.CONCAT(AC$16:AC$19),'Capex Trajectories'!$C$9:$YX$9,0)) -> 0.9972364632 | AD159: =OFFSET('Capex Trajectories'!$B$9,MATCH(Resource_Characteristics!$E159,'Capex Trajectories'!$B$10:$B$42,0),MATCH(_xlfn.CONCAT(AD$16:AD$19),'Capex Trajectories'!$C$9:$YX$9,0)) -> 0.9972364632 | AE159: =OFFSET('Capex Trajectories'!$B$9,MATCH(Resource_Characteristics!$E159,'Capex Trajectories'!$B$10:$B$42,0),MATCH(_xlfn.CONCAT(AE$16:AE$19),'Capex Trajectories'!$C$9:$YX$9,0)) -> 1 | AF159: =OFFSET('Capex Trajectories'!$B$9,MATCH(Resource_Characteristics!$E159,'Capex Trajectories'!$B$10:$B$42,0),MATCH(_xlfn.CONCAT(AF$16:AF$19),'Capex Trajectories'!$C$9:$YX$9,0)) -> 0.992462315 | AG159: =OFFSET('Capex Trajectories'!$B$9,MATCH(Resource_Characteristics!$E159,'Capex Trajectories'!$B$10:$B$42,0),MATCH(_xlfn.CONCAT(AG$16:AG$19),'Capex Trajectories'!$C$9:$YX$9,0)) -> 0.9924623074 | AH159: =OFFSET('Capex Trajectories'!$B$9,MATCH(Resource_Characteristics!$E159,'Capex Trajectories'!$B$10:$B$42,0),MATCH(_xlfn.CONCAT(AH$16:AH$19),'Capex Trajectories'!$C$9:$YX$9,0)) -> 0.99246231 | AI159: =OFFSET('Capex Trajectories'!$B$9,MATCH(Resource_Characteristics!$E159,'Capex Trajectories'!$B$10:$B$42,0),MATCH(_xlfn.CONCAT(AI$16:AI$19),'Capex Trajectories'!$C$9:$YX$9,0)) -> 0.9924623116 | AJ159: =OFFSET('Capex Trajectories'!$B$9,MATCH(Resource_Characteristics!$E159,'Capex Trajectories'!$B$10:$B$42,0),MATCH(_xlfn.CONCAT(AJ$16:AJ$19),'Capex Trajectories'!$C$9:$YX$9,0)) -> 1 | AK159: =OFFSET('Capex Trajectories'!$B$9,MATCH(Resource_Characteristics!$E159,'Capex Trajectories'!$B$10:$B$42,0),MATCH(_xlfn.CONCAT(AK$16:AK$19),'Capex Trajectories'!$C$9:$YX$9,0)) -> 0.9773867504 | AL159: =OFFSET('Capex Trajectories'!$B$9,MATCH(Resource_Characteristics!$E159,'Capex Trajectories'!$B$10:$B$42,0),MATCH(_xlfn.CONCAT(AL$16:AL$19),'Capex Trajectories'!$C$9:$YX$9,0)) -> 0.9037711105 | AM159: =OFFSET('Capex Trajectories'!$B$9,MATCH(Resource_Characteristics!$E159,'Capex Trajectories'!$B$10:$B$42,0),MATCH(_xlfn.CONCAT(AM$16:AM$19),'Capex Trajectories'!$C$9:$YX$9,0)) -> 1 | AN159: =OFFSET('Capex Trajectories'!$B$9,MATCH(Resource_Characteristics!$E159,'Capex Trajectories'!$B$10:$B$42,0),MATCH(_xlfn.CONCAT(AN$16:AN$19),'Capex Trajectories'!$C$9:$YX$9,0)) -> 0.9982308139 | AO159: =OFFSET('Capex Trajectories'!$B$9,MATCH(Resource_Characteristics!$E159,'Capex Trajectories'!$B$10:$B$42,0),MATCH(_xlfn.CONCAT(AO$16:AO$19),'Capex Trajectories'!$C$9:$YX$9,0)) -> 0.9982308139 | AP159: =OFFSET('Capex Trajectories'!$B$9,MATCH(Resource_Characteristics!$E159,'Capex Trajectories'!$B$10:$B$42,0),MATCH(_xlfn.CONCAT(AP$16:AP$19),'Capex Trajectories'!$C$9:$YX$9,0)) -> 0.9905400908 | AQ159: =OFFSET('Capex Trajectories'!$B$9,MATCH(Resource_Characteristics!$E159,'Capex Trajectories'!$B$10:$B$42,0),MATCH(_xlfn.CONCAT(AQ$16:AQ$19),'Capex Trajectories'!$C$9:$YX$9,0)) -> 0.9910793378 | AZ159: 2031 | BA159: 0.045 | BB159: 0.045 | BC159: 0.045 | BD159: 0.045 | BE159: 0.045 | BF159: 0.045
E160: 2022 | F160: 0.9859003644 | I160: =OFFSET('Capex Trajectories'!$B$9,MATCH(Resource_Characteristics!$E160,'Capex Trajectories'!$B$10:$B$42,0),MATCH(_xlfn.CONCAT(I$16:I$19),'Capex Trajectories'!$C$9:$YX$9,0)) -> 0.8487980793 | J160: =OFFSET('Capex Trajectories'!$B$9,MATCH(Resource_Characteristics!$E160,'Capex Trajectories'!$B$10:$B$42,0),MATCH(_xlfn.CONCAT(J$16:J$19),'Capex Trajectories'!$C$9:$YX$9,0)) -> 0.9525020924 | K160: =OFFSET('Capex Trajectories'!$B$9,MATCH(Resource_Characteristics!$E160,'Capex Trajectories'!$B$10:$B$42,0),MATCH(_xlfn.CONCAT(K$16:K$19),'Capex Trajectories'!$C$9:$YX$9,0)) -> 0.9075729392 | L160: =OFFSET('Capex Trajectories'!$B$9,MATCH(Resource_Characteristics!$E160,'Capex Trajectories'!$B$10:$B$42,0),MATCH(_xlfn.CONCAT(L$16:L$19),'Capex Trajectories'!$C$9:$YX$9,0)) -> 0.918648054 | M160: =OFFSET('Capex Trajectories'!$B$9,MATCH(Resource_Characteristics!$E160,'Capex Trajectories'!$B$10:$B$42,0),MATCH(_xlfn.CONCAT(M$16:M$19),'Capex Trajectories'!$C$9:$YX$9,0)) -> 0.71639296 | N160: =OFFSET('Capex Trajectories'!$B$9,MATCH(Resource_Characteristics!$E160,'Capex Trajectories'!$B$10:$B$42,0),MATCH(_xlfn.CONCAT(N$16:N$19),'Capex Trajectories'!$C$9:$YX$9,0)) -> 0.71639296 | O160: =OFFSET('Capex Trajectories'!$B$9,MATCH(Resource_Characteristics!$E160,'Capex Trajectories'!$B$10:$B$42,0),MATCH(_xlfn.CONCAT(O$16:O$19),'Capex Trajectories'!$C$9:$YX$9,0)) -> 0.71639296 | P160: =OFFSET('Capex Trajectories'!$B$9,MATCH(Resource_Characteristics!$E160,'Capex Trajectories'!$B$10:$B$42,0),MATCH(_xlfn.CONCAT(P$16:P$19),'Capex Trajectories'!$C$9:$YX$9,0)) -> 0.71639296 | Q160: =OFFSET('Capex Trajectories'!$B$9,MATCH(Resource_Characteristics!$E160,'Capex Trajectories'!$B$10:$B$42,0),MATCH(_xlfn.CONCAT(Q$16:Q$19),'Capex Trajectories'!$C$9:$YX$9,0)) -> 0.81450625 | R160: =OFFSET('Capex Trajectories'!$B$9,MATCH(Resource_Characteristics!$E160,'Capex Trajectories'!$B$10:$B$42,0),MATCH(_xlfn.CONCAT(R$16:R$19),'Capex Trajectories'!$C$9:$YX$9,0)) -> 1 | S160: =OFFSET('Capex Trajectories'!$B$9,MATCH(Resource_Characteristics!$E160,'Capex Trajectories'!$B$10:$B$42,0),MATCH(_xlfn.CONCAT(S$16:S$19),'Capex Trajectories'!$C$9:$YX$9,0)) -> 1 | T160: =OFFSET('Capex Trajectories'!$B$9,MATCH(Resource_Characteristics!$E160,'Capex Trajectories'!$B$10:$B$42,0),MATCH(_xlfn.CONCAT(T$16:T$19),'Capex Trajectories'!$C$9:$YX$9,0)) -> 0.7378517691 | U160: =OFFSET('Capex Trajectories'!$B$9,MATCH(Resource_Characteristics!$E160,'Capex Trajectories'!$B$10:$B$42,0),MATCH(_xlfn.CONCAT(U$16:U$19),'Capex Trajectories'!$C$9:$YX$9,0)) -> 0.8194849581 | V160: =OFFSET('Capex Trajectories'!$B$9,MATCH(Resource_Characteristics!$E160,'Capex Trajectories'!$B$10:$B$42,0),MATCH(_xlfn.CONCAT(V$16:V$19),'Capex Trajectories'!$C$9:$YX$9,0)) -> 0.71639296 | W160: =OFFSET('Capex Trajectories'!$B$9,MATCH(Resource_Characteristics!$E160,'Capex Trajectories'!$B$10:$B$42,0),MATCH(_xlfn.CONCAT(W$16:W$19),'Capex Trajectories'!$C$9:$YX$9,0)) -> 0.71639296 | X160: =OFFSET('Capex Trajectories'!$B$9,MATCH(Resource_Characteristics!$E160,'Capex Trajectories'!$B$10:$B$42,0),MATCH(_xlfn.CONCAT(X$16:X$19),'Capex Trajectories'!$C$9:$YX$9,0)) -> 0.9897771884 | Y160: =OFFSET('Capex Trajectories'!$B$9,MATCH(Resource_Characteristics!$E160,'Capex Trajectories'!$B$10:$B$42,0),MATCH(_xlfn.CONCAT(Y$16:Y$19),'Capex Trajectories'!$C$9:$YX$9,0)) -> 0.9897771884 | Z160: =OFFSET('Capex Trajectories'!$B$9,MATCH(Resource_Characteristics!$E160,'Capex Trajectories'!$B$10:$B$42,0),MATCH(_xlfn.CONCAT(Z$16:Z$19),'Capex Trajectories'!$C$9:$YX$9,0)) -> 0.9897771884 | AA160: =OFFSET('Capex Trajectories'!$B$9,MATCH(Resource_Characteristics!$E160,'Capex Trajectories'!$B$10:$B$42,0),MATCH(_xlfn.CONCAT(AA$16:AA$19),'Capex Trajectories'!$C$9:$YX$9,0)) -> 0.9897771884 | AB160: =OFFSET('Capex Trajectories'!$B$9,MATCH(Resource_Characteristics!$E160,'Capex Trajectories'!$B$10:$B$42,0),MATCH(_xlfn.CONCAT(AB$16:AB$19),'Capex Trajectories'!$C$9:$YX$9,0)) -> 0.9785678309 | AC160: =OFFSET('Capex Trajectories'!$B$9,MATCH(Resource_Characteristics!$E160,'Capex Trajectories'!$B$10:$B$42,0),MATCH(_xlfn.CONCAT(AC$16:AC$19),'Capex Trajectories'!$C$9:$YX$9,0)) -> 0.9929933499 | AD160: =OFFSET('Capex Trajectories'!$B$9,MATCH(Resource_Characteristics!$E160,'Capex Trajectories'!$B$10:$B$42,0),MATCH(_xlfn.CONCAT(AD$16:AD$19),'Capex Trajectories'!$C$9:$YX$9,0)) -> 0.9929933499 | AE160: =OFFSET('Capex Trajectories'!$B$9,MATCH(Resource_Characteristics!$E160,'Capex Trajectories'!$B$10:$B$42,0),MATCH(_xlfn.CONCAT(AE$16:AE$19),'Capex Trajectories'!$C$9:$YX$9,0)) -> 1 | AF160: =OFFSET('Capex Trajectories'!$B$9,MATCH(Resource_Characteristics!$E160,'Capex Trajectories'!$B$10:$B$42,0),MATCH(_xlfn.CONCAT(AF$16:AF$19),'Capex Trajectories'!$C$9:$YX$9,0)) -> 0.9899497534 | AG160: =OFFSET('Capex Trajectories'!$B$9,MATCH(Resource_Characteristics!$E160,'Capex Trajectories'!$B$10:$B$42,0),MATCH(_xlfn.CONCAT(AG$16:AG$19),'Capex Trajectories'!$C$9:$YX$9,0)) -> 0.9899497432 | AH160: =OFFSET('Capex Trajectories'!$B$9,MATCH(Resource_Characteristics!$E160,'Capex Trajectories'!$B$10:$B$42,0),MATCH(_xlfn.CONCAT(AH$16:AH$19),'Capex Trajectories'!$C$9:$YX$9,0)) -> 0.9899497467 | AI160: =OFFSET('Capex Trajectories'!$B$9,MATCH(Resource_Characteristics!$E160,'Capex Trajectories'!$B$10:$B$42,0),MATCH(_xlfn.CONCAT(AI$16:AI$19),'Capex Trajectories'!$C$9:$YX$9,0)) -> 0.9899497487 | AJ160: =OFFSET('Capex Trajectories'!$B$9,MATCH(Resource_Characteristics!$E160,'Capex Trajectories'!$B$10:$B$42,0),MATCH(_xlfn.CONCAT(AJ$16:AJ$19),'Capex Trajectories'!$C$9:$YX$9,0)) -> 1 | AK160: =OFFSET('Capex Trajectories'!$B$9,MATCH(Resource_Characteristics!$E160,'Capex Trajectories'!$B$10:$B$42,0),MATCH(_xlfn.CONCAT(AK$16:AK$19),'Capex Trajectories'!$C$9:$YX$9,0)) -> 0.9728835338 | AL160: =OFFSET('Capex Trajectories'!$B$9,MATCH(Resource_Characteristics!$E160,'Capex Trajectories'!$B$10:$B$42,0),MATCH(_xlfn.CONCAT(AL$16:AL$19),'Capex Trajectories'!$C$9:$YX$9,0)) -> 0.8922409871 | AM160: =OFFSET('Capex Trajectories'!$B$9,MATCH(Resource_Characteristics!$E160,'Capex Trajectories'!$B$10:$B$42,0),MATCH(_xlfn.CONCAT(AM$16:AM$19),'Capex Trajectories'!$C$9:$YX$9,0)) -> 1 | AN160: =OFFSET('Capex Trajectories'!$B$9,MATCH(Resource_Characteristics!$E160,'Capex Trajectories'!$B$10:$B$42,0),MATCH(_xlfn.CONCAT(AN$16:AN$19),'Capex Trajectories'!$C$9:$YX$9,0)) -> 0.9976410851 | AO160: =OFFSET('Capex Trajectories'!$B$9,MATCH(Resource_Characteristics!$E160,'Capex Trajectories'!$B$10:$B$42,0),MATCH(_xlfn.CONCAT(AO$16:AO$19),'Capex Trajectories'!$C$9:$YX$9,0)) -> 0.9976410851 | AP160: =OFFSET('Capex Trajectories'!$B$9,MATCH(Resource_Characteristics!$E160,'Capex Trajectories'!$B$10:$B$42,0),MATCH(_xlfn.CONCAT(AP$16:AP$19),'Capex Trajectories'!$C$9:$YX$9,0)) -> 0.9872852423 | AQ160: =OFFSET('Capex Trajectories'!$B$9,MATCH(Resource_Characteristics!$E160,'Capex Trajectories'!$B$10:$B$42,0),MATCH(_xlfn.CONCAT(AQ$16:AQ$19),'Capex Trajectories'!$C$9:$YX$9,0)) -> 0.9859003644 | AZ160: 2032 | BA160: 0.045 | BB160: 0.045 | BC160: 0.045 | BD160: 0.045 | BE160: 0.045 | BF160: 0.045
E161: 2023 | F161: 0.9825422805 | I161: =OFFSET('Capex Trajectories'!$B$9,MATCH(Resource_Characteristics!$E161,'Capex Trajectories'!$B$10:$B$42,0),MATCH(_xlfn.CONCAT(I$16:I$19),'Capex Trajectories'!$C$9:$YX$9,0)) -> 0.8391055926 | J161: =OFFSET('Capex Trajectories'!$B$9,MATCH(Resource_Characteristics!$E161,'Capex Trajectories'!$B$10:$B$42,0),MATCH(_xlfn.CONCAT(J$16:J$19),'Capex Trajectories'!$C$9:$YX$9,0)) -> 0.9417702781 | K161: =OFFSET('Capex Trajectories'!$B$9,MATCH(Resource_Characteristics!$E161,'Capex Trajectories'!$B$10:$B$42,0),MATCH(_xlfn.CONCAT(K$16:K$19),'Capex Trajectories'!$C$9:$YX$9,0)) -> 0.8815870563 | L161: =OFFSET('Capex Trajectories'!$B$9,MATCH(Resource_Characteristics!$E161,'Capex Trajectories'!$B$10:$B$42,0),MATCH(_xlfn.CONCAT(L$16:L$19),'Capex Trajectories'!$C$9:$YX$9,0)) -> 0.8957795346 | M161: =OFFSET('Capex Trajectories'!$B$9,MATCH(Resource_Characteristics!$E161,'Capex Trajectories'!$B$10:$B$42,0),MATCH(_xlfn.CONCAT(M$16:M$19),'Capex Trajectories'!$C$9:$YX$9,0)) -> 0.6590815232 | N161: =OFFSET('Capex Trajectories'!$B$9,MATCH(Resource_Characteristics!$E161,'Capex Trajectories'!$B$10:$B$42,0),MATCH(_xlfn.CONCAT(N$16:N$19),'Capex Trajectories'!$C$9:$YX$9,0)) -> 0.6590815232 | O161: =OFFSET('Capex Trajectories'!$B$9,MATCH(Resource_Characteristics!$E161,'Capex Trajectories'!$B$10:$B$42,0),MATCH(_xlfn.CONCAT(O$16:O$19),'Capex Trajectories'!$C$9:$YX$9,0)) -> 0.6590815232 | P161: =OFFSET('Capex Trajectories'!$B$9,MATCH(Resource_Characteristics!$E161,'Capex Trajectories'!$B$10:$B$42,0),MATCH(_xlfn.CONCAT(P$16:P$19),'Capex Trajectories'!$C$9:$YX$9,0)) -> 0.6590815232 | Q161: =OFFSET('Capex Trajectories'!$B$9,MATCH(Resource_Characteristics!$E161,'Capex Trajectories'!$B$10:$B$42,0),MATCH(_xlfn.CONCAT(Q$16:Q$19),'Capex Trajectories'!$C$9:$YX$9,0)) -> 0.7737809375 | R161: =OFFSET('Capex Trajectories'!$B$9,MATCH(Resource_Characteristics!$E161,'Capex Trajectories'!$B$10:$B$42,0),MATCH(_xlfn.CONCAT(R$16:R$19),'Capex Trajectories'!$C$9:$YX$9,0)) -> 1 | S161: =OFFSET('Capex Trajectories'!$B$9,MATCH(Resource_Characteristics!$E161,'Capex Trajectories'!$B$10:$B$42,0),MATCH(_xlfn.CONCAT(S$16:S$19),'Capex Trajectories'!$C$9:$YX$9,0)) -> 1 | T161: =OFFSET('Capex Trajectories'!$B$9,MATCH(Resource_Characteristics!$E161,'Capex Trajectories'!$B$10:$B$42,0),MATCH(_xlfn.CONCAT(T$16:T$19),'Capex Trajectories'!$C$9:$YX$9,0)) -> 0.7141081847 | U161: =OFFSET('Capex Trajectories'!$B$9,MATCH(Resource_Characteristics!$E161,'Capex Trajectories'!$B$10:$B$42,0),MATCH(_xlfn.CONCAT(U$16:U$19),'Capex Trajectories'!$C$9:$YX$9,0)) -> 0.7932398887 | V161: =OFFSET('Capex Trajectories'!$B$9,MATCH(Resource_Characteristics!$E161,'Capex Trajectories'!$B$10:$B$42,0),MATCH(_xlfn.CONCAT(V$16:V$19),'Capex Trajectories'!$C$9:$YX$9,0)) -> 0.6590815232 | W161: =OFFSET('Capex Trajectories'!$B$9,MATCH(Resource_Characteristics!$E161,'Capex Trajectories'!$B$10:$B$42,0),MATCH(_xlfn.CONCAT(W$16:W$19),'Capex Trajectories'!$C$9:$YX$9,0)) -> 0.6590815232 | X161: =OFFSET('Capex Trajectories'!$B$9,MATCH(Resource_Characteristics!$E161,'Capex Trajectories'!$B$10:$B$42,0),MATCH(_xlfn.CONCAT(X$16:X$19),'Capex Trajectories'!$C$9:$YX$9,0)) -> 0.9867155391 | Y161: =OFFSET('Capex Trajectories'!$B$9,MATCH(Resource_Characteristics!$E161,'Capex Trajectories'!$B$10:$B$42,0),MATCH(_xlfn.CONCAT(Y$16:Y$19),'Capex Trajectories'!$C$9:$YX$9,0)) -> 0.9867155391 | Z161: =OFFSET('Capex Trajectories'!$B$9,MATCH(Resource_Characteristics!$E161,'Capex Trajectories'!$B$10:$B$42,0),MATCH(_xlfn.CONCAT(Z$16:Z$19),'Capex Trajectories'!$C$9:$YX$9,0)) -> 0.9867155391 | AA161: =OFFSET('Capex Trajectories'!$B$9,MATCH(Resource_Characteristics!$E161,'Capex Trajectories'!$B$10:$B$42,0),MATCH(_xlfn.CONCAT(AA$16:AA$19),'Capex Trajectories'!$C$9:$YX$9,0)) -> 0.9867155391 | AB161: =OFFSET('Capex Trajectories'!$B$9,MATCH(Resource_Characteristics!$E161,'Capex Trajectories'!$B$10:$B$42,0),MATCH(_xlfn.CONCAT(AB$16:AB$19),'Capex Trajectories'!$C$9:$YX$9,0)) -> 0.9719921188 | AC161: =OFFSET('Capex Trajectories'!$B$9,MATCH(Resource_Characteristics!$E161,'Capex Trajectories'!$B$10:$B$42,0),MATCH(_xlfn.CONCAT(AC$16:AC$19),'Capex Trajectories'!$C$9:$YX$9,0)) -> 0.989598127 | AD161: =OFFSET('Capex Trajectories'!$B$9,MATCH(Resource_Characteristics!$E161,'Capex Trajectories'!$B$10:$B$42,0),MATCH(_xlfn.CONCAT(AD$16:AD$19),'Capex Trajectories'!$C$9:$YX$9,0)) -> 0.989598127 | AE161: =OFFSET('Capex Trajectories'!$B$9,MATCH(Resource_Characteristics!$E161,'Capex Trajectories'!$B$10:$B$42,0),MATCH(_xlfn.CONCAT(AE$16:AE$19),'Capex Trajectories'!$C$9:$YX$9,0)) -> 1 | AF161: =OFFSET('Capex Trajectories'!$B$9,MATCH(Resource_Characteristics!$E161,'Capex Trajectories'!$B$10:$B$42,0),MATCH(_xlfn.CONCAT(AF$16:AF$19),'Capex Trajectories'!$C$9:$YX$9,0)) -> 0.9874371917 | AG161: =OFFSET('Capex Trajectories'!$B$9,MATCH(Resource_Characteristics!$E161,'Capex Trajectories'!$B$10:$B$42,0),MATCH(_xlfn.CONCAT(AG$16:AG$19),'Capex Trajectories'!$C$9:$YX$9,0)) -> 0.987437179 | AH161: =OFFSET('Capex Trajectories'!$B$9,MATCH(Resource_Characteristics!$E161,'Capex Trajectories'!$B$10:$B$42,0),MATCH(_xlfn.CONCAT(AH$16:AH$19),'Capex Trajectories'!$C$9:$YX$9,0)) -> 0.9874371833 | AI161: =OFFSET('Capex Trajectories'!$B$9,MATCH(Resource_Characteristics!$E161,'Capex Trajectories'!$B$10:$B$42,0),MATCH(_xlfn.CONCAT(AI$16:AI$19),'Capex Trajectories'!$C$9:$YX$9,0)) -> 0.9874371859 | AJ161: =OFFSET('Capex Trajectories'!$B$9,MATCH(Resource_Characteristics!$E161,'Capex Trajectories'!$B$10:$B$42,0),MATCH(_xlfn.CONCAT(AJ$16:AJ$19),'Capex Trajectories'!$C$9:$YX$9,0)) -> 1 | AK161: =OFFSET('Capex Trajectories'!$B$9,MATCH(Resource_Characteristics!$E161,'Capex Trajectories'!$B$10:$B$42,0),MATCH(_xlfn.CONCAT(AK$16:AK$19),'Capex Trajectories'!$C$9:$YX$9,0)) -> 0.9701775741 | AL161: =OFFSET('Capex Trajectories'!$B$9,MATCH(Resource_Characteristics!$E161,'Capex Trajectories'!$B$10:$B$42,0),MATCH(_xlfn.CONCAT(AL$16:AL$19),'Capex Trajectories'!$C$9:$YX$9,0)) -> 0.8807108637 | AM161: =OFFSET('Capex Trajectories'!$B$9,MATCH(Resource_Characteristics!$E161,'Capex Trajectories'!$B$10:$B$42,0),MATCH(_xlfn.CONCAT(AM$16:AM$19),'Capex Trajectories'!$C$9:$YX$9,0)) -> 1 | AN161: =OFFSET('Capex Trajectories'!$B$9,MATCH(Resource_Characteristics!$E161,'Capex Trajectories'!$B$10:$B$42,0),MATCH(_xlfn.CONCAT(AN$16:AN$19),'Capex Trajectories'!$C$9:$YX$9,0)) -> 0.9935523271 | AO161: =OFFSET('Capex Trajectories'!$B$9,MATCH(Resource_Characteristics!$E161,'Capex Trajectories'!$B$10:$B$42,0),MATCH(_xlfn.CONCAT(AO$16:AO$19),'Capex Trajectories'!$C$9:$YX$9,0)) -> 0.9935523271 | AP161: =OFFSET('Capex Trajectories'!$B$9,MATCH(Resource_Characteristics!$E161,'Capex Trajectories'!$B$10:$B$42,0),MATCH(_xlfn.CONCAT(AP$16:AP$19),'Capex Trajectories'!$C$9:$YX$9,0)) -> 0.9858545587 | AQ161: =OFFSET('Capex Trajectories'!$B$9,MATCH(Resource_Characteristics!$E161,'Capex Trajectories'!$B$10:$B$42,0),MATCH(_xlfn.CONCAT(AQ$16:AQ$19),'Capex Trajectories'!$C$9:$YX$9,0)) -> 0.9825422805 | AZ161: 2033 | BA161: 0.045 | BB161: 0.045 | BC161: 0.045 | BD161: 0.045 | BE161: 0.045 | BF161: 0.045
E162: 2024 | F162: 0.9774598833 | I162: =OFFSET('Capex Trajectories'!$B$9,MATCH(Resource_Characteristics!$E162,'Capex Trajectories'!$B$10:$B$42,0),MATCH(_xlfn.CONCAT(I$16:I$19),'Capex Trajectories'!$C$9:$YX$9,0)) -> 0.8294131059 | J162: =OFFSET('Capex Trajectories'!$B$9,MATCH(Resource_Characteristics!$E162,'Capex Trajectories'!$B$10:$B$42,0),MATCH(_xlfn.CONCAT(J$16:J$19),'Capex Trajectories'!$C$9:$YX$9,0)) -> 0.9314955289 | K162: =OFFSET('Capex Trajectories'!$B$9,MATCH(Resource_Characteristics!$E162,'Capex Trajectories'!$B$10:$B$42,0),MATCH(_xlfn.CONCAT(K$16:K$19),'Capex Trajectories'!$C$9:$YX$9,0)) -> 0.8550105851 | L162: =OFFSET('Capex Trajectories'!$B$9,MATCH(Resource_Characteristics!$E162,'Capex Trajectories'!$B$10:$B$42,0),MATCH(_xlfn.CONCAT(L$16:L$19),'Capex Trajectories'!$C$9:$YX$9,0)) -> 0.8725361215 | M162: =OFFSET('Capex Trajectories'!$B$9,MATCH(Resource_Characteristics!$E162,'Capex Trajectories'!$B$10:$B$42,0),MATCH(_xlfn.CONCAT(M$16:M$19),'Capex Trajectories'!$C$9:$YX$9,0)) -> 0.611481191 | N162: =OFFSET('Capex Trajectories'!$B$9,MATCH(Resource_Characteristics!$E162,'Capex Trajectories'!$B$10:$B$42,0),MATCH(_xlfn.CONCAT(N$16:N$19),'Capex Trajectories'!$C$9:$YX$9,0)) -> 0.611481191 | O162: =OFFSET('Capex Trajectories'!$B$9,MATCH(Resource_Characteristics!$E162,'Capex Trajectories'!$B$10:$B$42,0),MATCH(_xlfn.CONCAT(O$16:O$19),'Capex Trajectories'!$C$9:$YX$9,0)) -> 0.611481191 | P162: =OFFSET('Capex Trajectories'!$B$9,MATCH(Resource_Characteristics!$E162,'Capex Trajectories'!$B$10:$B$42,0),MATCH(_xlfn.CONCAT(P$16:P$19),'Capex Trajectories'!$C$9:$YX$9,0)) -> 0.611481191 | Q162: =OFFSET('Capex Trajectories'!$B$9,MATCH(Resource_Characteristics!$E162,'Capex Trajectories'!$B$10:$B$42,0),MATCH(_xlfn.CONCAT(Q$16:Q$19),'Capex Trajectories'!$C$9:$YX$9,0)) -> 0.7393906736 | R162: =OFFSET('Capex Trajectories'!$B$9,MATCH(Resource_Characteristics!$E162,'Capex Trajectories'!$B$10:$B$42,0),MATCH(_xlfn.CONCAT(R$16:R$19),'Capex Trajectories'!$C$9:$YX$9,0)) -> 1 | S162: =OFFSET('Capex Trajectories'!$B$9,MATCH(Resource_Characteristics!$E162,'Capex Trajectories'!$B$10:$B$42,0),MATCH(_xlfn.CONCAT(S$16:S$19),'Capex Trajectories'!$C$9:$YX$9,0)) -> 1 | T162: =OFFSET('Capex Trajectories'!$B$9,MATCH(Resource_Characteristics!$E162,'Capex Trajectories'!$B$10:$B$42,0),MATCH(_xlfn.CONCAT(T$16:T$19),'Capex Trajectories'!$C$9:$YX$9,0)) -> 0.6903646002 | U162: =OFFSET('Capex Trajectories'!$B$9,MATCH(Resource_Characteristics!$E162,'Capex Trajectories'!$B$10:$B$42,0),MATCH(_xlfn.CONCAT(U$16:U$19),'Capex Trajectories'!$C$9:$YX$9,0)) -> 0.7669948193 | V162: =OFFSET('Capex Trajectories'!$B$9,MATCH(Resource_Characteristics!$E162,'Capex Trajectories'!$B$10:$B$42,0),MATCH(_xlfn.CONCAT(V$16:V$19),'Capex Trajectories'!$C$9:$YX$9,0)) -> 0.6122135038 | W162: =OFFSET('Capex Trajectories'!$B$9,MATCH(Resource_Characteristics!$E162,'Capex Trajectories'!$B$10:$B$42,0),MATCH(_xlfn.CONCAT(W$16:W$19),'Capex Trajectories'!$C$9:$YX$9,0)) -> 0.6122135038 | X162: =OFFSET('Capex Trajectories'!$B$9,MATCH(Resource_Characteristics!$E162,'Capex Trajectories'!$B$10:$B$42,0),MATCH(_xlfn.CONCAT(X$16:X$19),'Capex Trajectories'!$C$9:$YX$9,0)) -> 0.9811369978 | Y162: =OFFSET('Capex Trajectories'!$B$9,MATCH(Resource_Characteristics!$E162,'Capex Trajectories'!$B$10:$B$42,0),MATCH(_xlfn.CONCAT(Y$16:Y$19),'Capex Trajectories'!$C$9:$YX$9,0)) -> 0.9811369978 | Z162: =OFFSET('Capex Trajectories'!$B$9,MATCH(Resource_Characteristics!$E162,'Capex Trajectories'!$B$10:$B$42,0),MATCH(_xlfn.CONCAT(Z$16:Z$19),'Capex Trajectories'!$C$9:$YX$9,0)) -> 0.9811369978 | AA162: =OFFSET('Capex Trajectories'!$B$9,MATCH(Resource_Characteristics!$E162,'Capex Trajectories'!$B$10:$B$42,0),MATCH(_xlfn.CONCAT(AA$16:AA$19),'Capex Trajectories'!$C$9:$YX$9,0)) -> 0.9811369978 | AB162: =OFFSET('Capex Trajectories'!$B$9,MATCH(Resource_Characteristics!$E162,'Capex Trajectories'!$B$10:$B$42,0),MATCH(_xlfn.CONCAT(AB$16:AB$19),'Capex Trajectories'!$C$9:$YX$9,0)) -> 0.9627141031 | AC162: =OFFSET('Capex Trajectories'!$B$9,MATCH(Resource_Characteristics!$E162,'Capex Trajectories'!$B$10:$B$42,0),MATCH(_xlfn.CONCAT(AC$16:AC$19),'Capex Trajectories'!$C$9:$YX$9,0)) -> 0.9835217234 | AD162: =OFFSET('Capex Trajectories'!$B$9,MATCH(Resource_Characteristics!$E162,'Capex Trajectories'!$B$10:$B$42,0),MATCH(_xlfn.CONCAT(AD$16:AD$19),'Capex Trajectories'!$C$9:$YX$9,0)) -> 0.9835217234 | AE162: =OFFSET('Capex Trajectories'!$B$9,MATCH(Resource_Characteristics!$E162,'Capex Trajectories'!$B$10:$B$42,0),MATCH(_xlfn.CONCAT(AE$16:AE$19),'Capex Trajectories'!$C$9:$YX$9,0)) -> 1 | AF162: =OFFSET('Capex Trajectories'!$B$9,MATCH(Resource_Characteristics!$E162,'Capex Trajectories'!$B$10:$B$42,0),MATCH(_xlfn.CONCAT(AF$16:AF$19),'Capex Trajectories'!$C$9:$YX$9,0)) -> 0.98492463 | AG162: =OFFSET('Capex Trajectories'!$B$9,MATCH(Resource_Characteristics!$E162,'Capex Trajectories'!$B$10:$B$42,0),MATCH(_xlfn.CONCAT(AG$16:AG$19),'Capex Trajectories'!$C$9:$YX$9,0)) -> 0.9849246148 | AH162: =OFFSET('Capex Trajectories'!$B$9,MATCH(Resource_Characteristics!$E162,'Capex Trajectories'!$B$10:$B$42,0),MATCH(_xlfn.CONCAT(AH$16:AH$19),'Capex Trajectories'!$C$9:$YX$9,0)) -> 0.98492462 | AI162: =OFFSET('Capex Trajectories'!$B$9,MATCH(Resource_Characteristics!$E162,'Capex Trajectories'!$B$10:$B$42,0),MATCH(_xlfn.CONCAT(AI$16:AI$19),'Capex Trajectories'!$C$9:$YX$9,0)) -> 0.9849246231 | AJ162: =OFFSET('Capex Trajectories'!$B$9,MATCH(Resource_Characteristics!$E162,'Capex Trajectories'!$B$10:$B$42,0),MATCH(_xlfn.CONCAT(AJ$16:AJ$19),'Capex Trajectories'!$C$9:$YX$9,0)) -> 1 | AK162: =OFFSET('Capex Trajectories'!$B$9,MATCH(Resource_Characteristics!$E162,'Capex Trajectories'!$B$10:$B$42,0),MATCH(_xlfn.CONCAT(AK$16:AK$19),'Capex Trajectories'!$C$9:$YX$9,0)) -> 0.9657691817 | AL162: =OFFSET('Capex Trajectories'!$B$9,MATCH(Resource_Characteristics!$E162,'Capex Trajectories'!$B$10:$B$42,0),MATCH(_xlfn.CONCAT(AL$16:AL$19),'Capex Trajectories'!$C$9:$YX$9,0)) -> 0.8691807403 | AM162: =OFFSET('Capex Trajectories'!$B$9,MATCH(Resource_Characteristics!$E162,'Capex Trajectories'!$B$10:$B$42,0),MATCH(_xlfn.CONCAT(AM$16:AM$19),'Capex Trajectories'!$C$9:$YX$9,0)) -> 1 | AN162: =OFFSET('Capex Trajectories'!$B$9,MATCH(Resource_Characteristics!$E162,'Capex Trajectories'!$B$10:$B$42,0),MATCH(_xlfn.CONCAT(AN$16:AN$19),'Capex Trajectories'!$C$9:$YX$9,0)) -> 0.9877194635 | AO162: =OFFSET('Capex Trajectories'!$B$9,MATCH(Resource_Characteristics!$E162,'Capex Trajectories'!$B$10:$B$42,0),MATCH(_xlfn.CONCAT(AO$16:AO$19),'Capex Trajectories'!$C$9:$YX$9,0)) -> 0.9877194635 | AP162: =OFFSET('Capex Trajectories'!$B$9,MATCH(Resource_Characteristics!$E162,'Capex Trajectories'!$B$10:$B$42,0),MATCH(_xlfn.CONCAT(AP$16:AP$19),'Capex Trajectories'!$C$9:$YX$9,0)) -> 0.9826945762 | AQ162: =OFFSET('Capex Trajectories'!$B$9,MATCH(Resource_Characteristics!$E162,'Capex Trajectories'!$B$10:$B$42,0),MATCH(_xlfn.CONCAT(AQ$16:AQ$19),'Capex Trajectories'!$C$9:$YX$9,0)) -> 0.9774598833 | AZ162: 2034 | BA162: 0.045 | BB162: 0.045 | BC162: 0.045 | BD162: 0.045 | BE162: 0.045 | BF162: 0.045
E163: 2025 | F163: 0.9730953414 | I163: =OFFSET('Capex Trajectories'!$B$9,MATCH(Resource_Characteristics!$E163,'Capex Trajectories'!$B$10:$B$42,0),MATCH(_xlfn.CONCAT(I$16:I$19),'Capex Trajectories'!$C$9:$YX$9,0)) -> 0.8197206192 | J163: =OFFSET('Capex Trajectories'!$B$9,MATCH(Resource_Characteristics!$E163,'Capex Trajectories'!$B$10:$B$42,0),MATCH(_xlfn.CONCAT(J$16:J$19),'Capex Trajectories'!$C$9:$YX$9,0)) -> 0.9216778448 | K163: =OFFSET('Capex Trajectories'!$B$9,MATCH(Resource_Characteristics!$E163,'Capex Trajectories'!$B$10:$B$42,0),MATCH(_xlfn.CONCAT(K$16:K$19),'Capex Trajectories'!$C$9:$YX$9,0)) -> 0.828434114 | L163: =OFFSET('Capex Trajectories'!$B$9,MATCH(Resource_Characteristics!$E163,'Capex Trajectories'!$B$10:$B$42,0),MATCH(_xlfn.CONCAT(L$16:L$19),'Capex Trajectories'!$C$9:$YX$9,0)) -> 0.8492927084 | M163: =OFFSET('Capex Trajectories'!$B$9,MATCH(Resource_Characteristics!$E163,'Capex Trajectories'!$B$10:$B$42,0),MATCH(_xlfn.CONCAT(M$16:M$19),'Capex Trajectories'!$C$9:$YX$9,0)) -> 0.5720746253 | N163: =OFFSET('Capex Trajectories'!$B$9,MATCH(Resource_Characteristics!$E163,'Capex Trajectories'!$B$10:$B$42,0),MATCH(_xlfn.CONCAT(N$16:N$19),'Capex Trajectories'!$C$9:$YX$9,0)) -> 0.5720746253 | O163: =OFFSET('Capex Trajectories'!$B$9,MATCH(Resource_Characteristics!$E163,'Capex Trajectories'!$B$10:$B$42,0),MATCH(_xlfn.CONCAT(O$16:O$19),'Capex Trajectories'!$C$9:$YX$9,0)) -> 0.5720746253 | P163: =OFFSET('Capex Trajectories'!$B$9,MATCH(Resource_Characteristics!$E163,'Capex Trajectories'!$B$10:$B$42,0),MATCH(_xlfn.CONCAT(P$16:P$19),'Capex Trajectories'!$C$9:$YX$9,0)) -> 0.5720746253 | Q163: =OFFSET('Capex Trajectories'!$B$9,MATCH(Resource_Characteristics!$E163,'Capex Trajectories'!$B$10:$B$42,0),MATCH(_xlfn.CONCAT(Q$16:Q$19),'Capex Trajectories'!$C$9:$YX$9,0)) -> 0.7106365919 | R163: =OFFSET('Capex Trajectories'!$B$9,MATCH(Resource_Characteristics!$E163,'Capex Trajectories'!$B$10:$B$42,0),MATCH(_xlfn.CONCAT(R$16:R$19),'Capex Trajectories'!$C$9:$YX$9,0)) -> 1 | S163: =OFFSET('Capex Trajectories'!$B$9,MATCH(Resource_Characteristics!$E163,'Capex Trajectories'!$B$10:$B$42,0),MATCH(_xlfn.CONCAT(S$16:S$19),'Capex Trajectories'!$C$9:$YX$9,0)) -> 1 | T163: =OFFSET('Capex Trajectories'!$B$9,MATCH(Resource_Characteristics!$E163,'Capex Trajectories'!$B$10:$B$42,0),MATCH(_xlfn.CONCAT(T$16:T$19),'Capex Trajectories'!$C$9:$YX$9,0)) -> 0.6666210158 | U163: =OFFSET('Capex Trajectories'!$B$9,MATCH(Resource_Characteristics!$E163,'Capex Trajectories'!$B$10:$B$42,0),MATCH(_xlfn.CONCAT(U$16:U$19),'Capex Trajectories'!$C$9:$YX$9,0)) -> 0.7407497498 | V163: =OFFSET('Capex Trajectories'!$B$9,MATCH(Resource_Characteristics!$E163,'Capex Trajectories'!$B$10:$B$42,0),MATCH(_xlfn.CONCAT(V$16:V$19),'Capex Trajectories'!$C$9:$YX$9,0)) -> 0.5741202191 | W163: =OFFSET('Capex Trajectories'!$B$9,MATCH(Resource_Characteristics!$E163,'Capex Trajectories'!$B$10:$B$42,0),MATCH(_xlfn.CONCAT(W$16:W$19),'Capex Trajectories'!$C$9:$YX$9,0)) -> 0.5741202191 | X163: =OFFSET('Capex Trajectories'!$B$9,MATCH(Resource_Characteristics!$E163,'Capex Trajectories'!$B$10:$B$42,0),MATCH(_xlfn.CONCAT(X$16:X$19),'Capex Trajectories'!$C$9:$YX$9,0)) -> 0.9745306356 | Y163: =OFFSET('Capex Trajectories'!$B$9,MATCH(Resource_Characteristics!$E163,'Capex Trajectories'!$B$10:$B$42,0),MATCH(_xlfn.CONCAT(Y$16:Y$19),'Capex Trajectories'!$C$9:$YX$9,0)) -> 0.9745306356 | Z163: =OFFSET('Capex Trajectories'!$B$9,MATCH(Resource_Characteristics!$E163,'Capex Trajectories'!$B$10:$B$42,0),MATCH(_xlfn.CONCAT(Z$16:Z$19),'Capex Trajectories'!$C$9:$YX$9,0)) -> 0.9745306356 | AA163: =OFFSET('Capex Trajectories'!$B$9,MATCH(Resource_Characteristics!$E163,'Capex Trajectories'!$B$10:$B$42,0),MATCH(_xlfn.CONCAT(AA$16:AA$19),'Capex Trajectories'!$C$9:$YX$9,0)) -> 0.9745306356 | AB163: =OFFSET('Capex Trajectories'!$B$9,MATCH(Resource_Characteristics!$E163,'Capex Trajectories'!$B$10:$B$42,0),MATCH(_xlfn.CONCAT(AB$16:AB$19),'Capex Trajectories'!$C$9:$YX$9,0)) -> 0.9519311677 | AC163: =OFFSET('Capex Trajectories'!$B$9,MATCH(Resource_Characteristics!$E163,'Capex Trajectories'!$B$10:$B$42,0),MATCH(_xlfn.CONCAT(AC$16:AC$19),'Capex Trajectories'!$C$9:$YX$9,0)) -> 0.9760660503 | AD163: =OFFSET('Capex Trajectories'!$B$9,MATCH(Resource_Characteristics!$E163,'Capex Trajectories'!$B$10:$B$42,0),MATCH(_xlfn.CONCAT(AD$16:AD$19),'Capex Trajectories'!$C$9:$YX$9,0)) -> 0.9760660503 | AE163: =OFFSET('Capex Trajectories'!$B$9,MATCH(Resource_Characteristics!$E163,'Capex Trajectories'!$B$10:$B$42,0),MATCH(_xlfn.CONCAT(AE$16:AE$19),'Capex Trajectories'!$C$9:$YX$9,0)) -> 1 | AF163: =OFFSET('Capex Trajectories'!$B$9,MATCH(Resource_Characteristics!$E163,'Capex Trajectories'!$B$10:$B$42,0),MATCH(_xlfn.CONCAT(AF$16:AF$19),'Capex Trajectories'!$C$9:$YX$9,0)) -> 0.9824120684 | AG163: =OFFSET('Capex Trajectories'!$B$9,MATCH(Resource_Characteristics!$E163,'Capex Trajectories'!$B$10:$B$42,0),MATCH(_xlfn.CONCAT(AG$16:AG$19),'Capex Trajectories'!$C$9:$YX$9,0)) -> 0.9824120506 | AH163: =OFFSET('Capex Trajectories'!$B$9,MATCH(Resource_Characteristics!$E163,'Capex Trajectories'!$B$10:$B$42,0),MATCH(_xlfn.CONCAT(AH$16:AH$19),'Capex Trajectories'!$C$9:$YX$9,0)) -> 0.9824120567 | AI163: =OFFSET('Capex Trajectories'!$B$9,MATCH(Resource_Characteristics!$E163,'Capex Trajectories'!$B$10:$B$42,0),MATCH(_xlfn.CONCAT(AI$16:AI$19),'Capex Trajectories'!$C$9:$YX$9,0)) -> 0.9824120603 | AJ163: =OFFSET('Capex Trajectories'!$B$9,MATCH(Resource_Characteristics!$E163,'Capex Trajectories'!$B$10:$B$42,0),MATCH(_xlfn.CONCAT(AJ$16:AJ$19),'Capex Trajectories'!$C$9:$YX$9,0)) -> 1 | AK163: =OFFSET('Capex Trajectories'!$B$9,MATCH(Resource_Characteristics!$E163,'Capex Trajectories'!$B$10:$B$42,0),MATCH(_xlfn.CONCAT(AK$16:AK$19),'Capex Trajectories'!$C$9:$YX$9,0)) -> 0.9620696522 | AL163: =OFFSET('Capex Trajectories'!$B$9,MATCH(Resource_Characteristics!$E163,'Capex Trajectories'!$B$10:$B$42,0),MATCH(_xlfn.CONCAT(AL$16:AL$19),'Capex Trajectories'!$C$9:$YX$9,0)) -> 0.857650617 | AM163: =OFFSET('Capex Trajectories'!$B$9,MATCH(Resource_Characteristics!$E163,'Capex Trajectories'!$B$10:$B$42,0),MATCH(_xlfn.CONCAT(AM$16:AM$19),'Capex Trajectories'!$C$9:$YX$9,0)) -> 1 | AN163: =OFFSET('Capex Trajectories'!$B$9,MATCH(Resource_Characteristics!$E163,'Capex Trajectories'!$B$10:$B$42,0),MATCH(_xlfn.CONCAT(AN$16:AN$19),'Capex Trajectories'!$C$9:$YX$9,0)) -> 0.9826126336 | AO163: =OFFSET('Capex Trajectories'!$B$9,MATCH(Resource_Characteristics!$E163,'Capex Trajectories'!$B$10:$B$42,0),MATCH(_xlfn.CONCAT(AO$16:AO$19),'Capex Trajectories'!$C$9:$YX$9,0)) -> 0.9826126336 | AP163: =OFFSET('Capex Trajectories'!$B$9,MATCH(Resource_Characteristics!$E163,'Capex Trajectories'!$B$10:$B$42,0),MATCH(_xlfn.CONCAT(AP$16:AP$19),'Capex Trajectories'!$C$9:$YX$9,0)) -> 0.9802551904 | AQ163: =OFFSET('Capex Trajectories'!$B$9,MATCH(Resource_Characteristics!$E163,'Capex Trajectories'!$B$10:$B$42,0),MATCH(_xlfn.CONCAT(AQ$16:AQ$19),'Capex Trajectories'!$C$9:$YX$9,0)) -> 0.9730953414 | AZ163: 2035 | BA163: 0.045 | BB163: 0.045 | BC163: 0.045 | BD163: 0.045 | BE163: 0.045 | BF163: 0.045
E164: 2026 | F164: 0.9673190296 | I164: =OFFSET('Capex Trajectories'!$B$9,MATCH(Resource_Characteristics!$E164,'Capex Trajectories'!$B$10:$B$42,0),MATCH(_xlfn.CONCAT(I$16:I$19),'Capex Trajectories'!$C$9:$YX$9,0)) -> 0.8100281325 | J164: =OFFSET('Capex Trajectories'!$B$9,MATCH(Resource_Characteristics!$E164,'Capex Trajectories'!$B$10:$B$42,0),MATCH(_xlfn.CONCAT(J$16:J$19),'Capex Trajectories'!$C$9:$YX$9,0)) -> 0.9123172256 | K164: =OFFSET('Capex Trajectories'!$B$9,MATCH(Resource_Characteristics!$E164,'Capex Trajectories'!$B$10:$B$42,0),MATCH(_xlfn.CONCAT(K$16:K$19),'Capex Trajectories'!$C$9:$YX$9,0)) -> 0.8015623487 | L164: =OFFSET('Capex Trajectories'!$B$9,MATCH(Resource_Characteristics!$E164,'Capex Trajectories'!$B$10:$B$42,0),MATCH(_xlfn.CONCAT(L$16:L$19),'Capex Trajectories'!$C$9:$YX$9,0)) -> 0.8258618484 | M164: =OFFSET('Capex Trajectories'!$B$9,MATCH(Resource_Characteristics!$E164,'Capex Trajectories'!$B$10:$B$42,0),MATCH(_xlfn.CONCAT(M$16:M$19),'Capex Trajectories'!$C$9:$YX$9,0)) -> 0.5396570632 | N164: =OFFSET('Capex Trajectories'!$B$9,MATCH(Resource_Characteristics!$E164,'Capex Trajectories'!$B$10:$B$42,0),MATCH(_xlfn.CONCAT(N$16:N$19),'Capex Trajectories'!$C$9:$YX$9,0)) -> 0.5396570632 | O164: =OFFSET('Capex Trajectories'!$B$9,MATCH(Resource_Characteristics!$E164,'Capex Trajectories'!$B$10:$B$42,0),MATCH(_xlfn.CONCAT(O$16:O$19),'Capex Trajectories'!$C$9:$YX$9,0)) -> 0.5396570632 | P164: =OFFSET('Capex Trajectories'!$B$9,MATCH(Resource_Characteristics!$E164,'Capex Trajectories'!$B$10:$B$42,0),MATCH(_xlfn.CONCAT(P$16:P$19),'Capex Trajectories'!$C$9:$YX$9,0)) -> 0.5396570632 | Q164: =OFFSET('Capex Trajectories'!$B$9,MATCH(Resource_Characteristics!$E164,'Capex Trajectories'!$B$10:$B$42,0),MATCH(_xlfn.CONCAT(Q$16:Q$19),'Capex Trajectories'!$C$9:$YX$9,0)) -> 0.6869487055 | R164: =OFFSET('Capex Trajectories'!$B$9,MATCH(Resource_Characteristics!$E164,'Capex Trajectories'!$B$10:$B$42,0),MATCH(_xlfn.CONCAT(R$16:R$19),'Capex Trajectories'!$C$9:$YX$9,0)) -> 1 | S164: =OFFSET('Capex Trajectories'!$B$9,MATCH(Resource_Characteristics!$E164,'Capex Trajectories'!$B$10:$B$42,0),MATCH(_xlfn.CONCAT(S$16:S$19),'Capex Trajectories'!$C$9:$YX$9,0)) -> 1 | T164: =OFFSET('Capex Trajectories'!$B$9,MATCH(Resource_Characteristics!$E164,'Capex Trajectories'!$B$10:$B$42,0),MATCH(_xlfn.CONCAT(T$16:T$19),'Capex Trajectories'!$C$9:$YX$9,0)) -> 0.6428774314 | U164: =OFFSET('Capex Trajectories'!$B$9,MATCH(Resource_Characteristics!$E164,'Capex Trajectories'!$B$10:$B$42,0),MATCH(_xlfn.CONCAT(U$16:U$19),'Capex Trajectories'!$C$9:$YX$9,0)) -> 0.7145046804 | V164: =OFFSET('Capex Trajectories'!$B$9,MATCH(Resource_Characteristics!$E164,'Capex Trajectories'!$B$10:$B$42,0),MATCH(_xlfn.CONCAT(V$16:V$19),'Capex Trajectories'!$C$9:$YX$9,0)) -> 0.5435004741 | W164: =OFFSET('Capex Trajectories'!$B$9,MATCH(Resource_Characteristics!$E164,'Capex Trajectories'!$B$10:$B$42,0),MATCH(_xlfn.CONCAT(W$16:W$19),'Capex Trajectories'!$C$9:$YX$9,0)) -> 0.5435004741 | X164: =OFFSET('Capex Trajectories'!$B$9,MATCH(Resource_Characteristics!$E164,'Capex Trajectories'!$B$10:$B$42,0),MATCH(_xlfn.CONCAT(X$16:X$19),'Capex Trajectories'!$C$9:$YX$9,0)) -> 0.9669216704 | Y164: =OFFSET('Capex Trajectories'!$B$9,MATCH(Resource_Characteristics!$E164,'Capex Trajectories'!$B$10:$B$42,0),MATCH(_xlfn.CONCAT(Y$16:Y$19),'Capex Trajectories'!$C$9:$YX$9,0)) -> 0.9669216704 | Z164: =OFFSET('Capex Trajectories'!$B$9,MATCH(Resource_Characteristics!$E164,'Capex Trajectories'!$B$10:$B$42,0),MATCH(_xlfn.CONCAT(Z$16:Z$19),'Capex Trajectories'!$C$9:$YX$9,0)) -> 0.9669216704 | AA164: =OFFSET('Capex Trajectories'!$B$9,MATCH(Resource_Characteristics!$E164,'Capex Trajectories'!$B$10:$B$42,0),MATCH(_xlfn.CONCAT(AA$16:AA$19),'Capex Trajectories'!$C$9:$YX$9,0)) -> 0.9669216704 | AB164: =OFFSET('Capex Trajectories'!$B$9,MATCH(Resource_Characteristics!$E164,'Capex Trajectories'!$B$10:$B$42,0),MATCH(_xlfn.CONCAT(AB$16:AB$19),'Capex Trajectories'!$C$9:$YX$9,0)) -> 0.9402929829 | AC164: =OFFSET('Capex Trajectories'!$B$9,MATCH(Resource_Characteristics!$E164,'Capex Trajectories'!$B$10:$B$42,0),MATCH(_xlfn.CONCAT(AC$16:AC$19),'Capex Trajectories'!$C$9:$YX$9,0)) -> 0.9676894256 | AD164: =OFFSET('Capex Trajectories'!$B$9,MATCH(Resource_Characteristics!$E164,'Capex Trajectories'!$B$10:$B$42,0),MATCH(_xlfn.CONCAT(AD$16:AD$19),'Capex Trajectories'!$C$9:$YX$9,0)) -> 0.9676894256 | AE164: =OFFSET('Capex Trajectories'!$B$9,MATCH(Resource_Characteristics!$E164,'Capex Trajectories'!$B$10:$B$42,0),MATCH(_xlfn.CONCAT(AE$16:AE$19),'Capex Trajectories'!$C$9:$YX$9,0)) -> 1 | AF164: =OFFSET('Capex Trajectories'!$B$9,MATCH(Resource_Characteristics!$E164,'Capex Trajectories'!$B$10:$B$42,0),MATCH(_xlfn.CONCAT(AF$16:AF$19),'Capex Trajectories'!$C$9:$YX$9,0)) -> 0.9798995067 | AG164: =OFFSET('Capex Trajectories'!$B$9,MATCH(Resource_Characteristics!$E164,'Capex Trajectories'!$B$10:$B$42,0),MATCH(_xlfn.CONCAT(AG$16:AG$19),'Capex Trajectories'!$C$9:$YX$9,0)) -> 0.9798994864 | AH164: =OFFSET('Capex Trajectories'!$B$9,MATCH(Resource_Characteristics!$E164,'Capex Trajectories'!$B$10:$B$42,0),MATCH(_xlfn.CONCAT(AH$16:AH$19),'Capex Trajectories'!$C$9:$YX$9,0)) -> 0.9798994933 | AI164: =OFFSET('Capex Trajectories'!$B$9,MATCH(Resource_Characteristics!$E164,'Capex Trajectories'!$B$10:$B$42,0),MATCH(_xlfn.CONCAT(AI$16:AI$19),'Capex Trajectories'!$C$9:$YX$9,0)) -> 0.9798994975 | AJ164: =OFFSET('Capex Trajectories'!$B$9,MATCH(Resource_Characteristics!$E164,'Capex Trajectories'!$B$10:$B$42,0),MATCH(_xlfn.CONCAT(AJ$16:AJ$19),'Capex Trajectories'!$C$9:$YX$9,0)) -> 1 | AK164: =OFFSET('Capex Trajectories'!$B$9,MATCH(Resource_Characteristics!$E164,'Capex Trajectories'!$B$10:$B$42,0),MATCH(_xlfn.CONCAT(AK$16:AK$19),'Capex Trajectories'!$C$9:$YX$9,0)) -> 0.9569735329 | AL164: =OFFSET('Capex Trajectories'!$B$9,MATCH(Resource_Characteristics!$E164,'Capex Trajectories'!$B$10:$B$42,0),MATCH(_xlfn.CONCAT(AL$16:AL$19),'Capex Trajectories'!$C$9:$YX$9,0)) -> 0.8461204936 | AM164: =OFFSET('Capex Trajectories'!$B$9,MATCH(Resource_Characteristics!$E164,'Capex Trajectories'!$B$10:$B$42,0),MATCH(_xlfn.CONCAT(AM$16:AM$19),'Capex Trajectories'!$C$9:$YX$9,0)) -> 1 | AN164: =OFFSET('Capex Trajectories'!$B$9,MATCH(Resource_Characteristics!$E164,'Capex Trajectories'!$B$10:$B$42,0),MATCH(_xlfn.CONCAT(AN$16:AN$19),'Capex Trajectories'!$C$9:$YX$9,0)) -> 0.9760809366 | AO164: =OFFSET('Capex Trajectories'!$B$9,MATCH(Resource_Characteristics!$E164,'Capex Trajectories'!$B$10:$B$42,0),MATCH(_xlfn.CONCAT(AO$16:AO$19),'Capex Trajectories'!$C$9:$YX$9,0)) -> 0.9760809366 | AP164: =OFFSET('Capex Trajectories'!$B$9,MATCH(Resource_Characteristics!$E164,'Capex Trajectories'!$B$10:$B$42,0),MATCH(_xlfn.CONCAT(AP$16:AP$19),'Capex Trajectories'!$C$9:$YX$9,0)) -> 0.9763910334 | AQ164: =OFFSET('Capex Trajectories'!$B$9,MATCH(Resource_Characteristics!$E164,'Capex Trajectories'!$B$10:$B$42,0),MATCH(_xlfn.CONCAT(AQ$16:AQ$19),'Capex Trajectories'!$C$9:$YX$9,0)) -> 0.9673190296 | AZ164: 2036 | BA164: 0.045 | BB164: 0.045 | BC164: 0.045 | BD164: 0.045 | BE164: 0.045 | BF164: 0.045
E165: 2027 | F165: 0.9636436941 | I165: =OFFSET('Capex Trajectories'!$B$9,MATCH(Resource_Characteristics!$E165,'Capex Trajectories'!$B$10:$B$42,0),MATCH(_xlfn.CONCAT(I$16:I$19),'Capex Trajectories'!$C$9:$YX$9,0)) -> 0.8003356458 | J165: =OFFSET('Capex Trajectories'!$B$9,MATCH(Resource_Characteristics!$E165,'Capex Trajectories'!$B$10:$B$42,0),MATCH(_xlfn.CONCAT(J$16:J$19),'Capex Trajectories'!$C$9:$YX$9,0)) -> 0.9034136716 | K165: =OFFSET('Capex Trajectories'!$B$9,MATCH(Resource_Characteristics!$E165,'Capex Trajectories'!$B$10:$B$42,0),MATCH(_xlfn.CONCAT(K$16:K$19),'Capex Trajectories'!$C$9:$YX$9,0)) -> 0.7746905834 | L165: =OFFSET('Capex Trajectories'!$B$9,MATCH(Resource_Characteristics!$E165,'Capex Trajectories'!$B$10:$B$42,0),MATCH(_xlfn.CONCAT(L$16:L$19),'Capex Trajectories'!$C$9:$YX$9,0)) -> 0.8022435415 | M165: =OFFSET('Capex Trajectories'!$B$9,MATCH(Resource_Characteristics!$E165,'Capex Trajectories'!$B$10:$B$42,0),MATCH(_xlfn.CONCAT(M$16:M$19),'Capex Trajectories'!$C$9:$YX$9,0)) -> 0.513273829 | N165: =OFFSET('Capex Trajectories'!$B$9,MATCH(Resource_Characteristics!$E165,'Capex Trajectories'!$B$10:$B$42,0),MATCH(_xlfn.CONCAT(N$16:N$19),'Capex Trajectories'!$C$9:$YX$9,0)) -> 0.513273829 | O165: =OFFSET('Capex Trajectories'!$B$9,MATCH(Resource_Characteristics!$E165,'Capex Trajectories'!$B$10:$B$42,0),MATCH(_xlfn.CONCAT(O$16:O$19),'Capex Trajectories'!$C$9:$YX$9,0)) -> 0.513273829 | P165: =OFFSET('Capex Trajectories'!$B$9,MATCH(Resource_Characteristics!$E165,'Capex Trajectories'!$B$10:$B$42,0),MATCH(_xlfn.CONCAT(P$16:P$19),'Capex Trajectories'!$C$9:$YX$9,0)) -> 0.513273829 | Q165: =OFFSET('Capex Trajectories'!$B$9,MATCH(Resource_Characteristics!$E165,'Capex Trajectories'!$B$10:$B$42,0),MATCH(_xlfn.CONCAT(Q$16:Q$19),'Capex Trajectories'!$C$9:$YX$9,0)) -> 0.667866797 | R165: =OFFSET('Capex Trajectories'!$B$9,MATCH(Resource_Characteristics!$E165,'Capex Trajectories'!$B$10:$B$42,0),MATCH(_xlfn.CONCAT(R$16:R$19),'Capex Trajectories'!$C$9:$YX$9,0)) -> 1 | S165: =OFFSET('Capex Trajectories'!$B$9,MATCH(Resource_Characteristics!$E165,'Capex Trajectories'!$B$10:$B$42,0),MATCH(_xlfn.CONCAT(S$16:S$19),'Capex Trajectories'!$C$9:$YX$9,0)) -> 1 | T165: =OFFSET('Capex Trajectories'!$B$9,MATCH(Resource_Characteristics!$E165,'Capex Trajectories'!$B$10:$B$42,0),MATCH(_xlfn.CONCAT(T$16:T$19),'Capex Trajectories'!$C$9:$YX$9,0)) -> 0.6191338469 | U165: =OFFSET('Capex Trajectories'!$B$9,MATCH(Resource_Characteristics!$E165,'Capex Trajectories'!$B$10:$B$42,0),MATCH(_xlfn.CONCAT(U$16:U$19),'Capex Trajectories'!$C$9:$YX$9,0)) -> 0.688259611 | V165: =OFFSET('Capex Trajectories'!$B$9,MATCH(Resource_Characteristics!$E165,'Capex Trajectories'!$B$10:$B$42,0),MATCH(_xlfn.CONCAT(V$16:V$19),'Capex Trajectories'!$C$9:$YX$9,0)) -> 0.5193448974 | W165: =OFFSET('Capex Trajectories'!$B$9,MATCH(Resource_Characteristics!$E165,'Capex Trajectories'!$B$10:$B$42,0),MATCH(_xlfn.CONCAT(W$16:W$19),'Capex Trajectories'!$C$9:$YX$9,0)) -> 0.5193448974 | X165: =OFFSET('Capex Trajectories'!$B$9,MATCH(Resource_Characteristics!$E165,'Capex Trajectories'!$B$10:$B$42,0),MATCH(_xlfn.CONCAT(X$16:X$19),'Capex Trajectories'!$C$9:$YX$9,0)) -> 0.9632788608 | Y165: =OFFSET('Capex Trajectories'!$B$9,MATCH(Resource_Characteristics!$E165,'Capex Trajectories'!$B$10:$B$42,0),MATCH(_xlfn.CONCAT(Y$16:Y$19),'Capex Trajectories'!$C$9:$YX$9,0)) -> 0.9632788608 | Z165: =OFFSET('Capex Trajectories'!$B$9,MATCH(Resource_Characteristics!$E165,'Capex Trajectories'!$B$10:$B$42,0),MATCH(_xlfn.CONCAT(Z$16:Z$19),'Capex Trajectories'!$C$9:$YX$9,0)) -> 0.9632788608 | AA165: =OFFSET('Capex Trajectories'!$B$9,MATCH(Resource_Characteristics!$E165,'Capex Trajectories'!$B$10:$B$42,0),MATCH(_xlfn.CONCAT(AA$16:AA$19),'Capex Trajectories'!$C$9:$YX$9,0)) -> 0.9632788608 | AB165: =OFFSET('Capex Trajectories'!$B$9,MATCH(Resource_Characteristics!$E165,'Capex Trajectories'!$B$10:$B$42,0),MATCH(_xlfn.CONCAT(AB$16:AB$19),'Capex Trajectories'!$C$9:$YX$9,0)) -> 0.9330624413 | AC165: =OFFSET('Capex Trajectories'!$B$9,MATCH(Resource_Characteristics!$E165,'Capex Trajectories'!$B$10:$B$42,0),MATCH(_xlfn.CONCAT(AC$16:AC$19),'Capex Trajectories'!$C$9:$YX$9,0)) -> 0.9636579497 | AD165: =OFFSET('Capex Trajectories'!$B$9,MATCH(Resource_Characteristics!$E165,'Capex Trajectories'!$B$10:$B$42,0),MATCH(_xlfn.CONCAT(AD$16:AD$19),'Capex Trajectories'!$C$9:$YX$9,0)) -> 0.9636579497 | AE165: =OFFSET('Capex Trajectories'!$B$9,MATCH(Resource_Characteristics!$E165,'Capex Trajectories'!$B$10:$B$42,0),MATCH(_xlfn.CONCAT(AE$16:AE$19),'Capex Trajectories'!$C$9:$YX$9,0)) -> 1 | AF165: =OFFSET('Capex Trajectories'!$B$9,MATCH(Resource_Characteristics!$E165,'Capex Trajectories'!$B$10:$B$42,0),MATCH(_xlfn.CONCAT(AF$16:AF$19),'Capex Trajectories'!$C$9:$YX$9,0)) -> 0.9773869451 | AG165: =OFFSET('Capex Trajectories'!$B$9,MATCH(Resource_Characteristics!$E165,'Capex Trajectories'!$B$10:$B$42,0),MATCH(_xlfn.CONCAT(AG$16:AG$19),'Capex Trajectories'!$C$9:$YX$9,0)) -> 0.9773869222 | AH165: =OFFSET('Capex Trajectories'!$B$9,MATCH(Resource_Characteristics!$E165,'Capex Trajectories'!$B$10:$B$42,0),MATCH(_xlfn.CONCAT(AH$16:AH$19),'Capex Trajectories'!$C$9:$YX$9,0)) -> 0.97738693 | AI165: =OFFSET('Capex Trajectories'!$B$9,MATCH(Resource_Characteristics!$E165,'Capex Trajectories'!$B$10:$B$42,0),MATCH(_xlfn.CONCAT(AI$16:AI$19),'Capex Trajectories'!$C$9:$YX$9,0)) -> 0.9773869347 | AJ165: =OFFSET('Capex Trajectories'!$B$9,MATCH(Resource_Characteristics!$E165,'Capex Trajectories'!$B$10:$B$42,0),MATCH(_xlfn.CONCAT(AJ$16:AJ$19),'Capex Trajectories'!$C$9:$YX$9,0)) -> 1 | AK165: =OFFSET('Capex Trajectories'!$B$9,MATCH(Resource_Characteristics!$E165,'Capex Trajectories'!$B$10:$B$42,0),MATCH(_xlfn.CONCAT(AK$16:AK$19),'Capex Trajectories'!$C$9:$YX$9,0)) -> 0.9539555906 | AL165: =OFFSET('Capex Trajectories'!$B$9,MATCH(Resource_Characteristics!$E165,'Capex Trajectories'!$B$10:$B$42,0),MATCH(_xlfn.CONCAT(AL$16:AL$19),'Capex Trajectories'!$C$9:$YX$9,0)) -> 0.8345903702 | AM165: =OFFSET('Capex Trajectories'!$B$9,MATCH(Resource_Characteristics!$E165,'Capex Trajectories'!$B$10:$B$42,0),MATCH(_xlfn.CONCAT(AM$16:AM$19),'Capex Trajectories'!$C$9:$YX$9,0)) -> 1 | AN165: =OFFSET('Capex Trajectories'!$B$9,MATCH(Resource_Characteristics!$E165,'Capex Trajectories'!$B$10:$B$42,0),MATCH(_xlfn.CONCAT(AN$16:AN$19),'Capex Trajectories'!$C$9:$YX$9,0)) -> 0.9716697514 | AO165: =OFFSET('Capex Trajectories'!$B$9,MATCH(Resource_Characteristics!$E165,'Capex Trajectories'!$B$10:$B$42,0),MATCH(_xlfn.CONCAT(AO$16:AO$19),'Capex Trajectories'!$C$9:$YX$9,0)) -> 0.9716697514 | AP165: =OFFSET('Capex Trajectories'!$B$9,MATCH(Resource_Characteristics!$E165,'Capex Trajectories'!$B$10:$B$42,0),MATCH(_xlfn.CONCAT(AP$16:AP$19),'Capex Trajectories'!$C$9:$YX$9,0)) -> 0.9746462269 | AQ165: =OFFSET('Capex Trajectories'!$B$9,MATCH(Resource_Characteristics!$E165,'Capex Trajectories'!$B$10:$B$42,0),MATCH(_xlfn.CONCAT(AQ$16:AQ$19),'Capex Trajectories'!$C$9:$YX$9,0)) -> 0.9636436941 | AZ165: 2037 | BA165: 0.045 | BB165: 0.045 | BC165: 0.045 | BD165: 0.045 | BE165: 0.045 | BF165: 0.045
E166: 2028 | F166: 0.9602918415 | I166: =OFFSET('Capex Trajectories'!$B$9,MATCH(Resource_Characteristics!$E166,'Capex Trajectories'!$B$10:$B$42,0),MATCH(_xlfn.CONCAT(I$16:I$19),'Capex Trajectories'!$C$9:$YX$9,0)) -> 0.7906431591 | J166: =OFFSET('Capex Trajectories'!$B$9,MATCH(Resource_Characteristics!$E166,'Capex Trajectories'!$B$10:$B$42,0),MATCH(_xlfn.CONCAT(J$16:J$19),'Capex Trajectories'!$C$9:$YX$9,0)) -> 0.8949671826 | K166: =OFFSET('Capex Trajectories'!$B$9,MATCH(Resource_Characteristics!$E166,'Capex Trajectories'!$B$10:$B$42,0),MATCH(_xlfn.CONCAT(K$16:K$19),'Capex Trajectories'!$C$9:$YX$9,0)) -> 0.7472282299 | L166: =OFFSET('Capex Trajectories'!$B$9,MATCH(Resource_Characteristics!$E166,'Capex Trajectories'!$B$10:$B$42,0),MATCH(_xlfn.CONCAT(L$16:L$19),'Capex Trajectories'!$C$9:$YX$9,0)) -> 0.7786252346 | M166: =OFFSET('Capex Trajectories'!$B$9,MATCH(Resource_Characteristics!$E166,'Capex Trajectories'!$B$10:$B$42,0),MATCH(_xlfn.CONCAT(M$16:M$19),'Capex Trajectories'!$C$9:$YX$9,0)) -> 0.4921725716 | N166: =OFFSET('Capex Trajectories'!$B$9,MATCH(Resource_Characteristics!$E166,'Capex Trajectories'!$B$10:$B$42,0),MATCH(_xlfn.CONCAT(N$16:N$19),'Capex Trajectories'!$C$9:$YX$9,0)) -> 0.4921725716 | O166: =OFFSET('Capex Trajectories'!$B$9,MATCH(Resource_Characteristics!$E166,'Capex Trajectories'!$B$10:$B$42,0),MATCH(_xlfn.CONCAT(O$16:O$19),'Capex Trajectories'!$C$9:$YX$9,0)) -> 0.4921725716 | P166: =OFFSET('Capex Trajectories'!$B$9,MATCH(Resource_Characteristics!$E166,'Capex Trajectories'!$B$10:$B$42,0),MATCH(_xlfn.CONCAT(P$16:P$19),'Capex Trajectories'!$C$9:$YX$9,0)) -> 0.4921725716 | Q166: =OFFSET('Capex Trajectories'!$B$9,MATCH(Resource_Characteristics!$E166,'Capex Trajectories'!$B$10:$B$42,0),MATCH(_xlfn.CONCAT(Q$16:Q$19),'Capex Trajectories'!$C$9:$YX$9,0)) -> 0.6530253126 | R166: =OFFSET('Capex Trajectories'!$B$9,MATCH(Resource_Characteristics!$E166,'Capex Trajectories'!$B$10:$B$42,0),MATCH(_xlfn.CONCAT(R$16:R$19),'Capex Trajectories'!$C$9:$YX$9,0)) -> 1 | S166: =OFFSET('Capex Trajectories'!$B$9,MATCH(Resource_Characteristics!$E166,'Capex Trajectories'!$B$10:$B$42,0),MATCH(_xlfn.CONCAT(S$16:S$19),'Capex Trajectories'!$C$9:$YX$9,0)) -> 1 | T166: =OFFSET('Capex Trajectories'!$B$9,MATCH(Resource_Characteristics!$E166,'Capex Trajectories'!$B$10:$B$42,0),MATCH(_xlfn.CONCAT(T$16:T$19),'Capex Trajectories'!$C$9:$YX$9,0)) -> 0.5953902625 | U166: =OFFSET('Capex Trajectories'!$B$9,MATCH(Resource_Characteristics!$E166,'Capex Trajectories'!$B$10:$B$42,0),MATCH(_xlfn.CONCAT(U$16:U$19),'Capex Trajectories'!$C$9:$YX$9,0)) -> 0.6620145416 | V166: =OFFSET('Capex Trajectories'!$B$9,MATCH(Resource_Characteristics!$E166,'Capex Trajectories'!$B$10:$B$42,0),MATCH(_xlfn.CONCAT(V$16:V$19),'Capex Trajectories'!$C$9:$YX$9,0)) -> 0.5008793011 | W166: =OFFSET('Capex Trajectories'!$B$9,MATCH(Resource_Characteristics!$E166,'Capex Trajectories'!$B$10:$B$42,0),MATCH(_xlfn.CONCAT(W$16:W$19),'Capex Trajectories'!$C$9:$YX$9,0)) -> 0.5008793011 | X166: =OFFSET('Capex Trajectories'!$B$9,MATCH(Resource_Characteristics!$E166,'Capex Trajectories'!$B$10:$B$42,0),MATCH(_xlfn.CONCAT(X$16:X$19),'Capex Trajectories'!$C$9:$YX$9,0)) -> 0.9593585806 | Y166: =OFFSET('Capex Trajectories'!$B$9,MATCH(Resource_Characteristics!$E166,'Capex Trajectories'!$B$10:$B$42,0),MATCH(_xlfn.CONCAT(Y$16:Y$19),'Capex Trajectories'!$C$9:$YX$9,0)) -> 0.9593585806 | Z166: =OFFSET('Capex Trajectories'!$B$9,MATCH(Resource_Characteristics!$E166,'Capex Trajectories'!$B$10:$B$42,0),MATCH(_xlfn.CONCAT(Z$16:Z$19),'Capex Trajectories'!$C$9:$YX$9,0)) -> 0.9593585806 | AA166: =OFFSET('Capex Trajectories'!$B$9,MATCH(Resource_Characteristics!$E166,'Capex Trajectories'!$B$10:$B$42,0),MATCH(_xlfn.CONCAT(AA$16:AA$19),'Capex Trajectories'!$C$9:$YX$9,0)) -> 0.9593585806 | AB166: =OFFSET('Capex Trajectories'!$B$9,MATCH(Resource_Characteristics!$E166,'Capex Trajectories'!$B$10:$B$42,0),MATCH(_xlfn.CONCAT(AB$16:AB$19),'Capex Trajectories'!$C$9:$YX$9,0)) -> 0.9253774411 | AC166: =OFFSET('Capex Trajectories'!$B$9,MATCH(Resource_Characteristics!$E166,'Capex Trajectories'!$B$10:$B$42,0),MATCH(_xlfn.CONCAT(AC$16:AC$19),'Capex Trajectories'!$C$9:$YX$9,0)) -> 0.9592271507 | AD166: =OFFSET('Capex Trajectories'!$B$9,MATCH(Resource_Characteristics!$E166,'Capex Trajectories'!$B$10:$B$42,0),MATCH(_xlfn.CONCAT(AD$16:AD$19),'Capex Trajectories'!$C$9:$YX$9,0)) -> 0.9592271507 | AE166: =OFFSET('Capex Trajectories'!$B$9,MATCH(Resource_Characteristics!$E166,'Capex Trajectories'!$B$10:$B$42,0),MATCH(_xlfn.CONCAT(AE$16:AE$19),'Capex Trajectories'!$C$9:$YX$9,0)) -> 1 | AF166: =OFFSET('Capex Trajectories'!$B$9,MATCH(Resource_Characteristics!$E166,'Capex Trajectories'!$B$10:$B$42,0),MATCH(_xlfn.CONCAT(AF$16:AF$19),'Capex Trajectories'!$C$9:$YX$9,0)) -> 0.9748743834 | AG166: =OFFSET('Capex Trajectories'!$B$9,MATCH(Resource_Characteristics!$E166,'Capex Trajectories'!$B$10:$B$42,0),MATCH(_xlfn.CONCAT(AG$16:AG$19),'Capex Trajectories'!$C$9:$YX$9,0)) -> 0.974874358 | AH166: =OFFSET('Capex Trajectories'!$B$9,MATCH(Resource_Characteristics!$E166,'Capex Trajectories'!$B$10:$B$42,0),MATCH(_xlfn.CONCAT(AH$16:AH$19),'Capex Trajectories'!$C$9:$YX$9,0)) -> 0.9748743667 | AI166: =OFFSET('Capex Trajectories'!$B$9,MATCH(Resource_Characteristics!$E166,'Capex Trajectories'!$B$10:$B$42,0),MATCH(_xlfn.CONCAT(AI$16:AI$19),'Capex Trajectories'!$C$9:$YX$9,0)) -> 0.9748743719 | AJ166: =OFFSET('Capex Trajectories'!$B$9,MATCH(Resource_Characteristics!$E166,'Capex Trajectories'!$B$10:$B$42,0),MATCH(_xlfn.CONCAT(AJ$16:AJ$19),'Capex Trajectories'!$C$9:$YX$9,0)) -> 1 | AK166: =OFFSET('Capex Trajectories'!$B$9,MATCH(Resource_Characteristics!$E166,'Capex Trajectories'!$B$10:$B$42,0),MATCH(_xlfn.CONCAT(AK$16:AK$19),'Capex Trajectories'!$C$9:$YX$9,0)) -> 0.951258998 | AL166: =OFFSET('Capex Trajectories'!$B$9,MATCH(Resource_Characteristics!$E166,'Capex Trajectories'!$B$10:$B$42,0),MATCH(_xlfn.CONCAT(AL$16:AL$19),'Capex Trajectories'!$C$9:$YX$9,0)) -> 0.8230602468 | AM166: =OFFSET('Capex Trajectories'!$B$9,MATCH(Resource_Characteristics!$E166,'Capex Trajectories'!$B$10:$B$42,0),MATCH(_xlfn.CONCAT(AM$16:AM$19),'Capex Trajectories'!$C$9:$YX$9,0)) -> 1 | AN166: =OFFSET('Capex Trajectories'!$B$9,MATCH(Resource_Characteristics!$E166,'Capex Trajectories'!$B$10:$B$42,0),MATCH(_xlfn.CONCAT(AN$16:AN$19),'Capex Trajectories'!$C$9:$YX$9,0)) -> 0.9675833351 | AO166: =OFFSET('Capex Trajectories'!$B$9,MATCH(Resource_Characteristics!$E166,'Capex Trajectories'!$B$10:$B$42,0),MATCH(_xlfn.CONCAT(AO$16:AO$19),'Capex Trajectories'!$C$9:$YX$9,0)) -> 0.9675833351 | AP166: =OFFSET('Capex Trajectories'!$B$9,MATCH(Resource_Characteristics!$E166,'Capex Trajectories'!$B$10:$B$42,0),MATCH(_xlfn.CONCAT(AP$16:AP$19),'Capex Trajectories'!$C$9:$YX$9,0)) -> 0.97323254 | AQ166: =OFFSET('Capex Trajectories'!$B$9,MATCH(Resource_Characteristics!$E166,'Capex Trajectories'!$B$10:$B$42,0),MATCH(_xlfn.CONCAT(AQ$16:AQ$19),'Capex Trajectories'!$C$9:$YX$9,0)) -> 0.9602918415 | AZ166: 2038 | BA166: 0.045 | BB166: 0.045 | BC166: 0.045 | BD166: 0.045 | BE166: 0.045 | BF166: 0.045
E167: 2029 | F167: 0.9559288123 | I167: =OFFSET('Capex Trajectories'!$B$9,MATCH(Resource_Characteristics!$E167,'Capex Trajectories'!$B$10:$B$42,0),MATCH(_xlfn.CONCAT(I$16:I$19),'Capex Trajectories'!$C$9:$YX$9,0)) -> 0.7809506723 | J167: =OFFSET('Capex Trajectories'!$B$9,MATCH(Resource_Characteristics!$E167,'Capex Trajectories'!$B$10:$B$42,0),MATCH(_xlfn.CONCAT(J$16:J$19),'Capex Trajectories'!$C$9:$YX$9,0)) -> 0.8869777586 | K167: =OFFSET('Capex Trajectories'!$B$9,MATCH(Resource_Characteristics!$E167,'Capex Trajectories'!$B$10:$B$42,0),MATCH(_xlfn.CONCAT(K$16:K$19),'Capex Trajectories'!$C$9:$YX$9,0)) -> 0.7197658764 | L167: =OFFSET('Capex Trajectories'!$B$9,MATCH(Resource_Characteristics!$E167,'Capex Trajectories'!$B$10:$B$42,0),MATCH(_xlfn.CONCAT(L$16:L$19),'Capex Trajectories'!$C$9:$YX$9,0)) -> 0.7546320339 | M167: =OFFSET('Capex Trajectories'!$B$9,MATCH(Resource_Characteristics!$E167,'Capex Trajectories'!$B$10:$B$42,0),MATCH(_xlfn.CONCAT(M$16:M$19),'Capex Trajectories'!$C$9:$YX$9,0)) -> 0.4757668192 | N167: =OFFSET('Capex Trajectories'!$B$9,MATCH(Resource_Characteristics!$E167,'Capex Trajectories'!$B$10:$B$42,0),MATCH(_xlfn.CONCAT(N$16:N$19),'Capex Trajectories'!$C$9:$YX$9,0)) -> 0.4757668192 | O167: =OFFSET('Capex Trajectories'!$B$9,MATCH(Resource_Characteristics!$E167,'Capex Trajectories'!$B$10:$B$42,0),MATCH(_xlfn.CONCAT(O$16:O$19),'Capex Trajectories'!$C$9:$YX$9,0)) -> 0.4757668192 | P167: =OFFSET('Capex Trajectories'!$B$9,MATCH(Resource_Characteristics!$E167,'Capex Trajectories'!$B$10:$B$42,0),MATCH(_xlfn.CONCAT(P$16:P$19),'Capex Trajectories'!$C$9:$YX$9,0)) -> 0.4757668192 | Q167: =OFFSET('Capex Trajectories'!$B$9,MATCH(Resource_Characteristics!$E167,'Capex Trajectories'!$B$10:$B$42,0),MATCH(_xlfn.CONCAT(Q$16:Q$19),'Capex Trajectories'!$C$9:$YX$9,0)) -> 0.6421415574 | R167: =OFFSET('Capex Trajectories'!$B$9,MATCH(Resource_Characteristics!$E167,'Capex Trajectories'!$B$10:$B$42,0),MATCH(_xlfn.CONCAT(R$16:R$19),'Capex Trajectories'!$C$9:$YX$9,0)) -> 1 | S167: =OFFSET('Capex Trajectories'!$B$9,MATCH(Resource_Characteristics!$E167,'Capex Trajectories'!$B$10:$B$42,0),MATCH(_xlfn.CONCAT(S$16:S$19),'Capex Trajectories'!$C$9:$YX$9,0)) -> 1 | T167: =OFFSET('Capex Trajectories'!$B$9,MATCH(Resource_Characteristics!$E167,'Capex Trajectories'!$B$10:$B$42,0),MATCH(_xlfn.CONCAT(T$16:T$19),'Capex Trajectories'!$C$9:$YX$9,0)) -> 0.571646678 | U167: =OFFSET('Capex Trajectories'!$B$9,MATCH(Resource_Characteristics!$E167,'Capex Trajectories'!$B$10:$B$42,0),MATCH(_xlfn.CONCAT(U$16:U$19),'Capex Trajectories'!$C$9:$YX$9,0)) -> 0.6357694721 | V167: =OFFSET('Capex Trajectories'!$B$9,MATCH(Resource_Characteristics!$E167,'Capex Trajectories'!$B$10:$B$42,0),MATCH(_xlfn.CONCAT(V$16:V$19),'Capex Trajectories'!$C$9:$YX$9,0)) -> 0.4875225197 | W167: =OFFSET('Capex Trajectories'!$B$9,MATCH(Resource_Characteristics!$E167,'Capex Trajectories'!$B$10:$B$42,0),MATCH(_xlfn.CONCAT(W$16:W$19),'Capex Trajectories'!$C$9:$YX$9,0)) -> 0.4875225197 | X167: =OFFSET('Capex Trajectories'!$B$9,MATCH(Resource_Characteristics!$E167,'Capex Trajectories'!$B$10:$B$42,0),MATCH(_xlfn.CONCAT(X$16:X$19),'Capex Trajectories'!$C$9:$YX$9,0)) -> 0.9558394143 | Y167: =OFFSET('Capex Trajectories'!$B$9,MATCH(Resource_Characteristics!$E167,'Capex Trajectories'!$B$10:$B$42,0),MATCH(_xlfn.CONCAT(Y$16:Y$19),'Capex Trajectories'!$C$9:$YX$9,0)) -> 0.9558394143 | Z167: =OFFSET('Capex Trajectories'!$B$9,MATCH(Resource_Characteristics!$E167,'Capex Trajectories'!$B$10:$B$42,0),MATCH(_xlfn.CONCAT(Z$16:Z$19),'Capex Trajectories'!$C$9:$YX$9,0)) -> 0.9558394143 | AA167: =OFFSET('Capex Trajectories'!$B$9,MATCH(Resource_Characteristics!$E167,'Capex Trajectories'!$B$10:$B$42,0),MATCH(_xlfn.CONCAT(AA$16:AA$19),'Capex Trajectories'!$C$9:$YX$9,0)) -> 0.9558394143 | AB167: =OFFSET('Capex Trajectories'!$B$9,MATCH(Resource_Characteristics!$E167,'Capex Trajectories'!$B$10:$B$42,0),MATCH(_xlfn.CONCAT(AB$16:AB$19),'Capex Trajectories'!$C$9:$YX$9,0)) -> 0.9185007746 | AC167: =OFFSET('Capex Trajectories'!$B$9,MATCH(Resource_Characteristics!$E167,'Capex Trajectories'!$B$10:$B$42,0),MATCH(_xlfn.CONCAT(AC$16:AC$19),'Capex Trajectories'!$C$9:$YX$9,0)) -> 0.9554821276 | AD167: =OFFSET('Capex Trajectories'!$B$9,MATCH(Resource_Characteristics!$E167,'Capex Trajectories'!$B$10:$B$42,0),MATCH(_xlfn.CONCAT(AD$16:AD$19),'Capex Trajectories'!$C$9:$YX$9,0)) -> 0.9554821276 | AE167: =OFFSET('Capex Trajectories'!$B$9,MATCH(Resource_Characteristics!$E167,'Capex Trajectories'!$B$10:$B$42,0),MATCH(_xlfn.CONCAT(AE$16:AE$19),'Capex Trajectories'!$C$9:$YX$9,0)) -> 1 | AF167: =OFFSET('Capex Trajectories'!$B$9,MATCH(Resource_Characteristics!$E167,'Capex Trajectories'!$B$10:$B$42,0),MATCH(_xlfn.CONCAT(AF$16:AF$19),'Capex Trajectories'!$C$9:$YX$9,0)) -> 0.9723618218 | AG167: =OFFSET('Capex Trajectories'!$B$9,MATCH(Resource_Characteristics!$E167,'Capex Trajectories'!$B$10:$B$42,0),MATCH(_xlfn.CONCAT(AG$16:AG$19),'Capex Trajectories'!$C$9:$YX$9,0)) -> 0.9723617938 | AH167: =OFFSET('Capex Trajectories'!$B$9,MATCH(Resource_Characteristics!$E167,'Capex Trajectories'!$B$10:$B$42,0),MATCH(_xlfn.CONCAT(AH$16:AH$19),'Capex Trajectories'!$C$9:$YX$9,0)) -> 0.9723618033 | AI167: =OFFSET('Capex Trajectories'!$B$9,MATCH(Resource_Characteristics!$E167,'Capex Trajectories'!$B$10:$B$42,0),MATCH(_xlfn.CONCAT(AI$16:AI$19),'Capex Trajectories'!$C$9:$YX$9,0)) -> 0.972361809 | AJ167: =OFFSET('Capex Trajectories'!$B$9,MATCH(Resource_Characteristics!$E167,'Capex Trajectories'!$B$10:$B$42,0),MATCH(_xlfn.CONCAT(AJ$16:AJ$19),'Capex Trajectories'!$C$9:$YX$9,0)) -> 1 | AK167: =OFFSET('Capex Trajectories'!$B$9,MATCH(Resource_Characteristics!$E167,'Capex Trajectories'!$B$10:$B$42,0),MATCH(_xlfn.CONCAT(AK$16:AK$19),'Capex Trajectories'!$C$9:$YX$9,0)) -> 0.9475614611 | AL167: =OFFSET('Capex Trajectories'!$B$9,MATCH(Resource_Characteristics!$E167,'Capex Trajectories'!$B$10:$B$42,0),MATCH(_xlfn.CONCAT(AL$16:AL$19),'Capex Trajectories'!$C$9:$YX$9,0)) -> 0.8115301234 | AM167: =OFFSET('Capex Trajectories'!$B$9,MATCH(Resource_Characteristics!$E167,'Capex Trajectories'!$B$10:$B$42,0),MATCH(_xlfn.CONCAT(AM$16:AM$19),'Capex Trajectories'!$C$9:$YX$9,0)) -> 1 | AN167: =OFFSET('Capex Trajectories'!$B$9,MATCH(Resource_Characteristics!$E167,'Capex Trajectories'!$B$10:$B$42,0),MATCH(_xlfn.CONCAT(AN$16:AN$19),'Capex Trajectories'!$C$9:$YX$9,0)) -> 0.9624773124 | AO167: =OFFSET('Capex Trajectories'!$B$9,MATCH(Resource_Characteristics!$E167,'Capex Trajectories'!$B$10:$B$42,0),MATCH(_xlfn.CONCAT(AO$16:AO$19),'Capex Trajectories'!$C$9:$YX$9,0)) -> 0.9624773124 | AP167: =OFFSET('Capex Trajectories'!$B$9,MATCH(Resource_Characteristics!$E167,'Capex Trajectories'!$B$10:$B$42,0),MATCH(_xlfn.CONCAT(AP$16:AP$19),'Capex Trajectories'!$C$9:$YX$9,0)) -> 0.9707963854 | AQ167: =OFFSET('Capex Trajectories'!$B$9,MATCH(Resource_Characteristics!$E167,'Capex Trajectories'!$B$10:$B$42,0),MATCH(_xlfn.CONCAT(AQ$16:AQ$19),'Capex Trajectories'!$C$9:$YX$9,0)) -> 0.9559288123 | AZ167: 2039 | BA167: 0.045 | BB167: 0.045 | BC167: 0.045 | BD167: 0.045 | BE167: 0.045 | BF167: 0.045
E168: 2030 | F168: 0.951296659 | I168: =OFFSET('Capex Trajectories'!$B$9,MATCH(Resource_Characteristics!$E168,'Capex Trajectories'!$B$10:$B$42,0),MATCH(_xlfn.CONCAT(I$16:I$19),'Capex Trajectories'!$C$9:$YX$9,0)) -> 0.7712581856 | J168: =OFFSET('Capex Trajectories'!$B$9,MATCH(Resource_Characteristics!$E168,'Capex Trajectories'!$B$10:$B$42,0),MATCH(_xlfn.CONCAT(J$16:J$19),'Capex Trajectories'!$C$9:$YX$9,0)) -> 0.8794453997 | K168: =OFFSET('Capex Trajectories'!$B$9,MATCH(Resource_Characteristics!$E168,'Capex Trajectories'!$B$10:$B$42,0),MATCH(_xlfn.CONCAT(K$16:K$19),'Capex Trajectories'!$C$9:$YX$9,0)) -> 0.6923035229 | L168: =OFFSET('Capex Trajectories'!$B$9,MATCH(Resource_Characteristics!$E168,'Capex Trajectories'!$B$10:$B$42,0),MATCH(_xlfn.CONCAT(L$16:L$19),'Capex Trajectories'!$C$9:$YX$9,0)) -> 0.7306388333 | M168: =OFFSET('Capex Trajectories'!$B$9,MATCH(Resource_Characteristics!$E168,'Capex Trajectories'!$B$10:$B$42,0),MATCH(_xlfn.CONCAT(M$16:M$19),'Capex Trajectories'!$C$9:$YX$9,0)) -> 0.4636083338 | N168: =OFFSET('Capex Trajectories'!$B$9,MATCH(Resource_Characteristics!$E168,'Capex Trajectories'!$B$10:$B$42,0),MATCH(_xlfn.CONCAT(N$16:N$19),'Capex Trajectories'!$C$9:$YX$9,0)) -> 0.4636083338 | O168: =OFFSET('Capex Trajectories'!$B$9,MATCH(Resource_Characteristics!$E168,'Capex Trajectories'!$B$10:$B$42,0),MATCH(_xlfn.CONCAT(O$16:O$19),'Capex Trajectories'!$C$9:$YX$9,0)) -> 0.4636083338 | P168: =OFFSET('Capex Trajectories'!$B$9,MATCH(Resource_Characteristics!$E168,'Capex Trajectories'!$B$10:$B$42,0),MATCH(_xlfn.CONCAT(P$16:P$19),'Capex Trajectories'!$C$9:$YX$9,0)) -> 0.4636083338 | Q168: =OFFSET('Capex Trajectories'!$B$9,MATCH(Resource_Characteristics!$E168,'Capex Trajectories'!$B$10:$B$42,0),MATCH(_xlfn.CONCAT(Q$16:Q$19),'Capex Trajectories'!$C$9:$YX$9,0)) -> 0.6350066512 | R168: =OFFSET('Capex Trajectories'!$B$9,MATCH(Resource_Characteristics!$E168,'Capex Trajectories'!$B$10:$B$42,0),MATCH(_xlfn.CONCAT(R$16:R$19),'Capex Trajectories'!$C$9:$YX$9,0)) -> 1 | S168: =OFFSET('Capex Trajectories'!$B$9,MATCH(Resource_Characteristics!$E168,'Capex Trajectories'!$B$10:$B$42,0),MATCH(_xlfn.CONCAT(S$16:S$19),'Capex Trajectories'!$C$9:$YX$9,0)) -> 1 | T168: =OFFSET('Capex Trajectories'!$B$9,MATCH(Resource_Characteristics!$E168,'Capex Trajectories'!$B$10:$B$42,0),MATCH(_xlfn.CONCAT(T$16:T$19),'Capex Trajectories'!$C$9:$YX$9,0)) -> 0.5479030936 | U168: =OFFSET('Capex Trajectories'!$B$9,MATCH(Resource_Characteristics!$E168,'Capex Trajectories'!$B$10:$B$42,0),MATCH(_xlfn.CONCAT(U$16:U$19),'Capex Trajectories'!$C$9:$YX$9,0)) -> 0.6095244027 | V168: =OFFSET('Capex Trajectories'!$B$9,MATCH(Resource_Characteristics!$E168,'Capex Trajectories'!$B$10:$B$42,0),MATCH(_xlfn.CONCAT(V$16:V$19),'Capex Trajectories'!$C$9:$YX$9,0)) -> 0.4788554527 | W168: =OFFSET('Capex Trajectories'!$B$9,MATCH(Resource_Characteristics!$E168,'Capex Trajectories'!$B$10:$B$42,0),MATCH(_xlfn.CONCAT(W$16:W$19),'Capex Trajectories'!$C$9:$YX$9,0)) -> 0.4788554527 | X168: =OFFSET('Capex Trajectories'!$B$9,MATCH(Resource_Characteristics!$E168,'Capex Trajectories'!$B$10:$B$42,0),MATCH(_xlfn.CONCAT(X$16:X$19),'Capex Trajectories'!$C$9:$YX$9,0)) -> 0.952074074 | Y168: =OFFSET('Capex Trajectories'!$B$9,MATCH(Resource_Characteristics!$E168,'Capex Trajectories'!$B$10:$B$42,0),MATCH(_xlfn.CONCAT(Y$16:Y$19),'Capex Trajectories'!$C$9:$YX$9,0)) -> 0.952074074 | Z168: =OFFSET('Capex Trajectories'!$B$9,MATCH(Resource_Characteristics!$E168,'Capex Trajectories'!$B$10:$B$42,0),MATCH(_xlfn.CONCAT(Z$16:Z$19),'Capex Trajectories'!$C$9:$YX$9,0)) -> 0.952074074 | AA168: =OFFSET('Capex Trajectories'!$B$9,MATCH(Resource_Characteristics!$E168,'Capex Trajectories'!$B$10:$B$42,0),MATCH(_xlfn.CONCAT(AA$16:AA$19),'Capex Trajectories'!$C$9:$YX$9,0)) -> 0.952074074 | AB168: =OFFSET('Capex Trajectories'!$B$9,MATCH(Resource_Characteristics!$E168,'Capex Trajectories'!$B$10:$B$42,0),MATCH(_xlfn.CONCAT(AB$16:AB$19),'Capex Trajectories'!$C$9:$YX$9,0)) -> 0.9113953565 | AC168: =OFFSET('Capex Trajectories'!$B$9,MATCH(Resource_Characteristics!$E168,'Capex Trajectories'!$B$10:$B$42,0),MATCH(_xlfn.CONCAT(AC$16:AC$19),'Capex Trajectories'!$C$9:$YX$9,0)) -> 0.9514961106 | AD168: =OFFSET('Capex Trajectories'!$B$9,MATCH(Resource_Characteristics!$E168,'Capex Trajectories'!$B$10:$B$42,0),MATCH(_xlfn.CONCAT(AD$16:AD$19),'Capex Trajectories'!$C$9:$YX$9,0)) -> 0.9514961106 | AE168: =OFFSET('Capex Trajectories'!$B$9,MATCH(Resource_Characteristics!$E168,'Capex Trajectories'!$B$10:$B$42,0),MATCH(_xlfn.CONCAT(AE$16:AE$19),'Capex Trajectories'!$C$9:$YX$9,0)) -> 1 | AF168: =OFFSET('Capex Trajectories'!$B$9,MATCH(Resource_Characteristics!$E168,'Capex Trajectories'!$B$10:$B$42,0),MATCH(_xlfn.CONCAT(AF$16:AF$19),'Capex Trajectories'!$C$9:$YX$9,0)) -> 0.9698492601 | AG168: =OFFSET('Capex Trajectories'!$B$9,MATCH(Resource_Characteristics!$E168,'Capex Trajectories'!$B$10:$B$42,0),MATCH(_xlfn.CONCAT(AG$16:AG$19),'Capex Trajectories'!$C$9:$YX$9,0)) -> 0.9698492296 | AH168: =OFFSET('Capex Trajectories'!$B$9,MATCH(Resource_Characteristics!$E168,'Capex Trajectories'!$B$10:$B$42,0),MATCH(_xlfn.CONCAT(AH$16:AH$19),'Capex Trajectories'!$C$9:$YX$9,0)) -> 0.96984924 | AI168: =OFFSET('Capex Trajectories'!$B$9,MATCH(Resource_Characteristics!$E168,'Capex Trajectories'!$B$10:$B$42,0),MATCH(_xlfn.CONCAT(AI$16:AI$19),'Capex Trajectories'!$C$9:$YX$9,0)) -> 0.9698492462 | AJ168: =OFFSET('Capex Trajectories'!$B$9,MATCH(Resource_Characteristics!$E168,'Capex Trajectories'!$B$10:$B$42,0),MATCH(_xlfn.CONCAT(AJ$16:AJ$19),'Capex Trajectories'!$C$9:$YX$9,0)) -> 1 | AK168: =OFFSET('Capex Trajectories'!$B$9,MATCH(Resource_Characteristics!$E168,'Capex Trajectories'!$B$10:$B$42,0),MATCH(_xlfn.CONCAT(AK$16:AK$19),'Capex Trajectories'!$C$9:$YX$9,0)) -> 0.9435970784 | AL168: =OFFSET('Capex Trajectories'!$B$9,MATCH(Resource_Characteristics!$E168,'Capex Trajectories'!$B$10:$B$42,0),MATCH(_xlfn.CONCAT(AL$16:AL$19),'Capex Trajectories'!$C$9:$YX$9,0)) -> 0.8 | AM168: =OFFSET('Capex Trajectories'!$B$9,MATCH(Resource_Characteristics!$E168,'Capex Trajectories'!$B$10:$B$42,0),MATCH(_xlfn.CONCAT(AM$16:AM$19),'Capex Trajectories'!$C$9:$YX$9,0)) -> 1 | AN168: =OFFSET('Capex Trajectories'!$B$9,MATCH(Resource_Characteristics!$E168,'Capex Trajectories'!$B$10:$B$42,0),MATCH(_xlfn.CONCAT(AN$16:AN$19),'Capex Trajectories'!$C$9:$YX$9,0)) -> 0.9571003773 | AO168: =OFFSET('Capex Trajectories'!$B$9,MATCH(Resource_Characteristics!$E168,'Capex Trajectories'!$B$10:$B$42,0),MATCH(_xlfn.CONCAT(AO$16:AO$19),'Capex Trajectories'!$C$9:$YX$9,0)) -> 0.9571003773 | AP168: =OFFSET('Capex Trajectories'!$B$9,MATCH(Resource_Characteristics!$E168,'Capex Trajectories'!$B$10:$B$42,0),MATCH(_xlfn.CONCAT(AP$16:AP$19),'Capex Trajectories'!$C$9:$YX$9,0)) -> 0.9680864685 | AQ168: =OFFSET('Capex Trajectories'!$B$9,MATCH(Resource_Characteristics!$E168,'Capex Trajectories'!$B$10:$B$42,0),MATCH(_xlfn.CONCAT(AQ$16:AQ$19),'Capex Trajectories'!$C$9:$YX$9,0)) -> 0.951296659 | AZ168: 2040 | BA168: 0.045 | BB168: 0.045 | BC168: 0.045 | BD168: 0.045 | BE168: 0.045 | BF168: 0.045
E169: 2031 | F169: 0.9475120938 | I169: =OFFSET('Capex Trajectories'!$B$9,MATCH(Resource_Characteristics!$E169,'Capex Trajectories'!$B$10:$B$42,0),MATCH(_xlfn.CONCAT(I$16:I$19),'Capex Trajectories'!$C$9:$YX$9,0)) -> 0.7645929914 | J169: =OFFSET('Capex Trajectories'!$B$9,MATCH(Resource_Characteristics!$E169,'Capex Trajectories'!$B$10:$B$42,0),MATCH(_xlfn.CONCAT(J$16:J$19),'Capex Trajectories'!$C$9:$YX$9,0)) -> 0.8723701059 | K169: =OFFSET('Capex Trajectories'!$B$9,MATCH(Resource_Characteristics!$E169,'Capex Trajectories'!$B$10:$B$42,0),MATCH(_xlfn.CONCAT(K$16:K$19),'Capex Trajectories'!$C$9:$YX$9,0)) -> 0.6866929345 | L169: =OFFSET('Capex Trajectories'!$B$9,MATCH(Resource_Characteristics!$E169,'Capex Trajectories'!$B$10:$B$42,0),MATCH(_xlfn.CONCAT(L$16:L$19),'Capex Trajectories'!$C$9:$YX$9,0)) -> 0.7253903206 | M169: =OFFSET('Capex Trajectories'!$B$9,MATCH(Resource_Characteristics!$E169,'Capex Trajectories'!$B$10:$B$42,0),MATCH(_xlfn.CONCAT(M$16:M$19),'Capex Trajectories'!$C$9:$YX$9,0)) -> 0.4553664079 | N169: =OFFSET('Capex Trajectories'!$B$9,MATCH(Resource_Characteristics!$E169,'Capex Trajectories'!$B$10:$B$42,0),MATCH(_xlfn.CONCAT(N$16:N$19),'Capex Trajectories'!$C$9:$YX$9,0)) -> 0.4553664079 | O169: =OFFSET('Capex Trajectories'!$B$9,MATCH(Resource_Characteristics!$E169,'Capex Trajectories'!$B$10:$B$42,0),MATCH(_xlfn.CONCAT(O$16:O$19),'Capex Trajectories'!$C$9:$YX$9,0)) -> 0.4553664079 | P169: =OFFSET('Capex Trajectories'!$B$9,MATCH(Resource_Characteristics!$E169,'Capex Trajectories'!$B$10:$B$42,0),MATCH(_xlfn.CONCAT(P$16:P$19),'Capex Trajectories'!$C$9:$YX$9,0)) -> 0.4553664079 | Q169: =OFFSET('Capex Trajectories'!$B$9,MATCH(Resource_Characteristics!$E169,'Capex Trajectories'!$B$10:$B$42,0),MATCH(_xlfn.CONCAT(Q$16:Q$19),'Capex Trajectories'!$C$9:$YX$9,0)) -> 0.6314788365 | R169: =OFFSET('Capex Trajectories'!$B$9,MATCH(Resource_Characteristics!$E169,'Capex Trajectories'!$B$10:$B$42,0),MATCH(_xlfn.CONCAT(R$16:R$19),'Capex Trajectories'!$C$9:$YX$9,0)) -> 1 | S169: =OFFSET('Capex Trajectories'!$B$9,MATCH(Resource_Characteristics!$E169,'Capex Trajectories'!$B$10:$B$42,0),MATCH(_xlfn.CONCAT(S$16:S$19),'Capex Trajectories'!$C$9:$YX$9,0)) -> 1 | T169: =OFFSET('Capex Trajectories'!$B$9,MATCH(Resource_Characteristics!$E169,'Capex Trajectories'!$B$10:$B$42,0),MATCH(_xlfn.CONCAT(T$16:T$19),'Capex Trajectories'!$C$9:$YX$9,0)) -> 0.5386076895 | U169: =OFFSET('Capex Trajectories'!$B$9,MATCH(Resource_Characteristics!$E169,'Capex Trajectories'!$B$10:$B$42,0),MATCH(_xlfn.CONCAT(U$16:U$19),'Capex Trajectories'!$C$9:$YX$9,0)) -> 0.6037810577 | V169: =OFFSET('Capex Trajectories'!$B$9,MATCH(Resource_Characteristics!$E169,'Capex Trajectories'!$B$10:$B$42,0),MATCH(_xlfn.CONCAT(V$16:V$19),'Capex Trajectories'!$C$9:$YX$9,0)) -> 0.4745989598 | W169: =OFFSET('Capex Trajectories'!$B$9,MATCH(Resource_Characteristics!$E169,'Capex Trajectories'!$B$10:$B$42,0),MATCH(_xlfn.CONCAT(W$16:W$19),'Capex Trajectories'!$C$9:$YX$9,0)) -> 0.4745989598 | X169: =OFFSET('Capex Trajectories'!$B$9,MATCH(Resource_Characteristics!$E169,'Capex Trajectories'!$B$10:$B$42,0),MATCH(_xlfn.CONCAT(X$16:X$19),'Capex Trajectories'!$C$9:$YX$9,0)) -> 0.9490958912 | Y169: =OFFSET('Capex Trajectories'!$B$9,MATCH(Resource_Characteristics!$E169,'Capex Trajectories'!$B$10:$B$42,0),MATCH(_xlfn.CONCAT(Y$16:Y$19),'Capex Trajectories'!$C$9:$YX$9,0)) -> 0.9490958912 | Z169: =OFFSET('Capex Trajectories'!$B$9,MATCH(Resource_Characteristics!$E169,'Capex Trajectories'!$B$10:$B$42,0),MATCH(_xlfn.CONCAT(Z$16:Z$19),'Capex Trajectories'!$C$9:$YX$9,0)) -> 0.9490958912 | AA169: =OFFSET('Capex Trajectories'!$B$9,MATCH(Resource_Characteristics!$E169,'Capex Trajectories'!$B$10:$B$42,0),MATCH(_xlfn.CONCAT(AA$16:AA$19),'Capex Trajectories'!$C$9:$YX$9,0)) -> 0.9490958912 | AB169: =OFFSET('Capex Trajectories'!$B$9,MATCH(Resource_Characteristics!$E169,'Capex Trajectories'!$B$10:$B$42,0),MATCH(_xlfn.CONCAT(AB$16:AB$19),'Capex Trajectories'!$C$9:$YX$9,0)) -> 0.9050223173 | AC169: =OFFSET('Capex Trajectories'!$B$9,MATCH(Resource_Characteristics!$E169,'Capex Trajectories'!$B$10:$B$42,0),MATCH(_xlfn.CONCAT(AC$16:AC$19),'Capex Trajectories'!$C$9:$YX$9,0)) -> 0.9482837507 | AD169: =OFFSET('Capex Trajectories'!$B$9,MATCH(Resource_Characteristics!$E169,'Capex Trajectories'!$B$10:$B$42,0),MATCH(_xlfn.CONCAT(AD$16:AD$19),'Capex Trajectories'!$C$9:$YX$9,0)) -> 0.9482837507 | AE169: =OFFSET('Capex Trajectories'!$B$9,MATCH(Resource_Characteristics!$E169,'Capex Trajectories'!$B$10:$B$42,0),MATCH(_xlfn.CONCAT(AE$16:AE$19),'Capex Trajectories'!$C$9:$YX$9,0)) -> 1 | AF169: =OFFSET('Capex Trajectories'!$B$9,MATCH(Resource_Characteristics!$E169,'Capex Trajectories'!$B$10:$B$42,0),MATCH(_xlfn.CONCAT(AF$16:AF$19),'Capex Trajectories'!$C$9:$YX$9,0)) -> 0.9673366984 | AG169: =OFFSET('Capex Trajectories'!$B$9,MATCH(Resource_Characteristics!$E169,'Capex Trajectories'!$B$10:$B$42,0),MATCH(_xlfn.CONCAT(AG$16:AG$19),'Capex Trajectories'!$C$9:$YX$9,0)) -> 0.9673366654 | AH169: =OFFSET('Capex Trajectories'!$B$9,MATCH(Resource_Characteristics!$E169,'Capex Trajectories'!$B$10:$B$42,0),MATCH(_xlfn.CONCAT(AH$16:AH$19),'Capex Trajectories'!$C$9:$YX$9,0)) -> 0.9673366767 | AI169: =OFFSET('Capex Trajectories'!$B$9,MATCH(Resource_Characteristics!$E169,'Capex Trajectories'!$B$10:$B$42,0),MATCH(_xlfn.CONCAT(AI$16:AI$19),'Capex Trajectories'!$C$9:$YX$9,0)) -> 0.9673366834 | AJ169: =OFFSET('Capex Trajectories'!$B$9,MATCH(Resource_Characteristics!$E169,'Capex Trajectories'!$B$10:$B$42,0),MATCH(_xlfn.CONCAT(AJ$16:AJ$19),'Capex Trajectories'!$C$9:$YX$9,0)) -> 1 | AK169: =OFFSET('Capex Trajectories'!$B$9,MATCH(Resource_Characteristics!$E169,'Capex Trajectories'!$B$10:$B$42,0),MATCH(_xlfn.CONCAT(AK$16:AK$19),'Capex Trajectories'!$C$9:$YX$9,0)) -> 0.9404739403 | AL169: =OFFSET('Capex Trajectories'!$B$9,MATCH(Resource_Characteristics!$E169,'Capex Trajectories'!$B$10:$B$42,0),MATCH(_xlfn.CONCAT(AL$16:AL$19),'Capex Trajectories'!$C$9:$YX$9,0)) -> 0.792 | AM169: =OFFSET('Capex Trajectories'!$B$9,MATCH(Resource_Characteristics!$E169,'Capex Trajectories'!$B$10:$B$42,0),MATCH(_xlfn.CONCAT(AM$16:AM$19),'Capex Trajectories'!$C$9:$YX$9,0)) -> 1 | AN169: =OFFSET('Capex Trajectories'!$B$9,MATCH(Resource_Characteristics!$E169,'Capex Trajectories'!$B$10:$B$42,0),MATCH(_xlfn.CONCAT(AN$16:AN$19),'Capex Trajectories'!$C$9:$YX$9,0)) -> 0.952576 | AO169: =OFFSET('Capex Trajectories'!$B$9,MATCH(Resource_Characteristics!$E169,'Capex Trajectories'!$B$10:$B$42,0),MATCH(_xlfn.CONCAT(AO$16:AO$19),'Capex Trajectories'!$C$9:$YX$9,0)) -> 0.952576 | AP169: =OFFSET('Capex Trajectories'!$B$9,MATCH(Resource_Characteristics!$E169,'Capex Trajectories'!$B$10:$B$42,0),MATCH(_xlfn.CONCAT(AP$16:AP$19),'Capex Trajectories'!$C$9:$YX$9,0)) -> 0.9662404003 | AQ169: =OFFSET('Capex Trajectories'!$B$9,MATCH(Resource_Characteristics!$E169,'Capex Trajectories'!$B$10:$B$42,0),MATCH(_xlfn.CONCAT(AQ$16:AQ$19),'Capex Trajectories'!$C$9:$YX$9,0)) -> 0.9475120938 | AZ169: 2041 | BA169: 0.045 | BB169: 0.045 | BC169: 0.045 | BD169: 0.045 | BE169: 0.045 | BF169: 0.045
E170: 2032 | F170: 0.9430333283 | I170: =OFFSET('Capex Trajectories'!$B$9,MATCH(Resource_Characteristics!$E170,'Capex Trajectories'!$B$10:$B$42,0),MATCH(_xlfn.CONCAT(I$16:I$19),'Capex Trajectories'!$C$9:$YX$9,0)) -> 0.7579277972 | J170: =OFFSET('Capex Trajectories'!$B$9,MATCH(Resource_Characteristics!$E170,'Capex Trajectories'!$B$10:$B$42,0),MATCH(_xlfn.CONCAT(J$16:J$19),'Capex Trajectories'!$C$9:$YX$9,0)) -> 0.8657518771 | K170: =OFFSET('Capex Trajectories'!$B$9,MATCH(Resource_Characteristics!$E170,'Capex Trajectories'!$B$10:$B$42,0),MATCH(_xlfn.CONCAT(K$16:K$19),'Capex Trajectories'!$C$9:$YX$9,0)) -> 0.6813776403 | L170: =OFFSET('Capex Trajectories'!$B$9,MATCH(Resource_Characteristics!$E170,'Capex Trajectories'!$B$10:$B$42,0),MATCH(_xlfn.CONCAT(L$16:L$19),'Capex Trajectories'!$C$9:$YX$9,0)) -> 0.7203292548 | M170: =OFFSET('Capex Trajectories'!$B$9,MATCH(Resource_Characteristics!$E170,'Capex Trajectories'!$B$10:$B$42,0),MATCH(_xlfn.CONCAT(M$16:M$19),'Capex Trajectories'!$C$9:$YX$9,0)) -> 0.4508127438 | N170: =OFFSET('Capex Trajectories'!$B$9,MATCH(Resource_Characteristics!$E170,'Capex Trajectories'!$B$10:$B$42,0),MATCH(_xlfn.CONCAT(N$16:N$19),'Capex Trajectories'!$C$9:$YX$9,0)) -> 0.4508127438 | O170: =OFFSET('Capex Trajectories'!$B$9,MATCH(Resource_Characteristics!$E170,'Capex Trajectories'!$B$10:$B$42,0),MATCH(_xlfn.CONCAT(O$16:O$19),'Capex Trajectories'!$C$9:$YX$9,0)) -> 0.4508127438 | P170: =OFFSET('Capex Trajectories'!$B$9,MATCH(Resource_Characteristics!$E170,'Capex Trajectories'!$B$10:$B$42,0),MATCH(_xlfn.CONCAT(P$16:P$19),'Capex Trajectories'!$C$9:$YX$9,0)) -> 0.4508127438 | Q170: =OFFSET('Capex Trajectories'!$B$9,MATCH(Resource_Characteristics!$E170,'Capex Trajectories'!$B$10:$B$42,0),MATCH(_xlfn.CONCAT(Q$16:Q$19),'Capex Trajectories'!$C$9:$YX$9,0)) -> 0.6314788365 | R170: =OFFSET('Capex Trajectories'!$B$9,MATCH(Resource_Characteristics!$E170,'Capex Trajectories'!$B$10:$B$42,0),MATCH(_xlfn.CONCAT(R$16:R$19),'Capex Trajectories'!$C$9:$YX$9,0)) -> 1 | S170: =OFFSET('Capex Trajectories'!$B$9,MATCH(Resource_Characteristics!$E170,'Capex Trajectories'!$B$10:$B$42,0),MATCH(_xlfn.CONCAT(S$16:S$19),'Capex Trajectories'!$C$9:$YX$9,0)) -> 1 | T170: =OFFSET('Capex Trajectories'!$B$9,MATCH(Resource_Characteristics!$E170,'Capex Trajectories'!$B$10:$B$42,0),MATCH(_xlfn.CONCAT(T$16:T$19),'Capex Trajectories'!$C$9:$YX$9,0)) -> 0.5293122855 | U170: =OFFSET('Capex Trajectories'!$B$9,MATCH(Resource_Characteristics!$E170,'Capex Trajectories'!$B$10:$B$42,0),MATCH(_xlfn.CONCAT(U$16:U$19),'Capex Trajectories'!$C$9:$YX$9,0)) -> 0.5980377127 | V170: =OFFSET('Capex Trajectories'!$B$9,MATCH(Resource_Characteristics!$E170,'Capex Trajectories'!$B$10:$B$42,0),MATCH(_xlfn.CONCAT(V$16:V$19),'Capex Trajectories'!$C$9:$YX$9,0)) -> 0.4698529702 | W170: =OFFSET('Capex Trajectories'!$B$9,MATCH(Resource_Characteristics!$E170,'Capex Trajectories'!$B$10:$B$42,0),MATCH(_xlfn.CONCAT(W$16:W$19),'Capex Trajectories'!$C$9:$YX$9,0)) -> 0.4698529702 | X170: =OFFSET('Capex Trajectories'!$B$9,MATCH(Resource_Characteristics!$E170,'Capex Trajectories'!$B$10:$B$42,0),MATCH(_xlfn.CONCAT(X$16:X$19),'Capex Trajectories'!$C$9:$YX$9,0)) -> 0.9452616342 | Y170: =OFFSET('Capex Trajectories'!$B$9,MATCH(Resource_Characteristics!$E170,'Capex Trajectories'!$B$10:$B$42,0),MATCH(_xlfn.CONCAT(Y$16:Y$19),'Capex Trajectories'!$C$9:$YX$9,0)) -> 0.9452616342 | Z170: =OFFSET('Capex Trajectories'!$B$9,MATCH(Resource_Characteristics!$E170,'Capex Trajectories'!$B$10:$B$42,0),MATCH(_xlfn.CONCAT(Z$16:Z$19),'Capex Trajectories'!$C$9:$YX$9,0)) -> 0.9452616342 | AA170: =OFFSET('Capex Trajectories'!$B$9,MATCH(Resource_Characteristics!$E170,'Capex Trajectories'!$B$10:$B$42,0),MATCH(_xlfn.CONCAT(AA$16:AA$19),'Capex Trajectories'!$C$9:$YX$9,0)) -> 0.9452616342 | AB170: =OFFSET('Capex Trajectories'!$B$9,MATCH(Resource_Characteristics!$E170,'Capex Trajectories'!$B$10:$B$42,0),MATCH(_xlfn.CONCAT(AB$16:AB$19),'Capex Trajectories'!$C$9:$YX$9,0)) -> 0.8977806726 | AC170: =OFFSET('Capex Trajectories'!$B$9,MATCH(Resource_Characteristics!$E170,'Capex Trajectories'!$B$10:$B$42,0),MATCH(_xlfn.CONCAT(AC$16:AC$19),'Capex Trajectories'!$C$9:$YX$9,0)) -> 0.9441836167 | AD170: =OFFSET('Capex Trajectories'!$B$9,MATCH(Resource_Characteristics!$E170,'Capex Trajectories'!$B$10:$B$42,0),MATCH(_xlfn.CONCAT(AD$16:AD$19),'Capex Trajectories'!$C$9:$YX$9,0)) -> 0.9441836167 | AE170: =OFFSET('Capex Trajectories'!$B$9,MATCH(Resource_Characteristics!$E170,'Capex Trajectories'!$B$10:$B$42,0),MATCH(_xlfn.CONCAT(AE$16:AE$19),'Capex Trajectories'!$C$9:$YX$9,0)) -> 1 | AF170: =OFFSET('Capex Trajectories'!$B$9,MATCH(Resource_Characteristics!$E170,'Capex Trajectories'!$B$10:$B$42,0),MATCH(_xlfn.CONCAT(AF$16:AF$19),'Capex Trajectories'!$C$9:$YX$9,0)) -> 0.9648241368 | AG170: =OFFSET('Capex Trajectories'!$B$9,MATCH(Resource_Characteristics!$E170,'Capex Trajectories'!$B$10:$B$42,0),MATCH(_xlfn.CONCAT(AG$16:AG$19),'Capex Trajectories'!$C$9:$YX$9,0)) -> 0.9648241013 | AH170: =OFFSET('Capex Trajectories'!$B$9,MATCH(Resource_Characteristics!$E170,'Capex Trajectories'!$B$10:$B$42,0),MATCH(_xlfn.CONCAT(AH$16:AH$19),'Capex Trajectories'!$C$9:$YX$9,0)) -> 0.9648241133 | AI170: =OFFSET('Capex Trajectories'!$B$9,MATCH(Resource_Characteristics!$E170,'Capex Trajectories'!$B$10:$B$42,0),MATCH(_xlfn.CONCAT(AI$16:AI$19),'Capex Trajectories'!$C$9:$YX$9,0)) -> 0.9648241206 | AJ170: =OFFSET('Capex Trajectories'!$B$9,MATCH(Resource_Characteristics!$E170,'Capex Trajectories'!$B$10:$B$42,0),MATCH(_xlfn.CONCAT(AJ$16:AJ$19),'Capex Trajectories'!$C$9:$YX$9,0)) -> 1 | AK170: =OFFSET('Capex Trajectories'!$B$9,MATCH(Resource_Characteristics!$E170,'Capex Trajectories'!$B$10:$B$42,0),MATCH(_xlfn.CONCAT(AK$16:AK$19),'Capex Trajectories'!$C$9:$YX$9,0)) -> 0.9366619579 | AL170: =OFFSET('Capex Trajectories'!$B$9,MATCH(Resource_Characteristics!$E170,'Capex Trajectories'!$B$10:$B$42,0),MATCH(_xlfn.CONCAT(AL$16:AL$19),'Capex Trajectories'!$C$9:$YX$9,0)) -> 0.784 | AM170: =OFFSET('Capex Trajectories'!$B$9,MATCH(Resource_Characteristics!$E170,'Capex Trajectories'!$B$10:$B$42,0),MATCH(_xlfn.CONCAT(AM$16:AM$19),'Capex Trajectories'!$C$9:$YX$9,0)) -> 1 | AN170: =OFFSET('Capex Trajectories'!$B$9,MATCH(Resource_Characteristics!$E170,'Capex Trajectories'!$B$10:$B$42,0),MATCH(_xlfn.CONCAT(AN$16:AN$19),'Capex Trajectories'!$C$9:$YX$9,0)) -> 0.947352976 | AO170: =OFFSET('Capex Trajectories'!$B$9,MATCH(Resource_Characteristics!$E170,'Capex Trajectories'!$B$10:$B$42,0),MATCH(_xlfn.CONCAT(AO$16:AO$19),'Capex Trajectories'!$C$9:$YX$9,0)) -> 0.947352976 | AP170: =OFFSET('Capex Trajectories'!$B$9,MATCH(Resource_Characteristics!$E170,'Capex Trajectories'!$B$10:$B$42,0),MATCH(_xlfn.CONCAT(AP$16:AP$19),'Capex Trajectories'!$C$9:$YX$9,0)) -> 0.9636874029 | AQ170: =OFFSET('Capex Trajectories'!$B$9,MATCH(Resource_Characteristics!$E170,'Capex Trajectories'!$B$10:$B$42,0),MATCH(_xlfn.CONCAT(AQ$16:AQ$19),'Capex Trajectories'!$C$9:$YX$9,0)) -> 0.9430333283 | AZ170: 2042 | BA170: 0.045 | BB170: 0.045 | BC170: 0.045 | BD170: 0.045 | BE170: 0.045 | BF170: 0.045
E171: 2033 | F171: 0.9388742415 | I171: =OFFSET('Capex Trajectories'!$B$9,MATCH(Resource_Characteristics!$E171,'Capex Trajectories'!$B$10:$B$42,0),MATCH(_xlfn.CONCAT(I$16:I$19),'Capex Trajectories'!$C$9:$YX$9,0)) -> 0.751262603 | J171: =OFFSET('Capex Trajectories'!$B$9,MATCH(Resource_Characteristics!$E171,'Capex Trajectories'!$B$10:$B$42,0),MATCH(_xlfn.CONCAT(J$16:J$19),'Capex Trajectories'!$C$9:$YX$9,0)) -> 0.8595907134 | K171: =OFFSET('Capex Trajectories'!$B$9,MATCH(Resource_Characteristics!$E171,'Capex Trajectories'!$B$10:$B$42,0),MATCH(_xlfn.CONCAT(K$16:K$19),'Capex Trajectories'!$C$9:$YX$9,0)) -> 0.6757670519 | L171: =OFFSET('Capex Trajectories'!$B$9,MATCH(Resource_Characteristics!$E171,'Capex Trajectories'!$B$10:$B$42,0),MATCH(_xlfn.CONCAT(L$16:L$19),'Capex Trajectories'!$C$9:$YX$9,0)) -> 0.7150807422 | M171: =OFFSET('Capex Trajectories'!$B$9,MATCH(Resource_Characteristics!$E171,'Capex Trajectories'!$B$10:$B$42,0),MATCH(_xlfn.CONCAT(M$16:M$19),'Capex Trajectories'!$C$9:$YX$9,0)) -> 0.4463046164 | N171: =OFFSET('Capex Trajectories'!$B$9,MATCH(Resource_Characteristics!$E171,'Capex Trajectories'!$B$10:$B$42,0),MATCH(_xlfn.CONCAT(N$16:N$19),'Capex Trajectories'!$C$9:$YX$9,0)) -> 0.4463046164 | O171: =OFFSET('Capex Trajectories'!$B$9,MATCH(Resource_Characteristics!$E171,'Capex Trajectories'!$B$10:$B$42,0),MATCH(_xlfn.CONCAT(O$16:O$19),'Capex Trajectories'!$C$9:$YX$9,0)) -> 0.4463046164 | P171: =OFFSET('Capex Trajectories'!$B$9,MATCH(Resource_Characteristics!$E171,'Capex Trajectories'!$B$10:$B$42,0),MATCH(_xlfn.CONCAT(P$16:P$19),'Capex Trajectories'!$C$9:$YX$9,0)) -> 0.4463046164 | Q171: =OFFSET('Capex Trajectories'!$B$9,MATCH(Resource_Characteristics!$E171,'Capex Trajectories'!$B$10:$B$42,0),MATCH(_xlfn.CONCAT(Q$16:Q$19),'Capex Trajectories'!$C$9:$YX$9,0)) -> 0.6314788365 | R171: =OFFSET('Capex Trajectories'!$B$9,MATCH(Resource_Characteristics!$E171,'Capex Trajectories'!$B$10:$B$42,0),MATCH(_xlfn.CONCAT(R$16:R$19),'Capex Trajectories'!$C$9:$YX$9,0)) -> 1 | S171: =OFFSET('Capex Trajectories'!$B$9,MATCH(Resource_Characteristics!$E171,'Capex Trajectories'!$B$10:$B$42,0),MATCH(_xlfn.CONCAT(S$16:S$19),'Capex Trajectories'!$C$9:$YX$9,0)) -> 1 | T171: =OFFSET('Capex Trajectories'!$B$9,MATCH(Resource_Characteristics!$E171,'Capex Trajectories'!$B$10:$B$42,0),MATCH(_xlfn.CONCAT(T$16:T$19),'Capex Trajectories'!$C$9:$YX$9,0)) -> 0.5200168814 | U171: =OFFSET('Capex Trajectories'!$B$9,MATCH(Resource_Characteristics!$E171,'Capex Trajectories'!$B$10:$B$42,0),MATCH(_xlfn.CONCAT(U$16:U$19),'Capex Trajectories'!$C$9:$YX$9,0)) -> 0.5922943678 | V171: =OFFSET('Capex Trajectories'!$B$9,MATCH(Resource_Characteristics!$E171,'Capex Trajectories'!$B$10:$B$42,0),MATCH(_xlfn.CONCAT(V$16:V$19),'Capex Trajectories'!$C$9:$YX$9,0)) -> 0.4651544405 | W171: =OFFSET('Capex Trajectories'!$B$9,MATCH(Resource_Characteristics!$E171,'Capex Trajectories'!$B$10:$B$42,0),MATCH(_xlfn.CONCAT(W$16:W$19),'Capex Trajectories'!$C$9:$YX$9,0)) -> 0.4651544405 | X171: =OFFSET('Capex Trajectories'!$B$9,MATCH(Resource_Characteristics!$E171,'Capex Trajectories'!$B$10:$B$42,0),MATCH(_xlfn.CONCAT(X$16:X$19),'Capex Trajectories'!$C$9:$YX$9,0)) -> 0.9417145833 | Y171: =OFFSET('Capex Trajectories'!$B$9,MATCH(Resource_Characteristics!$E171,'Capex Trajectories'!$B$10:$B$42,0),MATCH(_xlfn.CONCAT(Y$16:Y$19),'Capex Trajectories'!$C$9:$YX$9,0)) -> 0.9417145833 | Z171: =OFFSET('Capex Trajectories'!$B$9,MATCH(Resource_Characteristics!$E171,'Capex Trajectories'!$B$10:$B$42,0),MATCH(_xlfn.CONCAT(Z$16:Z$19),'Capex Trajectories'!$C$9:$YX$9,0)) -> 0.9417145833 | AA171: =OFFSET('Capex Trajectories'!$B$9,MATCH(Resource_Characteristics!$E171,'Capex Trajectories'!$B$10:$B$42,0),MATCH(_xlfn.CONCAT(AA$16:AA$19),'Capex Trajectories'!$C$9:$YX$9,0)) -> 0.9417145833 | AB171: =OFFSET('Capex Trajectories'!$B$9,MATCH(Resource_Characteristics!$E171,'Capex Trajectories'!$B$10:$B$42,0),MATCH(_xlfn.CONCAT(AB$16:AB$19),'Capex Trajectories'!$C$9:$YX$9,0)) -> 0.8908001156 | AC171: =OFFSET('Capex Trajectories'!$B$9,MATCH(Resource_Characteristics!$E171,'Capex Trajectories'!$B$10:$B$42,0),MATCH(_xlfn.CONCAT(AC$16:AC$19),'Capex Trajectories'!$C$9:$YX$9,0)) -> 0.9403631555 | AD171: =OFFSET('Capex Trajectories'!$B$9,MATCH(Resource_Characteristics!$E171,'Capex Trajectories'!$B$10:$B$42,0),MATCH(_xlfn.CONCAT(AD$16:AD$19),'Capex Trajectories'!$C$9:$YX$9,0)) -> 0.9403631555 | AE171: =OFFSET('Capex Trajectories'!$B$9,MATCH(Resource_Characteristics!$E171,'Capex Trajectories'!$B$10:$B$42,0),MATCH(_xlfn.CONCAT(AE$16:AE$19),'Capex Trajectories'!$C$9:$YX$9,0)) -> 1 | AF171: =OFFSET('Capex Trajectories'!$B$9,MATCH(Resource_Characteristics!$E171,'Capex Trajectories'!$B$10:$B$42,0),MATCH(_xlfn.CONCAT(AF$16:AF$19),'Capex Trajectories'!$C$9:$YX$9,0)) -> 0.9623115751 | AG171: =OFFSET('Capex Trajectories'!$B$9,MATCH(Resource_Characteristics!$E171,'Capex Trajectories'!$B$10:$B$42,0),MATCH(_xlfn.CONCAT(AG$16:AG$19),'Capex Trajectories'!$C$9:$YX$9,0)) -> 0.9623115371 | AH171: =OFFSET('Capex Trajectories'!$B$9,MATCH(Resource_Characteristics!$E171,'Capex Trajectories'!$B$10:$B$42,0),MATCH(_xlfn.CONCAT(AH$16:AH$19),'Capex Trajectories'!$C$9:$YX$9,0)) -> 0.96231155 | AI171: =OFFSET('Capex Trajectories'!$B$9,MATCH(Resource_Characteristics!$E171,'Capex Trajectories'!$B$10:$B$42,0),MATCH(_xlfn.CONCAT(AI$16:AI$19),'Capex Trajectories'!$C$9:$YX$9,0)) -> 0.9623115578 | AJ171: =OFFSET('Capex Trajectories'!$B$9,MATCH(Resource_Characteristics!$E171,'Capex Trajectories'!$B$10:$B$42,0),MATCH(_xlfn.CONCAT(AJ$16:AJ$19),'Capex Trajectories'!$C$9:$YX$9,0)) -> 1 | AK171: =OFFSET('Capex Trajectories'!$B$9,MATCH(Resource_Characteristics!$E171,'Capex Trajectories'!$B$10:$B$42,0),MATCH(_xlfn.CONCAT(AK$16:AK$19),'Capex Trajectories'!$C$9:$YX$9,0)) -> 0.9331675819 | AL171: =OFFSET('Capex Trajectories'!$B$9,MATCH(Resource_Characteristics!$E171,'Capex Trajectories'!$B$10:$B$42,0),MATCH(_xlfn.CONCAT(AL$16:AL$19),'Capex Trajectories'!$C$9:$YX$9,0)) -> 0.776 | AM171: =OFFSET('Capex Trajectories'!$B$9,MATCH(Resource_Characteristics!$E171,'Capex Trajectories'!$B$10:$B$42,0),MATCH(_xlfn.CONCAT(AM$16:AM$19),'Capex Trajectories'!$C$9:$YX$9,0)) -> 1 | AN171: =OFFSET('Capex Trajectories'!$B$9,MATCH(Resource_Characteristics!$E171,'Capex Trajectories'!$B$10:$B$42,0),MATCH(_xlfn.CONCAT(AN$16:AN$19),'Capex Trajectories'!$C$9:$YX$9,0)) -> 0.9424509796 | AO171: =OFFSET('Capex Trajectories'!$B$9,MATCH(Resource_Characteristics!$E171,'Capex Trajectories'!$B$10:$B$42,0),MATCH(_xlfn.CONCAT(AO$16:AO$19),'Capex Trajectories'!$C$9:$YX$9,0)) -> 0.9424509796 | AP171: =OFFSET('Capex Trajectories'!$B$9,MATCH(Resource_Characteristics!$E171,'Capex Trajectories'!$B$10:$B$42,0),MATCH(_xlfn.CONCAT(AP$16:AP$19),'Capex Trajectories'!$C$9:$YX$9,0)) -> 0.9614615597 | AQ171: =OFFSET('Capex Trajectories'!$B$9,MATCH(Resource_Characteristics!$E171,'Capex Trajectories'!$B$10:$B$42,0),MATCH(_xlfn.CONCAT(AQ$16:AQ$19),'Capex Trajectories'!$C$9:$YX$9,0)) -> 0.9388742415 | AZ171: 2043 | BA171: 0.045 | BB171: 0.045 | BC171: 0.045 | BD171: 0.045 | BE171: 0.045 | BF171: 0.045
E172: 2034 | F172: 0.9341394038 | I172: =OFFSET('Capex Trajectories'!$B$9,MATCH(Resource_Characteristics!$E172,'Capex Trajectories'!$B$10:$B$42,0),MATCH(_xlfn.CONCAT(I$16:I$19),'Capex Trajectories'!$C$9:$YX$9,0)) -> 0.7445974088 | J172: =OFFSET('Capex Trajectories'!$B$9,MATCH(Resource_Characteristics!$E172,'Capex Trajectories'!$B$10:$B$42,0),MATCH(_xlfn.CONCAT(J$16:J$19),'Capex Trajectories'!$C$9:$YX$9,0)) -> 0.8538866147 | K172: =OFFSET('Capex Trajectories'!$B$9,MATCH(Resource_Characteristics!$E172,'Capex Trajectories'!$B$10:$B$42,0),MATCH(_xlfn.CONCAT(K$16:K$19),'Capex Trajectories'!$C$9:$YX$9,0)) -> 0.6701564636 | L172: =OFFSET('Capex Trajectories'!$B$9,MATCH(Resource_Characteristics!$E172,'Capex Trajectories'!$B$10:$B$42,0),MATCH(_xlfn.CONCAT(L$16:L$19),'Capex Trajectories'!$C$9:$YX$9,0)) -> 0.7096447827 | M172: =OFFSET('Capex Trajectories'!$B$9,MATCH(Resource_Characteristics!$E172,'Capex Trajectories'!$B$10:$B$42,0),MATCH(_xlfn.CONCAT(M$16:M$19),'Capex Trajectories'!$C$9:$YX$9,0)) -> 0.4418415702 | N172: =OFFSET('Capex Trajectories'!$B$9,MATCH(Resource_Characteristics!$E172,'Capex Trajectories'!$B$10:$B$42,0),MATCH(_xlfn.CONCAT(N$16:N$19),'Capex Trajectories'!$C$9:$YX$9,0)) -> 0.4418415702 | O172: =OFFSET('Capex Trajectories'!$B$9,MATCH(Resource_Characteristics!$E172,'Capex Trajectories'!$B$10:$B$42,0),MATCH(_xlfn.CONCAT(O$16:O$19),'Capex Trajectories'!$C$9:$YX$9,0)) -> 0.4418415702 | P172: =OFFSET('Capex Trajectories'!$B$9,MATCH(Resource_Characteristics!$E172,'Capex Trajectories'!$B$10:$B$42,0),MATCH(_xlfn.CONCAT(P$16:P$19),'Capex Trajectories'!$C$9:$YX$9,0)) -> 0.4418415702 | Q172: =OFFSET('Capex Trajectories'!$B$9,MATCH(Resource_Characteristics!$E172,'Capex Trajectories'!$B$10:$B$42,0),MATCH(_xlfn.CONCAT(Q$16:Q$19),'Capex Trajectories'!$C$9:$YX$9,0)) -> 0.6314788365 | R172: =OFFSET('Capex Trajectories'!$B$9,MATCH(Resource_Characteristics!$E172,'Capex Trajectories'!$B$10:$B$42,0),MATCH(_xlfn.CONCAT(R$16:R$19),'Capex Trajectories'!$C$9:$YX$9,0)) -> 1 | S172: =OFFSET('Capex Trajectories'!$B$9,MATCH(Resource_Characteristics!$E172,'Capex Trajectories'!$B$10:$B$42,0),MATCH(_xlfn.CONCAT(S$16:S$19),'Capex Trajectories'!$C$9:$YX$9,0)) -> 1 | T172: =OFFSET('Capex Trajectories'!$B$9,MATCH(Resource_Characteristics!$E172,'Capex Trajectories'!$B$10:$B$42,0),MATCH(_xlfn.CONCAT(T$16:T$19),'Capex Trajectories'!$C$9:$YX$9,0)) -> 0.5107214773 | U172: =OFFSET('Capex Trajectories'!$B$9,MATCH(Resource_Characteristics!$E172,'Capex Trajectories'!$B$10:$B$42,0),MATCH(_xlfn.CONCAT(U$16:U$19),'Capex Trajectories'!$C$9:$YX$9,0)) -> 0.5865510228 | V172: =OFFSET('Capex Trajectories'!$B$9,MATCH(Resource_Characteristics!$E172,'Capex Trajectories'!$B$10:$B$42,0),MATCH(_xlfn.CONCAT(V$16:V$19),'Capex Trajectories'!$C$9:$YX$9,0)) -> 0.4605028961 | W172: =OFFSET('Capex Trajectories'!$B$9,MATCH(Resource_Characteristics!$E172,'Capex Trajectories'!$B$10:$B$42,0),MATCH(_xlfn.CONCAT(W$16:W$19),'Capex Trajectories'!$C$9:$YX$9,0)) -> 0.4605028961 | X172: =OFFSET('Capex Trajectories'!$B$9,MATCH(Resource_Characteristics!$E172,'Capex Trajectories'!$B$10:$B$42,0),MATCH(_xlfn.CONCAT(X$16:X$19),'Capex Trajectories'!$C$9:$YX$9,0)) -> 0.9382896898 | Y172: =OFFSET('Capex Trajectories'!$B$9,MATCH(Resource_Characteristics!$E172,'Capex Trajectories'!$B$10:$B$42,0),MATCH(_xlfn.CONCAT(Y$16:Y$19),'Capex Trajectories'!$C$9:$YX$9,0)) -> 0.9382896898 | Z172: =OFFSET('Capex Trajectories'!$B$9,MATCH(Resource_Characteristics!$E172,'Capex Trajectories'!$B$10:$B$42,0),MATCH(_xlfn.CONCAT(Z$16:Z$19),'Capex Trajectories'!$C$9:$YX$9,0)) -> 0.9382896898 | AA172: =OFFSET('Capex Trajectories'!$B$9,MATCH(Resource_Characteristics!$E172,'Capex Trajectories'!$B$10:$B$42,0),MATCH(_xlfn.CONCAT(AA$16:AA$19),'Capex Trajectories'!$C$9:$YX$9,0)) -> 0.9382896898 | AB172: =OFFSET('Capex Trajectories'!$B$9,MATCH(Resource_Characteristics!$E172,'Capex Trajectories'!$B$10:$B$42,0),MATCH(_xlfn.CONCAT(AB$16:AB$19),'Capex Trajectories'!$C$9:$YX$9,0)) -> 0.8841593649 | AC172: =OFFSET('Capex Trajectories'!$B$9,MATCH(Resource_Characteristics!$E172,'Capex Trajectories'!$B$10:$B$42,0),MATCH(_xlfn.CONCAT(AC$16:AC$19),'Capex Trajectories'!$C$9:$YX$9,0)) -> 0.9368072566 | AD172: =OFFSET('Capex Trajectories'!$B$9,MATCH(Resource_Characteristics!$E172,'Capex Trajectories'!$B$10:$B$42,0),MATCH(_xlfn.CONCAT(AD$16:AD$19),'Capex Trajectories'!$C$9:$YX$9,0)) -> 0.9368072566 | AE172: =OFFSET('Capex Trajectories'!$B$9,MATCH(Resource_Characteristics!$E172,'Capex Trajectories'!$B$10:$B$42,0),MATCH(_xlfn.CONCAT(AE$16:AE$19),'Capex Trajectories'!$C$9:$YX$9,0)) -> 1 | AF172: =OFFSET('Capex Trajectories'!$B$9,MATCH(Resource_Characteristics!$E172,'Capex Trajectories'!$B$10:$B$42,0),MATCH(_xlfn.CONCAT(AF$16:AF$19),'Capex Trajectories'!$C$9:$YX$9,0)) -> 0.9597990135 | AG172: =OFFSET('Capex Trajectories'!$B$9,MATCH(Resource_Characteristics!$E172,'Capex Trajectories'!$B$10:$B$42,0),MATCH(_xlfn.CONCAT(AG$16:AG$19),'Capex Trajectories'!$C$9:$YX$9,0)) -> 0.9597989729 | AH172: =OFFSET('Capex Trajectories'!$B$9,MATCH(Resource_Characteristics!$E172,'Capex Trajectories'!$B$10:$B$42,0),MATCH(_xlfn.CONCAT(AH$16:AH$19),'Capex Trajectories'!$C$9:$YX$9,0)) -> 0.9597989867 | AI172: =OFFSET('Capex Trajectories'!$B$9,MATCH(Resource_Characteristics!$E172,'Capex Trajectories'!$B$10:$B$42,0),MATCH(_xlfn.CONCAT(AI$16:AI$19),'Capex Trajectories'!$C$9:$YX$9,0)) -> 0.959798995 | AJ172: =OFFSET('Capex Trajectories'!$B$9,MATCH(Resource_Characteristics!$E172,'Capex Trajectories'!$B$10:$B$42,0),MATCH(_xlfn.CONCAT(AJ$16:AJ$19),'Capex Trajectories'!$C$9:$YX$9,0)) -> 1 | AK172: =OFFSET('Capex Trajectories'!$B$9,MATCH(Resource_Characteristics!$E172,'Capex Trajectories'!$B$10:$B$42,0),MATCH(_xlfn.CONCAT(AK$16:AK$19),'Capex Trajectories'!$C$9:$YX$9,0)) -> 0.9291011273 | AL172: =OFFSET('Capex Trajectories'!$B$9,MATCH(Resource_Characteristics!$E172,'Capex Trajectories'!$B$10:$B$42,0),MATCH(_xlfn.CONCAT(AL$16:AL$19),'Capex Trajectories'!$C$9:$YX$9,0)) -> 0.768 | AM172: =OFFSET('Capex Trajectories'!$B$9,MATCH(Resource_Characteristics!$E172,'Capex Trajectories'!$B$10:$B$42,0),MATCH(_xlfn.CONCAT(AM$16:AM$19),'Capex Trajectories'!$C$9:$YX$9,0)) -> 1 | AN172: =OFFSET('Capex Trajectories'!$B$9,MATCH(Resource_Characteristics!$E172,'Capex Trajectories'!$B$10:$B$42,0),MATCH(_xlfn.CONCAT(AN$16:AN$19),'Capex Trajectories'!$C$9:$YX$9,0)) -> 0.9369712973 | AO172: =OFFSET('Capex Trajectories'!$B$9,MATCH(Resource_Characteristics!$E172,'Capex Trajectories'!$B$10:$B$42,0),MATCH(_xlfn.CONCAT(AO$16:AO$19),'Capex Trajectories'!$C$9:$YX$9,0)) -> 0.9369712973 | AP172: =OFFSET('Capex Trajectories'!$B$9,MATCH(Resource_Characteristics!$E172,'Capex Trajectories'!$B$10:$B$42,0),MATCH(_xlfn.CONCAT(AP$16:AP$19),'Capex Trajectories'!$C$9:$YX$9,0)) -> 0.9586463566 | AQ172: =OFFSET('Capex Trajectories'!$B$9,MATCH(Resource_Characteristics!$E172,'Capex Trajectories'!$B$10:$B$42,0),MATCH(_xlfn.CONCAT(AQ$16:AQ$19),'Capex Trajectories'!$C$9:$YX$9,0)) -> 0.9341394038 | AZ172: 2044 | BA172: 0.045 | BB172: 0.045 | BC172: 0.045 | BD172: 0.045 | BE172: 0.045 | BF172: 0.045
E173: 2035 | F173: 0.9296379106 | I173: =OFFSET('Capex Trajectories'!$B$9,MATCH(Resource_Characteristics!$E173,'Capex Trajectories'!$B$10:$B$42,0),MATCH(_xlfn.CONCAT(I$16:I$19),'Capex Trajectories'!$C$9:$YX$9,0)) -> 0.7379322146 | J173: =OFFSET('Capex Trajectories'!$B$9,MATCH(Resource_Characteristics!$E173,'Capex Trajectories'!$B$10:$B$42,0),MATCH(_xlfn.CONCAT(J$16:J$19),'Capex Trajectories'!$C$9:$YX$9,0)) -> 0.848639581 | K173: =OFFSET('Capex Trajectories'!$B$9,MATCH(Resource_Characteristics!$E173,'Capex Trajectories'!$B$10:$B$42,0),MATCH(_xlfn.CONCAT(K$16:K$19),'Capex Trajectories'!$C$9:$YX$9,0)) -> 0.6642505811 | L173: =OFFSET('Capex Trajectories'!$B$9,MATCH(Resource_Characteristics!$E173,'Capex Trajectories'!$B$10:$B$42,0),MATCH(_xlfn.CONCAT(L$16:L$19),'Capex Trajectories'!$C$9:$YX$9,0)) -> 0.70439627 | M173: =OFFSET('Capex Trajectories'!$B$9,MATCH(Resource_Characteristics!$E173,'Capex Trajectories'!$B$10:$B$42,0),MATCH(_xlfn.CONCAT(M$16:M$19),'Capex Trajectories'!$C$9:$YX$9,0)) -> 0.4374231545 | N173: =OFFSET('Capex Trajectories'!$B$9,MATCH(Resource_Characteristics!$E173,'Capex Trajectories'!$B$10:$B$42,0),MATCH(_xlfn.CONCAT(N$16:N$19),'Capex Trajectories'!$C$9:$YX$9,0)) -> 0.4374231545 | O173: =OFFSET('Capex Trajectories'!$B$9,MATCH(Resource_Characteristics!$E173,'Capex Trajectories'!$B$10:$B$42,0),MATCH(_xlfn.CONCAT(O$16:O$19),'Capex Trajectories'!$C$9:$YX$9,0)) -> 0.4374231545 | P173: =OFFSET('Capex Trajectories'!$B$9,MATCH(Resource_Characteristics!$E173,'Capex Trajectories'!$B$10:$B$42,0),MATCH(_xlfn.CONCAT(P$16:P$19),'Capex Trajectories'!$C$9:$YX$9,0)) -> 0.4374231545 | Q173: =OFFSET('Capex Trajectories'!$B$9,MATCH(Resource_Characteristics!$E173,'Capex Trajectories'!$B$10:$B$42,0),MATCH(_xlfn.CONCAT(Q$16:Q$19),'Capex Trajectories'!$C$9:$YX$9,0)) -> 0.6314788365 | R173: =OFFSET('Capex Trajectories'!$B$9,MATCH(Resource_Characteristics!$E173,'Capex Trajectories'!$B$10:$B$42,0),MATCH(_xlfn.CONCAT(R$16:R$19),'Capex Trajectories'!$C$9:$YX$9,0)) -> 1 | S173: =OFFSET('Capex Trajectories'!$B$9,MATCH(Resource_Characteristics!$E173,'Capex Trajectories'!$B$10:$B$42,0),MATCH(_xlfn.CONCAT(S$16:S$19),'Capex Trajectories'!$C$9:$YX$9,0)) -> 1 | T173: =OFFSET('Capex Trajectories'!$B$9,MATCH(Resource_Characteristics!$E173,'Capex Trajectories'!$B$10:$B$42,0),MATCH(_xlfn.CONCAT(T$16:T$19),'Capex Trajectories'!$C$9:$YX$9,0)) -> 0.5014260732 | U173: =OFFSET('Capex Trajectories'!$B$9,MATCH(Resource_Characteristics!$E173,'Capex Trajectories'!$B$10:$B$42,0),MATCH(_xlfn.CONCAT(U$16:U$19),'Capex Trajectories'!$C$9:$YX$9,0)) -> 0.5808076778 | V173: =OFFSET('Capex Trajectories'!$B$9,MATCH(Resource_Characteristics!$E173,'Capex Trajectories'!$B$10:$B$42,0),MATCH(_xlfn.CONCAT(V$16:V$19),'Capex Trajectories'!$C$9:$YX$9,0)) -> 0.4558978671 | W173: =OFFSET('Capex Trajectories'!$B$9,MATCH(Resource_Characteristics!$E173,'Capex Trajectories'!$B$10:$B$42,0),MATCH(_xlfn.CONCAT(W$16:W$19),'Capex Trajectories'!$C$9:$YX$9,0)) -> 0.4558978671 | X173: =OFFSET('Capex Trajectories'!$B$9,MATCH(Resource_Characteristics!$E173,'Capex Trajectories'!$B$10:$B$42,0),MATCH(_xlfn.CONCAT(X$16:X$19),'Capex Trajectories'!$C$9:$YX$9,0)) -> 0.9352291108 | Y173: =OFFSET('Capex Trajectories'!$B$9,MATCH(Resource_Characteristics!$E173,'Capex Trajectories'!$B$10:$B$42,0),MATCH(_xlfn.CONCAT(Y$16:Y$19),'Capex Trajectories'!$C$9:$YX$9,0)) -> 0.9352291108 | Z173: =OFFSET('Capex Trajectories'!$B$9,MATCH(Resource_Characteristics!$E173,'Capex Trajectories'!$B$10:$B$42,0),MATCH(_xlfn.CONCAT(Z$16:Z$19),'Capex Trajectories'!$C$9:$YX$9,0)) -> 0.9352291108 | AA173: =OFFSET('Capex Trajectories'!$B$9,MATCH(Resource_Characteristics!$E173,'Capex Trajectories'!$B$10:$B$42,0),MATCH(_xlfn.CONCAT(AA$16:AA$19),'Capex Trajectories'!$C$9:$YX$9,0)) -> 0.9352291108 | AB173: =OFFSET('Capex Trajectories'!$B$9,MATCH(Resource_Characteristics!$E173,'Capex Trajectories'!$B$10:$B$42,0),MATCH(_xlfn.CONCAT(AB$16:AB$19),'Capex Trajectories'!$C$9:$YX$9,0)) -> 0.877905766 | AC173: =OFFSET('Capex Trajectories'!$B$9,MATCH(Resource_Characteristics!$E173,'Capex Trajectories'!$B$10:$B$42,0),MATCH(_xlfn.CONCAT(AC$16:AC$19),'Capex Trajectories'!$C$9:$YX$9,0)) -> 0.9336418122 | AD173: =OFFSET('Capex Trajectories'!$B$9,MATCH(Resource_Characteristics!$E173,'Capex Trajectories'!$B$10:$B$42,0),MATCH(_xlfn.CONCAT(AD$16:AD$19),'Capex Trajectories'!$C$9:$YX$9,0)) -> 0.9336418122 | AE173: =OFFSET('Capex Trajectories'!$B$9,MATCH(Resource_Characteristics!$E173,'Capex Trajectories'!$B$10:$B$42,0),MATCH(_xlfn.CONCAT(AE$16:AE$19),'Capex Trajectories'!$C$9:$YX$9,0)) -> 1 | AF173: =OFFSET('Capex Trajectories'!$B$9,MATCH(Resource_Characteristics!$E173,'Capex Trajectories'!$B$10:$B$42,0),MATCH(_xlfn.CONCAT(AF$16:AF$19),'Capex Trajectories'!$C$9:$YX$9,0)) -> 0.9572864518 | AG173: =OFFSET('Capex Trajectories'!$B$9,MATCH(Resource_Characteristics!$E173,'Capex Trajectories'!$B$10:$B$42,0),MATCH(_xlfn.CONCAT(AG$16:AG$19),'Capex Trajectories'!$C$9:$YX$9,0)) -> 0.9572864087 | AH173: =OFFSET('Capex Trajectories'!$B$9,MATCH(Resource_Characteristics!$E173,'Capex Trajectories'!$B$10:$B$42,0),MATCH(_xlfn.CONCAT(AH$16:AH$19),'Capex Trajectories'!$C$9:$YX$9,0)) -> 0.9572864233 | AI173: =OFFSET('Capex Trajectories'!$B$9,MATCH(Resource_Characteristics!$E173,'Capex Trajectories'!$B$10:$B$42,0),MATCH(_xlfn.CONCAT(AI$16:AI$19),'Capex Trajectories'!$C$9:$YX$9,0)) -> 0.9572864322 | AJ173: =OFFSET('Capex Trajectories'!$B$9,MATCH(Resource_Characteristics!$E173,'Capex Trajectories'!$B$10:$B$42,0),MATCH(_xlfn.CONCAT(AJ$16:AJ$19),'Capex Trajectories'!$C$9:$YX$9,0)) -> 1 | AK173: =OFFSET('Capex Trajectories'!$B$9,MATCH(Resource_Characteristics!$E173,'Capex Trajectories'!$B$10:$B$42,0),MATCH(_xlfn.CONCAT(AK$16:AK$19),'Capex Trajectories'!$C$9:$YX$9,0)) -> 0.9252665184 | AL173: =OFFSET('Capex Trajectories'!$B$9,MATCH(Resource_Characteristics!$E173,'Capex Trajectories'!$B$10:$B$42,0),MATCH(_xlfn.CONCAT(AL$16:AL$19),'Capex Trajectories'!$C$9:$YX$9,0)) -> 0.76 | AM173: =OFFSET('Capex Trajectories'!$B$9,MATCH(Resource_Characteristics!$E173,'Capex Trajectories'!$B$10:$B$42,0),MATCH(_xlfn.CONCAT(AM$16:AM$19),'Capex Trajectories'!$C$9:$YX$9,0)) -> 1 | AN173: =OFFSET('Capex Trajectories'!$B$9,MATCH(Resource_Characteristics!$E173,'Capex Trajectories'!$B$10:$B$42,0),MATCH(_xlfn.CONCAT(AN$16:AN$19),'Capex Trajectories'!$C$9:$YX$9,0)) -> 0.9317258072 | AO173: =OFFSET('Capex Trajectories'!$B$9,MATCH(Resource_Characteristics!$E173,'Capex Trajectories'!$B$10:$B$42,0),MATCH(_xlfn.CONCAT(AO$16:AO$19),'Capex Trajectories'!$C$9:$YX$9,0)) -> 0.9317258072 | AP173: =OFFSET('Capex Trajectories'!$B$9,MATCH(Resource_Characteristics!$E173,'Capex Trajectories'!$B$10:$B$42,0),MATCH(_xlfn.CONCAT(AP$16:AP$19),'Capex Trajectories'!$C$9:$YX$9,0)) -> 0.9560696646 | AQ173: =OFFSET('Capex Trajectories'!$B$9,MATCH(Resource_Characteristics!$E173,'Capex Trajectories'!$B$10:$B$42,0),MATCH(_xlfn.CONCAT(AQ$16:AQ$19),'Capex Trajectories'!$C$9:$YX$9,0)) -> 0.9296379106 | AZ173: 2045 | BA173: 0.045 | BB173: 0.045 | BC173: 0.045 | BD173: 0.045 | BE173: 0.045 | BF173: 0.045
E174: 2036 | F174: 0.9260167399 | I174: =OFFSET('Capex Trajectories'!$B$9,MATCH(Resource_Characteristics!$E174,'Capex Trajectories'!$B$10:$B$42,0),MATCH(_xlfn.CONCAT(I$16:I$19),'Capex Trajectories'!$C$9:$YX$9,0)) -> 0.7312670204 | J174: =OFFSET('Capex Trajectories'!$B$9,MATCH(Resource_Characteristics!$E174,'Capex Trajectories'!$B$10:$B$42,0),MATCH(_xlfn.CONCAT(J$16:J$19),'Capex Trajectories'!$C$9:$YX$9,0)) -> 0.8438496125 | K174: =OFFSET('Capex Trajectories'!$B$9,MATCH(Resource_Characteristics!$E174,'Capex Trajectories'!$B$10:$B$42,0),MATCH(_xlfn.CONCAT(K$16:K$19),'Capex Trajectories'!$C$9:$YX$9,0)) -> 0.6583446986 | L174: =OFFSET('Capex Trajectories'!$B$9,MATCH(Resource_Characteristics!$E174,'Capex Trajectories'!$B$10:$B$42,0),MATCH(_xlfn.CONCAT(L$16:L$19),'Capex Trajectories'!$C$9:$YX$9,0)) -> 0.6987728636 | M174: =OFFSET('Capex Trajectories'!$B$9,MATCH(Resource_Characteristics!$E174,'Capex Trajectories'!$B$10:$B$42,0),MATCH(_xlfn.CONCAT(M$16:M$19),'Capex Trajectories'!$C$9:$YX$9,0)) -> 0.433048923 | N174: =OFFSET('Capex Trajectories'!$B$9,MATCH(Resource_Characteristics!$E174,'Capex Trajectories'!$B$10:$B$42,0),MATCH(_xlfn.CONCAT(N$16:N$19),'Capex Trajectories'!$C$9:$YX$9,0)) -> 0.433048923 | O174: =OFFSET('Capex Trajectories'!$B$9,MATCH(Resource_Characteristics!$E174,'Capex Trajectories'!$B$10:$B$42,0),MATCH(_xlfn.CONCAT(O$16:O$19),'Capex Trajectories'!$C$9:$YX$9,0)) -> 0.433048923 | P174: =OFFSET('Capex Trajectories'!$B$9,MATCH(Resource_Characteristics!$E174,'Capex Trajectories'!$B$10:$B$42,0),MATCH(_xlfn.CONCAT(P$16:P$19),'Capex Trajectories'!$C$9:$YX$9,0)) -> 0.433048923 | Q174: =OFFSET('Capex Trajectories'!$B$9,MATCH(Resource_Characteristics!$E174,'Capex Trajectories'!$B$10:$B$42,0),MATCH(_xlfn.CONCAT(Q$16:Q$19),'Capex Trajectories'!$C$9:$YX$9,0)) -> 0.6314788365 | R174: =OFFSET('Capex Trajectories'!$B$9,MATCH(Resource_Characteristics!$E174,'Capex Trajectories'!$B$10:$B$42,0),MATCH(_xlfn.CONCAT(R$16:R$19),'Capex Trajectories'!$C$9:$YX$9,0)) -> 1 | S174: =OFFSET('Capex Trajectories'!$B$9,MATCH(Resource_Characteristics!$E174,'Capex Trajectories'!$B$10:$B$42,0),MATCH(_xlfn.CONCAT(S$16:S$19),'Capex Trajectories'!$C$9:$YX$9,0)) -> 1 | T174: =OFFSET('Capex Trajectories'!$B$9,MATCH(Resource_Characteristics!$E174,'Capex Trajectories'!$B$10:$B$42,0),MATCH(_xlfn.CONCAT(T$16:T$19),'Capex Trajectories'!$C$9:$YX$9,0)) -> 0.4921306692 | U174: =OFFSET('Capex Trajectories'!$B$9,MATCH(Resource_Characteristics!$E174,'Capex Trajectories'!$B$10:$B$42,0),MATCH(_xlfn.CONCAT(U$16:U$19),'Capex Trajectories'!$C$9:$YX$9,0)) -> 0.5750643328 | V174: =OFFSET('Capex Trajectories'!$B$9,MATCH(Resource_Characteristics!$E174,'Capex Trajectories'!$B$10:$B$42,0),MATCH(_xlfn.CONCAT(V$16:V$19),'Capex Trajectories'!$C$9:$YX$9,0)) -> 0.4513388885 | W174: =OFFSET('Capex Trajectories'!$B$9,MATCH(Resource_Characteristics!$E174,'Capex Trajectories'!$B$10:$B$42,0),MATCH(_xlfn.CONCAT(W$16:W$19),'Capex Trajectories'!$C$9:$YX$9,0)) -> 0.4513388885 | X174: =OFFSET('Capex Trajectories'!$B$9,MATCH(Resource_Characteristics!$E174,'Capex Trajectories'!$B$10:$B$42,0),MATCH(_xlfn.CONCAT(X$16:X$19),'Capex Trajectories'!$C$9:$YX$9,0)) -> 0.9330178912 | Y174: =OFFSET('Capex Trajectories'!$B$9,MATCH(Resource_Characteristics!$E174,'Capex Trajectories'!$B$10:$B$42,0),MATCH(_xlfn.CONCAT(Y$16:Y$19),'Capex Trajectories'!$C$9:$YX$9,0)) -> 0.9330178912 | Z174: =OFFSET('Capex Trajectories'!$B$9,MATCH(Resource_Characteristics!$E174,'Capex Trajectories'!$B$10:$B$42,0),MATCH(_xlfn.CONCAT(Z$16:Z$19),'Capex Trajectories'!$C$9:$YX$9,0)) -> 0.9330178912 | AA174: =OFFSET('Capex Trajectories'!$B$9,MATCH(Resource_Characteristics!$E174,'Capex Trajectories'!$B$10:$B$42,0),MATCH(_xlfn.CONCAT(AA$16:AA$19),'Capex Trajectories'!$C$9:$YX$9,0)) -> 0.9330178912 | AB174: =OFFSET('Capex Trajectories'!$B$9,MATCH(Resource_Characteristics!$E174,'Capex Trajectories'!$B$10:$B$42,0),MATCH(_xlfn.CONCAT(AB$16:AB$19),'Capex Trajectories'!$C$9:$YX$9,0)) -> 0.872434346 | AC174: =OFFSET('Capex Trajectories'!$B$9,MATCH(Resource_Characteristics!$E174,'Capex Trajectories'!$B$10:$B$42,0),MATCH(_xlfn.CONCAT(AC$16:AC$19),'Capex Trajectories'!$C$9:$YX$9,0)) -> 0.9313164477 | AD174: =OFFSET('Capex Trajectories'!$B$9,MATCH(Resource_Characteristics!$E174,'Capex Trajectories'!$B$10:$B$42,0),MATCH(_xlfn.CONCAT(AD$16:AD$19),'Capex Trajectories'!$C$9:$YX$9,0)) -> 0.9313164477 | AE174: =OFFSET('Capex Trajectories'!$B$9,MATCH(Resource_Characteristics!$E174,'Capex Trajectories'!$B$10:$B$42,0),MATCH(_xlfn.CONCAT(AE$16:AE$19),'Capex Trajectories'!$C$9:$YX$9,0)) -> 1 | AF174: =OFFSET('Capex Trajectories'!$B$9,MATCH(Resource_Characteristics!$E174,'Capex Trajectories'!$B$10:$B$42,0),MATCH(_xlfn.CONCAT(AF$16:AF$19),'Capex Trajectories'!$C$9:$YX$9,0)) -> 0.9547738901 | AG174: =OFFSET('Capex Trajectories'!$B$9,MATCH(Resource_Characteristics!$E174,'Capex Trajectories'!$B$10:$B$42,0),MATCH(_xlfn.CONCAT(AG$16:AG$19),'Capex Trajectories'!$C$9:$YX$9,0)) -> 0.9547738445 | AH174: =OFFSET('Capex Trajectories'!$B$9,MATCH(Resource_Characteristics!$E174,'Capex Trajectories'!$B$10:$B$42,0),MATCH(_xlfn.CONCAT(AH$16:AH$19),'Capex Trajectories'!$C$9:$YX$9,0)) -> 0.95477386 | AI174: =OFFSET('Capex Trajectories'!$B$9,MATCH(Resource_Characteristics!$E174,'Capex Trajectories'!$B$10:$B$42,0),MATCH(_xlfn.CONCAT(AI$16:AI$19),'Capex Trajectories'!$C$9:$YX$9,0)) -> 0.9547738693 | AJ174: =OFFSET('Capex Trajectories'!$B$9,MATCH(Resource_Characteristics!$E174,'Capex Trajectories'!$B$10:$B$42,0),MATCH(_xlfn.CONCAT(AJ$16:AJ$19),'Capex Trajectories'!$C$9:$YX$9,0)) -> 1 | AK174: =OFFSET('Capex Trajectories'!$B$9,MATCH(Resource_Characteristics!$E174,'Capex Trajectories'!$B$10:$B$42,0),MATCH(_xlfn.CONCAT(AK$16:AK$19),'Capex Trajectories'!$C$9:$YX$9,0)) -> 0.9223085209 | AL174: =OFFSET('Capex Trajectories'!$B$9,MATCH(Resource_Characteristics!$E174,'Capex Trajectories'!$B$10:$B$42,0),MATCH(_xlfn.CONCAT(AL$16:AL$19),'Capex Trajectories'!$C$9:$YX$9,0)) -> 0.752 | AM174: =OFFSET('Capex Trajectories'!$B$9,MATCH(Resource_Characteristics!$E174,'Capex Trajectories'!$B$10:$B$42,0),MATCH(_xlfn.CONCAT(AM$16:AM$19),'Capex Trajectories'!$C$9:$YX$9,0)) -> 1 | AN174: =OFFSET('Capex Trajectories'!$B$9,MATCH(Resource_Characteristics!$E174,'Capex Trajectories'!$B$10:$B$42,0),MATCH(_xlfn.CONCAT(AN$16:AN$19),'Capex Trajectories'!$C$9:$YX$9,0)) -> 0.9273619831 | AO174: =OFFSET('Capex Trajectories'!$B$9,MATCH(Resource_Characteristics!$E174,'Capex Trajectories'!$B$10:$B$42,0),MATCH(_xlfn.CONCAT(AO$16:AO$19),'Capex Trajectories'!$C$9:$YX$9,0)) -> 0.9273619831 | AP174: =OFFSET('Capex Trajectories'!$B$9,MATCH(Resource_Characteristics!$E174,'Capex Trajectories'!$B$10:$B$42,0),MATCH(_xlfn.CONCAT(AP$16:AP$19),'Capex Trajectories'!$C$9:$YX$9,0)) -> 0.9544000073 | AQ174: =OFFSET('Capex Trajectories'!$B$9,MATCH(Resource_Characteristics!$E174,'Capex Trajectories'!$B$10:$B$42,0),MATCH(_xlfn.CONCAT(AQ$16:AQ$19),'Capex Trajectories'!$C$9:$YX$9,0)) -> 0.9260167399 | AZ174: 2046 | BA174: 0.045 | BB174: 0.045 | BC174: 0.045 | BD174: 0.045 | BE174: 0.045 | BF174: 0.045
E175: 2037 | F175: 0.9207615729 | I175: =OFFSET('Capex Trajectories'!$B$9,MATCH(Resource_Characteristics!$E175,'Capex Trajectories'!$B$10:$B$42,0),MATCH(_xlfn.CONCAT(I$16:I$19),'Capex Trajectories'!$C$9:$YX$9,0)) -> 0.7246018262 | J175: =OFFSET('Capex Trajectories'!$B$9,MATCH(Resource_Characteristics!$E175,'Capex Trajectories'!$B$10:$B$42,0),MATCH(_xlfn.CONCAT(J$16:J$19),'Capex Trajectories'!$C$9:$YX$9,0)) -> 0.8395167089 | K175: =OFFSET('Capex Trajectories'!$B$9,MATCH(Resource_Characteristics!$E175,'Capex Trajectories'!$B$10:$B$42,0),MATCH(_xlfn.CONCAT(K$16:K$19),'Capex Trajectories'!$C$9:$YX$9,0)) -> 0.6524388161 | L175: =OFFSET('Capex Trajectories'!$B$9,MATCH(Resource_Characteristics!$E175,'Capex Trajectories'!$B$10:$B$42,0),MATCH(_xlfn.CONCAT(L$16:L$19),'Capex Trajectories'!$C$9:$YX$9,0)) -> 0.6933369041 | M175: =OFFSET('Capex Trajectories'!$B$9,MATCH(Resource_Characteristics!$E175,'Capex Trajectories'!$B$10:$B$42,0),MATCH(_xlfn.CONCAT(M$16:M$19),'Capex Trajectories'!$C$9:$YX$9,0)) -> 0.4287184337 | N175: =OFFSET('Capex Trajectories'!$B$9,MATCH(Resource_Characteristics!$E175,'Capex Trajectories'!$B$10:$B$42,0),MATCH(_xlfn.CONCAT(N$16:N$19),'Capex Trajectories'!$C$9:$YX$9,0)) -> 0.4287184337 | O175: =OFFSET('Capex Trajectories'!$B$9,MATCH(Resource_Characteristics!$E175,'Capex Trajectories'!$B$10:$B$42,0),MATCH(_xlfn.CONCAT(O$16:O$19),'Capex Trajectories'!$C$9:$YX$9,0)) -> 0.4287184337 | P175: =OFFSET('Capex Trajectories'!$B$9,MATCH(Resource_Characteristics!$E175,'Capex Trajectories'!$B$10:$B$42,0),MATCH(_xlfn.CONCAT(P$16:P$19),'Capex Trajectories'!$C$9:$YX$9,0)) -> 0.4287184337 | Q175: =OFFSET('Capex Trajectories'!$B$9,MATCH(Resource_Characteristics!$E175,'Capex Trajectories'!$B$10:$B$42,0),MATCH(_xlfn.CONCAT(Q$16:Q$19),'Capex Trajectories'!$C$9:$YX$9,0)) -> 0.6314788365 | R175: =OFFSET('Capex Trajectories'!$B$9,MATCH(Resource_Characteristics!$E175,'Capex Trajectories'!$B$10:$B$42,0),MATCH(_xlfn.CONCAT(R$16:R$19),'Capex Trajectories'!$C$9:$YX$9,0)) -> 1 | S175: =OFFSET('Capex Trajectories'!$B$9,MATCH(Resource_Characteristics!$E175,'Capex Trajectories'!$B$10:$B$42,0),MATCH(_xlfn.CONCAT(S$16:S$19),'Capex Trajectories'!$C$9:$YX$9,0)) -> 1 | T175: =OFFSET('Capex Trajectories'!$B$9,MATCH(Resource_Characteristics!$E175,'Capex Trajectories'!$B$10:$B$42,0),MATCH(_xlfn.CONCAT(T$16:T$19),'Capex Trajectories'!$C$9:$YX$9,0)) -> 0.4828352651 | U175: =OFFSET('Capex Trajectories'!$B$9,MATCH(Resource_Characteristics!$E175,'Capex Trajectories'!$B$10:$B$42,0),MATCH(_xlfn.CONCAT(U$16:U$19),'Capex Trajectories'!$C$9:$YX$9,0)) -> 0.5693209879 | V175: =OFFSET('Capex Trajectories'!$B$9,MATCH(Resource_Characteristics!$E175,'Capex Trajectories'!$B$10:$B$42,0),MATCH(_xlfn.CONCAT(V$16:V$19),'Capex Trajectories'!$C$9:$YX$9,0)) -> 0.4468254996 | W175: =OFFSET('Capex Trajectories'!$B$9,MATCH(Resource_Characteristics!$E175,'Capex Trajectories'!$B$10:$B$42,0),MATCH(_xlfn.CONCAT(W$16:W$19),'Capex Trajectories'!$C$9:$YX$9,0)) -> 0.4468254996 | X175: =OFFSET('Capex Trajectories'!$B$9,MATCH(Resource_Characteristics!$E175,'Capex Trajectories'!$B$10:$B$42,0),MATCH(_xlfn.CONCAT(X$16:X$19),'Capex Trajectories'!$C$9:$YX$9,0)) -> 0.9292408298 | Y175: =OFFSET('Capex Trajectories'!$B$9,MATCH(Resource_Characteristics!$E175,'Capex Trajectories'!$B$10:$B$42,0),MATCH(_xlfn.CONCAT(Y$16:Y$19),'Capex Trajectories'!$C$9:$YX$9,0)) -> 0.9292408298 | Z175: =OFFSET('Capex Trajectories'!$B$9,MATCH(Resource_Characteristics!$E175,'Capex Trajectories'!$B$10:$B$42,0),MATCH(_xlfn.CONCAT(Z$16:Z$19),'Capex Trajectories'!$C$9:$YX$9,0)) -> 0.9292408298 | AA175: =OFFSET('Capex Trajectories'!$B$9,MATCH(Resource_Characteristics!$E175,'Capex Trajectories'!$B$10:$B$42,0),MATCH(_xlfn.CONCAT(AA$16:AA$19),'Capex Trajectories'!$C$9:$YX$9,0)) -> 0.9292408298 | AB175: =OFFSET('Capex Trajectories'!$B$9,MATCH(Resource_Characteristics!$E175,'Capex Trajectories'!$B$10:$B$42,0),MATCH(_xlfn.CONCAT(AB$16:AB$19),'Capex Trajectories'!$C$9:$YX$9,0)) -> 0.8655255457 | AC175: =OFFSET('Capex Trajectories'!$B$9,MATCH(Resource_Characteristics!$E175,'Capex Trajectories'!$B$10:$B$42,0),MATCH(_xlfn.CONCAT(AC$16:AC$19),'Capex Trajectories'!$C$9:$YX$9,0)) -> 0.9274445836 | AD175: =OFFSET('Capex Trajectories'!$B$9,MATCH(Resource_Characteristics!$E175,'Capex Trajectories'!$B$10:$B$42,0),MATCH(_xlfn.CONCAT(AD$16:AD$19),'Capex Trajectories'!$C$9:$YX$9,0)) -> 0.9274445836 | AE175: =OFFSET('Capex Trajectories'!$B$9,MATCH(Resource_Characteristics!$E175,'Capex Trajectories'!$B$10:$B$42,0),MATCH(_xlfn.CONCAT(AE$16:AE$19),'Capex Trajectories'!$C$9:$YX$9,0)) -> 1 | AF175: =OFFSET('Capex Trajectories'!$B$9,MATCH(Resource_Characteristics!$E175,'Capex Trajectories'!$B$10:$B$42,0),MATCH(_xlfn.CONCAT(AF$16:AF$19),'Capex Trajectories'!$C$9:$YX$9,0)) -> 0.9522613285 | AG175: =OFFSET('Capex Trajectories'!$B$9,MATCH(Resource_Characteristics!$E175,'Capex Trajectories'!$B$10:$B$42,0),MATCH(_xlfn.CONCAT(AG$16:AG$19),'Capex Trajectories'!$C$9:$YX$9,0)) -> 0.9522612803 | AH175: =OFFSET('Capex Trajectories'!$B$9,MATCH(Resource_Characteristics!$E175,'Capex Trajectories'!$B$10:$B$42,0),MATCH(_xlfn.CONCAT(AH$16:AH$19),'Capex Trajectories'!$C$9:$YX$9,0)) -> 0.9522612967 | AI175: =OFFSET('Capex Trajectories'!$B$9,MATCH(Resource_Characteristics!$E175,'Capex Trajectories'!$B$10:$B$42,0),MATCH(_xlfn.CONCAT(AI$16:AI$19),'Capex Trajectories'!$C$9:$YX$9,0)) -> 0.9522613065 | AJ175: =OFFSET('Capex Trajectories'!$B$9,MATCH(Resource_Characteristics!$E175,'Capex Trajectories'!$B$10:$B$42,0),MATCH(_xlfn.CONCAT(AJ$16:AJ$19),'Capex Trajectories'!$C$9:$YX$9,0)) -> 1 | AK175: =OFFSET('Capex Trajectories'!$B$9,MATCH(Resource_Characteristics!$E175,'Capex Trajectories'!$B$10:$B$42,0),MATCH(_xlfn.CONCAT(AK$16:AK$19),'Capex Trajectories'!$C$9:$YX$9,0)) -> 0.9177230893 | AL175: =OFFSET('Capex Trajectories'!$B$9,MATCH(Resource_Characteristics!$E175,'Capex Trajectories'!$B$10:$B$42,0),MATCH(_xlfn.CONCAT(AL$16:AL$19),'Capex Trajectories'!$C$9:$YX$9,0)) -> 0.744 | AM175: =OFFSET('Capex Trajectories'!$B$9,MATCH(Resource_Characteristics!$E175,'Capex Trajectories'!$B$10:$B$42,0),MATCH(_xlfn.CONCAT(AM$16:AM$19),'Capex Trajectories'!$C$9:$YX$9,0)) -> 1 | AN175: =OFFSET('Capex Trajectories'!$B$9,MATCH(Resource_Characteristics!$E175,'Capex Trajectories'!$B$10:$B$42,0),MATCH(_xlfn.CONCAT(AN$16:AN$19),'Capex Trajectories'!$C$9:$YX$9,0)) -> 0.9213618532 | AO175: =OFFSET('Capex Trajectories'!$B$9,MATCH(Resource_Characteristics!$E175,'Capex Trajectories'!$B$10:$B$42,0),MATCH(_xlfn.CONCAT(AO$16:AO$19),'Capex Trajectories'!$C$9:$YX$9,0)) -> 0.9213618532 | AP175: =OFFSET('Capex Trajectories'!$B$9,MATCH(Resource_Characteristics!$E175,'Capex Trajectories'!$B$10:$B$42,0),MATCH(_xlfn.CONCAT(AP$16:AP$19),'Capex Trajectories'!$C$9:$YX$9,0)) -> 0.9510463021 | AQ175: =OFFSET('Capex Trajectories'!$B$9,MATCH(Resource_Characteristics!$E175,'Capex Trajectories'!$B$10:$B$42,0),MATCH(_xlfn.CONCAT(AQ$16:AQ$19),'Capex Trajectories'!$C$9:$YX$9,0)) -> 0.9207615729 | AZ175: 2047 | BA175: 0.045 | BB175: 0.045 | BC175: 0.045 | BD175: 0.045 | BE175: 0.045 | BF175: 0.045
E176: 2038 | F176: 0.9163233647 | I176: =OFFSET('Capex Trajectories'!$B$9,MATCH(Resource_Characteristics!$E176,'Capex Trajectories'!$B$10:$B$42,0),MATCH(_xlfn.CONCAT(I$16:I$19),'Capex Trajectories'!$C$9:$YX$9,0)) -> 0.7179366321 | J176: =OFFSET('Capex Trajectories'!$B$9,MATCH(Resource_Characteristics!$E176,'Capex Trajectories'!$B$10:$B$42,0),MATCH(_xlfn.CONCAT(J$16:J$19),'Capex Trajectories'!$C$9:$YX$9,0)) -> 0.8356408705 | K176: =OFFSET('Capex Trajectories'!$B$9,MATCH(Resource_Characteristics!$E176,'Capex Trajectories'!$B$10:$B$42,0),MATCH(_xlfn.CONCAT(K$16:K$19),'Capex Trajectories'!$C$9:$YX$9,0)) -> 0.6462376395 | L176: =OFFSET('Capex Trajectories'!$B$9,MATCH(Resource_Characteristics!$E176,'Capex Trajectories'!$B$10:$B$42,0),MATCH(_xlfn.CONCAT(L$16:L$19),'Capex Trajectories'!$C$9:$YX$9,0)) -> 0.6877134977 | M176: =OFFSET('Capex Trajectories'!$B$9,MATCH(Resource_Characteristics!$E176,'Capex Trajectories'!$B$10:$B$42,0),MATCH(_xlfn.CONCAT(M$16:M$19),'Capex Trajectories'!$C$9:$YX$9,0)) -> 0.4244312494 | N176: =OFFSET('Capex Trajectories'!$B$9,MATCH(Resource_Characteristics!$E176,'Capex Trajectories'!$B$10:$B$42,0),MATCH(_xlfn.CONCAT(N$16:N$19),'Capex Trajectories'!$C$9:$YX$9,0)) -> 0.4244312494 | O176: =OFFSET('Capex Trajectories'!$B$9,MATCH(Resource_Characteristics!$E176,'Capex Trajectories'!$B$10:$B$42,0),MATCH(_xlfn.CONCAT(O$16:O$19),'Capex Trajectories'!$C$9:$YX$9,0)) -> 0.4244312494 | P176: =OFFSET('Capex Trajectories'!$B$9,MATCH(Resource_Characteristics!$E176,'Capex Trajectories'!$B$10:$B$42,0),MATCH(_xlfn.CONCAT(P$16:P$19),'Capex Trajectories'!$C$9:$YX$9,0)) -> 0.4244312494 | Q176: =OFFSET('Capex Trajectories'!$B$9,MATCH(Resource_Characteristics!$E176,'Capex Trajectories'!$B$10:$B$42,0),MATCH(_xlfn.CONCAT(Q$16:Q$19),'Capex Trajectories'!$C$9:$YX$9,0)) -> 0.6314788365 | R176: =OFFSET('Capex Trajectories'!$B$9,MATCH(Resource_Characteristics!$E176,'Capex Trajectories'!$B$10:$B$42,0),MATCH(_xlfn.CONCAT(R$16:R$19),'Capex Trajectories'!$C$9:$YX$9,0)) -> 1 | S176: =OFFSET('Capex Trajectories'!$B$9,MATCH(Resource_Characteristics!$E176,'Capex Trajectories'!$B$10:$B$42,0),MATCH(_xlfn.CONCAT(S$16:S$19),'Capex Trajectories'!$C$9:$YX$9,0)) -> 1 | T176: =OFFSET('Capex Trajectories'!$B$9,MATCH(Resource_Characteristics!$E176,'Capex Trajectories'!$B$10:$B$42,0),MATCH(_xlfn.CONCAT(T$16:T$19),'Capex Trajectories'!$C$9:$YX$9,0)) -> 0.473539861 | U176: =OFFSET('Capex Trajectories'!$B$9,MATCH(Resource_Characteristics!$E176,'Capex Trajectories'!$B$10:$B$42,0),MATCH(_xlfn.CONCAT(U$16:U$19),'Capex Trajectories'!$C$9:$YX$9,0)) -> 0.5635776429 | V176: =OFFSET('Capex Trajectories'!$B$9,MATCH(Resource_Characteristics!$E176,'Capex Trajectories'!$B$10:$B$42,0),MATCH(_xlfn.CONCAT(V$16:V$19),'Capex Trajectories'!$C$9:$YX$9,0)) -> 0.4423572446 | W176: =OFFSET('Capex Trajectories'!$B$9,MATCH(Resource_Characteristics!$E176,'Capex Trajectories'!$B$10:$B$42,0),MATCH(_xlfn.CONCAT(W$16:W$19),'Capex Trajectories'!$C$9:$YX$9,0)) -> 0.4423572446 | X176: =OFFSET('Capex Trajectories'!$B$9,MATCH(Resource_Characteristics!$E176,'Capex Trajectories'!$B$10:$B$42,0),MATCH(_xlfn.CONCAT(X$16:X$19),'Capex Trajectories'!$C$9:$YX$9,0)) -> 0.9259423838 | Y176: =OFFSET('Capex Trajectories'!$B$9,MATCH(Resource_Characteristics!$E176,'Capex Trajectories'!$B$10:$B$42,0),MATCH(_xlfn.CONCAT(Y$16:Y$19),'Capex Trajectories'!$C$9:$YX$9,0)) -> 0.9259423838 | Z176: =OFFSET('Capex Trajectories'!$B$9,MATCH(Resource_Characteristics!$E176,'Capex Trajectories'!$B$10:$B$42,0),MATCH(_xlfn.CONCAT(Z$16:Z$19),'Capex Trajectories'!$C$9:$YX$9,0)) -> 0.9259423838 | AA176: =OFFSET('Capex Trajectories'!$B$9,MATCH(Resource_Characteristics!$E176,'Capex Trajectories'!$B$10:$B$42,0),MATCH(_xlfn.CONCAT(AA$16:AA$19),'Capex Trajectories'!$C$9:$YX$9,0)) -> 0.9259423838 | AB176: =OFFSET('Capex Trajectories'!$B$9,MATCH(Resource_Characteristics!$E176,'Capex Trajectories'!$B$10:$B$42,0),MATCH(_xlfn.CONCAT(AB$16:AB$19),'Capex Trajectories'!$C$9:$YX$9,0)) -> 0.8589500315 | AC176: =OFFSET('Capex Trajectories'!$B$9,MATCH(Resource_Characteristics!$E176,'Capex Trajectories'!$B$10:$B$42,0),MATCH(_xlfn.CONCAT(AC$16:AC$19),'Capex Trajectories'!$C$9:$YX$9,0)) -> 0.9239802275 | AD176: =OFFSET('Capex Trajectories'!$B$9,MATCH(Resource_Characteristics!$E176,'Capex Trajectories'!$B$10:$B$42,0),MATCH(_xlfn.CONCAT(AD$16:AD$19),'Capex Trajectories'!$C$9:$YX$9,0)) -> 0.9239802275 | AE176: =OFFSET('Capex Trajectories'!$B$9,MATCH(Resource_Characteristics!$E176,'Capex Trajectories'!$B$10:$B$42,0),MATCH(_xlfn.CONCAT(AE$16:AE$19),'Capex Trajectories'!$C$9:$YX$9,0)) -> 1 | AF176: =OFFSET('Capex Trajectories'!$B$9,MATCH(Resource_Characteristics!$E176,'Capex Trajectories'!$B$10:$B$42,0),MATCH(_xlfn.CONCAT(AF$16:AF$19),'Capex Trajectories'!$C$9:$YX$9,0)) -> 0.9497487668 | AG176: =OFFSET('Capex Trajectories'!$B$9,MATCH(Resource_Characteristics!$E176,'Capex Trajectories'!$B$10:$B$42,0),MATCH(_xlfn.CONCAT(AG$16:AG$19),'Capex Trajectories'!$C$9:$YX$9,0)) -> 0.9497487161 | AH176: =OFFSET('Capex Trajectories'!$B$9,MATCH(Resource_Characteristics!$E176,'Capex Trajectories'!$B$10:$B$42,0),MATCH(_xlfn.CONCAT(AH$16:AH$19),'Capex Trajectories'!$C$9:$YX$9,0)) -> 0.9497487334 | AI176: =OFFSET('Capex Trajectories'!$B$9,MATCH(Resource_Characteristics!$E176,'Capex Trajectories'!$B$10:$B$42,0),MATCH(_xlfn.CONCAT(AI$16:AI$19),'Capex Trajectories'!$C$9:$YX$9,0)) -> 0.9497487437 | AJ176: =OFFSET('Capex Trajectories'!$B$9,MATCH(Resource_Characteristics!$E176,'Capex Trajectories'!$B$10:$B$42,0),MATCH(_xlfn.CONCAT(AJ$16:AJ$19),'Capex Trajectories'!$C$9:$YX$9,0)) -> 1 | AK176: =OFFSET('Capex Trajectories'!$B$9,MATCH(Resource_Characteristics!$E176,'Capex Trajectories'!$B$10:$B$42,0),MATCH(_xlfn.CONCAT(AK$16:AK$19),'Capex Trajectories'!$C$9:$YX$9,0)) -> 0.9139512876 | AL176: =OFFSET('Capex Trajectories'!$B$9,MATCH(Resource_Characteristics!$E176,'Capex Trajectories'!$B$10:$B$42,0),MATCH(_xlfn.CONCAT(AL$16:AL$19),'Capex Trajectories'!$C$9:$YX$9,0)) -> 0.736 | AM176: =OFFSET('Capex Trajectories'!$B$9,MATCH(Resource_Characteristics!$E176,'Capex Trajectories'!$B$10:$B$42,0),MATCH(_xlfn.CONCAT(AM$16:AM$19),'Capex Trajectories'!$C$9:$YX$9,0)) -> 1 | AN176: =OFFSET('Capex Trajectories'!$B$9,MATCH(Resource_Characteristics!$E176,'Capex Trajectories'!$B$10:$B$42,0),MATCH(_xlfn.CONCAT(AN$16:AN$19),'Capex Trajectories'!$C$9:$YX$9,0)) -> 0.9161797975 | AO176: =OFFSET('Capex Trajectories'!$B$9,MATCH(Resource_Characteristics!$E176,'Capex Trajectories'!$B$10:$B$42,0),MATCH(_xlfn.CONCAT(AO$16:AO$19),'Capex Trajectories'!$C$9:$YX$9,0)) -> 0.9161797975 | AP176: =OFFSET('Capex Trajectories'!$B$9,MATCH(Resource_Characteristics!$E176,'Capex Trajectories'!$B$10:$B$42,0),MATCH(_xlfn.CONCAT(AP$16:AP$19),'Capex Trajectories'!$C$9:$YX$9,0)) -> 0.948534488 | AQ176: =OFFSET('Capex Trajectories'!$B$9,MATCH(Resource_Characteristics!$E176,'Capex Trajectories'!$B$10:$B$42,0),MATCH(_xlfn.CONCAT(AQ$16:AQ$19),'Capex Trajectories'!$C$9:$YX$9,0)) -> 0.9163233647 | AZ176: 2048 | BA176: 0.045 | BB176: 0.045 | BC176: 0.045 | BD176: 0.045 | BE176: 0.045 | BF176: 0.045
E177: 2039 | F177: 0.9117003808 | I177: =OFFSET('Capex Trajectories'!$B$9,MATCH(Resource_Characteristics!$E177,'Capex Trajectories'!$B$10:$B$42,0),MATCH(_xlfn.CONCAT(I$16:I$19),'Capex Trajectories'!$C$9:$YX$9,0)) -> 0.7112714379 | J177: =OFFSET('Capex Trajectories'!$B$9,MATCH(Resource_Characteristics!$E177,'Capex Trajectories'!$B$10:$B$42,0),MATCH(_xlfn.CONCAT(J$16:J$19),'Capex Trajectories'!$C$9:$YX$9,0)) -> 0.832222097 | K177: =OFFSET('Capex Trajectories'!$B$9,MATCH(Resource_Characteristics!$E177,'Capex Trajectories'!$B$10:$B$42,0),MATCH(_xlfn.CONCAT(K$16:K$19),'Capex Trajectories'!$C$9:$YX$9,0)) -> 0.640331757 | L177: =OFFSET('Capex Trajectories'!$B$9,MATCH(Resource_Characteristics!$E177,'Capex Trajectories'!$B$10:$B$42,0),MATCH(_xlfn.CONCAT(L$16:L$19),'Capex Trajectories'!$C$9:$YX$9,0)) -> 0.6820900913 | M177: =OFFSET('Capex Trajectories'!$B$9,MATCH(Resource_Characteristics!$E177,'Capex Trajectories'!$B$10:$B$42,0),MATCH(_xlfn.CONCAT(M$16:M$19),'Capex Trajectories'!$C$9:$YX$9,0)) -> 0.4201869369 | N177: =OFFSET('Capex Trajectories'!$B$9,MATCH(Resource_Characteristics!$E177,'Capex Trajectories'!$B$10:$B$42,0),MATCH(_xlfn.CONCAT(N$16:N$19),'Capex Trajectories'!$C$9:$YX$9,0)) -> 0.4201869369 | O177: =OFFSET('Capex Trajectories'!$B$9,MATCH(Resource_Characteristics!$E177,'Capex Trajectories'!$B$10:$B$42,0),MATCH(_xlfn.CONCAT(O$16:O$19),'Capex Trajectories'!$C$9:$YX$9,0)) -> 0.4201869369 | P177: =OFFSET('Capex Trajectories'!$B$9,MATCH(Resource_Characteristics!$E177,'Capex Trajectories'!$B$10:$B$42,0),MATCH(_xlfn.CONCAT(P$16:P$19),'Capex Trajectories'!$C$9:$YX$9,0)) -> 0.4201869369 | Q177: =OFFSET('Capex Trajectories'!$B$9,MATCH(Resource_Characteristics!$E177,'Capex Trajectories'!$B$10:$B$42,0),MATCH(_xlfn.CONCAT(Q$16:Q$19),'Capex Trajectories'!$C$9:$YX$9,0)) -> 0.6314788365 | R177: =OFFSET('Capex Trajectories'!$B$9,MATCH(Resource_Characteristics!$E177,'Capex Trajectories'!$B$10:$B$42,0),MATCH(_xlfn.CONCAT(R$16:R$19),'Capex Trajectories'!$C$9:$YX$9,0)) -> 1 | S177: =OFFSET('Capex Trajectories'!$B$9,MATCH(Resource_Characteristics!$E177,'Capex Trajectories'!$B$10:$B$42,0),MATCH(_xlfn.CONCAT(S$16:S$19),'Capex Trajectories'!$C$9:$YX$9,0)) -> 1 | T177: =OFFSET('Capex Trajectories'!$B$9,MATCH(Resource_Characteristics!$E177,'Capex Trajectories'!$B$10:$B$42,0),MATCH(_xlfn.CONCAT(T$16:T$19),'Capex Trajectories'!$C$9:$YX$9,0)) -> 0.4642444569 | U177: =OFFSET('Capex Trajectories'!$B$9,MATCH(Resource_Characteristics!$E177,'Capex Trajectories'!$B$10:$B$42,0),MATCH(_xlfn.CONCAT(U$16:U$19),'Capex Trajectories'!$C$9:$YX$9,0)) -> 0.5578342979 | V177: =OFFSET('Capex Trajectories'!$B$9,MATCH(Resource_Characteristics!$E177,'Capex Trajectories'!$B$10:$B$42,0),MATCH(_xlfn.CONCAT(V$16:V$19),'Capex Trajectories'!$C$9:$YX$9,0)) -> 0.4379336721 | W177: =OFFSET('Capex Trajectories'!$B$9,MATCH(Resource_Characteristics!$E177,'Capex Trajectories'!$B$10:$B$42,0),MATCH(_xlfn.CONCAT(W$16:W$19),'Capex Trajectories'!$C$9:$YX$9,0)) -> 0.4379336721 | X177: =OFFSET('Capex Trajectories'!$B$9,MATCH(Resource_Characteristics!$E177,'Capex Trajectories'!$B$10:$B$42,0),MATCH(_xlfn.CONCAT(X$16:X$19),'Capex Trajectories'!$C$9:$YX$9,0)) -> 0.9225174792 | Y177: =OFFSET('Capex Trajectories'!$B$9,MATCH(Resource_Characteristics!$E177,'Capex Trajectories'!$B$10:$B$42,0),MATCH(_xlfn.CONCAT(Y$16:Y$19),'Capex Trajectories'!$C$9:$YX$9,0)) -> 0.9225174792 | Z177: =OFFSET('Capex Trajectories'!$B$9,MATCH(Resource_Characteristics!$E177,'Capex Trajectories'!$B$10:$B$42,0),MATCH(_xlfn.CONCAT(Z$16:Z$19),'Capex Trajectories'!$C$9:$YX$9,0)) -> 0.9225174792 | AA177: =OFFSET('Capex Trajectories'!$B$9,MATCH(Resource_Characteristics!$E177,'Capex Trajectories'!$B$10:$B$42,0),MATCH(_xlfn.CONCAT(AA$16:AA$19),'Capex Trajectories'!$C$9:$YX$9,0)) -> 0.9225174792 | AB177: =OFFSET('Capex Trajectories'!$B$9,MATCH(Resource_Characteristics!$E177,'Capex Trajectories'!$B$10:$B$42,0),MATCH(_xlfn.CONCAT(AB$16:AB$19),'Capex Trajectories'!$C$9:$YX$9,0)) -> 0.8522784127 | AC177: =OFFSET('Capex Trajectories'!$B$9,MATCH(Resource_Characteristics!$E177,'Capex Trajectories'!$B$10:$B$42,0),MATCH(_xlfn.CONCAT(AC$16:AC$19),'Capex Trajectories'!$C$9:$YX$9,0)) -> 0.920401954 | AD177: =OFFSET('Capex Trajectories'!$B$9,MATCH(Resource_Characteristics!$E177,'Capex Trajectories'!$B$10:$B$42,0),MATCH(_xlfn.CONCAT(AD$16:AD$19),'Capex Trajectories'!$C$9:$YX$9,0)) -> 0.920401954 | AE177: =OFFSET('Capex Trajectories'!$B$9,MATCH(Resource_Characteristics!$E177,'Capex Trajectories'!$B$10:$B$42,0),MATCH(_xlfn.CONCAT(AE$16:AE$19),'Capex Trajectories'!$C$9:$YX$9,0)) -> 1 | AF177: =OFFSET('Capex Trajectories'!$B$9,MATCH(Resource_Characteristics!$E177,'Capex Trajectories'!$B$10:$B$42,0),MATCH(_xlfn.CONCAT(AF$16:AF$19),'Capex Trajectories'!$C$9:$YX$9,0)) -> 0.9472362052 | AG177: =OFFSET('Capex Trajectories'!$B$9,MATCH(Resource_Characteristics!$E177,'Capex Trajectories'!$B$10:$B$42,0),MATCH(_xlfn.CONCAT(AG$16:AG$19),'Capex Trajectories'!$C$9:$YX$9,0)) -> 0.9472361519 | AH177: =OFFSET('Capex Trajectories'!$B$9,MATCH(Resource_Characteristics!$E177,'Capex Trajectories'!$B$10:$B$42,0),MATCH(_xlfn.CONCAT(AH$16:AH$19),'Capex Trajectories'!$C$9:$YX$9,0)) -> 0.94723617 | AI177: =OFFSET('Capex Trajectories'!$B$9,MATCH(Resource_Characteristics!$E177,'Capex Trajectories'!$B$10:$B$42,0),MATCH(_xlfn.CONCAT(AI$16:AI$19),'Capex Trajectories'!$C$9:$YX$9,0)) -> 0.9472361809 | AJ177: =OFFSET('Capex Trajectories'!$B$9,MATCH(Resource_Characteristics!$E177,'Capex Trajectories'!$B$10:$B$42,0),MATCH(_xlfn.CONCAT(AJ$16:AJ$19),'Capex Trajectories'!$C$9:$YX$9,0)) -> 1 | AK177: =OFFSET('Capex Trajectories'!$B$9,MATCH(Resource_Characteristics!$E177,'Capex Trajectories'!$B$10:$B$42,0),MATCH(_xlfn.CONCAT(AK$16:AK$19),'Capex Trajectories'!$C$9:$YX$9,0)) -> 0.9099952315 | AL177: =OFFSET('Capex Trajectories'!$B$9,MATCH(Resource_Characteristics!$E177,'Capex Trajectories'!$B$10:$B$42,0),MATCH(_xlfn.CONCAT(AL$16:AL$19),'Capex Trajectories'!$C$9:$YX$9,0)) -> 0.728 | AM177: =OFFSET('Capex Trajectories'!$B$9,MATCH(Resource_Characteristics!$E177,'Capex Trajectories'!$B$10:$B$42,0),MATCH(_xlfn.CONCAT(AM$16:AM$19),'Capex Trajectories'!$C$9:$YX$9,0)) -> 1 | AN177: =OFFSET('Capex Trajectories'!$B$9,MATCH(Resource_Characteristics!$E177,'Capex Trajectories'!$B$10:$B$42,0),MATCH(_xlfn.CONCAT(AN$16:AN$19),'Capex Trajectories'!$C$9:$YX$9,0)) -> 0.9108132818 | AO177: =OFFSET('Capex Trajectories'!$B$9,MATCH(Resource_Characteristics!$E177,'Capex Trajectories'!$B$10:$B$42,0),MATCH(_xlfn.CONCAT(AO$16:AO$19),'Capex Trajectories'!$C$9:$YX$9,0)) -> 0.9108132818 | AP177: =OFFSET('Capex Trajectories'!$B$9,MATCH(Resource_Characteristics!$E177,'Capex Trajectories'!$B$10:$B$42,0),MATCH(_xlfn.CONCAT(AP$16:AP$19),'Capex Trajectories'!$C$9:$YX$9,0)) -> 0.9458311005 | AQ177: =OFFSET('Capex Trajectories'!$B$9,MATCH(Resource_Characteristics!$E177,'Capex Trajectories'!$B$10:$B$42,0),MATCH(_xlfn.CONCAT(AQ$16:AQ$19),'Capex Trajectories'!$C$9:$YX$9,0)) -> 0.9117003808 | AZ177: 2049 | BA177: 0.045 | BB177: 0.045 | BC177: 0.045 | BD177: 0.045 | BE177: 0.045 | BF177: 0.045
E178: 2040 | F178: 0.9071616532 | I178: =OFFSET('Capex Trajectories'!$B$9,MATCH(Resource_Characteristics!$E178,'Capex Trajectories'!$B$10:$B$42,0),MATCH(_xlfn.CONCAT(I$16:I$19),'Capex Trajectories'!$C$9:$YX$9,0)) -> 0.7046062437 | J178: =OFFSET('Capex Trajectories'!$B$9,MATCH(Resource_Characteristics!$E178,'Capex Trajectories'!$B$10:$B$42,0),MATCH(_xlfn.CONCAT(J$16:J$19),'Capex Trajectories'!$C$9:$YX$9,0)) -> 0.8292603887 | K178: =OFFSET('Capex Trajectories'!$B$9,MATCH(Resource_Characteristics!$E178,'Capex Trajectories'!$B$10:$B$42,0),MATCH(_xlfn.CONCAT(K$16:K$19),'Capex Trajectories'!$C$9:$YX$9,0)) -> 0.6341305804 | L178: =OFFSET('Capex Trajectories'!$B$9,MATCH(Resource_Characteristics!$E178,'Capex Trajectories'!$B$10:$B$42,0),MATCH(_xlfn.CONCAT(L$16:L$19),'Capex Trajectories'!$C$9:$YX$9,0)) -> 0.676279238 | M178: =OFFSET('Capex Trajectories'!$B$9,MATCH(Resource_Characteristics!$E178,'Capex Trajectories'!$B$10:$B$42,0),MATCH(_xlfn.CONCAT(M$16:M$19),'Capex Trajectories'!$C$9:$YX$9,0)) -> 0.4159850675 | N178: =OFFSET('Capex Trajectories'!$B$9,MATCH(Resource_Characteristics!$E178,'Capex Trajectories'!$B$10:$B$42,0),MATCH(_xlfn.CONCAT(N$16:N$19),'Capex Trajectories'!$C$9:$YX$9,0)) -> 0.4159850675 | O178: =OFFSET('Capex Trajectories'!$B$9,MATCH(Resource_Characteristics!$E178,'Capex Trajectories'!$B$10:$B$42,0),MATCH(_xlfn.CONCAT(O$16:O$19),'Capex Trajectories'!$C$9:$YX$9,0)) -> 0.4159850675 | P178: =OFFSET('Capex Trajectories'!$B$9,MATCH(Resource_Characteristics!$E178,'Capex Trajectories'!$B$10:$B$42,0),MATCH(_xlfn.CONCAT(P$16:P$19),'Capex Trajectories'!$C$9:$YX$9,0)) -> 0.4159850675 | Q178: =OFFSET('Capex Trajectories'!$B$9,MATCH(Resource_Characteristics!$E178,'Capex Trajectories'!$B$10:$B$42,0),MATCH(_xlfn.CONCAT(Q$16:Q$19),'Capex Trajectories'!$C$9:$YX$9,0)) -> 0.6314788365 | R178: =OFFSET('Capex Trajectories'!$B$9,MATCH(Resource_Characteristics!$E178,'Capex Trajectories'!$B$10:$B$42,0),MATCH(_xlfn.CONCAT(R$16:R$19),'Capex Trajectories'!$C$9:$YX$9,0)) -> 1 | S178: =OFFSET('Capex Trajectories'!$B$9,MATCH(Resource_Characteristics!$E178,'Capex Trajectories'!$B$10:$B$42,0),MATCH(_xlfn.CONCAT(S$16:S$19),'Capex Trajectories'!$C$9:$YX$9,0)) -> 1 | T178: =OFFSET('Capex Trajectories'!$B$9,MATCH(Resource_Characteristics!$E178,'Capex Trajectories'!$B$10:$B$42,0),MATCH(_xlfn.CONCAT(T$16:T$19),'Capex Trajectories'!$C$9:$YX$9,0)) -> 0.4549490529 | U178: =OFFSET('Capex Trajectories'!$B$9,MATCH(Resource_Characteristics!$E178,'Capex Trajectories'!$B$10:$B$42,0),MATCH(_xlfn.CONCAT(U$16:U$19),'Capex Trajectories'!$C$9:$YX$9,0)) -> 0.5520909529 | V178: =OFFSET('Capex Trajectories'!$B$9,MATCH(Resource_Characteristics!$E178,'Capex Trajectories'!$B$10:$B$42,0),MATCH(_xlfn.CONCAT(V$16:V$19),'Capex Trajectories'!$C$9:$YX$9,0)) -> 0.4335543354 | W178: =OFFSET('Capex Trajectories'!$B$9,MATCH(Resource_Characteristics!$E178,'Capex Trajectories'!$B$10:$B$42,0),MATCH(_xlfn.CONCAT(W$16:W$19),'Capex Trajectories'!$C$9:$YX$9,0)) -> 0.4335543354 | X178: =OFFSET('Capex Trajectories'!$B$9,MATCH(Resource_Characteristics!$E178,'Capex Trajectories'!$B$10:$B$42,0),MATCH(_xlfn.CONCAT(X$16:X$19),'Capex Trajectories'!$C$9:$YX$9,0)) -> 0.9191232802 | Y178: =OFFSET('Capex Trajectories'!$B$9,MATCH(Resource_Characteristics!$E178,'Capex Trajectories'!$B$10:$B$42,0),MATCH(_xlfn.CONCAT(Y$16:Y$19),'Capex Trajectories'!$C$9:$YX$9,0)) -> 0.9191232802 | Z178: =OFFSET('Capex Trajectories'!$B$9,MATCH(Resource_Characteristics!$E178,'Capex Trajectories'!$B$10:$B$42,0),MATCH(_xlfn.CONCAT(Z$16:Z$19),'Capex Trajectories'!$C$9:$YX$9,0)) -> 0.9191232802 | AA178: =OFFSET('Capex Trajectories'!$B$9,MATCH(Resource_Characteristics!$E178,'Capex Trajectories'!$B$10:$B$42,0),MATCH(_xlfn.CONCAT(AA$16:AA$19),'Capex Trajectories'!$C$9:$YX$9,0)) -> 0.9191232802 | AB178: =OFFSET('Capex Trajectories'!$B$9,MATCH(Resource_Characteristics!$E178,'Capex Trajectories'!$B$10:$B$42,0),MATCH(_xlfn.CONCAT(AB$16:AB$19),'Capex Trajectories'!$C$9:$YX$9,0)) -> 0.8456180247 | AC178: =OFFSET('Capex Trajectories'!$B$9,MATCH(Resource_Characteristics!$E178,'Capex Trajectories'!$B$10:$B$42,0),MATCH(_xlfn.CONCAT(AC$16:AC$19),'Capex Trajectories'!$C$9:$YX$9,0)) -> 0.9168434922 | AD178: =OFFSET('Capex Trajectories'!$B$9,MATCH(Resource_Characteristics!$E178,'Capex Trajectories'!$B$10:$B$42,0),MATCH(_xlfn.CONCAT(AD$16:AD$19),'Capex Trajectories'!$C$9:$YX$9,0)) -> 0.9168434922 | AE178: =OFFSET('Capex Trajectories'!$B$9,MATCH(Resource_Characteristics!$E178,'Capex Trajectories'!$B$10:$B$42,0),MATCH(_xlfn.CONCAT(AE$16:AE$19),'Capex Trajectories'!$C$9:$YX$9,0)) -> 1 | AF178: =OFFSET('Capex Trajectories'!$B$9,MATCH(Resource_Characteristics!$E178,'Capex Trajectories'!$B$10:$B$42,0),MATCH(_xlfn.CONCAT(AF$16:AF$19),'Capex Trajectories'!$C$9:$YX$9,0)) -> 0.9447236435 | AG178: =OFFSET('Capex Trajectories'!$B$9,MATCH(Resource_Characteristics!$E178,'Capex Trajectories'!$B$10:$B$42,0),MATCH(_xlfn.CONCAT(AG$16:AG$19),'Capex Trajectories'!$C$9:$YX$9,0)) -> 0.9447235877 | AH178: =OFFSET('Capex Trajectories'!$B$9,MATCH(Resource_Characteristics!$E178,'Capex Trajectories'!$B$10:$B$42,0),MATCH(_xlfn.CONCAT(AH$16:AH$19),'Capex Trajectories'!$C$9:$YX$9,0)) -> 0.9447236067 | AI178: =OFFSET('Capex Trajectories'!$B$9,MATCH(Resource_Characteristics!$E178,'Capex Trajectories'!$B$10:$B$42,0),MATCH(_xlfn.CONCAT(AI$16:AI$19),'Capex Trajectories'!$C$9:$YX$9,0)) -> 0.9447236181 | AJ178: =OFFSET('Capex Trajectories'!$B$9,MATCH(Resource_Characteristics!$E178,'Capex Trajectories'!$B$10:$B$42,0),MATCH(_xlfn.CONCAT(AJ$16:AJ$19),'Capex Trajectories'!$C$9:$YX$9,0)) -> 1 | AK178: =OFFSET('Capex Trajectories'!$B$9,MATCH(Resource_Characteristics!$E178,'Capex Trajectories'!$B$10:$B$42,0),MATCH(_xlfn.CONCAT(AK$16:AK$19),'Capex Trajectories'!$C$9:$YX$9,0)) -> 0.9061227018 | AL178: =OFFSET('Capex Trajectories'!$B$9,MATCH(Resource_Characteristics!$E178,'Capex Trajectories'!$B$10:$B$42,0),MATCH(_xlfn.CONCAT(AL$16:AL$19),'Capex Trajectories'!$C$9:$YX$9,0)) -> 0.72 | AM178: =OFFSET('Capex Trajectories'!$B$9,MATCH(Resource_Characteristics!$E178,'Capex Trajectories'!$B$10:$B$42,0),MATCH(_xlfn.CONCAT(AM$16:AM$19),'Capex Trajectories'!$C$9:$YX$9,0)) -> 1 | AN178: =OFFSET('Capex Trajectories'!$B$9,MATCH(Resource_Characteristics!$E178,'Capex Trajectories'!$B$10:$B$42,0),MATCH(_xlfn.CONCAT(AN$16:AN$19),'Capex Trajectories'!$C$9:$YX$9,0)) -> 0.9055308934 | AO178: =OFFSET('Capex Trajectories'!$B$9,MATCH(Resource_Characteristics!$E178,'Capex Trajectories'!$B$10:$B$42,0),MATCH(_xlfn.CONCAT(AO$16:AO$19),'Capex Trajectories'!$C$9:$YX$9,0)) -> 0.9055308934 | AP178: =OFFSET('Capex Trajectories'!$B$9,MATCH(Resource_Characteristics!$E178,'Capex Trajectories'!$B$10:$B$42,0),MATCH(_xlfn.CONCAT(AP$16:AP$19),'Capex Trajectories'!$C$9:$YX$9,0)) -> 0.9432142112 | AQ178: =OFFSET('Capex Trajectories'!$B$9,MATCH(Resource_Characteristics!$E178,'Capex Trajectories'!$B$10:$B$42,0),MATCH(_xlfn.CONCAT(AQ$16:AQ$19),'Capex Trajectories'!$C$9:$YX$9,0)) -> 0.9071616532 | AZ178: 2050 | BA178: 0.045 | BB178: 0.045 | BC178: 0.045 | BD178: 0.045 | BE178: 0.045 | BF178: 0.045
B180: Active FO&M Cost Multipliers | E180: 2018 | F180: =IF(ISBLANK(G180),INDEX($I180:$AQ180,$C$11),G180) -> 1 | I180: =OFFSET('FO&M Trajectories'!$B$9,MATCH($E180,'FO&M Trajectories'!$B$10:$B$42,0),MATCH(_xlfn.CONCAT(I$16:I$17,I$19),'FO&M Trajectories'!$C$9:$AAN$9,0)) -> 1 | J180: =OFFSET('FO&M Trajectories'!$B$9,MATCH($E180,'FO&M Trajectories'!$B$10:$B$42,0),MATCH(_xlfn.CONCAT(J$16:J$17,J$19),'FO&M Trajectories'!$C$9:$AAN$9,0)) -> 1 | K180: =OFFSET('FO&M Trajectories'!$B$9,MATCH($E180,'FO&M Trajectories'!$B$10:$B$42,0),MATCH(_xlfn.CONCAT(K$16:K$17,K$19),'FO&M Trajectories'!$C$9:$AAN$9,0)) -> 1 | L180: =OFFSET('FO&M Trajectories'!$B$9,MATCH($E180,'FO&M Trajectories'!$B$10:$B$42,0),MATCH(_xlfn.CONCAT(L$16:L$17,L$19),'FO&M Trajectories'!$C$9:$AAN$9,0)) -> 1 | M180: =OFFSET('FO&M Trajectories'!$B$9,MATCH($E180,'FO&M Trajectories'!$B$10:$B$42,0),MATCH(_xlfn.CONCAT(M$16:M$17,M$19),'FO&M Trajectories'!$C$9:$AAN$9,0)) -> 1 | N180: =OFFSET('FO&M Trajectories'!$B$9,MATCH($E180,'FO&M Trajectories'!$B$10:$B$42,0),MATCH(_xlfn.CONCAT(N$16:N$17,N$19),'FO&M Trajectories'!$C$9:$AAN$9,0)) -> 1 | O180: =OFFSET('FO&M Trajectories'!$B$9,MATCH($E180,'FO&M Trajectories'!$B$10:$B$42,0),MATCH(_xlfn.CONCAT(O$16:O$17,O$19),'FO&M Trajectories'!$C$9:$AAN$9,0)) -> 1 | P180: =OFFSET('FO&M Trajectories'!$B$9,MATCH($E180,'FO&M Trajectories'!$B$10:$B$42,0),MATCH(_xlfn.CONCAT(P$16:P$17,P$19),'FO&M Trajectories'!$C$9:$AAN$9,0)) -> 1 | Q180: =OFFSET('FO&M Trajectories'!$B$9,MATCH($E180,'FO&M Trajectories'!$B$10:$B$42,0),MATCH(_xlfn.CONCAT(Q$16:Q$17,Q$19),'FO&M Trajectories'!$C$9:$AAN$9,0)) -> 1 | R180: =OFFSET('FO&M Trajectories'!$B$9,MATCH($E180,'FO&M Trajectories'!$B$10:$B$42,0),MATCH(_xlfn.CONCAT(R$16:R$17,R$19),'FO&M Trajectories'!$C$9:$AAN$9,0)) -> 1 | S180: =OFFSET('FO&M Trajectories'!$B$9,MATCH($E180,'FO&M Trajectories'!$B$10:$B$42,0),MATCH(_xlfn.CONCAT(S$16:S$17,S$19),'FO&M Trajectories'!$C$9:$AAN$9,0)) -> 1 | T180: =OFFSET('FO&M Trajectories'!$B$9,MATCH($E180,'FO&M Trajectories'!$B$10:$B$42,0),MATCH(_xlfn.CONCAT(T$16:T$17,T$19),'FO&M Trajectories'!$C$9:$AAN$9,0)) -> 1 | U180: =OFFSET('FO&M Trajectories'!$B$9,MATCH($E180,'FO&M Trajectories'!$B$10:$B$42,0),MATCH(_xlfn.CONCAT(U$16:U$17,U$19),'FO&M Trajectories'!$C$9:$AAN$9,0)) -> 1 | V180: =OFFSET('FO&M Trajectories'!$B$9,MATCH($E180,'FO&M Trajectories'!$B$10:$B$42,0),MATCH(_xlfn.CONCAT(V$16:V$17,V$19),'FO&M Trajectories'!$C$9:$AAN$9,0)) -> 1 | W180: =OFFSET('FO&M Trajectories'!$B$9,MATCH($E180,'FO&M Trajectories'!$B$10:$B$42,0),MATCH(_xlfn.CONCAT(W$16:W$17,W$19),'FO&M Trajectories'!$C$9:$AAN$9,0)) -> 1 | X180: =OFFSET('FO&M Trajectories'!$B$9,MATCH($E180,'FO&M Trajectories'!$B$10:$B$42,0),MATCH(_xlfn.CONCAT(X$16:X$17,X$19),'FO&M Trajectories'!$C$9:$AAN$9,0)) -> 1 | Y180: =OFFSET('FO&M Trajectories'!$B$9,MATCH($E180,'FO&M Trajectories'!$B$10:$B$42,0),MATCH(_xlfn.CONCAT(Y$16:Y$17,Y$19),'FO&M Trajectories'!$C$9:$AAN$9,0)) -> 1 | Z180: =OFFSET('FO&M Trajectories'!$B$9,MATCH($E180,'FO&M Trajectories'!$B$10:$B$42,0),MATCH(_xlfn.CONCAT(Z$16:Z$17,Z$19),'FO&M Trajectories'!$C$9:$AAN$9,0)) -> 1 | AA180: =OFFSET('FO&M Trajectories'!$B$9,MATCH($E180,'FO&M Trajectories'!$B$10:$B$42,0),MATCH(_xlfn.CONCAT(AA$16:AA$17,AA$19),'FO&M Trajectories'!$C$9:$AAN$9,0)) -> 1 | AB180: =OFFSET('FO&M Trajectories'!$B$9,MATCH($E180,'FO&M Trajectories'!$B$10:$B$42,0),MATCH(_xlfn.CONCAT(AB$16:AB$17,AB$19),'FO&M Trajectories'!$C$9:$AAN$9,0)) -> 1 | AC180: =OFFSET('FO&M Trajectories'!$B$9,MATCH($E180,'FO&M Trajectories'!$B$10:$B$42,0),MATCH(_xlfn.CONCAT(AC$16:AC$17,AC$19),'FO&M Trajectories'!$C$9:$AAN$9,0)) -> 1 | AD180: =OFFSET('FO&M Trajectories'!$B$9,MATCH($E180,'FO&M Trajectories'!$B$10:$B$42,0),MATCH(_xlfn.CONCAT(AD$16:AD$17,AD$19),'FO&M Trajectories'!$C$9:$AAN$9,0)) -> 1 | AE180: =OFFSET('FO&M Trajectories'!$B$9,MATCH($E180,'FO&M Trajectories'!$B$10:$B$42,0),MATCH(_xlfn.CONCAT(AE$16:AE$17,AE$19),'FO&M Trajectories'!$C$9:$AAN$9,0)) -> 1 | AF180: =OFFSET('FO&M Trajectories'!$B$9,MATCH($E180,'FO&M Trajectories'!$B$10:$B$42,0),MATCH(_xlfn.CONCAT(AF$16:AF$17,AF$19),'FO&M Trajectories'!$C$9:$AAN$9,0)) -> 1 | AG180: =OFFSET('FO&M Trajectories'!$B$9,MATCH($E180,'FO&M Trajectories'!$B$10:$B$42,0),MATCH(_xlfn.CONCAT(AG$16:AG$17,AG$19),'FO&M Trajectories'!$C$9:$AAN$9,0)) -> 1 | AH180: =OFFSET('FO&M Trajectories'!$B$9,MATCH($E180,'FO&M Trajectories'!$B$10:$B$42,0),MATCH(_xlfn.CONCAT(AH$16:AH$17,AH$19),'FO&M Trajectories'!$C$9:$AAN$9,0)) -> 1 | AI180: =OFFSET('FO&M Trajectories'!$B$9,MATCH($E180,'FO&M Trajectories'!$B$10:$B$42,0),MATCH(_xlfn.CONCAT(AI$16:AI$17,AI$19),'FO&M Trajectories'!$C$9:$AAN$9,0)) -> 1 | AJ180: =OFFSET('FO&M Trajectories'!$B$9,MATCH($E180,'FO&M Trajectories'!$B$10:$B$42,0),MATCH(_xlfn.CONCAT(AJ$16:AJ$17,AJ$19),'FO&M Trajectories'!$C$9:$AAN$9,0)) -> 1 | AK180: =OFFSET('FO&M Trajectories'!$B$9,MATCH($E180,'FO&M Trajectories'!$B$10:$B$42,0),MATCH(_xlfn.CONCAT(AK$16:AK$17,AK$19),'FO&M Trajectories'!$C$9:$AAN$9,0)) -> 1 | AL180: =OFFSET('FO&M Trajectories'!$B$9,MATCH($E180,'FO&M Trajectories'!$B$10:$B$42,0),MATCH(_xlfn.CONCAT(AL$16:AL$17,AL$19),'FO&M Trajectories'!$C$9:$AAN$9,0)) -> 1 | AM180: =OFFSET('FO&M Trajectories'!$B$9,MATCH($E180,'FO&M Trajectories'!$B$10:$B$42,0),MATCH(_xlfn.CONCAT(AM$16:AM$17,AM$19),'FO&M Trajectories'!$C$9:$AAN$9,0)) -> 1 | AN180: =OFFSET('FO&M Trajectories'!$B$9,MATCH($E180,'FO&M Trajectories'!$B$10:$B$42,0),MATCH(_xlfn.CONCAT(AN$16:AN$17,AN$19),'FO&M Trajectories'!$C$9:$AAN$9,0)) -> 1 | AO180: =OFFSET('FO&M Trajectories'!$B$9,MATCH($E180,'FO&M Trajectories'!$B$10:$B$42,0),MATCH(_xlfn.CONCAT(AO$16:AO$17,AO$19),'FO&M Trajectories'!$C$9:$AAN$9,0)) -> 1 | AP180: =OFFSET('FO&M Trajectories'!$B$9,MATCH($E180,'FO&M Trajectories'!$B$10:$B$42,0),MATCH(_xlfn.CONCAT(AP$16:AP$17,AP$19),'FO&M Trajectories'!$C$9:$AAN$9,0)) -> 1 | AQ180: =OFFSET('FO&M Trajectories'!$B$9,MATCH($E180,'FO&M Trajectories'!$B$10:$B$42,0),MATCH(_xlfn.CONCAT(AQ$16:AQ$17,AQ$19),'FO&M Trajectories'!$C$9:$AAN$9,0)) -> 1
B181: (%) | E181: =E180+1 -> 2019 | F181: 1 | I181: =OFFSET('FO&M Trajectories'!$B$9,MATCH($E181,'FO&M Trajectories'!$B$10:$B$42,0),MATCH(_xlfn.CONCAT(I$16:I$17,I$19),'FO&M Trajectories'!$C$9:$AAN$9,0)) -> 0.9568509688 | J181: =OFFSET('FO&M Trajectories'!$B$9,MATCH($E181,'FO&M Trajectories'!$B$10:$B$42,0),MATCH(_xlfn.CONCAT(J$16:J$17,J$19),'FO&M Trajectories'!$C$9:$AAN$9,0)) -> 0.9927007299 | K181: =OFFSET('FO&M Trajectories'!$B$9,MATCH($E181,'FO&M Trajectories'!$B$10:$B$42,0),MATCH(_xlfn.CONCAT(K$16:K$17,K$19),'FO&M Trajectories'!$C$9:$AAN$9,0)) -> 0.9978432782 | L181: =OFFSET('FO&M Trajectories'!$B$9,MATCH($E181,'FO&M Trajectories'!$B$10:$B$42,0),MATCH(_xlfn.CONCAT(L$16:L$17,L$19),'FO&M Trajectories'!$C$9:$AAN$9,0)) -> 0.9978432782 | M181: =OFFSET('FO&M Trajectories'!$B$9,MATCH($E181,'FO&M Trajectories'!$B$10:$B$42,0),MATCH(_xlfn.CONCAT(M$16:M$17,M$19),'FO&M Trajectories'!$C$9:$AAN$9,0)) -> 0.92 | N181: =OFFSET('FO&M Trajectories'!$B$9,MATCH($E181,'FO&M Trajectories'!$B$10:$B$42,0),MATCH(_xlfn.CONCAT(N$16:N$17,N$19),'FO&M Trajectories'!$C$9:$AAN$9,0)) -> 0.92 | O181: =OFFSET('FO&M Trajectories'!$B$9,MATCH($E181,'FO&M Trajectories'!$B$10:$B$42,0),MATCH(_xlfn.CONCAT(O$16:O$17,O$19),'FO&M Trajectories'!$C$9:$AAN$9,0)) -> 0.92 | P181: =OFFSET('FO&M Trajectories'!$B$9,MATCH($E181,'FO&M Trajectories'!$B$10:$B$42,0),MATCH(_xlfn.CONCAT(P$16:P$17,P$19),'FO&M Trajectories'!$C$9:$AAN$9,0)) -> 0.92 | Q181: =OFFSET('FO&M Trajectories'!$B$9,MATCH($E181,'FO&M Trajectories'!$B$10:$B$42,0),MATCH(_xlfn.CONCAT(Q$16:Q$17,Q$19),'FO&M Trajectories'!$C$9:$AAN$9,0)) -> 0.95 | R181: =OFFSET('FO&M Trajectories'!$B$9,MATCH($E181,'FO&M Trajectories'!$B$10:$B$42,0),MATCH(_xlfn.CONCAT(R$16:R$17,R$19),'FO&M Trajectories'!$C$9:$AAN$9,0)) -> 1 | S181: =OFFSET('FO&M Trajectories'!$B$9,MATCH($E181,'FO&M Trajectories'!$B$10:$B$42,0),MATCH(_xlfn.CONCAT(S$16:S$17,S$19),'FO&M Trajectories'!$C$9:$AAN$9,0)) -> 1 | T181: =OFFSET('FO&M Trajectories'!$B$9,MATCH($E181,'FO&M Trajectories'!$B$10:$B$42,0),MATCH(_xlfn.CONCAT(T$16:T$17,T$19),'FO&M Trajectories'!$C$9:$AAN$9,0)) -> 0.9490743116 | U181: =OFFSET('FO&M Trajectories'!$B$9,MATCH($E181,'FO&M Trajectories'!$B$10:$B$42,0),MATCH(_xlfn.CONCAT(U$16:U$17,U$19),'FO&M Trajectories'!$C$9:$AAN$9,0)) -> 0.9425380867 | V181: =OFFSET('FO&M Trajectories'!$B$9,MATCH($E181,'FO&M Trajectories'!$B$10:$B$42,0),MATCH(_xlfn.CONCAT(V$16:V$17,V$19),'FO&M Trajectories'!$C$9:$AAN$9,0)) -> 0.92 | W181: =OFFSET('FO&M Trajectories'!$B$9,MATCH($E181,'FO&M Trajectories'!$B$10:$B$42,0),MATCH(_xlfn.CONCAT(W$16:W$17,W$19),'FO&M Trajectories'!$C$9:$AAN$9,0)) -> 0.92 | X181: =OFFSET('FO&M Trajectories'!$B$9,MATCH($E181,'FO&M Trajectories'!$B$10:$B$42,0),MATCH(_xlfn.CONCAT(X$16:X$17,X$19),'FO&M Trajectories'!$C$9:$AAN$9,0)) -> 1 | Y181: =OFFSET('FO&M Trajectories'!$B$9,MATCH($E181,'FO&M Trajectories'!$B$10:$B$42,0),MATCH(_xlfn.CONCAT(Y$16:Y$17,Y$19),'FO&M Trajectories'!$C$9:$AAN$9,0)) -> 1 | Z181: =OFFSET('FO&M Trajectories'!$B$9,MATCH($E181,'FO&M Trajectories'!$B$10:$B$42,0),MATCH(_xlfn.CONCAT(Z$16:Z$17,Z$19),'FO&M Trajectories'!$C$9:$AAN$9,0)) -> 1 | AA181: =OFFSET('FO&M Trajectories'!$B$9,MATCH($E181,'FO&M Trajectories'!$B$10:$B$42,0),MATCH(_xlfn.CONCAT(AA$16:AA$17,AA$19),'FO&M Trajectories'!$C$9:$AAN$9,0)) -> 1 | AB181: =OFFSET('FO&M Trajectories'!$B$9,MATCH($E181,'FO&M Trajectories'!$B$10:$B$42,0),MATCH(_xlfn.CONCAT(AB$16:AB$17,AB$19),'FO&M Trajectories'!$C$9:$AAN$9,0)) -> 1 | AC181: =OFFSET('FO&M Trajectories'!$B$9,MATCH($E181,'FO&M Trajectories'!$B$10:$B$42,0),MATCH(_xlfn.CONCAT(AC$16:AC$17,AC$19),'FO&M Trajectories'!$C$9:$AAN$9,0)) -> 1 | AD181: =OFFSET('FO&M Trajectories'!$B$9,MATCH($E181,'FO&M Trajectories'!$B$10:$B$42,0),MATCH(_xlfn.CONCAT(AD$16:AD$17,AD$19),'FO&M Trajectories'!$C$9:$AAN$9,0)) -> 1 | AE181: =OFFSET('FO&M Trajectories'!$B$9,MATCH($E181,'FO&M Trajectories'!$B$10:$B$42,0),MATCH(_xlfn.CONCAT(AE$16:AE$17,AE$19),'FO&M Trajectories'!$C$9:$AAN$9,0)) -> 1 | AF181: =OFFSET('FO&M Trajectories'!$B$9,MATCH($E181,'FO&M Trajectories'!$B$10:$B$42,0),MATCH(_xlfn.CONCAT(AF$16:AF$17,AF$19),'FO&M Trajectories'!$C$9:$AAN$9,0)) -> 1 | AG181: =OFFSET('FO&M Trajectories'!$B$9,MATCH($E181,'FO&M Trajectories'!$B$10:$B$42,0),MATCH(_xlfn.CONCAT(AG$16:AG$17,AG$19),'FO&M Trajectories'!$C$9:$AAN$9,0)) -> 1 | AH181: =OFFSET('FO&M Trajectories'!$B$9,MATCH($E181,'FO&M Trajectories'!$B$10:$B$42,0),MATCH(_xlfn.CONCAT(AH$16:AH$17,AH$19),'FO&M Trajectories'!$C$9:$AAN$9,0)) -> 1 | AI181: =OFFSET('FO&M Trajectories'!$B$9,MATCH($E181,'FO&M Trajectories'!$B$10:$B$42,0),MATCH(_xlfn.CONCAT(AI$16:AI$17,AI$19),'FO&M Trajectories'!$C$9:$AAN$9,0)) -> 1 | AJ181: =OFFSET('FO&M Trajectories'!$B$9,MATCH($E181,'FO&M Trajectories'!$B$10:$B$42,0),MATCH(_xlfn.CONCAT(AJ$16:AJ$17,AJ$19),'FO&M Trajectories'!$C$9:$AAN$9,0)) -> 1 | AK181: =OFFSET('FO&M Trajectories'!$B$9,MATCH($E181,'FO&M Trajectories'!$B$10:$B$42,0),MATCH(_xlfn.CONCAT(AK$16:AK$17,AK$19),'FO&M Trajectories'!$C$9:$AAN$9,0)) -> 1 | AL181: =OFFSET('FO&M Trajectories'!$B$9,MATCH($E181,'FO&M Trajectories'!$B$10:$B$42,0),MATCH(_xlfn.CONCAT(AL$16:AL$17,AL$19),'FO&M Trajectories'!$C$9:$AAN$9,0)) -> 1 | AM181: =OFFSET('FO&M Trajectories'!$B$9,MATCH($E181,'FO&M Trajectories'!$B$10:$B$42,0),MATCH(_xlfn.CONCAT(AM$16:AM$17,AM$19),'FO&M Trajectories'!$C$9:$AAN$9,0)) -> 1 | AN181: =OFFSET('FO&M Trajectories'!$B$9,MATCH($E181,'FO&M Trajectories'!$B$10:$B$42,0),MATCH(_xlfn.CONCAT(AN$16:AN$17,AN$19),'FO&M Trajectories'!$C$9:$AAN$9,0)) -> 1 | AO181: =OFFSET('FO&M Trajectories'!$B$9,MATCH($E181,'FO&M Trajectories'!$B$10:$B$42,0),MATCH(_xlfn.CONCAT(AO$16:AO$17,AO$19),'FO&M Trajectories'!$C$9:$AAN$9,0)) -> 1 | AP181: =OFFSET('FO&M Trajectories'!$B$9,MATCH($E181,'FO&M Trajectories'!$B$10:$B$42,0),MATCH(_xlfn.CONCAT(AP$16:AP$17,AP$19),'FO&M Trajectories'!$C$9:$AAN$9,0)) -> 1 | AQ181: =OFFSET('FO&M Trajectories'!$B$9,MATCH($E181,'FO&M Trajectories'!$B$10:$B$42,0),MATCH(_xlfn.CONCAT(AQ$16:AQ$17,AQ$19),'FO&M Trajectories'!$C$9:$AAN$9,0)) -> 1
E182: 2020 | F182: 1 | I182: =OFFSET('FO&M Trajectories'!$B$9,MATCH($E182,'FO&M Trajectories'!$B$10:$B$42,0),MATCH(_xlfn.CONCAT(I$16:I$17,I$19),'FO&M Trajectories'!$C$9:$AAN$9,0)) -> 0.8790865743 | J182: =OFFSET('FO&M Trajectories'!$B$9,MATCH($E182,'FO&M Trajectories'!$B$10:$B$42,0),MATCH(_xlfn.CONCAT(J$16:J$17,J$19),'FO&M Trajectories'!$C$9:$AAN$9,0)) -> 0.9854014599 | K182: =OFFSET('FO&M Trajectories'!$B$9,MATCH($E182,'FO&M Trajectories'!$B$10:$B$42,0),MATCH(_xlfn.CONCAT(K$16:K$17,K$19),'FO&M Trajectories'!$C$9:$AAN$9,0)) -> 0.9956865564 | L182: =OFFSET('FO&M Trajectories'!$B$9,MATCH($E182,'FO&M Trajectories'!$B$10:$B$42,0),MATCH(_xlfn.CONCAT(L$16:L$17,L$19),'FO&M Trajectories'!$C$9:$AAN$9,0)) -> 0.9956865564 | M182: =OFFSET('FO&M Trajectories'!$B$9,MATCH($E182,'FO&M Trajectories'!$B$10:$B$42,0),MATCH(_xlfn.CONCAT(M$16:M$17,M$19),'FO&M Trajectories'!$C$9:$AAN$9,0)) -> 0.8464 | N182: =OFFSET('FO&M Trajectories'!$B$9,MATCH($E182,'FO&M Trajectories'!$B$10:$B$42,0),MATCH(_xlfn.CONCAT(N$16:N$17,N$19),'FO&M Trajectories'!$C$9:$AAN$9,0)) -> 0.8464 | O182: =OFFSET('FO&M Trajectories'!$B$9,MATCH($E182,'FO&M Trajectories'!$B$10:$B$42,0),MATCH(_xlfn.CONCAT(O$16:O$17,O$19),'FO&M Trajectories'!$C$9:$AAN$9,0)) -> 0.8464 | P182: =OFFSET('FO&M Trajectories'!$B$9,MATCH($E182,'FO&M Trajectories'!$B$10:$B$42,0),MATCH(_xlfn.CONCAT(P$16:P$17,P$19),'FO&M Trajectories'!$C$9:$AAN$9,0)) -> 0.8464 | Q182: =OFFSET('FO&M Trajectories'!$B$9,MATCH($E182,'FO&M Trajectories'!$B$10:$B$42,0),MATCH(_xlfn.CONCAT(Q$16:Q$17,Q$19),'FO&M Trajectories'!$C$9:$AAN$9,0)) -> 0.9025 | R182: =OFFSET('FO&M Trajectories'!$B$9,MATCH($E182,'FO&M Trajectories'!$B$10:$B$42,0),MATCH(_xlfn.CONCAT(R$16:R$17,R$19),'FO&M Trajectories'!$C$9:$AAN$9,0)) -> 1 | S182: =OFFSET('FO&M Trajectories'!$B$9,MATCH($E182,'FO&M Trajectories'!$B$10:$B$42,0),MATCH(_xlfn.CONCAT(S$16:S$17,S$19),'FO&M Trajectories'!$C$9:$AAN$9,0)) -> 1 | T182: =OFFSET('FO&M Trajectories'!$B$9,MATCH($E182,'FO&M Trajectories'!$B$10:$B$42,0),MATCH(_xlfn.CONCAT(T$16:T$17,T$19),'FO&M Trajectories'!$C$9:$AAN$9,0)) -> 0.8459899529 | U182: =OFFSET('FO&M Trajectories'!$B$9,MATCH($E182,'FO&M Trajectories'!$B$10:$B$42,0),MATCH(_xlfn.CONCAT(U$16:U$17,U$19),'FO&M Trajectories'!$C$9:$AAN$9,0)) -> 0.8693208925 | V182: =OFFSET('FO&M Trajectories'!$B$9,MATCH($E182,'FO&M Trajectories'!$B$10:$B$42,0),MATCH(_xlfn.CONCAT(V$16:V$17,V$19),'FO&M Trajectories'!$C$9:$AAN$9,0)) -> 0.8464 | W182: =OFFSET('FO&M Trajectories'!$B$9,MATCH($E182,'FO&M Trajectories'!$B$10:$B$42,0),MATCH(_xlfn.CONCAT(W$16:W$17,W$19),'FO&M Trajectories'!$C$9:$AAN$9,0)) -> 0.8464 | X182: =OFFSET('FO&M Trajectories'!$B$9,MATCH($E182,'FO&M Trajectories'!$B$10:$B$42,0),MATCH(_xlfn.CONCAT(X$16:X$17,X$19),'FO&M Trajectories'!$C$9:$AAN$9,0)) -> 1 | Y182: =OFFSET('FO&M Trajectories'!$B$9,MATCH($E182,'FO&M Trajectories'!$B$10:$B$42,0),MATCH(_xlfn.CONCAT(Y$16:Y$17,Y$19),'FO&M Trajectories'!$C$9:$AAN$9,0)) -> 1 | Z182: =OFFSET('FO&M Trajectories'!$B$9,MATCH($E182,'FO&M Trajectories'!$B$10:$B$42,0),MATCH(_xlfn.CONCAT(Z$16:Z$17,Z$19),'FO&M Trajectories'!$C$9:$AAN$9,0)) -> 1 | AA182: =OFFSET('FO&M Trajectories'!$B$9,MATCH($E182,'FO&M Trajectories'!$B$10:$B$42,0),MATCH(_xlfn.CONCAT(AA$16:AA$17,AA$19),'FO&M Trajectories'!$C$9:$AAN$9,0)) -> 1 | AB182: =OFFSET('FO&M Trajectories'!$B$9,MATCH($E182,'FO&M Trajectories'!$B$10:$B$42,0),MATCH(_xlfn.CONCAT(AB$16:AB$17,AB$19),'FO&M Trajectories'!$C$9:$AAN$9,0)) -> 1 | AC182: =OFFSET('FO&M Trajectories'!$B$9,MATCH($E182,'FO&M Trajectories'!$B$10:$B$42,0),MATCH(_xlfn.CONCAT(AC$16:AC$17,AC$19),'FO&M Trajectories'!$C$9:$AAN$9,0)) -> 1 | AD182: =OFFSET('FO&M Trajectories'!$B$9,MATCH($E182,'FO&M Trajectories'!$B$10:$B$42,0),MATCH(_xlfn.CONCAT(AD$16:AD$17,AD$19),'FO&M Trajectories'!$C$9:$AAN$9,0)) -> 1 | AE182: =OFFSET('FO&M Trajectories'!$B$9,MATCH($E182,'FO&M Trajectories'!$B$10:$B$42,0),MATCH(_xlfn.CONCAT(AE$16:AE$17,AE$19),'FO&M Trajectories'!$C$9:$AAN$9,0)) -> 1 | AF182: =OFFSET('FO&M Trajectories'!$B$9,MATCH($E182,'FO&M Trajectories'!$B$10:$B$42,0),MATCH(_xlfn.CONCAT(AF$16:AF$17,AF$19),'FO&M Trajectories'!$C$9:$AAN$9,0)) -> 1 | AG182: =OFFSET('FO&M Trajectories'!$B$9,MATCH($E182,'FO&M Trajectories'!$B$10:$B$42,0),MATCH(_xlfn.CONCAT(AG$16:AG$17,AG$19),'FO&M Trajectories'!$C$9:$AAN$9,0)) -> 1 | AH182: =OFFSET('FO&M Trajectories'!$B$9,MATCH($E182,'FO&M Trajectories'!$B$10:$B$42,0),MATCH(_xlfn.CONCAT(AH$16:AH$17,AH$19),'FO&M Trajectories'!$C$9:$AAN$9,0)) -> 1 | AI182: =OFFSET('FO&M Trajectories'!$B$9,MATCH($E182,'FO&M Trajectories'!$B$10:$B$42,0),MATCH(_xlfn.CONCAT(AI$16:AI$17,AI$19),'FO&M Trajectories'!$C$9:$AAN$9,0)) -> 1 | AJ182: =OFFSET('FO&M Trajectories'!$B$9,MATCH($E182,'FO&M Trajectories'!$B$10:$B$42,0),MATCH(_xlfn.CONCAT(AJ$16:AJ$17,AJ$19),'FO&M Trajectories'!$C$9:$AAN$9,0)) -> 1 | AK182: =OFFSET('FO&M Trajectories'!$B$9,MATCH($E182,'FO&M Trajectories'!$B$10:$B$42,0),MATCH(_xlfn.CONCAT(AK$16:AK$17,AK$19),'FO&M Trajectories'!$C$9:$AAN$9,0)) -> 1 | AL182: =OFFSET('FO&M Trajectories'!$B$9,MATCH($E182,'FO&M Trajectories'!$B$10:$B$42,0),MATCH(_xlfn.CONCAT(AL$16:AL$17,AL$19),'FO&M Trajectories'!$C$9:$AAN$9,0)) -> 1 | AM182: =OFFSET('FO&M Trajectories'!$B$9,MATCH($E182,'FO&M Trajectories'!$B$10:$B$42,0),MATCH(_xlfn.CONCAT(AM$16:AM$17,AM$19),'FO&M Trajectories'!$C$9:$AAN$9,0)) -> 1 | AN182: =OFFSET('FO&M Trajectories'!$B$9,MATCH($E182,'FO&M Trajectories'!$B$10:$B$42,0),MATCH(_xlfn.CONCAT(AN$16:AN$17,AN$19),'FO&M Trajectories'!$C$9:$AAN$9,0)) -> 1 | AO182: =OFFSET('FO&M Trajectories'!$B$9,MATCH($E182,'FO&M Trajectories'!$B$10:$B$42,0),MATCH(_xlfn.CONCAT(AO$16:AO$17,AO$19),'FO&M Trajectories'!$C$9:$AAN$9,0)) -> 1 | AP182: =OFFSET('FO&M Trajectories'!$B$9,MATCH($E182,'FO&M Trajectories'!$B$10:$B$42,0),MATCH(_xlfn.CONCAT(AP$16:AP$17,AP$19),'FO&M Trajectories'!$C$9:$AAN$9,0)) -> 1 | AQ182: =OFFSET('FO&M Trajectories'!$B$9,MATCH($E182,'FO&M Trajectories'!$B$10:$B$42,0),MATCH(_xlfn.CONCAT(AQ$16:AQ$17,AQ$19),'FO&M Trajectories'!$C$9:$AAN$9,0)) -> 1
E183: 2021 | F183: 1 | I183: =OFFSET('FO&M Trajectories'!$B$9,MATCH($E183,'FO&M Trajectories'!$B$10:$B$42,0),MATCH(_xlfn.CONCAT(I$16:I$17,I$19),'FO&M Trajectories'!$C$9:$AAN$9,0)) -> 0.8186298614 | J183: =OFFSET('FO&M Trajectories'!$B$9,MATCH($E183,'FO&M Trajectories'!$B$10:$B$42,0),MATCH(_xlfn.CONCAT(J$16:J$17,J$19),'FO&M Trajectories'!$C$9:$AAN$9,0)) -> 0.9781021898 | K183: =OFFSET('FO&M Trajectories'!$B$9,MATCH($E183,'FO&M Trajectories'!$B$10:$B$42,0),MATCH(_xlfn.CONCAT(K$16:K$17,K$19),'FO&M Trajectories'!$C$9:$AAN$9,0)) -> 0.9935298347 | L183: =OFFSET('FO&M Trajectories'!$B$9,MATCH($E183,'FO&M Trajectories'!$B$10:$B$42,0),MATCH(_xlfn.CONCAT(L$16:L$17,L$19),'FO&M Trajectories'!$C$9:$AAN$9,0)) -> 0.9935298347 | M183: =OFFSET('FO&M Trajectories'!$B$9,MATCH($E183,'FO&M Trajectories'!$B$10:$B$42,0),MATCH(_xlfn.CONCAT(M$16:M$17,M$19),'FO&M Trajectories'!$C$9:$AAN$9,0)) -> 0.778688 | N183: =OFFSET('FO&M Trajectories'!$B$9,MATCH($E183,'FO&M Trajectories'!$B$10:$B$42,0),MATCH(_xlfn.CONCAT(N$16:N$17,N$19),'FO&M Trajectories'!$C$9:$AAN$9,0)) -> 0.778688 | O183: =OFFSET('FO&M Trajectories'!$B$9,MATCH($E183,'FO&M Trajectories'!$B$10:$B$42,0),MATCH(_xlfn.CONCAT(O$16:O$17,O$19),'FO&M Trajectories'!$C$9:$AAN$9,0)) -> 0.778688 | P183: =OFFSET('FO&M Trajectories'!$B$9,MATCH($E183,'FO&M Trajectories'!$B$10:$B$42,0),MATCH(_xlfn.CONCAT(P$16:P$17,P$19),'FO&M Trajectories'!$C$9:$AAN$9,0)) -> 0.778688 | Q183: =OFFSET('FO&M Trajectories'!$B$9,MATCH($E183,'FO&M Trajectories'!$B$10:$B$42,0),MATCH(_xlfn.CONCAT(Q$16:Q$17,Q$19),'FO&M Trajectories'!$C$9:$AAN$9,0)) -> 0.857375 | R183: =OFFSET('FO&M Trajectories'!$B$9,MATCH($E183,'FO&M Trajectories'!$B$10:$B$42,0),MATCH(_xlfn.CONCAT(R$16:R$17,R$19),'FO&M Trajectories'!$C$9:$AAN$9,0)) -> 1 | S183: =OFFSET('FO&M Trajectories'!$B$9,MATCH($E183,'FO&M Trajectories'!$B$10:$B$42,0),MATCH(_xlfn.CONCAT(S$16:S$17,S$19),'FO&M Trajectories'!$C$9:$AAN$9,0)) -> 1 | T183: =OFFSET('FO&M Trajectories'!$B$9,MATCH($E183,'FO&M Trajectories'!$B$10:$B$42,0),MATCH(_xlfn.CONCAT(T$16:T$17,T$19),'FO&M Trajectories'!$C$9:$AAN$9,0)) -> 0.7762711294 | U183: =OFFSET('FO&M Trajectories'!$B$9,MATCH($E183,'FO&M Trajectories'!$B$10:$B$42,0),MATCH(_xlfn.CONCAT(U$16:U$17,U$19),'FO&M Trajectories'!$C$9:$AAN$9,0)) -> 0.8222492287 | V183: =OFFSET('FO&M Trajectories'!$B$9,MATCH($E183,'FO&M Trajectories'!$B$10:$B$42,0),MATCH(_xlfn.CONCAT(V$16:V$17,V$19),'FO&M Trajectories'!$C$9:$AAN$9,0)) -> 0.778688 | W183: =OFFSET('FO&M Trajectories'!$B$9,MATCH($E183,'FO&M Trajectories'!$B$10:$B$42,0),MATCH(_xlfn.CONCAT(W$16:W$17,W$19),'FO&M Trajectories'!$C$9:$AAN$9,0)) -> 0.778688 | X183: =OFFSET('FO&M Trajectories'!$B$9,MATCH($E183,'FO&M Trajectories'!$B$10:$B$42,0),MATCH(_xlfn.CONCAT(X$16:X$17,X$19),'FO&M Trajectories'!$C$9:$AAN$9,0)) -> 1 | Y183: =OFFSET('FO&M Trajectories'!$B$9,MATCH($E183,'FO&M Trajectories'!$B$10:$B$42,0),MATCH(_xlfn.CONCAT(Y$16:Y$17,Y$19),'FO&M Trajectories'!$C$9:$AAN$9,0)) -> 1 | Z183: =OFFSET('FO&M Trajectories'!$B$9,MATCH($E183,'FO&M Trajectories'!$B$10:$B$42,0),MATCH(_xlfn.CONCAT(Z$16:Z$17,Z$19),'FO&M Trajectories'!$C$9:$AAN$9,0)) -> 1 | AA183: =OFFSET('FO&M Trajectories'!$B$9,MATCH($E183,'FO&M Trajectories'!$B$10:$B$42,0),MATCH(_xlfn.CONCAT(AA$16:AA$17,AA$19),'FO&M Trajectories'!$C$9:$AAN$9,0)) -> 1 | AB183: =OFFSET('FO&M Trajectories'!$B$9,MATCH($E183,'FO&M Trajectories'!$B$10:$B$42,0),MATCH(_xlfn.CONCAT(AB$16:AB$17,AB$19),'FO&M Trajectories'!$C$9:$AAN$9,0)) -> 1 | AC183: =OFFSET('FO&M Trajectories'!$B$9,MATCH($E183,'FO&M Trajectories'!$B$10:$B$42,0),MATCH(_xlfn.CONCAT(AC$16:AC$17,AC$19),'FO&M Trajectories'!$C$9:$AAN$9,0)) -> 1 | AD183: =OFFSET('FO&M Trajectories'!$B$9,MATCH($E183,'FO&M Trajectories'!$B$10:$B$42,0),MATCH(_xlfn.CONCAT(AD$16:AD$17,AD$19),'FO&M Trajectories'!$C$9:$AAN$9,0)) -> 1 | AE183: =OFFSET('FO&M Trajectories'!$B$9,MATCH($E183,'FO&M Trajectories'!$B$10:$B$42,0),MATCH(_xlfn.CONCAT(AE$16:AE$17,AE$19),'FO&M Trajectories'!$C$9:$AAN$9,0)) -> 1 | AF183: =OFFSET('FO&M Trajectories'!$B$9,MATCH($E183,'FO&M Trajectories'!$B$10:$B$42,0),MATCH(_xlfn.CONCAT(AF$16:AF$17,AF$19),'FO&M Trajectories'!$C$9:$AAN$9,0)) -> 1 | AG183: =OFFSET('FO&M Trajectories'!$B$9,MATCH($E183,'FO&M Trajectories'!$B$10:$B$42,0),MATCH(_xlfn.CONCAT(AG$16:AG$17,AG$19),'FO&M Trajectories'!$C$9:$AAN$9,0)) -> 1 | AH183: =OFFSET('FO&M Trajectories'!$B$9,MATCH($E183,'FO&M Trajectories'!$B$10:$B$42,0),MATCH(_xlfn.CONCAT(AH$16:AH$17,AH$19),'FO&M Trajectories'!$C$9:$AAN$9,0)) -> 1 | AI183: =OFFSET('FO&M Trajectories'!$B$9,MATCH($E183,'FO&M Trajectories'!$B$10:$B$42,0),MATCH(_xlfn.CONCAT(AI$16:AI$17,AI$19),'FO&M Trajectories'!$C$9:$AAN$9,0)) -> 1 | AJ183: =OFFSET('FO&M Trajectories'!$B$9,MATCH($E183,'FO&M Trajectories'!$B$10:$B$42,0),MATCH(_xlfn.CONCAT(AJ$16:AJ$17,AJ$19),'FO&M Trajectories'!$C$9:$AAN$9,0)) -> 1 | AK183: =OFFSET('FO&M Trajectories'!$B$9,MATCH($E183,'FO&M Trajectories'!$B$10:$B$42,0),MATCH(_xlfn.CONCAT(AK$16:AK$17,AK$19),'FO&M Trajectories'!$C$9:$AAN$9,0)) -> 1 | AL183: =OFFSET('FO&M Trajectories'!$B$9,MATCH($E183,'FO&M Trajectories'!$B$10:$B$42,0),MATCH(_xlfn.CONCAT(AL$16:AL$17,AL$19),'FO&M Trajectories'!$C$9:$AAN$9,0)) -> 0.975 | AM183: =OFFSET('FO&M Trajectories'!$B$9,MATCH($E183,'FO&M Trajectories'!$B$10:$B$42,0),MATCH(_xlfn.CONCAT(AM$16:AM$17,AM$19),'FO&M Trajectories'!$C$9:$AAN$9,0)) -> 1 | AN183: =OFFSET('FO&M Trajectories'!$B$9,MATCH($E183,'FO&M Trajectories'!$B$10:$B$42,0),MATCH(_xlfn.CONCAT(AN$16:AN$17,AN$19),'FO&M Trajectories'!$C$9:$AAN$9,0)) -> 1 | AO183: =OFFSET('FO&M Trajectories'!$B$9,MATCH($E183,'FO&M Trajectories'!$B$10:$B$42,0),MATCH(_xlfn.CONCAT(AO$16:AO$17,AO$19),'FO&M Trajectories'!$C$9:$AAN$9,0)) -> 1 | AP183: =OFFSET('FO&M Trajectories'!$B$9,MATCH($E183,'FO&M Trajectories'!$B$10:$B$42,0),MATCH(_xlfn.CONCAT(AP$16:AP$17,AP$19),'FO&M Trajectories'!$C$9:$AAN$9,0)) -> 1 | AQ183: =OFFSET('FO&M Trajectories'!$B$9,MATCH($E183,'FO&M Trajectories'!$B$10:$B$42,0),MATCH(_xlfn.CONCAT(AQ$16:AQ$17,AQ$19),'FO&M Trajectories'!$C$9:$AAN$9,0)) -> 1
E184: 2022 | F184: 1 | I184: =OFFSET('FO&M Trajectories'!$B$9,MATCH($E184,'FO&M Trajectories'!$B$10:$B$42,0),MATCH(_xlfn.CONCAT(I$16:I$17,I$19),'FO&M Trajectories'!$C$9:$AAN$9,0)) -> 0.8097800297 | J184: =OFFSET('FO&M Trajectories'!$B$9,MATCH($E184,'FO&M Trajectories'!$B$10:$B$42,0),MATCH(_xlfn.CONCAT(J$16:J$17,J$19),'FO&M Trajectories'!$C$9:$AAN$9,0)) -> 0.9708029197 | K184: =OFFSET('FO&M Trajectories'!$B$9,MATCH($E184,'FO&M Trajectories'!$B$10:$B$42,0),MATCH(_xlfn.CONCAT(K$16:K$17,K$19),'FO&M Trajectories'!$C$9:$AAN$9,0)) -> 0.9913731129 | L184: =OFFSET('FO&M Trajectories'!$B$9,MATCH($E184,'FO&M Trajectories'!$B$10:$B$42,0),MATCH(_xlfn.CONCAT(L$16:L$17,L$19),'FO&M Trajectories'!$C$9:$AAN$9,0)) -> 0.9913731129 | M184: =OFFSET('FO&M Trajectories'!$B$9,MATCH($E184,'FO&M Trajectories'!$B$10:$B$42,0),MATCH(_xlfn.CONCAT(M$16:M$17,M$19),'FO&M Trajectories'!$C$9:$AAN$9,0)) -> 0.71639296 | N184: =OFFSET('FO&M Trajectories'!$B$9,MATCH($E184,'FO&M Trajectories'!$B$10:$B$42,0),MATCH(_xlfn.CONCAT(N$16:N$17,N$19),'FO&M Trajectories'!$C$9:$AAN$9,0)) -> 0.71639296 | O184: =OFFSET('FO&M Trajectories'!$B$9,MATCH($E184,'FO&M Trajectories'!$B$10:$B$42,0),MATCH(_xlfn.CONCAT(O$16:O$17,O$19),'FO&M Trajectories'!$C$9:$AAN$9,0)) -> 0.71639296 | P184: =OFFSET('FO&M Trajectories'!$B$9,MATCH($E184,'FO&M Trajectories'!$B$10:$B$42,0),MATCH(_xlfn.CONCAT(P$16:P$17,P$19),'FO&M Trajectories'!$C$9:$AAN$9,0)) -> 0.71639296 | Q184: =OFFSET('FO&M Trajectories'!$B$9,MATCH($E184,'FO&M Trajectories'!$B$10:$B$42,0),MATCH(_xlfn.CONCAT(Q$16:Q$17,Q$19),'FO&M Trajectories'!$C$9:$AAN$9,0)) -> 0.81450625 | R184: =OFFSET('FO&M Trajectories'!$B$9,MATCH($E184,'FO&M Trajectories'!$B$10:$B$42,0),MATCH(_xlfn.CONCAT(R$16:R$17,R$19),'FO&M Trajectories'!$C$9:$AAN$9,0)) -> 1 | S184: =OFFSET('FO&M Trajectories'!$B$9,MATCH($E184,'FO&M Trajectories'!$B$10:$B$42,0),MATCH(_xlfn.CONCAT(S$16:S$17,S$19),'FO&M Trajectories'!$C$9:$AAN$9,0)) -> 1 | T184: =OFFSET('FO&M Trajectories'!$B$9,MATCH($E184,'FO&M Trajectories'!$B$10:$B$42,0),MATCH(_xlfn.CONCAT(T$16:T$17,T$19),'FO&M Trajectories'!$C$9:$AAN$9,0)) -> 0.752527545 | U184: =OFFSET('FO&M Trajectories'!$B$9,MATCH($E184,'FO&M Trajectories'!$B$10:$B$42,0),MATCH(_xlfn.CONCAT(U$16:U$17,U$19),'FO&M Trajectories'!$C$9:$AAN$9,0)) -> 0.7973867343 | V184: =OFFSET('FO&M Trajectories'!$B$9,MATCH($E184,'FO&M Trajectories'!$B$10:$B$42,0),MATCH(_xlfn.CONCAT(V$16:V$17,V$19),'FO&M Trajectories'!$C$9:$AAN$9,0)) -> 0.71639296 | W184: =OFFSET('FO&M Trajectories'!$B$9,MATCH($E184,'FO&M Trajectories'!$B$10:$B$42,0),MATCH(_xlfn.CONCAT(W$16:W$17,W$19),'FO&M Trajectories'!$C$9:$AAN$9,0)) -> 0.71639296 | X184: =OFFSET('FO&M Trajectories'!$B$9,MATCH($E184,'FO&M Trajectories'!$B$10:$B$42,0),MATCH(_xlfn.CONCAT(X$16:X$17,X$19),'FO&M Trajectories'!$C$9:$AAN$9,0)) -> 1 | Y184: =OFFSET('FO&M Trajectories'!$B$9,MATCH($E184,'FO&M Trajectories'!$B$10:$B$42,0),MATCH(_xlfn.CONCAT(Y$16:Y$17,Y$19),'FO&M Trajectories'!$C$9:$AAN$9,0)) -> 1 | Z184: =OFFSET('FO&M Trajectories'!$B$9,MATCH($E184,'FO&M Trajectories'!$B$10:$B$42,0),MATCH(_xlfn.CONCAT(Z$16:Z$17,Z$19),'FO&M Trajectories'!$C$9:$AAN$9,0)) -> 1 | AA184: =OFFSET('FO&M Trajectories'!$B$9,MATCH($E184,'FO&M Trajectories'!$B$10:$B$42,0),MATCH(_xlfn.CONCAT(AA$16:AA$17,AA$19),'FO&M Trajectories'!$C$9:$AAN$9,0)) -> 1 | AB184: =OFFSET('FO&M Trajectories'!$B$9,MATCH($E184,'FO&M Trajectories'!$B$10:$B$42,0),MATCH(_xlfn.CONCAT(AB$16:AB$17,AB$19),'FO&M Trajectories'!$C$9:$AAN$9,0)) -> 1 | AC184: =OFFSET('FO&M Trajectories'!$B$9,MATCH($E184,'FO&M Trajectories'!$B$10:$B$42,0),MATCH(_xlfn.CONCAT(AC$16:AC$17,AC$19),'FO&M Trajectories'!$C$9:$AAN$9,0)) -> 1 | AD184: =OFFSET('FO&M Trajectories'!$B$9,MATCH($E184,'FO&M Trajectories'!$B$10:$B$42,0),MATCH(_xlfn.CONCAT(AD$16:AD$17,AD$19),'FO&M Trajectories'!$C$9:$AAN$9,0)) -> 1 | AE184: =OFFSET('FO&M Trajectories'!$B$9,MATCH($E184,'FO&M Trajectories'!$B$10:$B$42,0),MATCH(_xlfn.CONCAT(AE$16:AE$17,AE$19),'FO&M Trajectories'!$C$9:$AAN$9,0)) -> 1 | AF184: =OFFSET('FO&M Trajectories'!$B$9,MATCH($E184,'FO&M Trajectories'!$B$10:$B$42,0),MATCH(_xlfn.CONCAT(AF$16:AF$17,AF$19),'FO&M Trajectories'!$C$9:$AAN$9,0)) -> 1 | AG184: =OFFSET('FO&M Trajectories'!$B$9,MATCH($E184,'FO&M Trajectories'!$B$10:$B$42,0),MATCH(_xlfn.CONCAT(AG$16:AG$17,AG$19),'FO&M Trajectories'!$C$9:$AAN$9,0)) -> 1 | AH184: =OFFSET('FO&M Trajectories'!$B$9,MATCH($E184,'FO&M Trajectories'!$B$10:$B$42,0),MATCH(_xlfn.CONCAT(AH$16:AH$17,AH$19),'FO&M Trajectories'!$C$9:$AAN$9,0)) -> 1 | AI184: =OFFSET('FO&M Trajectories'!$B$9,MATCH($E184,'FO&M Trajectories'!$B$10:$B$42,0),MATCH(_xlfn.CONCAT(AI$16:AI$17,AI$19),'FO&M Trajectories'!$C$9:$AAN$9,0)) -> 1 | AJ184: =OFFSET('FO&M Trajectories'!$B$9,MATCH($E184,'FO&M Trajectories'!$B$10:$B$42,0),MATCH(_xlfn.CONCAT(AJ$16:AJ$17,AJ$19),'FO&M Trajectories'!$C$9:$AAN$9,0)) -> 1 | AK184: =OFFSET('FO&M Trajectories'!$B$9,MATCH($E184,'FO&M Trajectories'!$B$10:$B$42,0),MATCH(_xlfn.CONCAT(AK$16:AK$17,AK$19),'FO&M Trajectories'!$C$9:$AAN$9,0)) -> 1 | AL184: =OFFSET('FO&M Trajectories'!$B$9,MATCH($E184,'FO&M Trajectories'!$B$10:$B$42,0),MATCH(_xlfn.CONCAT(AL$16:AL$17,AL$19),'FO&M Trajectories'!$C$9:$AAN$9,0)) -> 0.95 | AM184: =OFFSET('FO&M Trajectories'!$B$9,MATCH($E184,'FO&M Trajectories'!$B$10:$B$42,0),MATCH(_xlfn.CONCAT(AM$16:AM$17,AM$19),'FO&M Trajectories'!$C$9:$AAN$9,0)) -> 1 | AN184: =OFFSET('FO&M Trajectories'!$B$9,MATCH($E184,'FO&M Trajectories'!$B$10:$B$42,0),MATCH(_xlfn.CONCAT(AN$16:AN$17,AN$19),'FO&M Trajectories'!$C$9:$AAN$9,0)) -> 1 | AO184: =OFFSET('FO&M Trajectories'!$B$9,MATCH($E184,'FO&M Trajectories'!$B$10:$B$42,0),MATCH(_xlfn.CONCAT(AO$16:AO$17,AO$19),'FO&M Trajectories'!$C$9:$AAN$9,0)) -> 1 | AP184: =OFFSET('FO&M Trajectories'!$B$9,MATCH($E184,'FO&M Trajectories'!$B$10:$B$42,0),MATCH(_xlfn.CONCAT(AP$16:AP$17,AP$19),'FO&M Trajectories'!$C$9:$AAN$9,0)) -> 1 | AQ184: =OFFSET('FO&M Trajectories'!$B$9,MATCH($E184,'FO&M Trajectories'!$B$10:$B$42,0),MATCH(_xlfn.CONCAT(AQ$16:AQ$17,AQ$19),'FO&M Trajectories'!$C$9:$AAN$9,0)) -> 1
E185: 2023 | F185: 1 | I185: =OFFSET('FO&M Trajectories'!$B$9,MATCH($E185,'FO&M Trajectories'!$B$10:$B$42,0),MATCH(_xlfn.CONCAT(I$16:I$17,I$19),'FO&M Trajectories'!$C$9:$AAN$9,0)) -> 0.8009301979 | J185: =OFFSET('FO&M Trajectories'!$B$9,MATCH($E185,'FO&M Trajectories'!$B$10:$B$42,0),MATCH(_xlfn.CONCAT(J$16:J$17,J$19),'FO&M Trajectories'!$C$9:$AAN$9,0)) -> 0.9635036496 | K185: =OFFSET('FO&M Trajectories'!$B$9,MATCH($E185,'FO&M Trajectories'!$B$10:$B$42,0),MATCH(_xlfn.CONCAT(K$16:K$17,K$19),'FO&M Trajectories'!$C$9:$AAN$9,0)) -> 0.9892163911 | L185: =OFFSET('FO&M Trajectories'!$B$9,MATCH($E185,'FO&M Trajectories'!$B$10:$B$42,0),MATCH(_xlfn.CONCAT(L$16:L$17,L$19),'FO&M Trajectories'!$C$9:$AAN$9,0)) -> 0.9892163911 | M185: =OFFSET('FO&M Trajectories'!$B$9,MATCH($E185,'FO&M Trajectories'!$B$10:$B$42,0),MATCH(_xlfn.CONCAT(M$16:M$17,M$19),'FO&M Trajectories'!$C$9:$AAN$9,0)) -> 0.6590815232 | N185: =OFFSET('FO&M Trajectories'!$B$9,MATCH($E185,'FO&M Trajectories'!$B$10:$B$42,0),MATCH(_xlfn.CONCAT(N$16:N$17,N$19),'FO&M Trajectories'!$C$9:$AAN$9,0)) -> 0.6590815232 | O185: =OFFSET('FO&M Trajectories'!$B$9,MATCH($E185,'FO&M Trajectories'!$B$10:$B$42,0),MATCH(_xlfn.CONCAT(O$16:O$17,O$19),'FO&M Trajectories'!$C$9:$AAN$9,0)) -> 0.6590815232 | P185: =OFFSET('FO&M Trajectories'!$B$9,MATCH($E185,'FO&M Trajectories'!$B$10:$B$42,0),MATCH(_xlfn.CONCAT(P$16:P$17,P$19),'FO&M Trajectories'!$C$9:$AAN$9,0)) -> 0.6590815232 | Q185: =OFFSET('FO&M Trajectories'!$B$9,MATCH($E185,'FO&M Trajectories'!$B$10:$B$42,0),MATCH(_xlfn.CONCAT(Q$16:Q$17,Q$19),'FO&M Trajectories'!$C$9:$AAN$9,0)) -> 0.7737809375 | R185: =OFFSET('FO&M Trajectories'!$B$9,MATCH($E185,'FO&M Trajectories'!$B$10:$B$42,0),MATCH(_xlfn.CONCAT(R$16:R$17,R$19),'FO&M Trajectories'!$C$9:$AAN$9,0)) -> 1 | S185: =OFFSET('FO&M Trajectories'!$B$9,MATCH($E185,'FO&M Trajectories'!$B$10:$B$42,0),MATCH(_xlfn.CONCAT(S$16:S$17,S$19),'FO&M Trajectories'!$C$9:$AAN$9,0)) -> 1 | T185: =OFFSET('FO&M Trajectories'!$B$9,MATCH($E185,'FO&M Trajectories'!$B$10:$B$42,0),MATCH(_xlfn.CONCAT(T$16:T$17,T$19),'FO&M Trajectories'!$C$9:$AAN$9,0)) -> 0.7287839606 | U185: =OFFSET('FO&M Trajectories'!$B$9,MATCH($E185,'FO&M Trajectories'!$B$10:$B$42,0),MATCH(_xlfn.CONCAT(U$16:U$17,U$19),'FO&M Trajectories'!$C$9:$AAN$9,0)) -> 0.7725242398 | V185: =OFFSET('FO&M Trajectories'!$B$9,MATCH($E185,'FO&M Trajectories'!$B$10:$B$42,0),MATCH(_xlfn.CONCAT(V$16:V$17,V$19),'FO&M Trajectories'!$C$9:$AAN$9,0)) -> 0.6590815232 | W185: =OFFSET('FO&M Trajectories'!$B$9,MATCH($E185,'FO&M Trajectories'!$B$10:$B$42,0),MATCH(_xlfn.CONCAT(W$16:W$17,W$19),'FO&M Trajectories'!$C$9:$AAN$9,0)) -> 0.6590815232 | X185: =OFFSET('FO&M Trajectories'!$B$9,MATCH($E185,'FO&M Trajectories'!$B$10:$B$42,0),MATCH(_xlfn.CONCAT(X$16:X$17,X$19),'FO&M Trajectories'!$C$9:$AAN$9,0)) -> 1 | Y185: =OFFSET('FO&M Trajectories'!$B$9,MATCH($E185,'FO&M Trajectories'!$B$10:$B$42,0),MATCH(_xlfn.CONCAT(Y$16:Y$17,Y$19),'FO&M Trajectories'!$C$9:$AAN$9,0)) -> 1 | Z185: =OFFSET('FO&M Trajectories'!$B$9,MATCH($E185,'FO&M Trajectories'!$B$10:$B$42,0),MATCH(_xlfn.CONCAT(Z$16:Z$17,Z$19),'FO&M Trajectories'!$C$9:$AAN$9,0)) -> 1 | AA185: =OFFSET('FO&M Trajectories'!$B$9,MATCH($E185,'FO&M Trajectories'!$B$10:$B$42,0),MATCH(_xlfn.CONCAT(AA$16:AA$17,AA$19),'FO&M Trajectories'!$C$9:$AAN$9,0)) -> 1 | AB185: =OFFSET('FO&M Trajectories'!$B$9,MATCH($E185,'FO&M Trajectories'!$B$10:$B$42,0),MATCH(_xlfn.CONCAT(AB$16:AB$17,AB$19),'FO&M Trajectories'!$C$9:$AAN$9,0)) -> 1 | AC185: =OFFSET('FO&M Trajectories'!$B$9,MATCH($E185,'FO&M Trajectories'!$B$10:$B$42,0),MATCH(_xlfn.CONCAT(AC$16:AC$17,AC$19),'FO&M Trajectories'!$C$9:$AAN$9,0)) -> 1 | AD185: =OFFSET('FO&M Trajectories'!$B$9,MATCH($E185,'FO&M Trajectories'!$B$10:$B$42,0),MATCH(_xlfn.CONCAT(AD$16:AD$17,AD$19),'FO&M Trajectories'!$C$9:$AAN$9,0)) -> 1 | AE185: =OFFSET('FO&M Trajectories'!$B$9,MATCH($E185,'FO&M Trajectories'!$B$10:$B$42,0),MATCH(_xlfn.CONCAT(AE$16:AE$17,AE$19),'FO&M Trajectories'!$C$9:$AAN$9,0)) -> 1 | AF185: =OFFSET('FO&M Trajectories'!$B$9,MATCH($E185,'FO&M Trajectories'!$B$10:$B$42,0),MATCH(_xlfn.CONCAT(AF$16:AF$17,AF$19),'FO&M Trajectories'!$C$9:$AAN$9,0)) -> 1 | AG185: =OFFSET('FO&M Trajectories'!$B$9,MATCH($E185,'FO&M Trajectories'!$B$10:$B$42,0),MATCH(_xlfn.CONCAT(AG$16:AG$17,AG$19),'FO&M Trajectories'!$C$9:$AAN$9,0)) -> 1 | AH185: =OFFSET('FO&M Trajectories'!$B$9,MATCH($E185,'FO&M Trajectories'!$B$10:$B$42,0),MATCH(_xlfn.CONCAT(AH$16:AH$17,AH$19),'FO&M Trajectories'!$C$9:$AAN$9,0)) -> 1 | AI185: =OFFSET('FO&M Trajectories'!$B$9,MATCH($E185,'FO&M Trajectories'!$B$10:$B$42,0),MATCH(_xlfn.CONCAT(AI$16:AI$17,AI$19),'FO&M Trajectories'!$C$9:$AAN$9,0)) -> 1 | AJ185: =OFFSET('FO&M Trajectories'!$B$9,MATCH($E185,'FO&M Trajectories'!$B$10:$B$42,0),MATCH(_xlfn.CONCAT(AJ$16:AJ$17,AJ$19),'FO&M Trajectories'!$C$9:$AAN$9,0)) -> 1 | AK185: =OFFSET('FO&M Trajectories'!$B$9,MATCH($E185,'FO&M Trajectories'!$B$10:$B$42,0),MATCH(_xlfn.CONCAT(AK$16:AK$17,AK$19),'FO&M Trajectories'!$C$9:$AAN$9,0)) -> 1 | AL185: =OFFSET('FO&M Trajectories'!$B$9,MATCH($E185,'FO&M Trajectories'!$B$10:$B$42,0),MATCH(_xlfn.CONCAT(AL$16:AL$17,AL$19),'FO&M Trajectories'!$C$9:$AAN$9,0)) -> 0.925 | AM185: =OFFSET('FO&M Trajectories'!$B$9,MATCH($E185,'FO&M Trajectories'!$B$10:$B$42,0),MATCH(_xlfn.CONCAT(AM$16:AM$17,AM$19),'FO&M Trajectories'!$C$9:$AAN$9,0)) -> 1 | AN185: =OFFSET('FO&M Trajectories'!$B$9,MATCH($E185,'FO&M Trajectories'!$B$10:$B$42,0),MATCH(_xlfn.CONCAT(AN$16:AN$17,AN$19),'FO&M Trajectories'!$C$9:$AAN$9,0)) -> 1 | AO185: =OFFSET('FO&M Trajectories'!$B$9,MATCH($E185,'FO&M Trajectories'!$B$10:$B$42,0),MATCH(_xlfn.CONCAT(AO$16:AO$17,AO$19),'FO&M Trajectories'!$C$9:$AAN$9,0)) -> 1 | AP185: =OFFSET('FO&M Trajectories'!$B$9,MATCH($E185,'FO&M Trajectories'!$B$10:$B$42,0),MATCH(_xlfn.CONCAT(AP$16:AP$17,AP$19),'FO&M Trajectories'!$C$9:$AAN$9,0)) -> 1 | AQ185: =OFFSET('FO&M Trajectories'!$B$9,MATCH($E185,'FO&M Trajectories'!$B$10:$B$42,0),MATCH(_xlfn.CONCAT(AQ$16:AQ$17,AQ$19),'FO&M Trajectories'!$C$9:$AAN$9,0)) -> 1
E186: 2024 | F186: 1 | I186: =OFFSET('FO&M Trajectories'!$B$9,MATCH($E186,'FO&M Trajectories'!$B$10:$B$42,0),MATCH(_xlfn.CONCAT(I$16:I$17,I$19),'FO&M Trajectories'!$C$9:$AAN$9,0)) -> 0.7920803662 | J186: =OFFSET('FO&M Trajectories'!$B$9,MATCH($E186,'FO&M Trajectories'!$B$10:$B$42,0),MATCH(_xlfn.CONCAT(J$16:J$17,J$19),'FO&M Trajectories'!$C$9:$AAN$9,0)) -> 0.9562043796 | K186: =OFFSET('FO&M Trajectories'!$B$9,MATCH($E186,'FO&M Trajectories'!$B$10:$B$42,0),MATCH(_xlfn.CONCAT(K$16:K$17,K$19),'FO&M Trajectories'!$C$9:$AAN$9,0)) -> 0.9870596693 | L186: =OFFSET('FO&M Trajectories'!$B$9,MATCH($E186,'FO&M Trajectories'!$B$10:$B$42,0),MATCH(_xlfn.CONCAT(L$16:L$17,L$19),'FO&M Trajectories'!$C$9:$AAN$9,0)) -> 0.9870596693 | M186: =OFFSET('FO&M Trajectories'!$B$9,MATCH($E186,'FO&M Trajectories'!$B$10:$B$42,0),MATCH(_xlfn.CONCAT(M$16:M$17,M$19),'FO&M Trajectories'!$C$9:$AAN$9,0)) -> 0.611481191 | N186: =OFFSET('FO&M Trajectories'!$B$9,MATCH($E186,'FO&M Trajectories'!$B$10:$B$42,0),MATCH(_xlfn.CONCAT(N$16:N$17,N$19),'FO&M Trajectories'!$C$9:$AAN$9,0)) -> 0.611481191 | O186: =OFFSET('FO&M Trajectories'!$B$9,MATCH($E186,'FO&M Trajectories'!$B$10:$B$42,0),MATCH(_xlfn.CONCAT(O$16:O$17,O$19),'FO&M Trajectories'!$C$9:$AAN$9,0)) -> 0.611481191 | P186: =OFFSET('FO&M Trajectories'!$B$9,MATCH($E186,'FO&M Trajectories'!$B$10:$B$42,0),MATCH(_xlfn.CONCAT(P$16:P$17,P$19),'FO&M Trajectories'!$C$9:$AAN$9,0)) -> 0.611481191 | Q186: =OFFSET('FO&M Trajectories'!$B$9,MATCH($E186,'FO&M Trajectories'!$B$10:$B$42,0),MATCH(_xlfn.CONCAT(Q$16:Q$17,Q$19),'FO&M Trajectories'!$C$9:$AAN$9,0)) -> 0.7393906736 | R186: =OFFSET('FO&M Trajectories'!$B$9,MATCH($E186,'FO&M Trajectories'!$B$10:$B$42,0),MATCH(_xlfn.CONCAT(R$16:R$17,R$19),'FO&M Trajectories'!$C$9:$AAN$9,0)) -> 1 | S186: =OFFSET('FO&M Trajectories'!$B$9,MATCH($E186,'FO&M Trajectories'!$B$10:$B$42,0),MATCH(_xlfn.CONCAT(S$16:S$17,S$19),'FO&M Trajectories'!$C$9:$AAN$9,0)) -> 1 | T186: =OFFSET('FO&M Trajectories'!$B$9,MATCH($E186,'FO&M Trajectories'!$B$10:$B$42,0),MATCH(_xlfn.CONCAT(T$16:T$17,T$19),'FO&M Trajectories'!$C$9:$AAN$9,0)) -> 0.7050403761 | U186: =OFFSET('FO&M Trajectories'!$B$9,MATCH($E186,'FO&M Trajectories'!$B$10:$B$42,0),MATCH(_xlfn.CONCAT(U$16:U$17,U$19),'FO&M Trajectories'!$C$9:$AAN$9,0)) -> 0.7476617454 | V186: =OFFSET('FO&M Trajectories'!$B$9,MATCH($E186,'FO&M Trajectories'!$B$10:$B$42,0),MATCH(_xlfn.CONCAT(V$16:V$17,V$19),'FO&M Trajectories'!$C$9:$AAN$9,0)) -> 0.6122135038 | W186: =OFFSET('FO&M Trajectories'!$B$9,MATCH($E186,'FO&M Trajectories'!$B$10:$B$42,0),MATCH(_xlfn.CONCAT(W$16:W$17,W$19),'FO&M Trajectories'!$C$9:$AAN$9,0)) -> 0.6122135038 | X186: =OFFSET('FO&M Trajectories'!$B$9,MATCH($E186,'FO&M Trajectories'!$B$10:$B$42,0),MATCH(_xlfn.CONCAT(X$16:X$17,X$19),'FO&M Trajectories'!$C$9:$AAN$9,0)) -> 1 | Y186: =OFFSET('FO&M Trajectories'!$B$9,MATCH($E186,'FO&M Trajectories'!$B$10:$B$42,0),MATCH(_xlfn.CONCAT(Y$16:Y$17,Y$19),'FO&M Trajectories'!$C$9:$AAN$9,0)) -> 1 | Z186: =OFFSET('FO&M Trajectories'!$B$9,MATCH($E186,'FO&M Trajectories'!$B$10:$B$42,0),MATCH(_xlfn.CONCAT(Z$16:Z$17,Z$19),'FO&M Trajectories'!$C$9:$AAN$9,0)) -> 1 | AA186: =OFFSET('FO&M Trajectories'!$B$9,MATCH($E186,'FO&M Trajectories'!$B$10:$B$42,0),MATCH(_xlfn.CONCAT(AA$16:AA$17,AA$19),'FO&M Trajectories'!$C$9:$AAN$9,0)) -> 1 | AB186: =OFFSET('FO&M Trajectories'!$B$9,MATCH($E186,'FO&M Trajectories'!$B$10:$B$42,0),MATCH(_xlfn.CONCAT(AB$16:AB$17,AB$19),'FO&M Trajectories'!$C$9:$AAN$9,0)) -> 1 | AC186: =OFFSET('FO&M Trajectories'!$B$9,MATCH($E186,'FO&M Trajectories'!$B$10:$B$42,0),MATCH(_xlfn.CONCAT(AC$16:AC$17,AC$19),'FO&M Trajectories'!$C$9:$AAN$9,0)) -> 1 | AD186: =OFFSET('FO&M Trajectories'!$B$9,MATCH($E186,'FO&M Trajectories'!$B$10:$B$42,0),MATCH(_xlfn.CONCAT(AD$16:AD$17,AD$19),'FO&M Trajectories'!$C$9:$AAN$9,0)) -> 1 | AE186: =OFFSET('FO&M Trajectories'!$B$9,MATCH($E186,'FO&M Trajectories'!$B$10:$B$42,0),MATCH(_xlfn.CONCAT(AE$16:AE$17,AE$19),'FO&M Trajectories'!$C$9:$AAN$9,0)) -> 1 | AF186: =OFFSET('FO&M Trajectories'!$B$9,MATCH($E186,'FO&M Trajectories'!$B$10:$B$42,0),MATCH(_xlfn.CONCAT(AF$16:AF$17,AF$19),'FO&M Trajectories'!$C$9:$AAN$9,0)) -> 1 | AG186: =OFFSET('FO&M Trajectories'!$B$9,MATCH($E186,'FO&M Trajectories'!$B$10:$B$42,0),MATCH(_xlfn.CONCAT(AG$16:AG$17,AG$19),'FO&M Trajectories'!$C$9:$AAN$9,0)) -> 1 | AH186: =OFFSET('FO&M Trajectories'!$B$9,MATCH($E186,'FO&M Trajectories'!$B$10:$B$42,0),MATCH(_xlfn.CONCAT(AH$16:AH$17,AH$19),'FO&M Trajectories'!$C$9:$AAN$9,0)) -> 1 | AI186: =OFFSET('FO&M Trajectories'!$B$9,MATCH($E186,'FO&M Trajectories'!$B$10:$B$42,0),MATCH(_xlfn.CONCAT(AI$16:AI$17,AI$19),'FO&M Trajectories'!$C$9:$AAN$9,0)) -> 1 | AJ186: =OFFSET('FO&M Trajectories'!$B$9,MATCH($E186,'FO&M Trajectories'!$B$10:$B$42,0),MATCH(_xlfn.CONCAT(AJ$16:AJ$17,AJ$19),'FO&M Trajectories'!$C$9:$AAN$9,0)) -> 1 | AK186: =OFFSET('FO&M Trajectories'!$B$9,MATCH($E186,'FO&M Trajectories'!$B$10:$B$42,0),MATCH(_xlfn.CONCAT(AK$16:AK$17,AK$19),'FO&M Trajectories'!$C$9:$AAN$9,0)) -> 1 | AL186: =OFFSET('FO&M Trajectories'!$B$9,MATCH($E186,'FO&M Trajectories'!$B$10:$B$42,0),MATCH(_xlfn.CONCAT(AL$16:AL$17,AL$19),'FO&M Trajectories'!$C$9:$AAN$9,0)) -> 0.9 | AM186: =OFFSET('FO&M Trajectories'!$B$9,MATCH($E186,'FO&M Trajectories'!$B$10:$B$42,0),MATCH(_xlfn.CONCAT(AM$16:AM$17,AM$19),'FO&M Trajectories'!$C$9:$AAN$9,0)) -> 1 | AN186: =OFFSET('FO&M Trajectories'!$B$9,MATCH($E186,'FO&M Trajectories'!$B$10:$B$42,0),MATCH(_xlfn.CONCAT(AN$16:AN$17,AN$19),'FO&M Trajectories'!$C$9:$AAN$9,0)) -> 1 | AO186: =OFFSET('FO&M Trajectories'!$B$9,MATCH($E186,'FO&M Trajectories'!$B$10:$B$42,0),MATCH(_xlfn.CONCAT(AO$16:AO$17,AO$19),'FO&M Trajectories'!$C$9:$AAN$9,0)) -> 1 | AP186: =OFFSET('FO&M Trajectories'!$B$9,MATCH($E186,'FO&M Trajectories'!$B$10:$B$42,0),MATCH(_xlfn.CONCAT(AP$16:AP$17,AP$19),'FO&M Trajectories'!$C$9:$AAN$9,0)) -> 1 | AQ186: =OFFSET('FO&M Trajectories'!$B$9,MATCH($E186,'FO&M Trajectories'!$B$10:$B$42,0),MATCH(_xlfn.CONCAT(AQ$16:AQ$17,AQ$19),'FO&M Trajectories'!$C$9:$AAN$9,0)) -> 1
E187: 2025 | F187: 1 | I187: =OFFSET('FO&M Trajectories'!$B$9,MATCH($E187,'FO&M Trajectories'!$B$10:$B$42,0),MATCH(_xlfn.CONCAT(I$16:I$17,I$19),'FO&M Trajectories'!$C$9:$AAN$9,0)) -> 0.7832305344 | J187: =OFFSET('FO&M Trajectories'!$B$9,MATCH($E187,'FO&M Trajectories'!$B$10:$B$42,0),MATCH(_xlfn.CONCAT(J$16:J$17,J$19),'FO&M Trajectories'!$C$9:$AAN$9,0)) -> 0.9489051095 | K187: =OFFSET('FO&M Trajectories'!$B$9,MATCH($E187,'FO&M Trajectories'!$B$10:$B$42,0),MATCH(_xlfn.CONCAT(K$16:K$17,K$19),'FO&M Trajectories'!$C$9:$AAN$9,0)) -> 0.9849029475 | L187: =OFFSET('FO&M Trajectories'!$B$9,MATCH($E187,'FO&M Trajectories'!$B$10:$B$42,0),MATCH(_xlfn.CONCAT(L$16:L$17,L$19),'FO&M Trajectories'!$C$9:$AAN$9,0)) -> 0.9849029475 | M187: =OFFSET('FO&M Trajectories'!$B$9,MATCH($E187,'FO&M Trajectories'!$B$10:$B$42,0),MATCH(_xlfn.CONCAT(M$16:M$17,M$19),'FO&M Trajectories'!$C$9:$AAN$9,0)) -> 0.5720746253 | N187: =OFFSET('FO&M Trajectories'!$B$9,MATCH($E187,'FO&M Trajectories'!$B$10:$B$42,0),MATCH(_xlfn.CONCAT(N$16:N$17,N$19),'FO&M Trajectories'!$C$9:$AAN$9,0)) -> 0.5720746253 | O187: =OFFSET('FO&M Trajectories'!$B$9,MATCH($E187,'FO&M Trajectories'!$B$10:$B$42,0),MATCH(_xlfn.CONCAT(O$16:O$17,O$19),'FO&M Trajectories'!$C$9:$AAN$9,0)) -> 0.5720746253 | P187: =OFFSET('FO&M Trajectories'!$B$9,MATCH($E187,'FO&M Trajectories'!$B$10:$B$42,0),MATCH(_xlfn.CONCAT(P$16:P$17,P$19),'FO&M Trajectories'!$C$9:$AAN$9,0)) -> 0.5720746253 | Q187: =OFFSET('FO&M Trajectories'!$B$9,MATCH($E187,'FO&M Trajectories'!$B$10:$B$42,0),MATCH(_xlfn.CONCAT(Q$16:Q$17,Q$19),'FO&M Trajectories'!$C$9:$AAN$9,0)) -> 0.7106365919 | R187: =OFFSET('FO&M Trajectories'!$B$9,MATCH($E187,'FO&M Trajectories'!$B$10:$B$42,0),MATCH(_xlfn.CONCAT(R$16:R$17,R$19),'FO&M Trajectories'!$C$9:$AAN$9,0)) -> 1 | S187: =OFFSET('FO&M Trajectories'!$B$9,MATCH($E187,'FO&M Trajectories'!$B$10:$B$42,0),MATCH(_xlfn.CONCAT(S$16:S$17,S$19),'FO&M Trajectories'!$C$9:$AAN$9,0)) -> 1 | T187: =OFFSET('FO&M Trajectories'!$B$9,MATCH($E187,'FO&M Trajectories'!$B$10:$B$42,0),MATCH(_xlfn.CONCAT(T$16:T$17,T$19),'FO&M Trajectories'!$C$9:$AAN$9,0)) -> 0.6812967917 | U187: =OFFSET('FO&M Trajectories'!$B$9,MATCH($E187,'FO&M Trajectories'!$B$10:$B$42,0),MATCH(_xlfn.CONCAT(U$16:U$17,U$19),'FO&M Trajectories'!$C$9:$AAN$9,0)) -> 0.722799251 | V187: =OFFSET('FO&M Trajectories'!$B$9,MATCH($E187,'FO&M Trajectories'!$B$10:$B$42,0),MATCH(_xlfn.CONCAT(V$16:V$17,V$19),'FO&M Trajectories'!$C$9:$AAN$9,0)) -> 0.5741202191 | W187: =OFFSET('FO&M Trajectories'!$B$9,MATCH($E187,'FO&M Trajectories'!$B$10:$B$42,0),MATCH(_xlfn.CONCAT(W$16:W$17,W$19),'FO&M Trajectories'!$C$9:$AAN$9,0)) -> 0.5741202191 | X187: =OFFSET('FO&M Trajectories'!$B$9,MATCH($E187,'FO&M Trajectories'!$B$10:$B$42,0),MATCH(_xlfn.CONCAT(X$16:X$17,X$19),'FO&M Trajectories'!$C$9:$AAN$9,0)) -> 1 | Y187: =OFFSET('FO&M Trajectories'!$B$9,MATCH($E187,'FO&M Trajectories'!$B$10:$B$42,0),MATCH(_xlfn.CONCAT(Y$16:Y$17,Y$19),'FO&M Trajectories'!$C$9:$AAN$9,0)) -> 1 | Z187: =OFFSET('FO&M Trajectories'!$B$9,MATCH($E187,'FO&M Trajectories'!$B$10:$B$42,0),MATCH(_xlfn.CONCAT(Z$16:Z$17,Z$19),'FO&M Trajectories'!$C$9:$AAN$9,0)) -> 1 | AA187: =OFFSET('FO&M Trajectories'!$B$9,MATCH($E187,'FO&M Trajectories'!$B$10:$B$42,0),MATCH(_xlfn.CONCAT(AA$16:AA$17,AA$19),'FO&M Trajectories'!$C$9:$AAN$9,0)) -> 1 | AB187: =OFFSET('FO&M Trajectories'!$B$9,MATCH($E187,'FO&M Trajectories'!$B$10:$B$42,0),MATCH(_xlfn.CONCAT(AB$16:AB$17,AB$19),'FO&M Trajectories'!$C$9:$AAN$9,0)) -> 1 | AC187: =OFFSET('FO&M Trajectories'!$B$9,MATCH($E187,'FO&M Trajectories'!$B$10:$B$42,0),MATCH(_xlfn.CONCAT(AC$16:AC$17,AC$19),'FO&M Trajectories'!$C$9:$AAN$9,0)) -> 1 | AD187: =OFFSET('FO&M Trajectories'!$B$9,MATCH($E187,'FO&M Trajectories'!$B$10:$B$42,0),MATCH(_xlfn.CONCAT(AD$16:AD$17,AD$19),'FO&M Trajectories'!$C$9:$AAN$9,0)) -> 1 | AE187: =OFFSET('FO&M Trajectories'!$B$9,MATCH($E187,'FO&M Trajectories'!$B$10:$B$42,0),MATCH(_xlfn.CONCAT(AE$16:AE$17,AE$19),'FO&M Trajectories'!$C$9:$AAN$9,0)) -> 1 | AF187: =OFFSET('FO&M Trajectories'!$B$9,MATCH($E187,'FO&M Trajectories'!$B$10:$B$42,0),MATCH(_xlfn.CONCAT(AF$16:AF$17,AF$19),'FO&M Trajectories'!$C$9:$AAN$9,0)) -> 1 | AG187: =OFFSET('FO&M Trajectories'!$B$9,MATCH($E187,'FO&M Trajectories'!$B$10:$B$42,0),MATCH(_xlfn.CONCAT(AG$16:AG$17,AG$19),'FO&M Trajectories'!$C$9:$AAN$9,0)) -> 1 | AH187: =OFFSET('FO&M Trajectories'!$B$9,MATCH($E187,'FO&M Trajectories'!$B$10:$B$42,0),MATCH(_xlfn.CONCAT(AH$16:AH$17,AH$19),'FO&M Trajectories'!$C$9:$AAN$9,0)) -> 1 | AI187: =OFFSET('FO&M Trajectories'!$B$9,MATCH($E187,'FO&M Trajectories'!$B$10:$B$42,0),MATCH(_xlfn.CONCAT(AI$16:AI$17,AI$19),'FO&M Trajectories'!$C$9:$AAN$9,0)) -> 1 | AJ187: =OFFSET('FO&M Trajectories'!$B$9,MATCH($E187,'FO&M Trajectories'!$B$10:$B$42,0),MATCH(_xlfn.CONCAT(AJ$16:AJ$17,AJ$19),'FO&M Trajectories'!$C$9:$AAN$9,0)) -> 1 | AK187: =OFFSET('FO&M Trajectories'!$B$9,MATCH($E187,'FO&M Trajectories'!$B$10:$B$42,0),MATCH(_xlfn.CONCAT(AK$16:AK$17,AK$19),'FO&M Trajectories'!$C$9:$AAN$9,0)) -> 1 | AL187: =OFFSET('FO&M Trajectories'!$B$9,MATCH($E187,'FO&M Trajectories'!$B$10:$B$42,0),MATCH(_xlfn.CONCAT(AL$16:AL$17,AL$19),'FO&M Trajectories'!$C$9:$AAN$9,0)) -> 0.875 | AM187: =OFFSET('FO&M Trajectories'!$B$9,MATCH($E187,'FO&M Trajectories'!$B$10:$B$42,0),MATCH(_xlfn.CONCAT(AM$16:AM$17,AM$19),'FO&M Trajectories'!$C$9:$AAN$9,0)) -> 1 | AN187: =OFFSET('FO&M Trajectories'!$B$9,MATCH($E187,'FO&M Trajectories'!$B$10:$B$42,0),MATCH(_xlfn.CONCAT(AN$16:AN$17,AN$19),'FO&M Trajectories'!$C$9:$AAN$9,0)) -> 1 | AO187: =OFFSET('FO&M Trajectories'!$B$9,MATCH($E187,'FO&M Trajectories'!$B$10:$B$42,0),MATCH(_xlfn.CONCAT(AO$16:AO$17,AO$19),'FO&M Trajectories'!$C$9:$AAN$9,0)) -> 1 | AP187: =OFFSET('FO&M Trajectories'!$B$9,MATCH($E187,'FO&M Trajectories'!$B$10:$B$42,0),MATCH(_xlfn.CONCAT(AP$16:AP$17,AP$19),'FO&M Trajectories'!$C$9:$AAN$9,0)) -> 1 | AQ187: =OFFSET('FO&M Trajectories'!$B$9,MATCH($E187,'FO&M Trajectories'!$B$10:$B$42,0),MATCH(_xlfn.CONCAT(AQ$16:AQ$17,AQ$19),'FO&M Trajectories'!$C$9:$AAN$9,0)) -> 1
E188: 2026 | F188: 1 | I188: =OFFSET('FO&M Trajectories'!$B$9,MATCH($E188,'FO&M Trajectories'!$B$10:$B$42,0),MATCH(_xlfn.CONCAT(I$16:I$17,I$19),'FO&M Trajectories'!$C$9:$AAN$9,0)) -> 0.7743807027 | J188: =OFFSET('FO&M Trajectories'!$B$9,MATCH($E188,'FO&M Trajectories'!$B$10:$B$42,0),MATCH(_xlfn.CONCAT(J$16:J$17,J$19),'FO&M Trajectories'!$C$9:$AAN$9,0)) -> 0.9416058394 | K188: =OFFSET('FO&M Trajectories'!$B$9,MATCH($E188,'FO&M Trajectories'!$B$10:$B$42,0),MATCH(_xlfn.CONCAT(K$16:K$17,K$19),'FO&M Trajectories'!$C$9:$AAN$9,0)) -> 0.9827462257 | L188: =OFFSET('FO&M Trajectories'!$B$9,MATCH($E188,'FO&M Trajectories'!$B$10:$B$42,0),MATCH(_xlfn.CONCAT(L$16:L$17,L$19),'FO&M Trajectories'!$C$9:$AAN$9,0)) -> 0.9827462257 | M188: =OFFSET('FO&M Trajectories'!$B$9,MATCH($E188,'FO&M Trajectories'!$B$10:$B$42,0),MATCH(_xlfn.CONCAT(M$16:M$17,M$19),'FO&M Trajectories'!$C$9:$AAN$9,0)) -> 0.5396570632 | N188: =OFFSET('FO&M Trajectories'!$B$9,MATCH($E188,'FO&M Trajectories'!$B$10:$B$42,0),MATCH(_xlfn.CONCAT(N$16:N$17,N$19),'FO&M Trajectories'!$C$9:$AAN$9,0)) -> 0.5396570632 | O188: =OFFSET('FO&M Trajectories'!$B$9,MATCH($E188,'FO&M Trajectories'!$B$10:$B$42,0),MATCH(_xlfn.CONCAT(O$16:O$17,O$19),'FO&M Trajectories'!$C$9:$AAN$9,0)) -> 0.5396570632 | P188: =OFFSET('FO&M Trajectories'!$B$9,MATCH($E188,'FO&M Trajectories'!$B$10:$B$42,0),MATCH(_xlfn.CONCAT(P$16:P$17,P$19),'FO&M Trajectories'!$C$9:$AAN$9,0)) -> 0.5396570632 | Q188: =OFFSET('FO&M Trajectories'!$B$9,MATCH($E188,'FO&M Trajectories'!$B$10:$B$42,0),MATCH(_xlfn.CONCAT(Q$16:Q$17,Q$19),'FO&M Trajectories'!$C$9:$AAN$9,0)) -> 0.6869487055 | R188: =OFFSET('FO&M Trajectories'!$B$9,MATCH($E188,'FO&M Trajectories'!$B$10:$B$42,0),MATCH(_xlfn.CONCAT(R$16:R$17,R$19),'FO&M Trajectories'!$C$9:$AAN$9,0)) -> 1 | S188: =OFFSET('FO&M Trajectories'!$B$9,MATCH($E188,'FO&M Trajectories'!$B$10:$B$42,0),MATCH(_xlfn.CONCAT(S$16:S$17,S$19),'FO&M Trajectories'!$C$9:$AAN$9,0)) -> 1 | T188: =OFFSET('FO&M Trajectories'!$B$9,MATCH($E188,'FO&M Trajectories'!$B$10:$B$42,0),MATCH(_xlfn.CONCAT(T$16:T$17,T$19),'FO&M Trajectories'!$C$9:$AAN$9,0)) -> 0.6575532073 | U188: =OFFSET('FO&M Trajectories'!$B$9,MATCH($E188,'FO&M Trajectories'!$B$10:$B$42,0),MATCH(_xlfn.CONCAT(U$16:U$17,U$19),'FO&M Trajectories'!$C$9:$AAN$9,0)) -> 0.6979367566 | V188: =OFFSET('FO&M Trajectories'!$B$9,MATCH($E188,'FO&M Trajectories'!$B$10:$B$42,0),MATCH(_xlfn.CONCAT(V$16:V$17,V$19),'FO&M Trajectories'!$C$9:$AAN$9,0)) -> 0.5435004741 | W188: =OFFSET('FO&M Trajectories'!$B$9,MATCH($E188,'FO&M Trajectories'!$B$10:$B$42,0),MATCH(_xlfn.CONCAT(W$16:W$17,W$19),'FO&M Trajectories'!$C$9:$AAN$9,0)) -> 0.5435004741 | X188: =OFFSET('FO&M Trajectories'!$B$9,MATCH($E188,'FO&M Trajectories'!$B$10:$B$42,0),MATCH(_xlfn.CONCAT(X$16:X$17,X$19),'FO&M Trajectories'!$C$9:$AAN$9,0)) -> 1 | Y188: =OFFSET('FO&M Trajectories'!$B$9,MATCH($E188,'FO&M Trajectories'!$B$10:$B$42,0),MATCH(_xlfn.CONCAT(Y$16:Y$17,Y$19),'FO&M Trajectories'!$C$9:$AAN$9,0)) -> 1 | Z188: =OFFSET('FO&M Trajectories'!$B$9,MATCH($E188,'FO&M Trajectories'!$B$10:$B$42,0),MATCH(_xlfn.CONCAT(Z$16:Z$17,Z$19),'FO&M Trajectories'!$C$9:$AAN$9,0)) -> 1 | AA188: =OFFSET('FO&M Trajectories'!$B$9,MATCH($E188,'FO&M Trajectories'!$B$10:$B$42,0),MATCH(_xlfn.CONCAT(AA$16:AA$17,AA$19),'FO&M Trajectories'!$C$9:$AAN$9,0)) -> 1 | AB188: =OFFSET('FO&M Trajectories'!$B$9,MATCH($E188,'FO&M Trajectories'!$B$10:$B$42,0),MATCH(_xlfn.CONCAT(AB$16:AB$17,AB$19),'FO&M Trajectories'!$C$9:$AAN$9,0)) -> 1 | AC188: =OFFSET('FO&M Trajectories'!$B$9,MATCH($E188,'FO&M Trajectories'!$B$10:$B$42,0),MATCH(_xlfn.CONCAT(AC$16:AC$17,AC$19),'FO&M Trajectories'!$C$9:$AAN$9,0)) -> 1 | AD188: =OFFSET('FO&M Trajectories'!$B$9,MATCH($E188,'FO&M Trajectories'!$B$10:$B$42,0),MATCH(_xlfn.CONCAT(AD$16:AD$17,AD$19),'FO&M Trajectories'!$C$9:$AAN$9,0)) -> 1 | AE188: =OFFSET('FO&M Trajectories'!$B$9,MATCH($E188,'FO&M Trajectories'!$B$10:$B$42,0),MATCH(_xlfn.CONCAT(AE$16:AE$17,AE$19),'FO&M Trajectories'!$C$9:$AAN$9,0)) -> 1 | AF188: =OFFSET('FO&M Trajectories'!$B$9,MATCH($E188,'FO&M Trajectories'!$B$10:$B$42,0),MATCH(_xlfn.CONCAT(AF$16:AF$17,AF$19),'FO&M Trajectories'!$C$9:$AAN$9,0)) -> 1 | AG188: =OFFSET('FO&M Trajectories'!$B$9,MATCH($E188,'FO&M Trajectories'!$B$10:$B$42,0),MATCH(_xlfn.CONCAT(AG$16:AG$17,AG$19),'FO&M Trajectories'!$C$9:$AAN$9,0)) -> 1 | AH188: =OFFSET('FO&M Trajectories'!$B$9,MATCH($E188,'FO&M Trajectories'!$B$10:$B$42,0),MATCH(_xlfn.CONCAT(AH$16:AH$17,AH$19),'FO&M Trajectories'!$C$9:$AAN$9,0)) -> 1 | AI188: =OFFSET('FO&M Trajectories'!$B$9,MATCH($E188,'FO&M Trajectories'!$B$10:$B$42,0),MATCH(_xlfn.CONCAT(AI$16:AI$17,AI$19),'FO&M Trajectories'!$C$9:$AAN$9,0)) -> 1 | AJ188: =OFFSET('FO&M Trajectories'!$B$9,MATCH($E188,'FO&M Trajectories'!$B$10:$B$42,0),MATCH(_xlfn.CONCAT(AJ$16:AJ$17,AJ$19),'FO&M Trajectories'!$C$9:$AAN$9,0)) -> 1 | AK188: =OFFSET('FO&M Trajectories'!$B$9,MATCH($E188,'FO&M Trajectories'!$B$10:$B$42,0),MATCH(_xlfn.CONCAT(AK$16:AK$17,AK$19),'FO&M Trajectories'!$C$9:$AAN$9,0)) -> 1 | AL188: =OFFSET('FO&M Trajectories'!$B$9,MATCH($E188,'FO&M Trajectories'!$B$10:$B$42,0),MATCH(_xlfn.CONCAT(AL$16:AL$17,AL$19),'FO&M Trajectories'!$C$9:$AAN$9,0)) -> 0.85 | AM188: =OFFSET('FO&M Trajectories'!$B$9,MATCH($E188,'FO&M Trajectories'!$B$10:$B$42,0),MATCH(_xlfn.CONCAT(AM$16:AM$17,AM$19),'FO&M Trajectories'!$C$9:$AAN$9,0)) -> 1 | AN188: =OFFSET('FO&M Trajectories'!$B$9,MATCH($E188,'FO&M Trajectories'!$B$10:$B$42,0),MATCH(_xlfn.CONCAT(AN$16:AN$17,AN$19),'FO&M Trajectories'!$C$9:$AAN$9,0)) -> 1 | AO188: =OFFSET('FO&M Trajectories'!$B$9,MATCH($E188,'FO&M Trajectories'!$B$10:$B$42,0),MATCH(_xlfn.CONCAT(AO$16:AO$17,AO$19),'FO&M Trajectories'!$C$9:$AAN$9,0)) -> 1 | AP188: =OFFSET('FO&M Trajectories'!$B$9,MATCH($E188,'FO&M Trajectories'!$B$10:$B$42,0),MATCH(_xlfn.CONCAT(AP$16:AP$17,AP$19),'FO&M Trajectories'!$C$9:$AAN$9,0)) -> 1 | AQ188: =OFFSET('FO&M Trajectories'!$B$9,MATCH($E188,'FO&M Trajectories'!$B$10:$B$42,0),MATCH(_xlfn.CONCAT(AQ$16:AQ$17,AQ$19),'FO&M Trajectories'!$C$9:$AAN$9,0)) -> 1
